Workbook

Sheet Cover
A1: 30
C2: RAM2024-25 Post 2028 REP Phase 2 - Pre-Decisional, FOIA-Exempt, Deliberative Process
C13: Rate Analysis Model V1.01
B14: =VLOOKUP(C14,Scenario!B:C,2,FALSE) -> 1 | C14: =VLOOKUP(1,Scenario!A:B,2,FALSE) -> FY2024-25 Reference Case Phase 2
C15: Home / Contents
C16: Start Here
C17: Scenario Builder
C18: Purpose of this Workbook:
C22: Legend:
C24: Tab Colors | H24: Font Colors | L24: Hyperlink Types
C26: Blue Tab | E26: Cover Sheet | H26: Blue Font | I26: Constant Values | L26: Cover Hyperlink | N26: Cover Page
C27: Green Tab | E27: Table of Contents | H27: Black Font | I27: Calculated Values | L27: TOC Hyperlink | N27: TOC
C28: Dark Blue Tabs | E28: Input Sheets | H28: Plum Font | I28: Hyperlinks | L28: Sheet Top Hyperlink | N28: é
C29: Rose Tabs | E29: Assumption Sheets | H29: Red Font | I29: Errors/Checks
C30: Tan Tabs | E30: Calculation/Output Sheets | H30: Black/Yellow | I30: Work in Progress
C31: Teal Tabs | E31: Lookup Sheets | H31: Black/Gold | I31: Modifiable Assumptions
C32: Reb Tabs | E32: Log/Error Sheet | H32: White/Grey | I32: Locked Data
C33: Black Tabs | E33: Locked Data Sheet
C34: Yellow Tabs | E34: REP Settlement Sheets
C35: Purple Tabs | E35: 7b2 Related Sheets

Sheet Scenario
A1: Run (1=yes, 0=no) | B1: Scenario | C1: Scenario | D1: Functionality | E1: Note | F1: Input Parameter | H1: Do not change black boxes
A2: =IF(SUM(A3:A60)>=1,0,1) -> 1 | B2: FY2024-25 Reference Case Phase 2 | C2: 1 | H2: =IF($A$4+A$5+$A$35+A$36>=1,1,0) -> 0 | I2: no conservation adjustment to 7(b)(2) Case loads | J2: 7b2 Con Load; 7b2 Resource Sort | K2: conservation resources removed from load adjustment and from resource stack
A3: 0 | B3: No TS in ASCs | D3: yes | H3: =IF($A$5+$A$35>=1,1,0) -> 0 | I3: include conservation costs in 7(b)(2) Case COSA | J3: 7b2 Case COSA | K3: conservation revenue requirement set equal to Program Case values; net interest, PNRR, and MRNR are set to Program Case values
A4: 0 | B4: Conservation = Gen Requirement w/out costs | C4: 2 | D4: yes | H4: 1 | I4: Conservation - Overhead added to Res. Stack
A5: 0 | B5: Conservation = Gen Requirement with costs | C5: 3 | D5: yes | H5: =IF($A$31=1,0,1) -> 1 | I5: Regular Block Augmentation Price
A6: 0 | B6: Conservation Resource Expensed 1st Year | C6: 4 | D6: yes | H6: 0 | I6: NR Scenario - No REP
A7: 0 | B7: Placeholder - Conservation | D7: partial | E7: do not use | H7: =IF($A$32+$A$31+$A$34+$A$33>0,1,0) -> 0 | I7: NR Scenario - NR Loads (+1000aMW) | J7: 1000
A8: 0 | B8: Mid-C in Stack (IOU Load) | C8: 6 | D8: yes
A9: 0 | B9: Discount Rate - Not Applied | C9: 7 | D9: yes
A10: 0 | B10: Discount Rate = Inflation | C10: 8 | D10: yes | I10: Back to Cover
A11: 0 | B11: Discount Rate = Investment Rate | C11: 9 | D11: yes
A12: 0 | B12: Identical Secondary Credit | C12: 10 | D12: yes
A13: 0 | B13: No 7(b)(3) to Surplus | C13: 11 | D13: yes
A14: 0 | B14: Single Repayment Study | D14: yes | I14: GRAYED OUT SCENARIOS HAVE NOT BEEN UPDATED FOR SUBPHASE 2, DO NOT USE.
A15: 0 | B15: ASCs -High | C15: 15 | D15: yes
A16: 0 | B16: ASCs - Low | C16: 16 | D16: yes
A17: 0 | B17: IOU Loads - High (pairable with row 15 or 16)
A18: 0 | B18: IOU Loads - Low (pairable with row 15 or 16)
A19: 0 | B19: ASCs - Placeholder | D19: yes
A20: 0 | B20: ASCs - Double | D20: yes
A21: 0 | B21: ASC - Outyears equal Rate Period | D21: yes
A22: 0 | B22: ASC - Outyears decline from Rate Peirod | D22: yes | F22: =0.1 -> 0.1
A23: 0 | B23: High Conservation +(50%) | D23: yes
A24: 0 | B24: Low Conservation -(50%) | D24: yes
A25: 0 | B25: Loads - DSI Loads (+500aMW) | D25: yes | F25: 500
A26: 0 | B26: Loads - PF Decrease (-1000aMW) | C26: 17 | D26: yes | F26: -1000
A27: 0 | B27: Loads - PF Rise (+1000aMW) | C27: 18 | D27: yes | F27: 1000
A28: 0 | B28: Resources - Decrease (-1000aMW) | D28: yes | F28: -1000
A29: 0 | B29: Resources - Rise (+1000aMW) | D29: yes | F29: 1000
A30: 0 | B30: Cost Increase $100m | C30: 21 | D30: yes | F30: 100000
A31: 0 | B31: NR Scenario - Green Block Augmentation Price
A32: 0 | B32: NR Scenario - Regular Block Augmentation Price
A33: 0 | B33: NR Scenario - Regular Non-FBS Resource (1,000aMW) | C33: 21 | F33: 1000
A34: 0 | B34: NR Scenario - Green Non-FBS Resource (1,000aMW) | F34: 1000
A35: 0 | B35: IOU Best Case | C35: 13
A36: 0 | B36: COU Best Case | C36: 14
A37: 0 | B37: Uncontrollable Event Costs Removed from Program Case | C37: 12
A38: 0 | B38: Conservation Resource Expensed over 12 years in 7(b)(2) Case vs 5 years. | C38: 5
A39: 0 | B39: Market Prices - High | C39: 19
A40: 0 | B40: Market Prices - Low | C40: 20
A41: 0 | B41: Levelization of 7b2 Trigger

Sheet REPOutput
C1: REP-Total | D1: REP-IOU | E1: REP-COU | F1: Tier 1 | G1: Unbif PF | H1: PFp | I1: PFx | J1: FY24-25 ASCs | K1: 6yr Wtd ASCs | L1: Base PFx | M1: Un- Constrained Benefits | N1: Program Case | O1: 7b2 Case | P1: Trigger | Q1: Rate Protection | R1: Secondary Loads | S1: IP Loads | T1: PF Exchange Loads | W1: to scenarios
A4: =VLOOKUP(B4,Scenario!B:C,2,FALSE) -> 1 | B4: =Cover!C14 -> FY2024-25 Reference Case Phase 2 | C4: =D4+E4 -> 108122.8265 | D4: =AVERAGE('Utility Specifc PFx'!K35,'Utility Specifc PFx'!K54) -> 108122.8265 | E4: =AVERAGE('Utility Specifc PFx'!K36,'Utility Specifc PFx'!K55) -> 0 | F4: =ScenarioResults!D48 -> 29.55 | G4: =ScenarioResults!C7 -> 50.61204551 | H4: =ScenarioResults!C8 -> 30.89 | I4: =ScenarioResults!C9 -> 75.78976803 | J4: =IFERROR('Exchange Summary'!$N$9,0) -> 78.32652262 | K4: =IFERROR('Exchange Summary'!O9,0) -> 81.85161851 | L4: ='Utility Specifc PFx'!E8 -> 56.148267 | M4: ='Utility Specifc PFx'!G17 -> 945292.727 | N4: =TriggerCalc!J33 -> 44.18 | O4: =TriggerCalc!J34 -> 24.46 | P4: =N4-O4 -> 19.72 | Q4: ='7b2 Allocation'!F16 -> 1222296.021 | R4: ='7b2 Allocation'!L30 -> 385118.2758 | S4: ='7b2 Allocation'!L28 -> 1890.929732 | T4: ='7b2 Allocation'!L27 -> 835286.6228
A7: 1 | B7: FY2024-25 Reference Case Phase 2 | C7: 108122.866 | D7: 108122.866 | E7: 0 | F7: 29.55 | G7: 50.61204589 | H7: 30.89 | I7: 75.78976748 | J7: 78.32652262 | K7: 81.85161851 | L7: 56.148267 | M7: 945292.727 | N7: 44.18 | O7: 24.46 | P7: 19.72 | Q7: 1222296.021 | R7: 385118.2758 | S7: 1890.929732 | T7: 835286.6228
A8: 2 | B8: Conservation = Gen Requirement w/out costs | C8: 47341.27405 | D8: 47341.27405 | E8: 0 | F8: 28.5 | G8: 50.82288656 | H8: 29.88 | I8: 77.2158118 | J8: 78.32652262 | K8: 81.85161851 | L8: 56.35914 | M8: 936304.7923 | N8: 44.36 | O8: 23.42 | P8: 20.94 | Q8: 1297914.741 | R8: 408944.0515 | S8: 2007.914228 | T8: 886962.5701
A9: 3 | B9: Conservation = Gen Requirement with costs | C9: 184344.2275 | D9: 184344.2275 | E9: 0 | F9: 30.87 | G9: 50.34774018 | H9: 32.15 | I9: 74.00147742 | J9: 78.32652262 | K9: 81.85161851 | L9: 55.883922 | M9: 956559.7721 | N9: 43.97 | O9: 25.78 | P9: 18.19 | Q9: 1127462.709 | R9: 355238.4096 | S9: 1744.219666 | T9: 770479.9021
A10: 4 | B10: Conservation Resource Expensed Yr 1 | C10: 138009.2008 | D10: 138009.2008 | E10: 0 | F10: 30.07 | G10: 50.50850026 | H10: 31.38 | I10: 75.08858034 | J10: 78.32652262 | K10: 81.85161851 | L10: 56.044706 | M10: 949706.7558 | N10: 44.1 | O10: 24.98 | P10: 19.12 | Q10: 1185106.487 | R10: 373400.6812 | S10: 1833.396373 | T10: 809872.2226
A11: 5 | B11: Conservation Resource Expensed over 12 years in 7(b)(2) Case vs 5 years. | C11: 115592.4815 | D11: 115592.4815 | E11: 0 | F11: 29.68 | G11: 50.58620476 | H11: 31.01 | I11: 75.61451691 | J11: 78.32652262 | K11: 81.85161851 | L11: 56.122422 | M11: 946394.3055 | N11: 44.16 | O11: 24.59 | P11: 19.57 | Q11: 1212998.638 | R11: 382188.8771 | S11: 1876.546392 | T11: 828933.0228
A12: 6 | B12: Mid-C in Stack (IOU Load) | C12: 97657.55659 | D12: 97657.55659 | E12: 0 | F12: 29.37 | G12: 50.64840501 | H12: 30.71 | I12: 76.03530195 | J12: 78.32652262 | K12: 81.85161851 | L12: 56.184632 | M12: 943742.7597 | N12: 44.21 | O12: 24.28 | P12: 19.93 | Q12: 1235312.358 | R12: 389219.4339 | S12: 1911.066407 | T12: 844181.6629
A13: 7 | B13: Discount Rate = none | C13: -80690.43421 | D13: -80690.43421 | E13: 0 | F13: 26.28 | G13: 51.26684108 | H13: 27.75 | I13: 80.21966419 | J13: 78.32652262 | K13: 81.85161851 | L13: 56.803162 | M13: 917379.4641 | N13: 51.79 | O13: 28.28 | P13: 23.51 | Q13: 1457209.912 | R13: 459134.415 | S13: 2254.348783 | T13: 995820.918
A14: =A13+1 -> 8 | B14: Discount Rate = Inflation | C14: -29873.56803 | D14: -29873.56803 | E14: 0 | F14: 27.16 | G14: 51.09057678 | H14: 28.6 | I14: 79.02740972 | J14: 78.32652262 | K14: 81.85161851 | L14: 56.626871 | M14: 924893.4274 | N14: 49.75 | O14: 27.26 | P14: 22.49 | Q14: 1393987.704 | R14: 439214.5042 | S14: 2156.542072 | T14: 952616.4375
A15: =A14+1 -> 9 | B15: Discount Rate = Investment Rate | C15: 197296.7894 | D15: 197296.7894 | E15: 0 | F15: 31.1 | G15: 50.30282755 | H15: 32.37 | I15: 73.69758774 | J15: 78.32652262 | K15: 81.85161851 | L15: 55.839002 | M15: 958474.3748 | N15: 40.5 | O15: 22.57 | P15: 17.93 | Q15: 1111347.244 | R15: 350160.7852 | S15: 1719.288544 | T15: 759466.9953
A16: 10 | B16: Identical Secondary Credit | C16: 333870.463 | D16: 333870.463 | E16: 0 | F16: 33.46 | G16: 49.8277944 | H16: 34.63 | I16: 70.49332526 | J16: 78.32652262 | K16: 81.85161851 | L16: 55.363897 | M16: 978724.5382 | N16: 43.54 | O16: 28.35 | P16: 15.19 | Q16: 941515.0386 | R16: 296650.4366 | S16: 1456.552871 | T16: 643407.9007
A17: 11 | B17: No 7(b)(3) to Surplus | C17: 66575.83923 | D17: 66143.05318 | E17: 432.7860469 | F17: 28.83 | G17: 46.97837109 | H17: 30.19 | I17: 74.97970497 | J17: 76.4185235 | K17: 79.86794342 | L17: 52.544648 | M17: 1106078.206 | N17: 41.23 | O17: 24.45 | P17: 16.78 | Q17: 1040067.304 | R17: 0 | S17: 2164.37696 | T17: 1037902.706
A18: 12 | B18: Uncontrollable Event Costs Removed from Program Case | C18: 145979.4252 | D18: 145979.4252 | E18: 0 | F18: 30.21 | G18: 50.48087625 | H18: 31.52 | I18: 74.90158445 | J18: 78.32652262 | K18: 81.85161851 | L18: 56.017078 | M18: 950884.3303 | N18: 43.44 | O18: 24.48 | P18: 18.96 | Q18: 1175189.278 | R18: 370275.9893 | S18: 1818.054144 | T18: 803095.0491
A19: 13 | B19: IOU Best Case | C19: 300917.3068 | D19: 300917.3068 | E19: 0 | F19: 32.89 | G19: 49.9435293 | H19: 34.09 | I19: 71.26646561 | J19: 78.32652262 | K19: 81.85161851 | L19: 55.479649 | M19: 973790.8985 | N19: 39.65 | O19: 23.8 | P19: 15.85 | Q19: 982423.5262 | R19: 309539.7906 | S19: 1519.839566 | T19: 671363.741
A20: 14 | B20: COU Best Case | C20: -159844.6659 | D20: -158775.6424 | E20: -1069.023509 | F20: 24.9 | G20: 46.91797611 | H20: 26.43 | I20: 79.87304236 | J20: 76.4185235 | K20: 79.86794342 | L20: 52.484379 | M20: 1108872.817 | N20: 47.71 | O20: 27.23 | P20: 20.48 | Q20: 1269402.764 | R20: 0 | S20: 2641.62337 | T20: 1266760.872
A21: 15 | B21: ASCs - High | C21: 83711.63385 | D21: 83711.63385 | E21: 0 | F21: 29.13 | G21: 50.69670259 | H21: 30.48 | I21: 76.36249812 | J21: 78.32652262 | K21: 83.11647691 | L21: 56.232937 | M21: 941683.8798 | N21: 44.67 | O21: 24.46 | P21: 20.21 | Q21: 1252667.474 | R21: 394687.6447 | S21: 1937.915308 | T21: 856041.7164
A22: 16 | B22: ASCs - Low | C22: 147481.03 | D22: 147481.03 | E22: 0 | F22: 30.23 | G22: 50.4755257 | H22: 31.54 | I22: 74.86635377 | J22: 78.32652262 | K22: 79.89923463 | L22: 56.011727 | M22: 951112.4033 | N22: 43.41 | O22: 24.48 | P22: 18.93 | Q22: 1173329.801 | R22: 369690.1096 | S22: 1815.177476 | T22: 801824.3291
A23: 17 | B23: Loads - PF Decrease (-1000aMW) | C23: 131648.0189 | D23: 131648.0189 | E23: 0 | F23: 24.69 | G23: 51.18176737 | H23: 26.49 | I23: 75.23782475 | J23: 78.32652262 | K23: 81.85161851 | L23: 56.715385 | M23: 921120.7393 | N23: 44.52 | O23: 19.83 | P23: 24.69 | Q23: 1313768.649 | R23: 524876.7243 | S23: 1781.864424 | T23: 787109.8784
A24: 18 | B24: Loads - PF Rise (+1000aMW) | C24: 69240.02219 | D24: 69240.02219 | E24: 0 | F24: 32.36 | G24: 50.69125325 | H24: 33.43 | I24: 76.70202776 | J24: 78.32652262 | K24: 81.85161851 | L24: 56.228096 | M24: 941890.2153 | N24: 44.76 | O24: 27.5 | P24: 17.26 | Q24: 1221223.651 | R24: 348247.3501 | S24: 1971.811445 | T24: 871004.2887
A25: 19 | B25: Market Prices - High | C25: 314538.0107 | D25: 311175.5296 | E25: 3362.481181 | F25: 24.29 | G25: 45.54975362 | H25: 25.85 | I25: 69.62081509 | J25: 76.4185235 | K25: 79.86794342 | L25: 51.118135 | M25: 1172220.835 | N25: 41.2 | O25: 21.5 | P25: 19.7 | Q25: 1221056.37 | R25: 363470.0535 | S25: 1784.615956 | T25: 855801.5186
A26: 20 | B26: Market Prices - Low | C26: 21660.21672 | D26: 21660.21672 | E26: 0 | F26: 31.46 | G26: 52.54029413 | H26: 32.72 | I26: 77.81833545 | J26: 78.32652262 | K26: 81.85161851 | L26: 58.07723 | M26: 863075.4992 | N26: 45.37 | O26: 25.55 | P26: 19.82 | Q26: 1228494.277 | R26: 387071.2082 | S26: 1900.518625 | T26: 839522.3562
A27: 21 | B27: Cost Increase $100m | C27: 95125.25837 | D27: 95125.25837 | E27: 0 | F27: 31.08 | G27: 51.4947401 | H27: 32.35 | I27: 76.09471414 | J27: 78.32652262 | K27: 81.85161851 | L27: 57.030919 | M27: 907671.891 | N27: 44.89 | O27: 25.75 | P27: 19.14 | Q27: 1186346.138 | R27: 373791.2677 | S27: 1835.314151 | T27: 810719.3692
A28: 22 | B28: NR Scenario (Adds 1000aMW, NonFBS @$80) | C28: 247100.7742 | D28: 247100.7742 | E28: 0 | F28: 29.69 | G28: 50.20148646 | H28: 31.03 | I28: 72.52909756 | J28: 78.32652262 | K28: 81.85161851 | L28: 55.73772 | M28: 962791.267 | N28: 43.96 | O28: 24.79 | P28: 19.17 | Q28: 1188205.615 | R28: 324902.2022 | S28: 1617.757849 | T28: 714616.725
B37: to scenarios

Sheet TOC
A1: 30 | B1: Table of Contents
B2: =Cover!C13 -> Rate Analysis Model V1.01
B3: =Cover!$C$14 -> FY2024-25 Reference Case Phase 2
B4: Cover Sheet | F4: PRS | G4: 7(b)(2)
E5: Input | F5: Documentation | G5: Documentation
A6: é | B6: Section & Sheet Titles | D6: Worksheet Name | E6: Datasheet? | F6: Table Number | G6: Table Number
B8: Documentation
B9: 1 | C9: Macro Design Schematic | D9: Macro
B10: Assumption Sheets
B11: =+B9+1 -> 2 | C11: Initialize Assumptions | D11: Init | E11: INPUT
B12: Validation/Error Check/Result Summary
B13: =B11+1 -> 3 | C13: Revenue Check | D13: Rev Check
B14: =+B13+1 -> 4 | C14: Rate Design Summary | D14: RateSummary
B15: 5 | C15: Scenario Results | D15: ScenarioResults
B16: 6 | C16: Expanded Scenario Results | D16: ResultsDetail
B17: Loads and Resources Data
B18: =+B16+1 -> 7 | C18: Load Input Data | D18: Loads | E18: INPUT | F18: Table 2.1.1 | G18: Table 1.1.1
B19: =+B18+1 -> 8 | C19: Load Forecast with Monthly Losses Applied | D19: Loads_MthLoss
B20: =+B19+1 -> 9 | C20: PF Public with Firm Slice Loads | D20: PF Public | E20: INPUT
B21: =+B20+1 -> 10 | C21: PF Exchange Loads | D21: PF Exchange | E21: INPUT
B22: 11 | C22: IP Loads | D22: RAM IP | E22: INPUT
B23: 12 | C23: NR Loads | D23: RAM NR | E23: INPUT
B24: =+B23+1 -> 13 | C24: Resource Input Data | D24: Resources | E24: INPUT | F24: Table 2.1.2 | G24: Table 1.1.2
B25: 14 | C25: Residential Exchange Input Data | D25: ExchangeInputs | E25: INPUT
B26: =+B25+1 -> 15 | C26: Transmission Inputs | D26: TransInputs | E26: INPUT
B27: =+B26+1 -> 16 | C27: Losses Inputs | D27: LossesInputs | E27: INPUT
B28: 17 | C28: REP Settlement Inputs | D28: REPSettlementSchedule
B29: =+B28+1 -> 18 | C29: Calculation of Exchange Transmission Adder | D29: Exchange Trans
B30: 19 | C30: Calculation of Exchange Resource Size and Costs | D30: Exchange Summary | F30: Table 2.1.3 | G30: Table 1.1.3
B31: =+B30+1 -> 20 | C31: Load Resource Study | D31: LR_Balance | F31: Table 2.2.1 | G31: Table 1.2.1
B32: 21 | C32: Load Resource Balance | D32: LR_Adjust | F32: Table 2.2.2 | G32: Table 1.2.2
B33: 22 | C33: Program Case Energy Allocation Factors | D33: ProgAlloc | F33: Table 2.2.3 | G33: Table 1.2.3
B34: Determination of Active Residential Exchange Costs
B35: =+B33+1 -> 23 | C35: Active Exchanging Utilities | D35: Active Exchange
B36: 24 | C36: Exchanging Utilities' ASCs | D36: Exchange ASC
B37: 25 | C37: Exchanging Utilities' Exchange Loads | D37: Exchange Load
B38: 26 | C38: Exchange Resource Costs | D38: Exchange Resource Cost
B39: Ratemaking Revenue Requirement Data
B40: =+B38+1 -> 27 | C40: Disaggregated Costs with TRM and COSA Flags | D40: Cost | E40: INPUT
B41: =+B40+1 -> 28 | C41: Disaggregated Costs with TRM and COSA Flags, Includes Internally Developed Costs | D41: CostPrint | F41: Table 2.3.1 | G41: Table 1.3.1
B42: =+B41+1 -> 29 | C42: Aggregated COSA Costs | D42: ProgCOSA | F42: Table 2.3.2 | G42: Table 1.3.2
B43: =+B42+1 -> 30 | C43: LDD and IRD Costs | D43: LDD_IRD | F43: Table 2.3.3 | G43: Table 1.3.3
B44: Allocation of COSA Costs to Rate Pools
B45: =+B43+1 -> 31 | C45: Allocation of FBS and LDD/IRD Costs | D45: FBS_LDD_IRD_Allocation | F45: Table 2.3.4.1 | G45: Table 1.3.4.1
B46: =+B45+1 -> 32 | C46: Allocation of New Resource and Exchange Costs | D46: NR_EX_Allocation | F46: Table 2.3.4.2 | G46: Table 1.3.4.2
B47: =+B46+1 -> 33 | C47: Allocation of Conservation, BPA Program and Transmission Costs | D47: Cons_Program_Allocation | F47: Table 2.3.4.3 | G47: Table 1.3.4.3
B48: =+B47+1 -> 34 | C48: Initial Cost Allocation | D48: Initial_Cost_Allocation | F48: Table 2.3.5 | G48: Table 1.3.5
B49: =+B48+1 -> 35 | C49: Cost Allocation Summary | D49: Cost_Allocation Summary
B50: Revenue Credits Allocation to Rate Pools
B51: =+B49+1 -> 36 | C51: Revenue Credits | D51: RDS_Credits | F51: Table 2.3.6 | G51: Table 1.3.6
B52: =+B51+1 -> 37 | C52: Revenue Credits Allocated to Loads Recovering FBS Costs | D52: Credits FBS | F52: Tables 2.3.7.1 & 2.3.7.2 | G52: Tables 1.3.7.1 & 1.3.7.2
B53: 38 | C53: Revenue Credits Allocated to Loads Recovering New Resource and Conservation Costs | D53: Credits NR-Cons | F53: Tables 2.3.7.3 & 2.3.7.4 | G53: Tables 1.3.7.3 & 1.3.7.4
B54: 39 | C54: Revenue Credits Allocated to All Loads | D54: Credits Gen-RSS | F54: Tables 2.3.7.5 & 2.3.7.6 | G54: Tables 1.3.7.5 & 1.3.7.6
B55: 40 | C55: Secondary Revenue and Balancing Purchases Input Data | D55: RevSimInputs | E55: INPUT
B56: 41 | C56: Calculation and Allocation of Secondary Revenue Credit | D56: Secondary | F56: Table 2.3.8 | G56: Table 1.3.8
B57: 42 | C57: Calculation and Allocation of FPS Revenue Deficiency | D57: FPS Revenue Deficiency | F57: Table 2.3.9 | G57: Table 1.3.9
B58: Rate Directive Ratemaking
B59: =+B57+1 -> 43 | C59: Calculation of Rates After Initial Allocation of Cost and Credits | D59: Initial Rates | F59: Table 2.3.10 | G59: Table 1.3.10
B60: =+B59+1 -> 44 | C60: Value of Reserves and Industrial Margin Computation | D60: Margin_VOR
B61: 45 | C61: Value of Reserves and Industrial Margin Computation | D61: Margin_VOR_Calc | F61: Table 2.4.1 | G61: Table 1.4.1
B62: 46 | C62: Calculate Annual Scalars Used to Calculate Monthly Rates for First IP-PF Link | D62: Calc Scalar 1 | F62: Table 2.4.2 | G62: Table 1.4.2
B63: 47 | C63: Calculate Monthly Rates Used in First IP - PF Link Calculation | D63: Calc Monthly 1 | F63: Table 2.4.3 | G63: Table 1.4.3
B64: 48 | C64: Calculation of the 7c2 IP-PF Link Amount | D64: IP_PF_Link | F64: Table 2.4.4 | G64: Table 1.4.4
B65: 49 | C65: Allocation of the 7c2 IP-PF Link Amount and Subsequant Rate Calculations | D65: Rates After Link | F65: Table 2.4.5 | G65: Table 1.4.5
B66: 50 | C66: Calculation of the DSI Floor Rate | D66: IP Floor Calc | F66: Table 2.4.6 | G66: Table 1.4.6
B67: 51 | C67: DSI Floor Rate Test 1 | D67: Floor Test 1 | F67: Table 2.4.7 | G67: Table 1.4.7
B68: =B67+1 -> 52 | C68: Calculation of IOU and COU Base Exchange Rates | D68: Base PF Exchange | F68: Table 2.4.8 | G68: Table 1.4.8
B69: REP Settlement Case Rate Directive Ratemaking
B70: =+B68+1 -> 53 | C70: Calculation of REP Adjustment Amount under Settlement | D70: Post-7b2Rates | F70: Table 2.4.9
B71: =B70+1 -> 54 | C71: Rate Analysis Model - Exchange Resource Cost | D71: Base Exchange Cost | F71: Table 2.4.10
B72: =B71+1 -> 55 | C72: Calculation of Settlement Utility Specific PF Exchange Rates | D72: Utility Specific PFx Settle | F72: Table 2.4.11
B73: =+B72+1 -> 56 | C73: 2012 REP Settlement Agreement Section 6 Reallocations | D73: IOU Reallocation Balances | F73: Table 2.4.12
B74: =+B73+1 -> 57 | C74: Allocation of Increase in the PFx Revenue Requirement under Settlement | D74: Rates After Settlement | F74: Table 2.4.13
B75: 58 | C75: Reallocation of REP Net Benefits under Settlement | D75: WP-10 Adjustment | F75: Table 2.4.14
B76: 59 | C76: Rate Computation after Reallocation of REP Benefits under Settlement | D76: Rates After WP-10 Adjustment | F76: Table 2.4.15
B77: 60 | C77: Calculate Annual Scalars Used to Calculate Monthly Rates | D77: Calc Scalar Settlement | F77: Table 2.4.16
B78: 61 | C78: Calculate Monthly Rates Used in First IP - PF Link Calculation | D78: Calc Monthly Settlement | F78: Table 2.4.17
B79: 62 | C79: Initial 7c2 IP-PF Link Calculation | D79: IP_PF_Link Settlement | F79: Table 2.4.18
B80: 63 | C80: Calculation of Rates after IP-PF Link under Settlement | D80: Rates After Link Settlement | F80: Table 2.4.19
B81: 64 | C81: Settlement Revenue Check | D81: Settlement Rev Check
B82: =+B81+1 -> 65 | C82: Net REP Ratemaking Proof Table under Settlement | D82: Net REP Settlement | F82: Table 3.1.7.1
B83: Program Case Rate Directive Ratemaking
B84: =+B82+1 -> 66 | C84: Calculation of the 7b2 Rate Test Trigger | D84: TriggerCalc | G84: Table 1.4.9
B85: =+B84+1 -> 67 | C85: Calculation and Allocation of the 7b2 Rate Protection Amount | D85: 7b2 Allocation | G85: Table 1.4.10
B86: 68 | C86: Calculation of Rates After the Allocation of the 7b2 Rate Protection Amount | D86: Rates After 7b2 | G86: Table 1.4.11
B87: 69 | C87: Calculate Annual Scalars Used to Calculate Monthly Rates for 7b2 Industrial Adjustment 7c2 Delta | D87: Calc Scalar 2 | G87: Table 1.4.12
B88: 70 | C88: Calculate Monthly Rates Used in 7b2 Industrial Adjustment 7c2 Delta | D88: Calc Monthly 2 | G88: Table 1.4.13
B89: 71 | C89: Calculation of the 7b2 Industrial Adjustment 7c2 Delta | D89: IP_PF_Link 2 | G89: Table 1.4.14
B90: 72 | C90: Allocation of the 7b2 Industrial Adjustment 7c2 Delta and Subsequant Rate Calculations | D90: Rates After Link (2) | G90: Table 1.4.15
B91: 73 | C91: DSI Floor Rate Test 2 | D91: Floor Test 2 | G91: Table 1.4.16
B92: 74 | C92: Calculation of Utility Specific PF Exchange Rates | D92: Utility Specifc PFx
B93: 75 | C93: Program Case Revenue Check | D93: Program Rev Check
B94: Rate Pool Unit Cost Tables and Net REP Ratemaking Proof
B95: =+B93+1 -> 76 | C95: PF Rate Pool Unit Cost Table | D95: PF Allocation | F95: Table 2.5.1 | G95: Table 1.5.4
B96: =+B95+1 -> 77 | C96: IP Rate Pool Unit Cost Table | D96: IP Allocation | F96: Table 2.5.2 | G96: Table 1.5.5
B97: =+B96+1 -> 78 | C97: NR Rate Pool Unit Cost Table | D97: NR Allocation | F97: Table 2.5.3 | G97: Table 1.5.6
B98: =+B97+1 -> 79 | C98: Generating Resource Component Contribution Table | D98: Cost Contribution | F98: Table 2.5.4 | G98: Table 1.5.7
B99: =+B98+1 -> 80 | C99: Net REP Ratemaking Proof Table | D99: Net REP
B100: =+B99+1 -> 81 | C100: Reconciliation of REP Benefits for Tiered Rates | D100: REP Benefits | F100: Table 2.4.20
B101: Tiered Rates Methodology (TRM)
B102: =+B100+1 -> 82 | C102: Aggregated TRM Costs | D102: Costs_TRM | F102: Table 3.1.1
B103: =+B102+1 -> 83 | C103: TRM Billing Determinants | D103: TRM_Billing | E103: INPUT
B104: 84 | C104: Unused RHWM Calculation | D104: UnusedRHWM | F104: Table 3.1.2
B105: 85 | C105: NonSlice Cost for Transmission Losses (Composite Credit) | D105: NonSliceLossAdjust | F105: Table 3.1.3
B106: 86 | C106: Balancing Augmentation Adjustment for Change in T1SFCO | D106: T1SFCO | F106: Table 3.1.4
B107: 87 | C107: TRM Market Prices and Demand Rates | D107: MarketInputs | E107: INPUT
B108: 88 | C108: TRM Demand and Load Shaping Charges | D108: LoadShapingandDemand | F108: Table 3.1.5
B109: 89 | C109: PF Load Forecast Deviation Liquidated Damages | D109: LiquidatedDamages | E109: INPUT | F109: Table 3.12
B110: 90 | C110: Tier 2 Rates Inputs | D110: Tier 2 Rates | E110: INPUT
B111: 91 | C111: Sales Calculation for Tier 2 Overhead Cost Adder | D111: Tier2OverheadSales
B112: 92 | C112: TRM Cost Allocation | D112: Cost_Allocation_TRM | F112: Table 3.1.6
B113: 93 | C113: Cost Proof | D113: Cost_Proof | F113: Table 3.1.7.2
B114: 94 | C114: Transfer Service and Unauthorized Increase Charge Inputs | D114: TransferUAIinputs | E114: INPUT
B115: 95 | C115: Transfer Service Charges and Rates | D115: TransferService | E115: INPUT | F115: Table 6.1
B116: 7b2 Case Loads
B117: =+B115+1 -> 96 | C117: 7b2 Conservation Loads | D117: 7b2 Con Load
B118: =+B117+1 -> 97 | C118: 7b2 PF Loads | D118: 7b2 PF Load | G118: Table 2.1
B119: 7b2 Case Loads/Resource Balance and Resource Stack Utilization
B120: =+B118+1 -> 98 | C120: 7b2 Resource Stack | D120: 7b2 Resource Sort | E120: INPUT | G120: Table 2.2.2
B121: =+B120+1 -> 99 | C121: List of Available Resources | D121: 7b2 Resources1 | G121: Table 2.2.3
B122: 100 | C122: Determination of Resources Selected from Resource Stack | D122: 7b2 Resources2 | G122: Table 2.2.9
B123: 101 | C123: Resources Sorted by Least Cost | D123: ConservRes1
B124: 102 | C124: Conservation Resources Selected | D124: ConservRes2 | G124: Table 2.2.4
B125: 103 | C125: Real 2010 Dollar Cost of Resources Selected | D125: ConservRes3 | G125: Table 2.2.5
B126: 104 | C126: Nominal Amortized Cost of Expensed Portion of Conservation Resources Selected | D126: ConservRes4 | G126: Table 2.2.6
B127: 105 | C127: Nominal Annual Cost of Capital Portion of Conservation Resources Selected | D127: ConservRes5 | G127: Table 2.2.7
B128: 106 | C128: Nominal Cost of Non-Conservation Resources Selected | D128: ConservRes6
B129: 107 | C129: Nominal Total Cost of Resources Selected | D129: ConservRes7 | G129: Table 2.2.8
B130: 7b2 Case Rate Directive Ratemaking
B131: =B129+1 -> 108 | C131: 7b2 Case COSA Table | D131: 7b2COSA | G131: Table 2.3.1
B132: =B131+1 -> 109 | C132: 7b2 Case Energy Allocaction Factors | D132: 7b2Alloc | G132: Table 2.2.1
B133: 110 | C133: 7b2 Case FBS and Resource Stack Cost Allocation | D133: 7b2 FBS_Stack_Allo | G133: Table 2.3.2.1
B134: 111 | C134: 7b2 Case LDD/IRD and Reserve Cost Allocation | D134: 7b2 LDD_IRD_Reserve_Allo | G134: Table 2.3.2.2
B135: 112 | C135: 7b2 Case Programs and Transmission Cost Allocation | D135: 7b2 Program_Trans_Allo | G135: Table 2.3.2.3
B136: 113 | C136: 7b2 Case Initial Net Cost Alloction | D136: 7b2 Initial_Cost_Allo | G136: Table 2.3.3
B137: 114 | C137: 7b2 Case Revenue Credit Summary | D137: 7b2 RDS_Credits | G137: Table 2.3.4
B138: 115 | C138: 7b2 Case Revenue Credits Allocated to Loads Served by FBS Resources | D138: 7b2 Credits FBS | G138: Tables 2.3.5.1 & 2.3.5.2
B139: 116 | C139: 7b2 Case Revenue Credits Allocated to All Loads | D139: 7b2 Credits Gen-RSS | G139: Tables 2.3.5.3
B140: 117 | C140: 7b2 Case Calculation and Allocation of Secondary Revenue | D140: 7b2 Secondary | G140: Table 2.3.6
B141: 118 | C141: 7b2 Case FPS Revenue Deficiency Calculation and Allocation | D141: 7b2 FPS Revenue Deficiency
B142: 119 | C142: Calculation of 7b2 Case Rates | D142: 7b2 Rates
B143: =B142+1 -> 120 | C143: 7b2 Case Revenue Check | D143: 7b2 Rev Check
B144: Rate Case Two Year Rate Period Rates Calculations
B145: =+B143+1 -> 121 | C145: Ave. Tier 1 PF Public Rate | D145: PFAveT1_RateOutput
B146: =+B145+1 -> 122 | C146: PF Melded Equivalent Rate | D146: PFMeldedEqv_RateOutput
B147: 123 | C147: IP Rate | D147: IP_RateOutput | F147: Table 3.1.8.1 | G147: Table 1.5.1
B148: 124 | C148: NR Rate | D148: NR_RateOutput | F148: Table 3.1.8.2
B149: 125 | C149: Load Shaping True-up & Tier 1 Equivalent Rates | D149: LSTUR&PFT1Eqv_RateOutput | F149: Table 3.1.8.3 | G149: Table 1.5.2
B150: 126 | C150: Unbifurcated PF Rate | D150: Unbif PF_RateOutput | F150: Table 3.1.8.4 | G150: Table 1.5.3
B151: 127 | C151: PF Exchange Rate | D151: PF Exchange_RateOutput | F151: Table 3.1.8.5
B152: 128 | C152: Flat Melded Equivalent PF Public Rate | D152: FlatPFMeldedEqv_RateOutput
B153: Outputs and Checks
B154: =+B152+1 -> 129 | C154: RiskMod Output | D154: RiskMod_Out
B155: =+B154+1 -> 130 | C155: Revenue Requirement Output | D155: RROutput
B156: =+B155+1 -> 131 | C156: Rates Output New | D156: RatesOutputNew
B157: 132 | C157: Revenue Requirement Mapping | D157: RevReqMapping
B158: 133 | C158: Summary | D158: Summary
B159: 134 | C159: Net Revenue | D159: NetRevenue
B160: 135 | C160: Slice True Up Calculation | D160: SliceTrueUp
B161: 136 | C161: Tables | D161: Tables
B162: 137 | C162: Log updates and model changes | D162: Log

Sheet Macro
B1: Rate Analysis Model - PF Scenario Load Delta Designations | R1: Not printed in documentation.
A2: TOC | B2: =Cover!$C$14 -> FY2024-25 Reference Case Phase 2
A3: é
I4: RAM2010 Macro Diagram

Sheet Init
B1: Initiation Sheet
A2: TOC | B2: =+Cover!C14 -> FY2024-25 Reference Case Phase 2
A3: é | B3: Input Parameters | F3: Diurnal Hours | N3: Annual Hours
F4: date | G4: days | H4: hours | I4: #Sun | J4: #Hol | K4: HLH | L4: LLH | N4: year | O4: days | P4: hours
F5: 2014-10-01 | G5: 31 | H5: 744 | I5: 5 | J5: 1 | K5: 432 | L5: 312 | N5: 2011 | O5: 365 | P5: 8760
F6: 2014-11-01 | G6: 28 | H6: 721 | I6: 4 | J6: 0 | K6: 384 | L6: 337 | N6: 2012 | O6: 365 | P6: 8784
F7: 2014-12-01 | G7: 31 | H7: 744 | I7: 4 | J7: 0 | K7: 416 | L7: 328 | N7: 2013 | O7: 365 | P7: 8760
F8: 2015-01-01 | G8: 30 | H8: 744 | I8: 4 | J8: 0 | K8: 416 | L8: 328 | N8: 2014 | O8: 366 | P8: 8760
B9: Base Year | C9: 2024 | F9: 2015-02-01 | G9: 31 | H9: 672 | I9: 5 | J9: 1 | K9: 384 | L9: 288 | N9: 2015 | O9: 365 | P9: 8760
F10: 2015-03-01 | G10: 30 | H10: 743 | I10: 4 | J10: 0 | K10: 416 | L10: 327 | N10: 2016 | O10: 365 | P10: 8784
F11: 2015-04-01 | G11: 31 | H11: 720 | I11: 5 | J11: 1 | K11: 416 | L11: 304 | N11: 2017 | O11: 365 | P11: 8760
C12: Yes or No? | F12: 2015-05-01 | G12: 31 | H12: 744 | I12: 4 | J12: 0 | K12: 400 | L12: 344 | N12: 2016 | O12: 366 | P12: 8784
B13: Run an REP Settlement Scenario ? | C13: No | F13: 2015-06-01 | G13: 30 | H13: 720 | I13: 4 | J13: 1 | K13: 416 | L13: 304 | N13: 2017 | O13: 365 | P13: 8760
B14: Slice RTP Changed for Tier 1 System Change | C14: No | F14: 2015-07-01 | G14: 31 | H14: 744 | I14: 5 | J14: 0 | K14: 416 | L14: 328 | N14: 2018 | O14: 365 | P14: 8760
F15: 2015-08-01 | G15: 30 | H15: 744 | I15: 4 | J15: 1 | K15: 416 | L15: 328 | N15: 2019 | O15: 365 | P15: 8760
B16: Years to Finance Expensed Portion of 7b2 Cons | C16: 5 | F16: 2015-09-01 | G16: 31 | H16: 720 | I16: 4 | J16: 1 | K16: 400 | L16: 320 | N16: 2020 | O16: 366 | P16: 8784
F17: 2015-10-01 | G17: 31 | H17: 744 | I17: 5 | J17: 1 | K17: 432 | L17: 312 | N17: 2021 | O17: 365 | P17: 8760
F18: 2015-11-01 | G18: 29 | H18: 721 | I18: 4 | J18: 0 | K18: 384 | L18: 337 | N18: 2022 | O18: 365 | P18: 8760
F19: 2015-12-01 | G19: 31 | H19: 744 | I19: 4 | J19: 0 | K19: 416 | L19: 328 | N19: 2023 | O19: 365 | P19: 8760
F20: 2016-01-01 | G20: 30 | H20: 744 | I20: 5 | J20: 0 | K20: 400 | L20: 344 | N20: 2024 | O20: 366 | P20: 8784
F21: 2016-02-01 | G21: 31 | H21: 696 | I21: 4 | J21: 1 | K21: 400 | L21: 296 | N21: 2025 | O21: 365 | P21: 8760
F22: 2016-03-01 | G22: 30 | H22: 743 | I22: 4 | J22: 0 | K22: 432 | L22: 311 | N22: 2026 | O22: 365 | P22: 8760
F23: 2016-04-01 | G23: 31 | H23: 720 | I23: 5 | J23: 1 | K23: 416 | L23: 304 | N23: 2027 | O23: 365 | P23: 8760
F24: 2016-05-01 | G24: 31 | H24: 744 | I24: 4 | J24: 0 | K24: 400 | L24: 344 | N24: 2028 | O24: 366 | P24: 8784
F25: 2016-06-01 | G25: 30 | H25: 720 | I25: 5 | J25: 1 | K25: 416 | L25: 304 | N25: 2029 | O25: 365 | P25: 8760
F26: 2016-07-01 | G26: 31 | H26: 744 | I26: 4 | J26: 0 | K26: 400 | L26: 344 | N26: 2030 | O26: 365 | P26: 8760
F27: 2016-08-01 | G27: 30 | H27: 744 | I27: 4 | J27: 1 | K27: 432 | L27: 312 | N27: 2031 | O27: 365 | P27: 8760
F28: 2016-09-01 | G28: 31 | H28: 720 | I28: 5 | J28: 1 | K28: 400 | L28: 320 | N28: 2032 | O28: 366 | P28: 8784
F29: 2016-10-01 | G29: 31 | H29: 744 | I29: 4 | J29: 1 | K29: 416 | L29: 328 | N29: 2033 | O29: 365 | P29: 8760
F30: 2016-11-01 | G30: 28 | H30: 721 | I30: 4 | J30: 0 | K30: 400 | L30: 321 | N30: 2034 | O30: 365 | P30: 8760
F31: 2016-12-01 | G31: 31 | H31: 744 | I31: 5 | J31: 0 | K31: 416 | L31: 328 | N31: 2035 | O31: 365 | P31: 8760
F32: 2017-01-01 | G32: 30 | H32: 744 | I32: 4 | J32: 0 | K32: 400 | L32: 344 | N32: 2036 | O32: 366 | P32: 8784
F33: 2017-02-01 | G33: 31 | H33: 672 | I33: 4 | J33: 1 | K33: 384 | L33: 288 | N33: 2037 | O33: 365 | P33: 8760
F34: 2017-03-01 | G34: 30 | H34: 743 | I34: 5 | J34: 0 | K34: 432 | L34: 311 | N34: 2038 | O34: 365 | P34: 8760
F35: 2017-04-01 | G35: 31 | H35: 720 | I35: 4 | J35: 1 | K35: 400 | L35: 320 | N35: 2039 | O35: 365 | P35: 8760
F36: 2017-05-01 | G36: 31 | H36: 744 | I36: 4 | J36: 0 | K36: 416 | L36: 328 | N36: 2040 | O36: 366 | P36: 8784
F37: 2017-06-01 | G37: 30 | H37: 720 | I37: 5 | J37: 1 | K37: 416 | L37: 304 | N37: 2041 | O37: 365 | P37: 8760
F38: 2017-07-01 | G38: 31 | H38: 744 | I38: 4 | J38: 0 | K38: 400 | L38: 344 | N38: 2042 | O38: 365 | P38: 8760
F39: 2017-08-01 | G39: 30 | H39: 744 | I39: 4 | J39: 1 | K39: 432 | L39: 312 | N39: 2043 | O39: 365 | P39: 8760
F40: 2017-09-01 | G40: 31 | H40: 720 | I40: 5 | J40: 1 | K40: 400 | L40: 320 | N40: 2044 | O40: 366 | P40: 8784
F41: 2017-10-01 | G41: 31 | H41: 744 | I41: 4 | J41: 1 | K41: 416 | L41: 328
F42: 2017-11-01 | G42: 28 | H42: 721 | I42: 4 | J42: 0 | K42: 400 | L42: 321
F43: 2017-12-01 | G43: 31 | H43: 744 | I43: 5 | J43: 0 | K43: 400 | L43: 344
F44: 2018-01-01 | G44: 30 | H44: 744 | I44: 4 | J44: 0 | K44: 416 | L44: 328
F45: 2018-02-01 | G45: 31 | H45: 672 | I45: 4 | J45: 1 | K45: 384 | L45: 288
F46: 2018-03-01 | G46: 30 | H46: 743 | I46: 5 | J46: 0 | K46: 432 | L46: 311
F47: 2018-04-01 | G47: 31 | H47: 720 | I47: 4 | J47: 1 | K47: 400 | L47: 320
F48: 2018-05-01 | G48: 31 | H48: 744 | I48: 5 | J48: 0 | K48: 416 | L48: 328
F49: 2018-06-01 | G49: 30 | H49: 720 | I49: 4 | J49: 1 | K49: 416 | L49: 304
F50: 2018-07-01 | G50: 31 | H50: 744 | I50: 4 | J50: 0 | K50: 400 | L50: 344
F51: 2018-08-01 | G51: 30 | H51: 744 | I51: 5 | J51: 1 | K51: 432 | L51: 312
F52: 2018-09-01 | G52: 31 | H52: 720 | I52: 4 | J52: 1 | K52: 384 | L52: 336
F53: 2018-10-01 | G53: 31 | H53: 744 | I53: 4 | J53: 1 | K53: 432 | L53: 312
F54: 2018-11-01 | G54: 28 | H54: 721 | I54: 4 | J54: 0 | K54: 400 | L54: 321
F55: 2018-12-01 | G55: 31 | H55: 744 | I55: 5 | J55: 0 | K55: 400 | L55: 344
F56: 2019-01-01 | G56: 30 | H56: 744 | I56: 4 | J56: 0 | K56: 416 | L56: 328
F57: 2019-02-01 | G57: 31 | H57: 672 | I57: 5 | J57: 1 | K57: 384 | L57: 288
F58: 2019-03-01 | G58: 30 | H58: 743 | I58: 4 | J58: 0 | K58: 416 | L58: 327
F59: 2019-04-01 | G59: 31 | H59: 720 | I59: 4 | J59: 1 | K59: 416 | L59: 304
F60: 2019-05-01 | G60: 31 | H60: 744 | I60: 5 | J60: 0 | K60: 416 | L60: 328
F61: 2019-06-01 | G61: 30 | H61: 720 | I61: 4 | J61: 1 | K61: 400 | L61: 320
F62: 2019-07-01 | G62: 31 | H62: 744 | I62: 4 | J62: 0 | K62: 416 | L62: 328
F63: 2019-08-01 | G63: 30 | H63: 744 | I63: 5 | J63: 1 | K63: 432 | L63: 312
F64: 2019-09-01 | G64: 31 | H64: 720 | I64: 4 | J64: 1 | K64: 384 | L64: 336
F65: 2019-10-01 | G65: 31 | H65: 744 | I65: 5 | J65: 1 | K65: 432 | L65: 312
F66: 2019-11-01 | G66: 29 | H66: 721 | I66: 4 | J66: 0 | K66: 400 | L66: 321
F67: 2019-12-01 | G67: 31 | H67: 744 | I67: 4 | J67: 0 | K67: 400 | L67: 344
F68: 2020-01-01 | G68: 30 | H68: 744 | I68: 4 | J68: 0 | K68: 416 | L68: 328
F69: 2020-02-01 | G69: 31 | H69: 696 | I69: 5 | J69: 1 | K69: 400 | L69: 296
F70: 2020-03-01 | G70: 30 | H70: 743 | I70: 4 | J70: 0 | K70: 416 | L70: 327
F71: 2020-04-01 | G71: 31 | H71: 720 | I71: 5 | J71: 1 | K71: 416 | L71: 304
F72: 2020-05-01 | G72: 31 | H72: 744 | I72: 4 | J72: 0 | K72: 400 | L72: 344
F73: 2020-06-01 | G73: 30 | H73: 720 | I73: 4 | J73: 1 | K73: 416 | L73: 304
F74: 2020-07-01 | G74: 31 | H74: 744 | I74: 5 | J74: 0 | K74: 416 | L74: 328
F75: 2020-08-01 | G75: 30 | H75: 744 | I75: 4 | J75: 1 | K75: 416 | L75: 328
F76: 2020-09-01 | G76: 31 | H76: 720 | I76: 4 | J76: 1 | K76: 400 | L76: 320
F77: 2020-10-01 | G77: 31 | H77: 744 | I77: 5 | J77: 1 | K77: 432 | L77: 312
F78: 2020-11-01 | G78: 28 | H78: 721 | I78: 4 | J78: 0 | K78: 384 | L78: 337
F79: 2020-12-01 | G79: 31 | H79: 744 | I79: 4 | J79: 0 | K79: 416 | L79: 328
F80: 2021-01-01 | G80: 30 | H80: 744 | I80: 5 | J80: 0 | K80: 400 | L80: 344
F81: 2021-02-01 | G81: 31 | H81: 672 | I81: 4 | J81: 1 | K81: 384 | L81: 288
F82: 2021-03-01 | G82: 30 | H82: 743 | I82: 4 | J82: 0 | K82: 432 | L82: 311
F83: 2021-04-01 | G83: 31 | H83: 720 | I83: 5 | J83: 1 | K83: 416 | L83: 304
F84: 2021-05-01 | G84: 31 | H84: 744 | I84: 4 | J84: 0 | K84: 400 | L84: 344
F85: 2021-06-01 | G85: 30 | H85: 720 | I85: 4 | J85: 1 | K85: 416 | L85: 304
F86: 2021-07-01 | G86: 31 | H86: 744 | I86: 5 | J86: 0 | K86: 416 | L86: 328
F87: 2021-08-01 | G87: 30 | H87: 744 | I87: 4 | J87: 1 | K87: 416 | L87: 328
F88: 2021-09-01 | G88: 31 | H88: 720 | I88: 5 | J88: 1 | K88: 400 | L88: 320
F89: 2021-10-01 | G89: 31 | H89: 744 | I89: 4 | J89: 1 | K89: 416 | L89: 328
F90: 2021-11-01 | G90: 28 | H90: 721 | I90: 4 | J90: 0 | K90: 400 | L90: 321
F91: 2021-12-01 | G91: 31 | H91: 744 | I91: 4 | J91: 0 | K91: 416 | L91: 328
F92: 2022-01-01 | G92: 30 | H92: 744 | I92: 5 | J92: 0 | K92: 400 | L92: 344
F93: 2022-02-01 | G93: 31 | H93: 672 | I93: 4 | J93: 1 | K93: 384 | L93: 288
F94: 2022-03-01 | G94: 30 | H94: 743 | I94: 4 | J94: 0 | K94: 432 | L94: 311
F95: 2022-04-01 | G95: 31 | H95: 720 | I95: 5 | J95: 1 | K95: 416 | L95: 304
F96: 2022-05-01 | G96: 31 | H96: 744 | I96: 4 | J96: 0 | K96: 400 | L96: 344
F97: 2022-06-01 | G97: 30 | H97: 720 | I97: 5 | J97: 1 | K97: 416 | L97: 304
F98: 2022-07-01 | G98: 31 | H98: 744 | I98: 4 | J98: 0 | K98: 400 | L98: 344
F99: 2022-08-01 | G99: 30 | H99: 744 | I99: 4 | J99: 1 | K99: 432 | L99: 312
F100: 2022-09-01 | G100: 31 | H100: 720 | I100: 5 | J100: 1 | K100: 400 | L100: 320
F101: 2022-10-01 | G101: 31 | H101: 744 | I101: 4 | J101: 1 | K101: 416 | L101: 328
F102: 2022-11-01 | G102: 28 | H102: 721 | I102: 4 | J102: 0 | K102: 400 | L102: 321
F103: 2022-12-01 | G103: 31 | H103: 744 | I103: 5 | J103: 0 | K103: 416 | L103: 328
F104: 2023-01-01 | G104: 30 | H104: 744 | I104: 4 | J104: 0 | K104: 400 | L104: 344
F105: 2023-02-01 | G105: 31 | H105: 672 | I105: 4 | J105: 1 | K105: 384 | L105: 288
F106: 2023-03-01 | G106: 30 | H106: 743 | I106: 5 | J106: 0 | K106: 432 | L106: 311
F107: 2023-04-01 | G107: 31 | H107: 720 | I107: 4 | J107: 1 | K107: 400 | L107: 320
F108: 2023-05-01 | G108: 31 | H108: 744 | I108: 4 | J108: 0 | K108: 416 | L108: 328
F109: 2023-06-01 | G109: 30 | H109: 720 | I109: 5 | J109: 1 | K109: 416 | L109: 304
F110: 2023-07-01 | G110: 31 | H110: 744 | I110: 4 | J110: 0 | K110: 400 | L110: 344
F111: 2023-08-01 | G111: 30 | H111: 744 | I111: 4 | J111: 1 | K111: 432 | L111: 312
F112: 2023-09-01 | G112: 31 | H112: 720 | I112: 5 | J112: 1 | K112: 400 | L112: 320
F113: 2023-10-01 | H113: 744 | K113: 416 | L113: 328
F114: 2023-11-01 | H114: 721 | K114: 400 | L114: 321
F115: 2023-12-01 | H115: 744 | K115: 400 | L115: 344
F116: 2024-01-01 | H116: 744 | K116: 416 | L116: 328
F117: 2024-02-01 | H117: 696 | K117: 400 | L117: 296
F118: 2024-03-01 | H118: 743 | K118: 416 | L118: 327
F119: 2024-04-01 | H119: 720 | K119: 416 | L119: 304
F120: 2024-05-01 | H120: 744 | K120: 416 | L120: 328
F121: 2024-06-01 | H121: 720 | K121: 400 | L121: 320
F122: 2024-07-01 | H122: 744 | K122: 416 | L122: 328
F123: 2024-08-01 | H123: 744 | K123: 432 | L123: 312
F124: 2024-09-01 | H124: 720 | K124: 384 | L124: 336
F125: 2024-10-01 | H125: 744 | K125: 432 | L125: 312
F126: 2024-11-01 | H126: 721 | K126: 400 | L126: 321
F127: 2024-12-01 | H127: 744 | K127: 400 | L127: 344
F128: 2025-01-01 | H128: 744 | K128: 416 | L128: 328
F129: 2025-02-01 | H129: 672 | K129: 384 | L129: 288
F130: 2025-03-01 | H130: 743 | K130: 416 | L130: 327
F131: 2025-04-01 | H131: 720 | K131: 416 | L131: 304
F132: 2025-05-01 | H132: 744 | K132: 416 | L132: 328
F133: 2025-06-01 | H133: 720 | K133: 400 | L133: 320
F134: 2025-07-01 | H134: 744 | K134: 416 | L134: 328
F135: 2025-08-01 | H135: 744 | K135: 416 | L135: 328
F136: 2025-09-01 | H136: 720 | K136: 400 | L136: 320
F137: 2025-10-01 | H137: 744 | K137: 432 | L137: 312
F138: 2025-11-01 | H138: 721 | K138: 384 | L138: 337
F139: 2025-12-01 | H139: 744 | K139: 416 | L139: 328
F140: 2026-01-01 | H140: 744 | K140: 416 | L140: 328
F141: 2026-02-01 | H141: 672 | K141: 384 | L141: 288
F142: 2026-03-01 | H142: 743 | K142: 416 | L142: 327
F143: 2026-04-01 | H143: 720 | K143: 416 | L143: 304
F144: 2026-05-01 | H144: 744 | K144: 400 | L144: 344
F145: 2026-06-01 | H145: 720 | K145: 416 | L145: 304
F146: 2026-07-01 | H146: 744 | K146: 416 | L146: 328
F147: 2026-08-01 | H147: 744 | K147: 416 | L147: 328
F148: 2026-09-01 | H148: 720 | K148: 400 | L148: 320
F149: 2026-10-01 | H149: 744 | K149: 432 | L149: 312
F150: 2026-11-01 | H150: 721 | K150: 384 | L150: 337
F151: 2026-12-01 | H151: 744 | K151: 416 | L151: 328
F152: 2027-01-01 | H152: 744 | K152: 400 | L152: 344
F153: 2027-02-01 | H153: 672 | K153: 384 | L153: 288
F154: 2027-03-01 | H154: 743 | K154: 432 | L154: 311
F155: 2027-04-01 | H155: 720 | K155: 416 | L155: 304
F156: 2027-05-01 | H156: 744 | K156: 400 | L156: 344
F157: 2027-06-01 | H157: 720 | K157: 416 | L157: 304
F158: 2027-07-01 | H158: 744 | K158: 416 | L158: 328
F159: 2027-08-01 | H159: 744 | K159: 416 | L159: 328
F160: 2027-09-01 | H160: 720 | K160: 400 | L160: 320
F161: 2027-10-01 | H161: 744 | K161: 416 | L161: 328
F162: 2027-11-01 | H162: 721 | K162: 400 | L162: 321
F163: 2027-12-01 | H163: 744 | K163: 416 | L163: 328
F164: 2028-01-01 | H164: 744 | K164: 400 | L164: 344
F165: 2028-02-01 | H165: 696 | K165: 400 | L165: 296
F166: 2028-03-01 | H166: 743 | K166: 432 | L166: 311
F167: 2028-04-01 | H167: 720 | K167: 400 | L167: 320
F168: 2028-05-01 | H168: 744 | K168: 416 | L168: 328
F169: 2028-06-01 | H169: 720 | K169: 416 | L169: 304
F170: 2028-07-01 | H170: 744 | K170: 400 | L170: 344
F171: 2028-08-01 | H171: 744 | K171: 432 | L171: 312
F172: 2028-09-01 | H172: 720 | K172: 400 | L172: 320
F173: 2028-10-01 | H173: 744 | K173: 416 | L173: 328
F174: 2028-11-01 | H174: 721 | K174: 400 | L174: 321
F175: 2028-12-01 | H175: 744 | K175: 400 | L175: 344
F176: 2029-01-01 | H176: 744 | K176: 416 | L176: 328
F177: 2029-02-01 | H177: 672 | K177: 384 | L177: 288
F178: 2029-03-01 | H178: 743 | K178: 432 | L178: 311
F179: 2029-04-01 | H179: 720 | K179: 400 | L179: 320
F180: 2029-05-01 | H180: 744 | K180: 416 | L180: 328
F181: 2029-06-01 | H181: 720 | K181: 416 | L181: 304
F182: 2029-07-01 | H182: 744 | K182: 400 | L182: 344
F183: 2029-08-01 | H183: 744 | K183: 432 | L183: 312
F184: 2029-09-01 | H184: 720 | K184: 384 | L184: 336
F185: 2029-10-01 | H185: 744 | K185: 432 | L185: 312
F186: 2029-11-01 | H186: 721 | K186: 400 | L186: 321
F187: 2029-12-01 | H187: 744 | K187: 400 | L187: 344
F188: 2030-01-01 | H188: 744 | K188: 416 | L188: 328
F189: 2030-02-01 | H189: 672 | K189: 384 | L189: 288
F190: 2030-03-01 | H190: 743 | K190: 416 | L190: 327
F191: 2030-04-01 | H191: 720 | K191: 416 | L191: 304
F192: 2030-05-01 | H192: 744 | K192: 416 | L192: 328
F193: 2030-06-01 | H193: 720 | K193: 400 | L193: 320
F194: 2030-07-01 | H194: 744 | K194: 416 | L194: 328
F195: 2030-08-01 | H195: 744 | K195: 432 | L195: 312
F196: 2030-09-01 | H196: 720 | K196: 384 | L196: 336
F197: 2030-10-01 | K197: 400 | L197: 344
F198: 2030-11-01 | K198: 384 | L198: 288
F199: 2030-12-01 | K199: 432 | L199: 311
F200: 2031-01-01 | K200: 416 | L200: 304
... 92 more rows

Sheet Rev Check
B1: Rate Analysis Model - Modeling Steps Revenue Check | K1: Not printed in documentation.
A2: TOC | B2: =Cover!$C$14 -> FY2024-25 Reference Case Phase 2 | K2: =IF(Init!$C$13="Yes","Results Under Settlement","Results while Running 7b2 Rate Test") -> Results while Running 7b2 Rate Test
A3: é
C4: Costs
C5: Before 7b2 Revenue Requirements | D5: =+Init!C9 -> 2024 | E5: =+D5+1 -> 2025 | F5: =+E5+1 -> 2026 | G5: =+F5+1 -> 2027 | H5: =+G5+1 -> 2028 | I5: =+H5+1 -> 2029
C6: FBS | D6: =FBS_LDD_IRD_Allocation!C5 -> 2092414.362 | E6: =FBS_LDD_IRD_Allocation!D5 -> 2227702.381 | F6: =FBS_LDD_IRD_Allocation!E5 -> 2248480.293 | G6: =FBS_LDD_IRD_Allocation!F5 -> 2267626.495 | H6: =FBS_LDD_IRD_Allocation!G5 -> 2498964.176 | I6: =FBS_LDD_IRD_Allocation!H5 -> 2503720.672
C7: NR | D7: =FBS_LDD_IRD_Allocation!C6 -> 48806.43547 | E7: =FBS_LDD_IRD_Allocation!D6 -> 49305.61431 | F7: =FBS_LDD_IRD_Allocation!E6 -> 47837.60542 | G7: =FBS_LDD_IRD_Allocation!F6 -> 48714.56446 | H7: =FBS_LDD_IRD_Allocation!G6 -> 29981.76859 | I7: =FBS_LDD_IRD_Allocation!H6 -> 21057.23024
C8: Exchange | D8: =FBS_LDD_IRD_Allocation!C7-D13 -> 3102898.017 | E8: =FBS_LDD_IRD_Allocation!D7-E13 -> 3102945.546 | F8: =FBS_LDD_IRD_Allocation!E7-F13 -> 3270980.384 | G8: =FBS_LDD_IRD_Allocation!F7-G13 -> 3401986.352 | H8: =FBS_LDD_IRD_Allocation!G7-H13 -> 3490392.359 | I8: =FBS_LDD_IRD_Allocation!H7-I13 -> 3536434.445
C9: Conservation | D9: =FBS_LDD_IRD_Allocation!C8 -> 166866.225 | E9: =FBS_LDD_IRD_Allocation!D8 -> 159526.2773 | F9: =FBS_LDD_IRD_Allocation!E8 -> 153853.2745 | G9: =FBS_LDD_IRD_Allocation!F8 -> 149893.0248 | H9: =FBS_LDD_IRD_Allocation!G8 -> 152307.117 | I9: =FBS_LDD_IRD_Allocation!H8 -> 155721.3835
C10: BPA Programs | D10: =FBS_LDD_IRD_Allocation!C9+FBS_LDD_IRD_Allocation!C10 -> 371134.4631 | E10: =FBS_LDD_IRD_Allocation!D9+FBS_LDD_IRD_Allocation!D10 -> 374693.9629 | F10: =FBS_LDD_IRD_Allocation!E9+FBS_LDD_IRD_Allocation!E10 -> 373608.9402 | G10: =FBS_LDD_IRD_Allocation!F9+FBS_LDD_IRD_Allocation!F10 -> 379517.8708 | H10: =FBS_LDD_IRD_Allocation!G9+FBS_LDD_IRD_Allocation!G10 -> 388626.5075 | I10: =FBS_LDD_IRD_Allocation!H9+FBS_LDD_IRD_Allocation!H10 -> 392911.9793
C13: Transmission to Deliver Exchange Sale | D13: =ExchangeInputs!$D$5*'PF Exchange'!D61 -> 236128.6566 | E13: =ExchangeInputs!$D$5*'PF Exchange'!E61 -> 236128.6566 | F13: =ExchangeInputs!$D$5*'PF Exchange'!F61 -> 238759.8619 | G13: =ExchangeInputs!$D$5*'PF Exchange'!G61 -> 241414.4748 | H13: =ExchangeInputs!$D$5*'PF Exchange'!H61 -> 244762.1018 | I13: =ExchangeInputs!$D$5*'PF Exchange'!I61 -> 246801.3492
C15: Sub total | D15: =SUM(D6:D13) -> 6018248.159 | E15: =SUM(E6:E13) -> 6150302.438 | F15: 6333520.359 | G15: 6489152.781 | H15: 6805034.03 | I15: 6856647.059
C17: Low Density Discount and IRD Expense | D17: =FBS_LDD_IRD_Allocation!C11 -> 50547.37072 | E17: =FBS_LDD_IRD_Allocation!D11 -> 51503.69086 | F17: =FBS_LDD_IRD_Allocation!E11 -> 51025.53079 | G17: =FBS_LDD_IRD_Allocation!F11 -> 51025.53079 | H17: =FBS_LDD_IRD_Allocation!G11 -> 51025.53079 | I17: =FBS_LDD_IRD_Allocation!H11 -> 51025.53079
C19: Annual Revenue Requirement Grand Total | D19: =SUM(D15:D17) -> 6068795.53 | E19: =SUM(E15:E17) -> 6201806.129 | F19: 6384545.89 | G19: 6540178.312 | H19: 6856059.561 | I19: 6907672.59
C22: Revenue Credits
C23: Forecast of Secondary Revenues before Rate Protection | D23: =Secondary!D29 -> 563160.2969 | E23: =Secondary!E29 -> 565741.441 | F23: =Secondary!F29 -> 595537.0083 | G23: =Secondary!G29 -> 639192.2226 | H23: =Secondary!H29 -> 698619.1387 | I23: =Secondary!I29 -> 709230.968
C24: Expected Revenue from FPS Contract Sales (Firm Surplus Sales) | D24: =-('FPS Revenue Deficiency'!C12) -> 185732.273 | E24: =-('FPS Revenue Deficiency'!D12) -> 122902.4519 | F24: =-('FPS Revenue Deficiency'!E12) -> 164581.9876 | G24: =-('FPS Revenue Deficiency'!F12) -> 107555.699 | H24: =-('FPS Revenue Deficiency'!G12) -> 170812.0702 | I24: =-('FPS Revenue Deficiency'!H12) -> 28256.89776
C25: Expected Revenue from System Obligations | D25: =-RDS_Credits!C15 -> 523.256 | E25: =-RDS_Credits!D15 -> 509.944 | F25: =-RDS_Credits!E15 -> 509.944 | G25: =-RDS_Credits!F15 -> 509.944 | H25: =-RDS_Credits!G15 -> 509.944 | I25: =-RDS_Credits!H15 -> 509.944
C26: Other Revenue Credits | D26: =-(RDS_Credits!C7+RDS_Credits!C19+RDS_Credits!C21+RDS_Credits!C24+SUM(RDS_Credits!C30:'RDS_Credits'!C36)+'Credits Gen-RSS'!C23) -> 264656.0845 | E26: =-(RDS_Credits!D7+RDS_Credits!D19+RDS_Credits!D21+RDS_Credits!D24+SUM(RDS_Credits!D30:'RDS_Credits'!D36)+'Credits Gen-RSS'!D23) -> 267468.8295 | F26: =-(RDS_Credits!E7+RDS_Credits!E19+RDS_Credits!E21+RDS_Credits!E24+SUM(RDS_Credits!E30:'RDS_Credits'!E36)+'Credits Gen-RSS'!E23) -> 274051.8771 | G26: =-(RDS_Credits!F7+RDS_Credits!F19+RDS_Credits!F21+RDS_Credits!F24+SUM(RDS_Credits!F30:'RDS_Credits'!F36)+'Credits Gen-RSS'!F23) -> 269347.502 | H26: =-(RDS_Credits!G7+RDS_Credits!G19+RDS_Credits!G21+RDS_Credits!G24+SUM(RDS_Credits!G30:'RDS_Credits'!G36)+'Credits Gen-RSS'!G23) -> 299552.7664 | I26: =-(RDS_Credits!H7+RDS_Credits!H19+RDS_Credits!H21+RDS_Credits!H24+SUM(RDS_Credits!H30:'RDS_Credits'!H36)+'Credits Gen-RSS'!H23) -> 292473.2282
C28: Total Revenue Credits | D28: =SUM(D23:D27) -> 1014071.91 | E28: =SUM(E23:E27) -> 956622.6664 | F28: 1034680.817 | G28: 1016605.368 | H28: 1169493.919 | I28: 1030471.038
C31: Revenues needed from Power Rates | D31: =D19-D28 -> 5054723.62 | E31: =E19-E28 -> 5245183.463 | F31: 5349865.073 | G31: 5523572.944 | H31: 5686565.641 | I31: 5877201.552
C34: Power Revenues After Rate Design Step
D35: =+D5 -> 2024 | E35: =+E5 -> 2025
C36: PF Public | D36: =RateSummary!C32 -> 30.426 | E36: =RateSummary!D32 -> 31.3505
D37: ='PF Public'!D77 -> 61127.52783 | E37: ='PF Public'!E77 -> 62837.58588
D38: =D36*D37 -> 1859866.162 | E38: =E36*E37 -> 1969989.736
C40: PF Exchange | D40: =RateSummary!C34 -> 74.849 | E40: =RateSummary!D34 -> 76.73
D41: ='PF Exchange'!D61 -> 42622.5012 | E41: ='PF Exchange'!E61 -> 42622.5012
D42: =D40*D41 -> 3190251.592 | E42: =E40*E41 -> 3270424.517
C44: IP | D44: =RateSummary!C35 -> 47.523 | E44: =RateSummary!D35 -> 49.359
D45: ='RAM IP'!M87 -> 96.624 | E45: ='RAM IP'!N87 -> 96.36
D46: =D44*D45 -> 4591.862352 | E46: =E44*E45 -> 4756.23324
C48: NR | D48: =RateSummary!C36 -> 99.622 | E48: =RateSummary!D36 -> 100.885
D49: ='RAM NR'!D68 -> 0.009856 | E49: ='RAM NR'!E68 -> 0.009824
D50: =D48*D49 -> 0.981874432 | E50: =E48*E49 -> 0.99109424
C52: Revenues from Power Rates Grand Total | D52: =D38+D42+D46+D50 -> 5054710.598 | E52: =E38+E42+E46+E50 -> 5245171.478
C55: Revenue Check after Standard Ratemaking | D55: =D52-D$31 -> -13.02130676 | E55: =E52-E$31 -> -11.98526745

Sheet RateSummary
B1: Rate Analysis Model - Rate Design Step Summary | J1: =IF(Init!$C$13="Yes","Results Under Settlement","Results while Running 7b2 Rate Test") -> Results while Running 7b2 Rate Test
A2: TOC | B2: =Cover!$C$14 -> FY2024-25 Reference Case Phase 2 | J2: Not printed in documentation.
A3: é
B6: Revenue Under Recovery After Rate Design Step | C6: ='Rev Check'!D55 -> -13.02130676 | D6: ='Rev Check'!E55 -> -11.98526745
B10: Rate Design Step | C10: =+Init!C9 -> 2024 | D10: =+C10+1 -> 2025 | E10: =+D10+1 -> 2026 | F10: =+E10+1 -> 2027 | G10: =+F10+1 -> 2028 | H10: =+G10+1 -> 2029
B11: Rates After Initial Allocation
B12: UNBIFURCATED PF | C12: ='Initial Rates'!C22 -> 50.12 | D12: ='Initial Rates'!D22 -> 51.04 | E12: ='Initial Rates'!E22 -> 52.11 | F12: ='Initial Rates'!F22 -> 53.14 | G12: ='Initial Rates'!G22 -> 54.39 | H12: ='Initial Rates'!H22 -> 54.7
B13: IP | C13: ='Initial Rates'!C23 -> 80.43 | D13: ='Initial Rates'!D23 -> 80.74 | E13: ='Initial Rates'!E23 -> 82.36 | F13: ='Initial Rates'!F23 -> 91.31 | G13: ='Initial Rates'!G23 -> 86.6 | H13: ='Initial Rates'!H23 -> 83.71
B14: NR | C14: ='Initial Rates'!C24 -> 80.43 | D14: ='Initial Rates'!D24 -> 80.74 | E14: ='Initial Rates'!E24 -> 82.36 | F14: ='Initial Rates'!F24 -> 91.31 | G14: ='Initial Rates'!G24 -> 86.6 | H14: ='Initial Rates'!H24 -> 83.72
B16: Rate Design Step | C16: =+C10 -> 2024 | D16: 2025 | E16: 2026 | F16: 2027 | G16: 2028 | H16: 2029
B17: Rates After IP-PF Link Allocation
B18: UNBIFURCATED PF (average) | C18: ='Rates After Link'!C42 -> 50.146 | D18: ='Rates After Link'!D42 -> 51.071 | E18: ='Rates After Link'!E42 -> 52.141 | F18: ='Rates After Link'!F42 -> 53.181 | G18: ='Rates After Link'!G42 -> 54.418 | H18: ='Rates After Link'!H42 -> 54.729 | J18: IP Rate Check
B19: UNBIFURCATED PF (flat) | C19: =IP_PF_Link!C15 -> 48.02243805 | D19: =IP_PF_Link!D15 -> 48.90249177 | E19: =IP_PF_Link!E15 -> 49.88779177 | F19: =IP_PF_Link!F15 -> 50.86759177 | G19: =IP_PF_Link!G15 -> 52.08183805 | H19: =IP_PF_Link!H15 -> 52.38249177 | J19: =C20-C19 -> -0.1014380507 | K19: =D20-D19 -> -0.1014917729
B20: IP | C20: ='Rates After Link'!C43 -> 47.921 | D20: ='Rates After Link'!D43 -> 48.801 | E20: ='Rates After Link'!E43 -> 49.786 | F20: ='Rates After Link'!F43 -> 50.766 | G20: ='Rates After Link'!G43 -> 51.98 | H20: ='Rates After Link'!H43 -> 52.281
B21: NR | C21: ='Rates After Link'!C44 -> 80.459 | D21: ='Rates After Link'!D44 -> 80.765 | E21: ='Rates After Link'!E44 -> 82.385 | F21: ='Rates After Link'!F44 -> 91.347 | G21: ='Rates After Link'!G44 -> 86.629 | H21: ='Rates After Link'!H44 -> 83.743
B23: Rate Design Step | C23: =+C10 -> 2024 | D23: =+D10 -> 2025
B24: Rates After REP/7(b)(3) Allocation
B25: PF Public | C25: =IF(Init!$C$13="Yes",'Rates After WP-10 Adjustment'!C40,'Rates After 7b2'!C51) -> 30.43 | D25: =IF(Init!$C$13="Yes",'Rates After WP-10 Adjustment'!D40,'Rates After 7b2'!D51) -> 31.35
B26: PF Exchange | C26: =IF(Init!$C$13="Yes",'Rates After WP-10 Adjustment'!C41,'Rates After 7b2'!C52) -> 74.81 | D26: =IF(Init!$C$13="Yes",'Rates After WP-10 Adjustment'!D41,'Rates After 7b2'!D52) -> 76.69
B27: IP | C27: =IF(Init!$C$13="Yes",'Rates After WP-10 Adjustment'!C42,'Rates After 7b2'!C53) -> 67.04 | D27: =IF(Init!$C$13="Yes",'Rates After WP-10 Adjustment'!D42,'Rates After 7b2'!D53) -> 68.88
B28: NR | C28: =IF(Init!$C$13="Yes",'Rates After WP-10 Adjustment'!C43,'Rates After 7b2'!C54) -> 99.58 | D28: =IF(Init!$C$13="Yes",'Rates After WP-10 Adjustment'!D43,'Rates After 7b2'!D54) -> 100.84
B30: Rate Design Step | C30: =+C10 -> 2024 | D30: =+D10 -> 2025
B31: Rates After IP-PF Link #2 Allocation
B32: PF Public (average) | C32: =IF(Init!$C$13="Yes",'Rates After Link Settlement'!C47,'Rates After Link (2)'!C49) -> 30.426 | D32: =IF(Init!$C$13="Yes",'Rates After Link Settlement'!D47,'Rates After Link (2)'!D49) -> 31.3505 | J32: IP Rate Check
B33: PF Public (flat) | C33: ='IP_PF_Link Settlement'!C13 -> 37.03914745 | D33: ='IP_PF_Link Settlement'!D13 -> 38.2176012 | J33: =C35-C33 -> 10.48385255 | K33: =D35-D33 -> 11.1413988
B34: PF Exchange | C34: =IF(Init!$C$13="Yes",'Rates After Link Settlement'!C48,'Rates After Link (2)'!C50) -> 74.849 | D34: =IF(Init!$C$13="Yes",'Rates After Link Settlement'!D48,'Rates After Link (2)'!D50) -> 76.73 | J34: ='IP_PF_Link Settlement'!C16 -> 7.595263536 | K34: ='IP_PF_Link Settlement'!D16 -> 7.595263536
B35: IP | C35: =IF(Init!$C$13="Yes",'Rates After Link Settlement'!C49,'Rates After Link (2)'!C51) -> 47.523 | D35: =IF(Init!$C$13="Yes",'Rates After Link Settlement'!D49,'Rates After Link (2)'!D51) -> 49.359 | J35: =J33-J34 -> 2.888589014 | K35: =K33-K34 -> 3.546135266 | L35: =AVERAGE(J35:K35) -> 3.21736214
B36: NR | C36: =IF(Init!$C$13="Yes",'Rates After Link Settlement'!C50,'Rates After Link (2)'!C52) -> 99.622 | D36: =IF(Init!$C$13="Yes",'Rates After Link Settlement'!D50,'Rates After Link (2)'!D52) -> 100.885

Sheet ScenarioResults
B1: Rate Analysis Model - Scenario Summary Box | G1: =IF(Init!$C$13="Yes","Results Under Settlement","Results while Running 7b2 Rate Test") -> Results while Running 7b2 Rate Test
A2: TOC | B2: =Cover!$C$14 -> FY2024-25 Reference Case Phase 2 | G2: Not printed in documentation.
A3: é | B3: To REP Output | L3: List for Expense Conservation in 7b2
L4: 1
B5: Attachment 1a | G5: From Rate Tables | L5: 2
D6: % above BP-20 | G6: =B7 -> Unbifurcated PF | H6: ='Unbif PF_RateOutput'!E52 -> 50.61 | J6: =C7-H6 -> 0.002045508438 | L6: 3
B7: Unbifurcated PF | C7: ='Rates After Link'!C47 -> 50.61204551 | D7: =C7/H23-1 -> 0.07659170258 | G7: T1 Equivalent PF | H7: =PFAveT1_RateOutput!E52 -> 29.55 | L7: 4
B8: PF Public | C8: =IF(Init!$C$13="Yes",'Rates After Link Settlement'!E47,ROUND((RateSummary!C32+RateSummary!D32)/2,2)) -> 30.89 | D8: =C8/H24-1 -> -0.1313273341 | G8: T1 & T2 Equivalent PF | H8: =PFMeldedEqv_RateOutput!E52 -> 30.9 | J8: =H8-C8 -> 0.01 | L8: 5
B9: PF Exchange | C9: =IF(Init!$C$13="Yes",'Rates After Link Settlement'!E48,'Rates After Link (2)'!C64) -> 75.78976803 | D9: =C9/H25-1 -> 0.1400386286 | G9: =B9 -> PF Exchange | H9: ='PF Exchange_RateOutput'!E53 -> 75.79 | J9: =H9-C9 -> 0.0002319702518 | L9: 6
B10: IP | C10: =IF(Init!$C$13="Yes",'Rates After Link Settlement'!E49,'Rates After Link (2)'!C66)+I44 -> 48.43987114 | D10: =C10/H26-1 -> 0.1866700427 | G10: =B10 -> IP | H10: =IP_RateOutput!E52 -> 48.45 | J10: =H10-C10 -> 0.01012885525 | L10: 7
B11: NR | C11: =IF(Init!$C$13="Yes",'Rates After Link Settlement'!E50,'Rates After Link (2)'!C67)+I45 -> 100.2528131 | D11: =C11/H27-1 -> 0.2608830724 | G11: =B11 -> NR | H11: =NR_RateOutput!E52 -> 100.25 | J11: =H11-C11 -> -0.002813089572 | L11: 8
L12: 9
B13: Residential Exchange Benefits | C13: =+Init!C9 -> 2024 | D13: =C13+1 -> 2025 | L13: 10
B14: ='Active Exchange'!D10 -> Avista Corporation | C14: =IF(Init!$C$13="Yes",MAX('Utility Specific PFx Settle'!O27,0),MAX('Utility Specifc PFx'!K24,0)) -> 6829.727222 | D14: =IF(Init!$C$13="Yes",MAX('Utility Specific PFx Settle'!P27,0),MAX('Utility Specifc PFx'!K43,0)) -> 6829.727222 | L14: 11
B15: ='Active Exchange'!D11 -> Idaho Power Company | C15: =IF(Init!$C$13="Yes",MAX('Utility Specific PFx Settle'!O28,0),MAX('Utility Specifc PFx'!K25,0)) -> 8097.945829 | D15: =IF(Init!$C$13="Yes",MAX('Utility Specific PFx Settle'!P28,0),MAX('Utility Specifc PFx'!K44,0)) -> 8097.945829 | L15: 12
B16: ='Active Exchange'!D12 -> NorthWestern Energy, LLC | C16: =IF(Init!$C$13="Yes",MAX('Utility Specific PFx Settle'!O29,0),MAX('Utility Specifc PFx'!K26,0)) -> 2354.5463 | D16: =IF(Init!$C$13="Yes",MAX('Utility Specific PFx Settle'!P29,0),MAX('Utility Specifc PFx'!K45,0)) -> 2354.5463 | L16: Settlement Menu
B17: ='Active Exchange'!D13 -> PacifiCorp | C17: =IF(Init!$C$13="Yes",MAX('Utility Specific PFx Settle'!O30,0),MAX('Utility Specifc PFx'!K27,0)) -> 30092.69238 | D17: =IF(Init!$C$13="Yes",MAX('Utility Specific PFx Settle'!P30,0),MAX('Utility Specifc PFx'!K46,0)) -> 30092.69238 | G17: ="Section 7(b)(3) Load for " & RateSummary!$C$10 -> Section 7(b)(3) Load for 2024 | H17: ='Exchange Load'!D29+'RAM IP'!M83+'RAM NR'!D66 -> 4863.28951 | J17: Trigger | L17: Yes
B18: ='Active Exchange'!D14 -> Portland General Electric Company | C18: =IF(Init!$C$13="Yes",MAX('Utility Specific PFx Settle'!O31,0),MAX('Utility Specifc PFx'!K28,0)) -> 24450.89366 | D18: =IF(Init!$C$13="Yes",MAX('Utility Specific PFx Settle'!P31,0),MAX('Utility Specifc PFx'!K47,0)) -> 24450.89366 | G18: Section 7(b)(2) Rate Test Trigger | H18: 19.72 | J18: =ROUND(TriggerCalc!J35,2) -> 19.72 | L18: No
B19: ='Active Exchange'!D15 -> Puget Sound Energy, Inc. | C19: =IF(Init!$C$13="Yes",MAX('Utility Specific PFx Settle'!O32,0),MAX('Utility Specifc PFx'!K29,0)) -> 36297.02106 | D19: =IF(Init!$C$13="Yes",MAX('Utility Specific PFx Settle'!P32,0),MAX('Utility Specifc PFx'!K48,0)) -> 36297.02106
B20: Net IOU Exchange | C20: =SUM(C14:C19) -> 108122.8265 | D20: =SUM(D14:D19) -> 108122.8265 | E20: =(C20+D20)/2 -> 108122.8265
B21: Refund Amt | C21: =IF(Init!$C$13="Yes",'Utility Specific PFx Settle'!$O$41,0) -> 0 | D21: =IF(Init!$C$13="Yes",'Utility Specific PFx Settle'!$P$41,0) -> 0 | E21: =(C21+D21)/2 -> 0
G22: Previous Rates | H22: Surcharge Adj. | I22: 2 year average
B23: =ExchangeInputs!C15 -> Clark Public Utilities | C23: =IF(Init!$C$13="Yes",MAX('Utility Specific PFx Settle'!O35,0),MAX('Utility Specifc PFx'!K30,0)) -> 0 | D23: =IF(Init!$C$13="Yes",MAX('Utility Specific PFx Settle'!P35,0),MAX('Utility Specifc PFx'!K49,0)) -> 0 | G23: Unbifurcated PF | H23: 47.01136502
B24: =ExchangeInputs!C16 -> Franklin | C24: =IF(Init!$C$13="Yes",MAX('Utility Specific PFx Settle'!O36,0),MAX('Utility Specifc PFx'!K31,0)) -> 0 | D24: =IF(Init!$C$13="Yes",MAX('Utility Specific PFx Settle'!P36,0),MAX('Utility Specifc PFx'!K50,0)) -> 0 | G24: PF Public | H24: =+I24+H43 -> 35.56 | I24: 35.56
B25: =ExchangeInputs!C17 -> Snohomish PUD | C25: =IF(Init!$C$13="Yes",MAX('Utility Specific PFx Settle'!O37,0),MAX('Utility Specifc PFx'!K32,0)) -> 0 | D25: =IF(Init!$C$13="Yes",MAX('Utility Specific PFx Settle'!P37,0),MAX('Utility Specifc PFx'!K51,0)) -> 0 | G25: PF Exchange | H25: 66.48
B26: Net COU Exchange | C26: =SUM(C23:C25) -> 0 | D26: =SUM(D23:D25) -> 0 | E26: =(C26+D26)/2 -> 0 | G26: IP | H26: =I26+H44 -> 40.82 | I26: 40.82
D27: Total | E27: =E20+E21+E26 -> 108122.8265 | G27: NR | H27: =I27+H45 -> 79.51 | I27: 79.51
B29: Annual Average $ (1000s) | C29: FY22-23 | D29: FY24-25 | E29: Change
B30: Composite Revenues | C30: 1988525.974 | D30: =Cost_Allocation_TRM!$E$59/2 -> 2210339.48 | E30: =(D30-C30)/C30 -> 0.1115466981
B31: Non-Slice Revenues | C31: -291771.9325 | D31: =Cost_Allocation_TRM!$E$60/2 -> -466780.0366 | E31: =-(D31-C31)/C31 -> -0.5998113065 | H31: BP-22 | I31: BP-24 | J31: BP-24 Projected | K31: BP-22 max FRP
B32: Slice Revenues | C32: 0 | D32: =Cost_Allocation_TRM!$E$61/2 -> 0 | G32: Surcharges | H32: =J49 -> 0 | I32: 0 | J32: 0 | K32: 0
B33: Load Shaping Revenues | C33: 17897.52721 | D33: =-Cost_Allocation_TRM!$E$44/2 -> 60952.86463 | E33: =(D33-C33)/C33 -> 2.405658441 | G33: Preference Load | H33: 6919.695837 | I33: =AVERAGE(ProgAlloc!C7:D7) -> 7293.789947 | J33: =AVERAGE(ProgAlloc!C7:D7) -> 7293.789947 | K33: =AVERAGE(ProgAlloc!C7:D7) -> 7293.789947
B34: Demand Revenues | C34: 55457.28824 | D34: =-Cost_Allocation_TRM!$E$46/2 -> 61441.53009 | E34: =(D34-C34)/C34 -> 0.107907221 | G34: DSI Load | H34: 12.36871702 | I34: =ProgAlloc!C9 -> 11.35455426 | J34: =I34 -> 11.35455426 | K34: =ProgAlloc!C9 -> 11.35455426
B35: Tier 1 Revenue Requirement | C35: 1770108.857 | D35: =SUM($D$30:$D$34) -> 1865953.839 | E35: =((D35+D38+D41)-(C35+C38+C41))/C35 -> 0.05124843736 | G35: NR Load | H35: 0.001156384698 | I35: =ProgAlloc!C10 -> 0.001158207024 | J35: =I35 -> 0.001158207024 | K35: =ProgAlloc!C10 -> 0.001158207024
B36: Tier 2 Revenue Requirement | C36: 47492.02244 | D36: =(Cost_Allocation_TRM!$H$13+Cost_Allocation_TRM!$I$13)/2 -> 160289.4708 | G36: Preference Allocator | H36: =H33/SUM(H$33:H$35) -> 0.9982155574 | I36: =I33/SUM(I$33:I$35) -> 0.9984455187 | J36: =J33/SUM(J$33:J$35) -> 0.9984455187 | K36: 0.9984455187
G37: DSI Allocator | H37: =H34/SUM(H$33:H$35) -> 0.001784275789 | I37: 0.001554322774 | J37: =J34/SUM(J$33:J$35) -> 0.001554322774 | K37: 0.001554322774
B38: New Resource Revenues | C38: -0.8630813733 | D38: =-'NR Allocation'!$D$56/2 -> -0.9864876808 | G38: NR Allocator | H38: =H35/SUM(H$33:H$35) -> 1.668167537e-07 | I38: 1.585467392e-07 | J38: =J35/SUM(J$33:J$35) -> 1.585467392e-07 | K38: 1.585467392e-07
B39: Spill Surcharge | C39: 0 | D39: 0 | G39: Preference Surcharge | H39: =H$32*H36 -> 0 | I39: =I$32*I36 -> 0 | J39: =J$32*J36 -> 0 | K39: =K$32*K36 -> 0
B40: FRP Surcharge | C40: 0 | D40: =I39 -> 0 | G40: DSI Surcharge | H40: =H$32*H37 -> 0 | I40: 0 | J40: =J$32*J37 -> 0 | K40: 0
B41: Value of Slice Secondary | C41: -106182.7614 | D41: =(Cost_Allocation_TRM!$H$18+Cost_Allocation_TRM!$I$18)/2 -> -111312.3068 | E41: =-(D41-C41)/C41 -> -0.04830864584 | G41: NR Surcharge | H41: =H$32*H38 -> 0 | I41: 0 | J41: =J$32*J38 -> 0 | K41: 0
B42: Net Power Cost to All PF | C42: 1711417.255 | D42: =SUM(D35:D41) -> 1914930.016 | E42: =+D42/C42-1 -> 0.1189147536 | G42: Hours | H42: 8772 | I42: =AVERAGE(8760,8760) -> 8760 | J42: =AVERAGE(8760,8760) -> 8760 | K42: =AVERAGE(8760,8760) -> 8760
B43: Total PF Load w/Slice (GWh)/yr | C43: 57435.67953 | D43: =('PF Public'!$D$77+'PF Public'!$E$77)/2 -> 61982.55686 | E43: =-(((C42-C36)*(D43-C43))/(C43*C43))/C48 -> -0.07716755016 | G43: PF Melded Adder | H43: =H39*1000/(H$42*H33) -> 0 | I43: =I39*1000/(I$42*I33) -> 0 | J43: =J39*1000/(J$42*J33) -> 0 | K43: 0
B44: Average Net Cost $/MWh | C44: 29.7971099 | D44: =+D42/D43 -> 30.89465994 | E44: =(D44-C$44)/C$44 -> 0.03683411052 | G44: DSI Adder | H44: =H40*1000/(H$42*H34) -> 0 | I44: 0 | J44: =J40*1000/(J$42*J34) -> 0 | K44: 0
G45: NR Adder | H45: =H41*1000/(H$42*H35) -> 0 | I45: 0 | J45: =J41*1000/(J$42*J35) -> 0 | K45: 0
B46: Tier 1 Load | C46: 55991.19057 | D46: =+(PFAveT1_RateOutput!$E$54/2) -> 59377.94127 | E46: =((C46-D46)*C48)/D46/(C48) -> -0.05703718637
G47: Forecast/Billed | H47: FY22 | I47: FY23 | J47: BP22 Avg
B48: Tier 1 Average Net Cost without FRP ($/MWh) | C48: 29.72 | D48: =ROUND((D35+D37+D38+D39+D41)/D46,2) -> 29.55 | E48: =(D48-C$48)/C$48 -> -0.005720053836 | G48: BP20 Max per year | H48: 0 | I48: 0
B49: Tier 1 Average Net Cost with max FRP ($/MWh) | C49: 29.72 | D49: =ROUND((D35+D38+K39+D41)/D46,2) -> 29.55 | E49: =(D49-C$49)/C$49 -> -0.005720053836 | G49: suspension in July of surcharge | H49: 0 | I49: 0 | J49: =AVERAGE(H49:I49) -> 0
B50: Tier 2 Short-term ($/MWh) | C50: 33.65474222 | D50: =ResultsDetail!D32 -> 61.49577231 | E50: =(D50-C$50)/C$50 -> 0.8272542964
B51: Tier 2 Load Growth ($/MWh) | C51: 33.69 | D51: =Cost_Allocation_TRM!E82 -> 62.04 | E51: =(D51-C$51)/C$51 -> 0.8414959929 | G51: Actual Surcharge Collected | H51: 0 | I51: 0 | J51: =AVERAGE(H51:I51) -> 0
D54: % above BP-20
B55: Unbifurcated PF | C55: 50.61204551 | D55: 0.07659170258
B56: PF Public | C56: 50.61 | D56: 0.4232283465
B57: PF Exchange | C57: 56.14826702 | D57: -0.155411146
B58: IP | C58: 48.36057318 | D58: 0.1847274176
B59: NR | C59: 80.61198001 | D59: 0.01385964036
B61: Residential Exchange Benefits | C61: 2024 | D61: 2025 | F61: <- not updated
B62: Avista Corporation | C62: 59710.7168 | D62: 59710.7168
B63: Idaho Power Company | C63: 70798.45715 | D63: 70798.45715
B64: NorthWestern Energy, LLC | C64: 20585.25073 | D64: 20585.25073
B65: PacifiCorp | C65: 263093.4112 | D65: 263093.4112
B66: Portland General Electric Company | C66: 213768.4771 | D66: 213768.4771
B67: Puget Sound Energy, Inc. | C67: 317336.414 | D67: 317336.414
B68: Net IOU Exchange | C68: 945292.727 | D68: 945292.727 | E68: 945292.727
B69: Refund Amt | C69: 0 | D69: 0 | E69: 0
B71: Clark Public Utilities | C71: 0 | D71: 0
B72: Franklin | C72: 0 | D72: 0
B73: Snohomish PUD | C73: 0 | D73: 0
B74: Net COU Exchange | C74: 0 | D74: 0 | E74: 0
D75: Total | E75: 945292.727
B77: Annual Average $ (1000s) | C77: FY22-23 | D77: FY24-25 | E77: Change
B78: Composite Revenues | C78: 1988525.974 | D78: 3027602.757 | E78: 0.5225361885
B79: Non-Slice Revenues | C79: -291771.9325 | D79: -446865.7607 | E79: -0.5315584223
B80: Slice Revenues | C80: 0 | D80: 0
B81: Load Shaping Revenues | C81: 17897.52721 | D81: 60952.86463 | E81: 2.405658441
B82: Demand Revenues | C82: 55457.28824 | D82: 61441.53009 | E82: 0.107907221
B83: Tier 1 Revenue Requirement | C83: 1770108.857 | D83: 2703131.391 | E83: 0.5242011276
B84: Tier 2 Revenue Requirement | C84: 47492.02244 | D84: 160289.4708
B86: New Resource Revenues | C86: -0.8630813733 | D86: -0.7932218833
B87: Spill Surcharge | C87: 0 | D87: 0
B88: FRP Surcharge | C88: 0 | D88: 0
B89: Value of Slice Secondary | C89: -106182.7614 | D89: -111312.3068 | E89: -0.04830864584
B90: Net Power Cost to All PF | C90: 1711417.255 | D90: 2752107.762 | E90: 0.6080869549
B91: Total PF Load w/Slice (GWh)/yr | C91: 57435.67953 | D91: 61982.55686 | E91: -0.07716755016
B92: Average Net Cost $/MWh | C92: 29.7971099 | D92: 44.40132679 | E92: 0.4901219258

Sheet ResultsDetail
B1: Rate Analysis Model - Scenario Summary | G1: =IF(Init!$C$13="Yes","Results Under Settlement","Results while Running 7b2 Rate Test") -> Results while Running 7b2 Rate Test
A2: TOC | B2: =Cover!$C$14 -> FY2024-25 Reference Case Phase 2 | G2: Not printed in documentation.
A3: é
C6: =B2 -> FY2024-25 Reference Case Phase 2 | D6: FY22-23 Phase1 | E6: % change
B7: Unbifurcated PF | C7: =ScenarioResults!C7 -> 50.61204551 | D7: 47.15658877 | E7: =(1-(D7/C7)) -> 0.06827340608
B8: PF Public (Tier 1 + Tier 2) | C8: =ScenarioResults!C8 -> 30.89 | D8: 29.8 | E8: =(1-(D8/C8)) -> 0.03528650049
B9: PF Exchange (IOU) | C9: =ScenarioResults!C9 -> 75.78976803 | D9: 67.58225435 | E9: =(1-(D9/C9)) -> 0.1082931627
B10: IP with 7(b)(3) | C10: =ScenarioResults!C10 -> 48.43987114 | D10: 43.0879962 | E10: =(1-(D10/C10)) -> 0.110484913
B11: NR | C11: =ScenarioResults!C11 -> 100.2528131 | D11: 87.71152167 | E11: =(1-(D11/C11)) -> 0.1250966535
B14: Annual Average $ (1000s) | C14: FY22-23 | D14: FY24-25 | E14: Change
A15: 1 | B15: Composite Rate Revenues | C15: 1988525.974 | D15: =Cost_Allocation_TRM!$E$59/2 -> 2210339.48 | E15: =D15/C15-1 -> 0.1115466981
A16: =+A15+1 -> 2 | B16: Non-Slice Rate Revenues | C16: -291771.9325 | D16: =Cost_Allocation_TRM!$E$60/2 -> -466780.0366 | E16: =-(D16/C16-1) -> -0.5998113065
A17: =+A16+1 -> 3 | B17: Slice Rate Revenues | C17: 0 | D17: =Cost_Allocation_TRM!$E$61/2 -> 0
A18: 4 | B18: Load Shaping Rate Revenues | C18: 17897.52721 | D18: =-Cost_Allocation_TRM!$E$44/2 -> 60952.86463 | E18: =D18/C18-1 -> 2.405658441
A19: 5 | B19: Demand Rate Revenues | C19: 55457.28824 | D19: =-Cost_Allocation_TRM!$E$46/2 -> 61441.53009 | E19: =D19/C19-1 -> 0.107907221
A20: 6 | B20: Tier 1 Revenue Requirement | C20: 1770108.857 | D20: =SUM(D15:D19) -> 1865953.839 | E20: =D20/C20-1 -> 0.05414637711
A21: 7 | B21: Tier 2 Revenue Requirement | C21: 47492.02244 | D21: =(Cost_Allocation_TRM!$H$13+Cost_Allocation_TRM!$I$13)/2 -> 160289.4708
A22: 8 | B22: Value of Slice Surplus | C22: -106182.7614 | D22: =-(Secondary!D27+Secondary!E27)/2 -> -111312.3068 | E22: =-(D22/C22-1) -> -0.04830864584
A23: 9 | B23: Value of CHWM RECs (credit)
A24: 10 | B24: New Resource Revenues | C24: -0.8630813733 | D24: =-'NR Allocation'!$D$56/2 -> -0.9864876808
A25: 11 | B25: Net Power Cost to All PF | C25: 1711417.255 | D25: =SUM(D20:D24) -> 1914930.016 | E25: =D25/C25-1 -> 0.1189147536
A26: 12 | B26: Surcharges | C26: 0 | D26: =ScenarioResults!I39 -> 0
A27: 13 | B27: Annual PF Load (w/firm Slice) (GWh) | C27: 57435.67953 | D27: =('PF Public'!$D$77+'PF Public'!$E$77)/2 -> 61982.55686 | E27: =D27/C27-1 -> 0.07916468244
A28: 14 | B28: PF Average Net Cost ($/MWh) | C28: 29.7971099 | D28: =+(D25+D26)/D27 -> 30.89465994 | E28: =D28/C28-1 -> 0.03683411052
A30: =A28+1 -> 15 | B30: Tier 1 Average Net Cost without FRP ($/MWh) | C30: 29.72 | D30: =ScenarioResults!D48 -> 29.55 | E30: =D30/C30-1 -> -0.005720053836
A31: =+A30+1 -> 16 | B31: Tier 1 Average Net Cost max FRP ($/MWh) | C31: 29.72 | D31: =ScenarioResults!D49 -> 29.55 | E31: -0.005720053836
A32: 17 | B32: Tier 2 ($/MWh) | C32: 33.65474222 | D32: =+'Cost Contribution'!F31 -> 61.49577231 | E32: =D32/C32-1 -> 0.8272542964
I34: Power Rates ($/MWh) | J34: BP-18 | K34: BP-20 | L34: Change
B35: Slice Sales | C35: =C14 -> FY22-23 | D35: FY24-25 | E35: Change | I35: Tier 1 Average Net Cost of Power | J35: =C30 -> 29.72 | K35: =D30 -> 29.55 | L35: =E30 -> -0.005720053836
A36: =+A32+1 -> 18 | B36: Composite+Slice | C36: 468651.8744 | D36: =(Cost_Allocation_TRM!C68*Cost_Allocation_TRM!E71+Cost_Allocation_TRM!D68*Cost_Allocation_TRM!E71+Cost_Allocation_TRM!C68*Cost_Allocation_TRM!E73+Cost_Allocation_TRM!D68*Cost_Allocation_TRM!E73)/2 -> 456541.5704 | I36: Average Non-Slice Rate | J36: =C50 -> 30.41457819 | K36: =D50 -> 29.89548229 | L36: =E50 -> -0.01706733849
A37: 19 | B37: Surcharges | I37: Average Slice Rate | J37: =C38 -> 35.52121343 | K37: =D38 -> 37.32564229 | L37: =E38 -> 0.05079862664
A38: 20 | B38: Tier 1 Average Cost ($/MWh) | C38: 35.52121343 | D38: =D36/((Loads!E8+Loads!F8)/1000/2) -> 37.32564229 | E38: =D38/C38-1 -> 0.05079862664 | I38: Average Tier 2 Rate | J38: =C32 -> 33.65474222 | K38: =D32 -> 61.49577231 | L38: =E32 -> 0.8272542964
A39: 21 | B39: Value of Slice Surplus+Credits | C39: -106182.9648 | D39: =D22+((D23+D24)*(Cost_Allocation_TRM!E68/Cost_Allocation_TRM!E66)) -> -111312.5105
A40: 22 | B40: Net Cost of Slice Power | C40: 362468.9097 | D40: =D36+D39 -> 345229.0599 | I40: IP Rate | J40: 43.51 | K40: 41.75 | L40: =K40/J40-1 -> -0.04045047116
A41: 23 | B41: Tier 1 Average Net Cost ($/MWh) | C41: 27.46741559 | D41: =D40/((Cost_Allocation_TRM!H36+Cost_Allocation_TRM!I36)/2/1000) -> 28.22502316 | E41: =D41/C41-1 -> 0.02758204799
B44: Non-Slice Sales | C44: =C35 -> FY22-23 | D44: FY24-25 | E44: Change
A45: =+A41+1 -> 24 | B45: Composite+NonSlice+Shape+Demand | C45: 1301671.987 | D45: ='LSTUR&PFT1Eqv_RateOutput'!D52/2 -> 1409472.008
A46: 25 | B46: Tier 1 Average Cost ($/MWh) | C46: 30.4145936 | D46: =D45/(('LSTUR&PFT1Eqv_RateOutput'!E54)/2) -> 29.89549889 | E46: =D46/C46-1 -> -0.01706729077
A47: 26 | B47: Credits | C47: -0.6596720597 | D47: =(D23+D24)*(Cost_Allocation_TRM!E67/Cost_Allocation_TRM!E66) -> -0.7827304576
A48: 27 | B48: Net Cost of Non-Slice Power | C48: 1301671.327 | D48: =D45+D47 -> 1409471.225
A49: 28 | B49: Surcharges | C49: 0 | D49: =+ScenarioResults!K39 -> 0
A50: 29 | B50: Tier 1 Average Net Cost without FRP ($/MWh) | C50: 30.41457819 | D50: =(D48)/(('LSTUR&PFT1Eqv_RateOutput'!E54)/2) -> 29.89548229 | E50: =D50/C50-1 -> -0.01706733849
A51: 30 | B51: Tier 1 Average Net Cost max FRP ($/MWh) | C51: 30.41457819 | D51: =(D48+D49)/(('LSTUR&PFT1Eqv_RateOutput'!E54)/2) -> 29.89548229 | E51: =D51/C51-1 -> -0.01706733849
B54: Tiered PF Rate Components | C54: =C44 -> FY22-23 | D54: FY24-25 | E54: Change
A55: =+A51+1 -> 31 | B55: Composite Rate ($/ pct/month) | C55: 1746406.975 | D55: =+Cost_Allocation_TRM!E76 -> 1927242.276 | E55: =D55/C55-1 -> 0.1035470559
A56: 32 | B56: Non-Slice Rate ($/ pct/month) | C56: -335259.7023 | D56: =+Cost_Allocation_TRM!E77 -> -512942.9194 | E56: =D56/C56-1 -> 0.529986801
A58: =+A56+1 -> 33 | B58: NonSlice Load | C58: 42797.61236 | D58: =AVERAGE(NonSliceLossAdjust!C5:D5)/1000 -> 47146.62943
A59: 34 | B59: Slice Load | C59: 13196.32379 | D59: =AVERAGE(Cost_Allocation_TRM!H36:I36)/1000 -> 12231.31184
A60: 35 | B60: PF load w/slice | C60: 57435.67953 | D60: =D27 -> 61982.55686

Sheet LoadScenarioInput
B1: Load Scenario Input (MWh)
A2: TOC | B2: =Cover!$C$14 -> FY2024-25 Reference Case Phase 2 | L2: =L11 -> 2023-10-01 | M2: 2023-11-01 | N2: 2023-12-01 | O2: 2024-01-01 | P2: 2024-02-01 | Q2: 2024-03-01 | R2: 2024-04-01 | S2: 2024-05-01 | T2: 2024-06-01 | U2: 2024-07-01 | V2: 2024-08-01 | W2: 2024-09-01 | X2: 2024-10-01 | Y2: 2024-11-01 | Z2: 2024-12-01 | AA2: 2025-01-01 | AB2: 2025-02-01 | AC2: 2025-03-01 | AD2: 2025-04-01 | AE2: 2025-05-01 | AF2: 2025-06-01 | AG2: 2025-07-01 | AH2: 2025-08-01 | AI2: 2025-09-01 | AJ2: 2025-10-01 | AK2: 2025-11-01 | AL2: 2025-12-01 | AM2: 2026-01-01 | AN2: 2026-02-01 | AO2: 2026-03-01 | AP2: 2026-04-01 | AQ2: 2026-05-01 | AR2: 2026-06-01 | AS2: 2026-07-01 | AT2: 2026-08-01 | AU2: 2026-09-01 | AV2: 2026-10-01 | AW2: 2026-11-01 | AX2: 2026-12-01 | AY2: 2027-01-01 | AZ2: 2027-02-01 | BA2: 2027-03-01 | BB2: 2027-04-01 | BC2: 2027-05-01 | BD2: 2027-06-01 | BE2: 2027-07-01 | BF2: 2027-08-01 | BG2: 2027-09-01 | BH2: 2027-10-01 | BI2: 2027-11-01 | BJ2: 2027-12-01 | BK2: 2028-01-01 | BL2: 2028-02-01 | BM2: 2028-03-01 | BN2: 2028-04-01 | BO2: 2028-05-01 | BP2: 2028-06-01 | BQ2: 2028-07-01 | BR2: 2028-08-01 | BS2: 2028-09-01 | BT2: 2028-10-01 | BU2: 2028-11-01 | BV2: 2028-12-01 | BW2: 2029-01-01 | BX2: =BX11 -> 2029-02-01 | BY2: 2029-03-01 | BZ2: 2029-04-01 | CA2: 2029-05-01 | CB2: 2029-06-01 | CC2: 2029-07-01 | CD2: 2029-08-01 | CE2: 2029-09-01 | CG2: 2023-10-01 | CH2: 2023-11-01 | CI2: 2023-12-01 | CJ2: 2024-01-01 | CK2: 2024-02-01 | CL2: 2024-03-01 | CM2: 2024-04-01 | CN2: 2024-05-01 | CO2: 2024-06-01 | CP2: 2024-07-01 | CQ2: 2024-08-01 | CR2: 2024-09-01 | CS2: 2024-10-01 | CT2: 2024-11-01 | CU2: 2024-12-01 | CV2: 2025-01-01 | CW2: 2025-02-01 | CX2: 2025-03-01 | CY2: 2025-04-01 | CZ2: 2025-05-01 | DA2: 2025-06-01 | DB2: 2025-07-01 | DC2: 2025-08-01 | DD2: 2025-09-01 | DE2: 2025-10-01 | DF2: 2025-11-01 | DG2: 2025-12-01 | DH2: 2026-01-01 | DI2: 2026-02-01 | DJ2: 2026-03-01 | DK2: 2026-04-01 | DL2: 2026-05-01 | DM2: 2026-06-01 | DN2: 2026-07-01 | DO2: 2026-08-01 | DP2: 2026-09-01 | DQ2: 2026-10-01 | DR2: 2026-11-01 | DS2: 2026-12-01 | DT2: 2027-01-01 | DU2: 2027-02-01 | DV2: 2027-03-01 | DW2: 2027-04-01 | DX2: 2027-05-01 | DY2: 2027-06-01 | DZ2: 2027-07-01 | EA2: 2027-08-01 | EB2: 2027-09-01 | EC2: 2027-10-01 | ED2: 2027-11-01 | EE2: 2027-12-01 | EF2: 2028-01-01 | EG2: 2028-02-01 | EH2: 2028-03-01 | EI2: 2028-04-01 | EJ2: =EJ11 -> 2028-05-01 | EK2: 2028-06-01 | EL2: 2028-07-01 | EM2: 2028-08-01 | EN2: 2028-09-01 | EO2: 2028-10-01 | EP2: 2028-11-01 | EQ2: 2028-12-01 | ER2: 2029-01-01 | ES2: 2029-02-01 | ET2: 2029-03-01 | EU2: 2029-04-01 | EV2: 2029-05-01 | EW2: 2029-06-01 | EX2: 2029-07-01 | EY2: 2029-08-01 | EZ2: 2029-09-01
A3: é | H3: Scenario Input | K3: Block Base Case | L3: 217353.1256 | M3: 348159.5973 | N3: 358722.8599 | O3: 395977.1904 | P3: 337184.8795 | Q3: 352250.3216 | R3: 166731.6123 | S3: 61912.89086 | T3: 9194.834707 | U3: 140817.9657 | V3: 158409.0183 | W3: 251639.5943 | X3: 216056.028 | Y3: 345829.9292 | Z3: 356342.6232 | AA3: 393375.7759 | AB3: 334847.482 | AC3: 349920.3304 | AD3: 165613.9894 | AE3: 61526.65716 | AF3: 9169.712208 | AG3: 139912.2425 | AH3: 157168.222 | AI3: 250333.9424 | AJ3: 217399.4553 | AK3: 347213.734 | AL3: 359154.5586 | AM3: 395709.5673 | AN3: 336830.6549 | AO3: 352025.3386 | AP3: 166637.4154 | AQ3: 61854.1848 | AR3: 9159.52608 | AS3: 140706.8501 | AT3: 158121.8024 | AU3: 251896.5331 | AV3: 217848.528 | AW3: 347926.6368 | AX3: 359878.6883 | AY3: 395574.1185 | AZ3: 337498.6504 | BA3: 353504.67 | BB3: 166979.8332 | BC3: 61966.45296 | BD3: 9159.52608 | BE3: 140976.2936 | BF3: 158441.7667 | BG3: 252418.5801 | BH3: 219139.9705 | BI3: 350987.1967 | BJ3: 362236.0708 | BK3: 398137.6584 | BL3: 339803.4771 | BM3: 355809.257 | BN3: 168041.1591 | BO3: 62338.3439 | BP3: 9168.999206 | BQ3: 141676.3282 | BR3: 159672.1373 | BS3: 254110.8404 | BT3: 242484.1996 | BU3: 388037.6836 | BV3: 399200.89 | BW3: 439869.8029 | BX3: 374366.032 | BY3: 392547.2817 | BZ3: 185838.5466 | CA3: 68153.7636 | CB3: 9143.947296 | CC3: 155655.0178 | CD3: 176295.2423 | CE3: 280860.0855 | CG3: 145426.1886 | CH3: 234647.9984 | CI3: 242324.8436 | CJ3: 266913.615 | CK3: 226392.6164 | CL3: 237239.3682 | CM3: 111238.2434 | CN3: 41275.26058 | CO3: 6129.889805 | CP3: 94464.40811 | CQ3: 105890.7813 | CR3: 169721.472 | CS3: 144284.9339 | CT3: 233087.9422 | CU3: 240729.3408 | CV3: 265171.3364 | CW3: 225037.5462 | CX3: 235679.4675 | CY3: 110492.9324 | CZ3: 41017.77144 | DA3: 6113.141472 | DB3: 93858.99216 | DC3: 105378.3512 | DD3: 168193.5499 | DE3: 145180.2735 | DF3: 235250.2292 | DG3: 241509.3558 | DH3: 266723.9103 | DI3: 226357.6291 | DJ3: 237080.1062 | DK3: 111175.1222 | DL3: 41236.1232 | DM3: 6106.35072 | DN3: 94388.07314 | DO3: 106013.3968 | DP3: 169233.8093 | DQ3: 145479.6552 | DR3: 235725.4977 | DS3: 241992.1089 | DT3: 268169.1543 | DU3: 226802.9595 | DV3: 236779.5904 | DW3: 111403.4008 | DX3: 41310.96864 | DY3: 6106.35072 | DZ3: 94567.70219 | EA3: 106226.7063 | EB3: 169581.8406 | EC3: 146615.9338 | ED3: 236525.8648 | EE3: 243565.8233 | EF3: 269882.7482 | EG3: 228133.8079 | EH3: 238317.12 | EI3: 112194.6347 | EJ3: 41558.89594 | EK3: 6112.666138 | EL3: 95342.41402 | EM3: 106732.0539 | EN3: 170711.3503 | EO3: 162177.3253 | EP3: 261219.2648 | EQ3: 269292.5453 | ER3: 296159.0802 | ES3: 251378.1303 | ET3: 262806.1011 | EU3: 124059.1029 | EV3: 45435.8424 | EW3: 6095.964864 | EX3: 104659.1045 | EY3: 117813.3481 | EZ3: 189190.8973
F4: Base Case | G4: =IF(SUM($G$5:$G$7)=1,0,1) -> 1 | K4: =F5 -> Increase Loads (1,000aMW) | L4: =($G$5*$H$5*(VLOOKUP($E$11,Init!$N:$P,3,FALSE)))/24 -> 0 | M4: =($G$5*$H$5*(VLOOKUP($E$11,Init!$N:$P,3,FALSE)))/24 -> 0 | N4: =($G$5*$H$5*(VLOOKUP($E$11,Init!$N:$P,3,FALSE)))/24 -> 0 | O4: =($G$5*$H$5*(VLOOKUP($E$11,Init!$N:$P,3,FALSE)))/24 -> 0 | P4: =($G$5*$H$5*(VLOOKUP($E$11,Init!$N:$P,3,FALSE)))/24 -> 0 | Q4: =($G$5*$H$5*(VLOOKUP($E$11,Init!$N:$P,3,FALSE)))/24 -> 0 | R4: =($G$5*$H$5*(VLOOKUP($E$11,Init!$N:$P,3,FALSE)))/24 -> 0 | S4: =($G$5*$H$5*(VLOOKUP($E$11,Init!$N:$P,3,FALSE)))/24 -> 0 | T4: =($G$5*$H$5*(VLOOKUP($E$11,Init!$N:$P,3,FALSE)))/24 -> 0 | U4: =($G$5*$H$5*(VLOOKUP($E$11,Init!$N:$P,3,FALSE)))/24 -> 0 | V4: =($G$5*$H$5*(VLOOKUP($E$11,Init!$N:$P,3,FALSE)))/24 -> 0 | W4: =($G$5*$H$5*(VLOOKUP($E$11,Init!$N:$P,3,FALSE)))/24 -> 0 | X4: =($G$5*$H$5*(VLOOKUP($F$11,Init!$N:$P,3,FALSE)))/24 -> 0 | Y4: =($G$5*$H$5*(VLOOKUP($F$11,Init!$N:$P,3,FALSE)))/24 -> 0 | Z4: =($G$5*$H$5*(VLOOKUP($F$11,Init!$N:$P,3,FALSE)))/24 -> 0 | AA4: =($G$5*$H$5*(VLOOKUP($F$11,Init!$N:$P,3,FALSE)))/24 -> 0 | AB4: =($G$5*$H$5*(VLOOKUP($F$11,Init!$N:$P,3,FALSE)))/24 -> 0 | AC4: =($G$5*$H$5*(VLOOKUP($F$11,Init!$N:$P,3,FALSE)))/24 -> 0 | AD4: =($G$5*$H$5*(VLOOKUP($F$11,Init!$N:$P,3,FALSE)))/24 -> 0 | AE4: =($G$5*$H$5*(VLOOKUP($F$11,Init!$N:$P,3,FALSE)))/24 -> 0 | AF4: =($G$5*$H$5*(VLOOKUP($F$11,Init!$N:$P,3,FALSE)))/24 -> 0 | AG4: =($G$5*$H$5*(VLOOKUP($F$11,Init!$N:$P,3,FALSE)))/24 -> 0 | AH4: =($G$5*$H$5*(VLOOKUP($F$11,Init!$N:$P,3,FALSE)))/24 -> 0 | AI4: =($G$5*$H$5*(VLOOKUP($F$11,Init!$N:$P,3,FALSE)))/24 -> 0 | AJ4: =($G$5*$H$5*(VLOOKUP($G$11,Init!$N:$P,3,FALSE)))/24 -> 0 | AK4: =($G$5*$H$5*(VLOOKUP($G$11,Init!$N:$P,3,FALSE)))/24 -> 0 | AL4: =($G$5*$H$5*(VLOOKUP($G$11,Init!$N:$P,3,FALSE)))/24 -> 0 | AM4: =($G$5*$H$5*(VLOOKUP($G$11,Init!$N:$P,3,FALSE)))/24 -> 0 | AN4: =($G$5*$H$5*(VLOOKUP($G$11,Init!$N:$P,3,FALSE)))/24 -> 0 | AO4: =($G$5*$H$5*(VLOOKUP($G$11,Init!$N:$P,3,FALSE)))/24 -> 0 | AP4: =($G$5*$H$5*(VLOOKUP($G$11,Init!$N:$P,3,FALSE)))/24 -> 0 | AQ4: =($G$5*$H$5*(VLOOKUP($G$11,Init!$N:$P,3,FALSE)))/24 -> 0 | AR4: =($G$5*$H$5*(VLOOKUP($G$11,Init!$N:$P,3,FALSE)))/24 -> 0 | AS4: =($G$5*$H$5*(VLOOKUP($G$11,Init!$N:$P,3,FALSE)))/24 -> 0 | AT4: =($G$5*$H$5*(VLOOKUP($G$11,Init!$N:$P,3,FALSE)))/24 -> 0 | AU4: =($G$5*$H$5*(VLOOKUP($G$11,Init!$N:$P,3,FALSE)))/24 -> 0 | AV4: =($G$5*$H$5*(VLOOKUP($H$11,Init!$N:$P,3,FALSE)))/24 -> 0 | AW4: =($G$5*$H$5*(VLOOKUP($H$11,Init!$N:$P,3,FALSE)))/24 -> 0 | AX4: =($G$5*$H$5*(VLOOKUP($H$11,Init!$N:$P,3,FALSE)))/24 -> 0 | AY4: =($G$5*$H$5*(VLOOKUP($H$11,Init!$N:$P,3,FALSE)))/24 -> 0 | AZ4: =($G$5*$H$5*(VLOOKUP($H$11,Init!$N:$P,3,FALSE)))/24 -> 0 | BA4: =($G$5*$H$5*(VLOOKUP($H$11,Init!$N:$P,3,FALSE)))/24 -> 0 | BB4: =($G$5*$H$5*(VLOOKUP($H$11,Init!$N:$P,3,FALSE)))/24 -> 0 | BC4: =($G$5*$H$5*(VLOOKUP($H$11,Init!$N:$P,3,FALSE)))/24 -> 0 | BD4: =($G$5*$H$5*(VLOOKUP($H$11,Init!$N:$P,3,FALSE)))/24 -> 0 | BE4: =($G$5*$H$5*(VLOOKUP($H$11,Init!$N:$P,3,FALSE)))/24 -> 0 | BF4: =($G$5*$H$5*(VLOOKUP($H$11,Init!$N:$P,3,FALSE)))/24 -> 0 | BG4: =($G$5*$H$5*(VLOOKUP($H$11,Init!$N:$P,3,FALSE)))/24 -> 0 | BH4: =($G$5*$H$5*(VLOOKUP($I$11,Init!$N:$P,3,FALSE)))/24 -> 0 | BI4: =($G$5*$H$5*(VLOOKUP($I$11,Init!$N:$P,3,FALSE)))/24 -> 0 | BJ4: =($G$5*$H$5*(VLOOKUP($I$11,Init!$N:$P,3,FALSE)))/24 -> 0 | BK4: =($G$5*$H$5*(VLOOKUP($I$11,Init!$N:$P,3,FALSE)))/24 -> 0 | BL4: =($G$5*$H$5*(VLOOKUP($I$11,Init!$N:$P,3,FALSE)))/24 -> 0 | BM4: =($G$5*$H$5*(VLOOKUP($I$11,Init!$N:$P,3,FALSE)))/24 -> 0 | BN4: =($G$5*$H$5*(VLOOKUP($I$11,Init!$N:$P,3,FALSE)))/24 -> 0 | BO4: =($G$5*$H$5*(VLOOKUP($I$11,Init!$N:$P,3,FALSE)))/24 -> 0 | BP4: =($G$5*$H$5*(VLOOKUP($I$11,Init!$N:$P,3,FALSE)))/24 -> 0 | BQ4: =($G$5*$H$5*(VLOOKUP($I$11,Init!$N:$P,3,FALSE)))/24 -> 0 | BR4: =($G$5*$H$5*(VLOOKUP($I$11,Init!$N:$P,3,FALSE)))/24 -> 0 | BS4: =($G$5*$H$5*(VLOOKUP($I$11,Init!$N:$P,3,FALSE)))/24 -> 0 | BT4: =($G$5*$H$5*(VLOOKUP($J$11,Init!$N:$P,3,FALSE)))/24 -> 0 | BU4: =($G$5*$H$5*(VLOOKUP($J$11,Init!$N:$P,3,FALSE)))/24 -> 0 | BV4: =($G$5*$H$5*(VLOOKUP($J$11,Init!$N:$P,3,FALSE)))/24 -> 0 | BW4: =($G$5*$H$5*(VLOOKUP($J$11,Init!$N:$P,3,FALSE)))/24 -> 0 | BX4: =($G$5*$H$5*(VLOOKUP($J$11,Init!$N:$P,3,FALSE)))/24 -> 0 | BY4: =($G$5*$H$5*(VLOOKUP($J$11,Init!$N:$P,3,FALSE)))/24 -> 0 | BZ4: =($G$5*$H$5*(VLOOKUP($J$11,Init!$N:$P,3,FALSE)))/24 -> 0 | CA4: =($G$5*$H$5*(VLOOKUP($J$11,Init!$N:$P,3,FALSE)))/24 -> 0 | CB4: =($G$5*$H$5*(VLOOKUP($J$11,Init!$N:$P,3,FALSE)))/24 -> 0 | CC4: =($G$5*$H$5*(VLOOKUP($J$11,Init!$N:$P,3,FALSE)))/24 -> 0 | CD4: =($G$5*$H$5*(VLOOKUP($J$11,Init!$N:$P,3,FALSE)))/24 -> 0 | CE4: =($G$5*$H$5*(VLOOKUP($J$11,Init!$N:$P,3,FALSE)))/24 -> 0 | CG4: =($G$5*$H$5*(VLOOKUP($E$11,Init!$N:$P,3,FALSE)))/24 -> 0 | CH4: =($G$5*$H$5*(VLOOKUP($E$11,Init!$N:$P,3,FALSE)))/24 -> 0 | CI4: =($G$5*$H$5*(VLOOKUP($E$11,Init!$N:$P,3,FALSE)))/24 -> 0 | CJ4: =($G$5*$H$5*(VLOOKUP($E$11,Init!$N:$P,3,FALSE)))/24 -> 0 | CK4: =($G$5*$H$5*(VLOOKUP($E$11,Init!$N:$P,3,FALSE)))/24 -> 0 | CL4: =($G$5*$H$5*(VLOOKUP($E$11,Init!$N:$P,3,FALSE)))/24 -> 0 | CM4: =($G$5*$H$5*(VLOOKUP($E$11,Init!$N:$P,3,FALSE)))/24 -> 0 | CN4: =($G$5*$H$5*(VLOOKUP($E$11,Init!$N:$P,3,FALSE)))/24 -> 0 | CO4: =($G$5*$H$5*(VLOOKUP($E$11,Init!$N:$P,3,FALSE)))/24 -> 0 | CP4: =($G$5*$H$5*(VLOOKUP($E$11,Init!$N:$P,3,FALSE)))/24 -> 0 | CQ4: =($G$5*$H$5*(VLOOKUP($E$11,Init!$N:$P,3,FALSE)))/24 -> 0 | CR4: =($G$5*$H$5*(VLOOKUP($E$11,Init!$N:$P,3,FALSE)))/24 -> 0 | CS4: =($G$5*$H$5*(VLOOKUP($F$11,Init!$N:$P,3,FALSE)))/24 -> 0 | CT4: =($G$5*$H$5*(VLOOKUP($F$11,Init!$N:$P,3,FALSE)))/24 -> 0 | CU4: =($G$5*$H$5*(VLOOKUP($F$11,Init!$N:$P,3,FALSE)))/24 -> 0 | CV4: =($G$5*$H$5*(VLOOKUP($F$11,Init!$N:$P,3,FALSE)))/24 -> 0 | CW4: =($G$5*$H$5*(VLOOKUP($F$11,Init!$N:$P,3,FALSE)))/24 -> 0 | CX4: =($G$5*$H$5*(VLOOKUP($F$11,Init!$N:$P,3,FALSE)))/24 -> 0 | CY4: =($G$5*$H$5*(VLOOKUP($F$11,Init!$N:$P,3,FALSE)))/24 -> 0 | CZ4: =($G$5*$H$5*(VLOOKUP($F$11,Init!$N:$P,3,FALSE)))/24 -> 0 | DA4: =($G$5*$H$5*(VLOOKUP($F$11,Init!$N:$P,3,FALSE)))/24 -> 0 | DB4: =($G$5*$H$5*(VLOOKUP($F$11,Init!$N:$P,3,FALSE)))/24 -> 0 | DC4: =($G$5*$H$5*(VLOOKUP($F$11,Init!$N:$P,3,FALSE)))/24 -> 0 | DD4: =($G$5*$H$5*(VLOOKUP($F$11,Init!$N:$P,3,FALSE)))/24 -> 0 | DE4: =($G$5*$H$5*(VLOOKUP($G$11,Init!$N:$P,3,FALSE)))/24 -> 0 | DF4: =($G$5*$H$5*(VLOOKUP($G$11,Init!$N:$P,3,FALSE)))/24 -> 0 | DG4: =($G$5*$H$5*(VLOOKUP($G$11,Init!$N:$P,3,FALSE)))/24 -> 0 | DH4: =($G$5*$H$5*(VLOOKUP($G$11,Init!$N:$P,3,FALSE)))/24 -> 0 | DI4: =($G$5*$H$5*(VLOOKUP($G$11,Init!$N:$P,3,FALSE)))/24 -> 0 | DJ4: =($G$5*$H$5*(VLOOKUP($G$11,Init!$N:$P,3,FALSE)))/24 -> 0 | DK4: =($G$5*$H$5*(VLOOKUP($G$11,Init!$N:$P,3,FALSE)))/24 -> 0 | DL4: =($G$5*$H$5*(VLOOKUP($G$11,Init!$N:$P,3,FALSE)))/24 -> 0 | DM4: =($G$5*$H$5*(VLOOKUP($G$11,Init!$N:$P,3,FALSE)))/24 -> 0 | DN4: =($G$5*$H$5*(VLOOKUP($G$11,Init!$N:$P,3,FALSE)))/24 -> 0 | DO4: =($G$5*$H$5*(VLOOKUP($G$11,Init!$N:$P,3,FALSE)))/24 -> 0 | DP4: =($G$5*$H$5*(VLOOKUP($G$11,Init!$N:$P,3,FALSE)))/24 -> 0 | DQ4: =($G$5*$H$5*(VLOOKUP($H$11,Init!$N:$P,3,FALSE)))/24 -> 0 | DR4: =($G$5*$H$5*(VLOOKUP($H$11,Init!$N:$P,3,FALSE)))/24 -> 0 | DS4: =($G$5*$H$5*(VLOOKUP($H$11,Init!$N:$P,3,FALSE)))/24 -> 0 | DT4: =($G$5*$H$5*(VLOOKUP($H$11,Init!$N:$P,3,FALSE)))/24 -> 0 | DU4: =($G$5*$H$5*(VLOOKUP($H$11,Init!$N:$P,3,FALSE)))/24 -> 0 | DV4: =($G$5*$H$5*(VLOOKUP($H$11,Init!$N:$P,3,FALSE)))/24 -> 0 | DW4: =($G$5*$H$5*(VLOOKUP($H$11,Init!$N:$P,3,FALSE)))/24 -> 0 | DX4: =($G$5*$H$5*(VLOOKUP($H$11,Init!$N:$P,3,FALSE)))/24 -> 0 | DY4: =($G$5*$H$5*(VLOOKUP($H$11,Init!$N:$P,3,FALSE)))/24 -> 0 | DZ4: =($G$5*$H$5*(VLOOKUP($H$11,Init!$N:$P,3,FALSE)))/24 -> 0 | EA4: =($G$5*$H$5*(VLOOKUP($H$11,Init!$N:$P,3,FALSE)))/24 -> 0 | EB4: =($G$5*$H$5*(VLOOKUP($H$11,Init!$N:$P,3,FALSE)))/24 -> 0 | EC4: =($G$5*$H$5*(VLOOKUP($I$11,Init!$N:$P,3,FALSE)))/24 -> 0 | ED4: =($G$5*$H$5*(VLOOKUP($I$11,Init!$N:$P,3,FALSE)))/24 -> 0 | EE4: =($G$5*$H$5*(VLOOKUP($I$11,Init!$N:$P,3,FALSE)))/24 -> 0 | EF4: =($G$5*$H$5*(VLOOKUP($I$11,Init!$N:$P,3,FALSE)))/24 -> 0 | EG4: =($G$5*$H$5*(VLOOKUP($I$11,Init!$N:$P,3,FALSE)))/24 -> 0 | EH4: =($G$5*$H$5*(VLOOKUP($I$11,Init!$N:$P,3,FALSE)))/24 -> 0 | EI4: =($G$5*$H$5*(VLOOKUP($I$11,Init!$N:$P,3,FALSE)))/24 -> 0 | EJ4: =($G$5*$H$5*(VLOOKUP($I$11,Init!$N:$P,3,FALSE)))/24 -> 0 | EK4: =($G$5*$H$5*(VLOOKUP($I$11,Init!$N:$P,3,FALSE)))/24 -> 0 | EL4: =($G$5*$H$5*(VLOOKUP($I$11,Init!$N:$P,3,FALSE)))/24 -> 0 | EM4: =($G$5*$H$5*(VLOOKUP($I$11,Init!$N:$P,3,FALSE)))/24 -> 0 | EN4: =($G$5*$H$5*(VLOOKUP($I$11,Init!$N:$P,3,FALSE)))/24 -> 0 | EO4: =($G$5*$H$5*(VLOOKUP($J$11,Init!$N:$P,3,FALSE)))/24 -> 0 | EP4: =($G$5*$H$5*(VLOOKUP($J$11,Init!$N:$P,3,FALSE)))/24 -> 0 | EQ4: =($G$5*$H$5*(VLOOKUP($J$11,Init!$N:$P,3,FALSE)))/24 -> 0 | ER4: =($G$5*$H$5*(VLOOKUP($J$11,Init!$N:$P,3,FALSE)))/24 -> 0 | ES4: =($G$5*$H$5*(VLOOKUP($J$11,Init!$N:$P,3,FALSE)))/24 -> 0 | ET4: =($G$5*$H$5*(VLOOKUP($J$11,Init!$N:$P,3,FALSE)))/24 -> 0 | EU4: =($G$5*$H$5*(VLOOKUP($J$11,Init!$N:$P,3,FALSE)))/24 -> 0 | EV4: =($G$5*$H$5*(VLOOKUP($J$11,Init!$N:$P,3,FALSE)))/24 -> 0 | EW4: =($G$5*$H$5*(VLOOKUP($J$11,Init!$N:$P,3,FALSE)))/24 -> 0 | EX4: =($G$5*$H$5*(VLOOKUP($J$11,Init!$N:$P,3,FALSE)))/24 -> 0 | EY4: =($G$5*$H$5*(VLOOKUP($J$11,Init!$N:$P,3,FALSE)))/24 -> 0 | EZ4: =($G$5*$H$5*(VLOOKUP($J$11,Init!$N:$P,3,FALSE)))/24 -> 0
F5: Increase Loads (1,000aMW) | G5: =IF(Scenario!$A$27=1,1,0) -> 0 | H5: =Scenario!$F$27 -> 1000 | K5: =F6 -> Decrease Loads (1,000aMW) | L5: =($G$6*($H$6*(VLOOKUP($E$11,Init!$N:$P,3,FALSE))))/24 -> 0 | M5: =($G$6*($H$6*(VLOOKUP($E$11,Init!$N:$P,3,FALSE))))/24 -> 0 | N5: =($G$6*($H$6*(VLOOKUP($E$11,Init!$N:$P,3,FALSE))))/24 -> 0 | O5: =($G$6*($H$6*(VLOOKUP($E$11,Init!$N:$P,3,FALSE))))/24 -> 0 | P5: =($G$6*($H$6*(VLOOKUP($E$11,Init!$N:$P,3,FALSE))))/24 -> 0 | Q5: =($G$6*($H$6*(VLOOKUP($E$11,Init!$N:$P,3,FALSE))))/24 -> 0 | R5: =($G$6*($H$6*(VLOOKUP($E$11,Init!$N:$P,3,FALSE))))/24 -> 0 | S5: =($G$6*($H$6*(VLOOKUP($E$11,Init!$N:$P,3,FALSE))))/24 -> 0 | T5: =($G$6*($H$6*(VLOOKUP($E$11,Init!$N:$P,3,FALSE))))/24 -> 0 | U5: =($G$6*($H$6*(VLOOKUP($E$11,Init!$N:$P,3,FALSE))))/24 -> 0 | V5: =($G$6*($H$6*(VLOOKUP($E$11,Init!$N:$P,3,FALSE))))/24 -> 0 | W5: =($G$6*($H$6*(VLOOKUP($E$11,Init!$N:$P,3,FALSE))))/24 -> 0 | X5: =($G$6*$H$6*(VLOOKUP($F$11,Init!$N:$P,3,FALSE)))/24 -> 0 | Y5: =($G$6*$H$6*(VLOOKUP($F$11,Init!$N:$P,3,FALSE)))/24 -> 0 | Z5: =($G$6*$H$6*(VLOOKUP($F$11,Init!$N:$P,3,FALSE)))/24 -> 0 | AA5: =($G$6*$H$6*(VLOOKUP($F$11,Init!$N:$P,3,FALSE)))/24 -> 0 | AB5: =($G$6*$H$6*(VLOOKUP($F$11,Init!$N:$P,3,FALSE)))/24 -> 0 | AC5: =($G$6*$H$6*(VLOOKUP($F$11,Init!$N:$P,3,FALSE)))/24 -> 0 | AD5: =($G$6*$H$6*(VLOOKUP($F$11,Init!$N:$P,3,FALSE)))/24 -> 0 | AE5: =($G$6*$H$6*(VLOOKUP($F$11,Init!$N:$P,3,FALSE)))/24 -> 0 | AF5: =($G$6*$H$6*(VLOOKUP($F$11,Init!$N:$P,3,FALSE)))/24 -> 0 | AG5: =($G$6*$H$6*(VLOOKUP($F$11,Init!$N:$P,3,FALSE)))/24 -> 0 | AH5: =($G$6*$H$6*(VLOOKUP($F$11,Init!$N:$P,3,FALSE)))/24 -> 0 | AI5: =($G$6*$H$6*(VLOOKUP($F$11,Init!$N:$P,3,FALSE)))/24 -> 0 | AJ5: =($G$6*$H$6*(VLOOKUP($G$11,Init!$N:$P,3,FALSE)))/24 -> 0 | AK5: =($G$6*$H$6*(VLOOKUP($G$11,Init!$N:$P,3,FALSE)))/24 -> 0 | AL5: =($G$6*$H$6*(VLOOKUP($G$11,Init!$N:$P,3,FALSE)))/24 -> 0 | AM5: =($G$6*$H$6*(VLOOKUP($G$11,Init!$N:$P,3,FALSE)))/24 -> 0 | AN5: =($G$6*$H$6*(VLOOKUP($G$11,Init!$N:$P,3,FALSE)))/24 -> 0 | AO5: =($G$6*$H$6*(VLOOKUP($G$11,Init!$N:$P,3,FALSE)))/24 -> 0 | AP5: =($G$6*$H$6*(VLOOKUP($G$11,Init!$N:$P,3,FALSE)))/24 -> 0 | AQ5: =($G$6*$H$6*(VLOOKUP($G$11,Init!$N:$P,3,FALSE)))/24 -> 0 | AR5: =($G$6*$H$6*(VLOOKUP($G$11,Init!$N:$P,3,FALSE)))/24 -> 0 | AS5: =($G$6*$H$6*(VLOOKUP($G$11,Init!$N:$P,3,FALSE)))/24 -> 0 | AT5: =($G$6*$H$6*(VLOOKUP($G$11,Init!$N:$P,3,FALSE)))/24 -> 0 | AU5: =($G$6*$H$6*(VLOOKUP($G$11,Init!$N:$P,3,FALSE)))/24 -> 0 | AV5: =($G$6*$H$6*(VLOOKUP($H$11,Init!$N:$P,3,FALSE)))/24 -> 0 | AW5: =($G$6*$H$6*(VLOOKUP($H$11,Init!$N:$P,3,FALSE)))/24 -> 0 | AX5: =($G$6*$H$6*(VLOOKUP($H$11,Init!$N:$P,3,FALSE)))/24 -> 0 | AY5: =($G$6*$H$6*(VLOOKUP($H$11,Init!$N:$P,3,FALSE)))/24 -> 0 | AZ5: =($G$6*$H$6*(VLOOKUP($H$11,Init!$N:$P,3,FALSE)))/24 -> 0 | BA5: =($G$6*$H$6*(VLOOKUP($H$11,Init!$N:$P,3,FALSE)))/24 -> 0 | BB5: =($G$6*$H$6*(VLOOKUP($H$11,Init!$N:$P,3,FALSE)))/24 -> 0 | BC5: =($G$6*$H$6*(VLOOKUP($H$11,Init!$N:$P,3,FALSE)))/24 -> 0 | BD5: =($G$6*$H$6*(VLOOKUP($H$11,Init!$N:$P,3,FALSE)))/24 -> 0 | BE5: =($G$6*$H$6*(VLOOKUP($H$11,Init!$N:$P,3,FALSE)))/24 -> 0 | BF5: =($G$6*$H$6*(VLOOKUP($H$11,Init!$N:$P,3,FALSE)))/24 -> 0 | BG5: =($G$6*$H$6*(VLOOKUP($H$11,Init!$N:$P,3,FALSE)))/24 -> 0 | BH5: =($G$6*$H$6*(VLOOKUP($I$11,Init!$N:$P,3,FALSE)))/24 -> 0 | BI5: =($G$6*$H$6*(VLOOKUP($I$11,Init!$N:$P,3,FALSE)))/24 -> 0 | BJ5: =($G$6*$H$6*(VLOOKUP($I$11,Init!$N:$P,3,FALSE)))/24 -> 0 | BK5: =($G$6*$H$6*(VLOOKUP($I$11,Init!$N:$P,3,FALSE)))/24 -> 0 | BL5: =($G$6*$H$6*(VLOOKUP($I$11,Init!$N:$P,3,FALSE)))/24 -> 0 | BM5: =($G$6*$H$6*(VLOOKUP($I$11,Init!$N:$P,3,FALSE)))/24 -> 0 | BN5: =($G$6*$H$6*(VLOOKUP($I$11,Init!$N:$P,3,FALSE)))/24 -> 0 | BO5: =($G$6*$H$6*(VLOOKUP($I$11,Init!$N:$P,3,FALSE)))/24 -> 0 | BP5: =($G$6*$H$6*(VLOOKUP($I$11,Init!$N:$P,3,FALSE)))/24 -> 0 | BQ5: =($G$6*$H$6*(VLOOKUP($I$11,Init!$N:$P,3,FALSE)))/24 -> 0 | BR5: =($G$6*$H$6*(VLOOKUP($I$11,Init!$N:$P,3,FALSE)))/24 -> 0 | BS5: =($G$6*$H$6*(VLOOKUP($I$11,Init!$N:$P,3,FALSE)))/24 -> 0 | BT5: =($G$6*$H$6*(VLOOKUP($J$11,Init!$N:$P,3,FALSE)))/24 -> 0 | BU5: =($G$6*$H$6*(VLOOKUP($J$11,Init!$N:$P,3,FALSE)))/24 -> 0 | BV5: =($G$6*$H$6*(VLOOKUP($J$11,Init!$N:$P,3,FALSE)))/24 -> 0 | BW5: =($G$6*$H$6*(VLOOKUP($J$11,Init!$N:$P,3,FALSE)))/24 -> 0 | BX5: =($G$6*$H$6*(VLOOKUP($J$11,Init!$N:$P,3,FALSE)))/24 -> 0 | BY5: =($G$6*$H$6*(VLOOKUP($J$11,Init!$N:$P,3,FALSE)))/24 -> 0 | BZ5: =($G$6*$H$6*(VLOOKUP($J$11,Init!$N:$P,3,FALSE)))/24 -> 0 | CA5: =($G$6*$H$6*(VLOOKUP($J$11,Init!$N:$P,3,FALSE)))/24 -> 0 | CB5: =($G$6*$H$6*(VLOOKUP($J$11,Init!$N:$P,3,FALSE)))/24 -> 0 | CC5: =($G$6*$H$6*(VLOOKUP($J$11,Init!$N:$P,3,FALSE)))/24 -> 0 | CD5: =($G$6*$H$6*(VLOOKUP($J$11,Init!$N:$P,3,FALSE)))/24 -> 0 | CE5: =($G$6*$H$6*(VLOOKUP($J$11,Init!$N:$P,3,FALSE)))/24 -> 0 | CG5: =($G$6*($H$6*(VLOOKUP($E$11,Init!$N:$P,3,FALSE))))/24 -> 0 | CH5: =($G$6*($H$6*(VLOOKUP($E$11,Init!$N:$P,3,FALSE))))/24 -> 0 | CI5: =($G$6*($H$6*(VLOOKUP($E$11,Init!$N:$P,3,FALSE))))/24 -> 0 | CJ5: =($G$6*($H$6*(VLOOKUP($E$11,Init!$N:$P,3,FALSE))))/24 -> 0 | CK5: =($G$6*($H$6*(VLOOKUP($E$11,Init!$N:$P,3,FALSE))))/24 -> 0 | CL5: =($G$6*($H$6*(VLOOKUP($E$11,Init!$N:$P,3,FALSE))))/24 -> 0 | CM5: =($G$6*($H$6*(VLOOKUP($E$11,Init!$N:$P,3,FALSE))))/24 -> 0 | CN5: =($G$6*($H$6*(VLOOKUP($E$11,Init!$N:$P,3,FALSE))))/24 -> 0 | CO5: =($G$6*($H$6*(VLOOKUP($E$11,Init!$N:$P,3,FALSE))))/24 -> 0 | CP5: =($G$6*($H$6*(VLOOKUP($E$11,Init!$N:$P,3,FALSE))))/24 -> 0 | CQ5: =($G$6*($H$6*(VLOOKUP($E$11,Init!$N:$P,3,FALSE))))/24 -> 0 | CR5: =($G$6*($H$6*(VLOOKUP($E$11,Init!$N:$P,3,FALSE))))/24 -> 0 | CS5: =($G$6*$H$6*(VLOOKUP($F$11,Init!$N:$P,3,FALSE)))/24 -> 0 | CT5: =($G$6*$H$6*(VLOOKUP($F$11,Init!$N:$P,3,FALSE)))/24 -> 0 | CU5: =($G$6*$H$6*(VLOOKUP($F$11,Init!$N:$P,3,FALSE)))/24 -> 0 | CV5: =($G$6*$H$6*(VLOOKUP($F$11,Init!$N:$P,3,FALSE)))/24 -> 0 | CW5: =($G$6*$H$6*(VLOOKUP($F$11,Init!$N:$P,3,FALSE)))/24 -> 0 | CX5: =($G$6*$H$6*(VLOOKUP($F$11,Init!$N:$P,3,FALSE)))/24 -> 0 | CY5: =($G$6*$H$6*(VLOOKUP($F$11,Init!$N:$P,3,FALSE)))/24 -> 0 | CZ5: =($G$6*$H$6*(VLOOKUP($F$11,Init!$N:$P,3,FALSE)))/24 -> 0 | DA5: =($G$6*$H$6*(VLOOKUP($F$11,Init!$N:$P,3,FALSE)))/24 -> 0 | DB5: =($G$6*$H$6*(VLOOKUP($F$11,Init!$N:$P,3,FALSE)))/24 -> 0 | DC5: =($G$6*$H$6*(VLOOKUP($F$11,Init!$N:$P,3,FALSE)))/24 -> 0 | DD5: =($G$6*$H$6*(VLOOKUP($F$11,Init!$N:$P,3,FALSE)))/24 -> 0 | DE5: =($G$6*$H$6*(VLOOKUP($G$11,Init!$N:$P,3,FALSE)))/24 -> 0 | DF5: =($G$6*$H$6*(VLOOKUP($G$11,Init!$N:$P,3,FALSE)))/24 -> 0 | DG5: =($G$6*$H$6*(VLOOKUP($G$11,Init!$N:$P,3,FALSE)))/24 -> 0 | DH5: =($G$6*$H$6*(VLOOKUP($G$11,Init!$N:$P,3,FALSE)))/24 -> 0 | DI5: =($G$6*$H$6*(VLOOKUP($G$11,Init!$N:$P,3,FALSE)))/24 -> 0 | DJ5: =($G$6*$H$6*(VLOOKUP($G$11,Init!$N:$P,3,FALSE)))/24 -> 0 | DK5: =($G$6*$H$6*(VLOOKUP($G$11,Init!$N:$P,3,FALSE)))/24 -> 0 | DL5: =($G$6*$H$6*(VLOOKUP($G$11,Init!$N:$P,3,FALSE)))/24 -> 0 | DM5: =($G$6*$H$6*(VLOOKUP($G$11,Init!$N:$P,3,FALSE)))/24 -> 0 | DN5: =($G$6*$H$6*(VLOOKUP($G$11,Init!$N:$P,3,FALSE)))/24 -> 0 | DO5: =($G$6*$H$6*(VLOOKUP($G$11,Init!$N:$P,3,FALSE)))/24 -> 0 | DP5: =($G$6*$H$6*(VLOOKUP($G$11,Init!$N:$P,3,FALSE)))/24 -> 0 | DQ5: =($G$6*$H$6*(VLOOKUP($H$11,Init!$N:$P,3,FALSE)))/24 -> 0 | DR5: =($G$6*$H$6*(VLOOKUP($H$11,Init!$N:$P,3,FALSE)))/24 -> 0 | DS5: =($G$6*$H$6*(VLOOKUP($H$11,Init!$N:$P,3,FALSE)))/24 -> 0 | DT5: =($G$6*$H$6*(VLOOKUP($H$11,Init!$N:$P,3,FALSE)))/24 -> 0 | DU5: =($G$6*$H$6*(VLOOKUP($H$11,Init!$N:$P,3,FALSE)))/24 -> 0 | DV5: =($G$6*$H$6*(VLOOKUP($H$11,Init!$N:$P,3,FALSE)))/24 -> 0 | DW5: =($G$6*$H$6*(VLOOKUP($H$11,Init!$N:$P,3,FALSE)))/24 -> 0 | DX5: =($G$6*$H$6*(VLOOKUP($H$11,Init!$N:$P,3,FALSE)))/24 -> 0 | DY5: =($G$6*$H$6*(VLOOKUP($H$11,Init!$N:$P,3,FALSE)))/24 -> 0 | DZ5: =($G$6*$H$6*(VLOOKUP($H$11,Init!$N:$P,3,FALSE)))/24 -> 0 | EA5: =($G$6*$H$6*(VLOOKUP($H$11,Init!$N:$P,3,FALSE)))/24 -> 0 | EB5: =($G$6*$H$6*(VLOOKUP($H$11,Init!$N:$P,3,FALSE)))/24 -> 0 | EC5: =($G$6*$H$6*(VLOOKUP($I$11,Init!$N:$P,3,FALSE)))/24 -> 0 | ED5: =($G$6*$H$6*(VLOOKUP($I$11,Init!$N:$P,3,FALSE)))/24 -> 0 | EE5: =($G$6*$H$6*(VLOOKUP($I$11,Init!$N:$P,3,FALSE)))/24 -> 0 | EF5: =($G$6*$H$6*(VLOOKUP($I$11,Init!$N:$P,3,FALSE)))/24 -> 0 | EG5: =($G$6*$H$6*(VLOOKUP($I$11,Init!$N:$P,3,FALSE)))/24 -> 0 | EH5: =($G$6*$H$6*(VLOOKUP($I$11,Init!$N:$P,3,FALSE)))/24 -> 0 | EI5: =($G$6*$H$6*(VLOOKUP($I$11,Init!$N:$P,3,FALSE)))/24 -> 0 | EJ5: =($G$6*$H$6*(VLOOKUP($I$11,Init!$N:$P,3,FALSE)))/24 -> 0 | EK5: =($G$6*$H$6*(VLOOKUP($I$11,Init!$N:$P,3,FALSE)))/24 -> 0 | EL5: =($G$6*$H$6*(VLOOKUP($I$11,Init!$N:$P,3,FALSE)))/24 -> 0 | EM5: =($G$6*$H$6*(VLOOKUP($I$11,Init!$N:$P,3,FALSE)))/24 -> 0 | EN5: =($G$6*$H$6*(VLOOKUP($I$11,Init!$N:$P,3,FALSE)))/24 -> 0 | EO5: =($G$6*$H$6*(VLOOKUP($J$11,Init!$N:$P,3,FALSE)))/24 -> 0 | EP5: =($G$6*$H$6*(VLOOKUP($J$11,Init!$N:$P,3,FALSE)))/24 -> 0 | EQ5: =($G$6*$H$6*(VLOOKUP($J$11,Init!$N:$P,3,FALSE)))/24 -> 0 | ER5: =($G$6*$H$6*(VLOOKUP($J$11,Init!$N:$P,3,FALSE)))/24 -> 0 | ES5: =($G$6*$H$6*(VLOOKUP($J$11,Init!$N:$P,3,FALSE)))/24 -> 0 | ET5: =($G$6*$H$6*(VLOOKUP($J$11,Init!$N:$P,3,FALSE)))/24 -> 0 | EU5: =($G$6*$H$6*(VLOOKUP($J$11,Init!$N:$P,3,FALSE)))/24 -> 0 | EV5: =($G$6*$H$6*(VLOOKUP($J$11,Init!$N:$P,3,FALSE)))/24 -> 0 | EW5: =($G$6*$H$6*(VLOOKUP($J$11,Init!$N:$P,3,FALSE)))/24 -> 0 | EX5: =($G$6*$H$6*(VLOOKUP($J$11,Init!$N:$P,3,FALSE)))/24 -> 0 | EY5: =($G$6*$H$6*(VLOOKUP($J$11,Init!$N:$P,3,FALSE)))/24 -> 0 | EZ5: =($G$6*$H$6*(VLOOKUP($J$11,Init!$N:$P,3,FALSE)))/24 -> 0
F6: Decrease Loads (1,000aMW) | G6: =IF(Scenario!$A$26=1,1,0) -> 0 | H6: =Scenario!$F$26 -> -1000 | K6: DSI Base Case | L6: 4660.406 | M6: 4350.871 | N6: 4408.261 | O6: 4424.143 | P6: 4303.342 | Q6: 4657.349 | R6: 4477.511 | S6: 4478.292 | T6: 4524.994 | U6: 4421.576 | V6: 4702.721 | W6: 4189.254 | X6: 4660.406 | Y6: 4350.871 | Z6: 4408.261 | AA6: 4424.143 | AB6: 4154.952 | AC6: 4657.349 | AD6: 4477.511 | AE6: 4478.292 | AF6: 4524.994 | AG6: 4421.576 | AH6: 4702.721 | AI6: 4189.254 | AJ6: 4660.406 | AK6: 4350.871 | AL6: 4408.261 | AM6: 4424.143 | AN6: 4154.952 | AO6: 4657.349 | AP6: 4477.511 | AQ6: 4478.292 | AR6: 4524.994 | AS6: 4421.576 | AT6: 4702.721 | AU6: 4189.254 | AV6: 4660.406 | AW6: 4350.871 | AX6: 4408.261 | AY6: 4424.143 | AZ6: 4154.952 | BA6: 4657.349 | BB6: 4477.511 | BC6: 4478.292 | BD6: 4524.994 | BE6: 4421.576 | BF6: 4702.721 | BG6: 4189.254 | BH6: 4660.406 | BI6: 4350.871 | BJ6: 4408.261 | BK6: 4424.143 | BL6: 4303.342 | BM6: 4657.349 | BN6: 4477.511 | BO6: 4478.292 | BP6: 4524.994 | BQ6: 4421.576 | BR6: 4702.721 | BS6: 4189.254 | BT6: 4660.406 | BU6: 4350.871 | BV6: 4408.261 | BW6: 4424.143 | BX6: 4154.952 | BY6: 4657.349 | BZ6: 4477.511 | CA6: 4478.292 | CB6: 4524.994 | CC6: 4421.576 | CD6: 4702.721 | CE6: 4189.254 | CG6: 3523.594 | CH6: 3580.129 | CI6: 3775.739 | CJ6: 3759.857 | CK6: 3352.658 | CL6: 3515.651 | CM6: 3442.489 | CN6: 3705.708 | CO6: 3395.006 | CP6: 3762.424 | CQ6: 3481.279 | CR6: 3730.746 | CS6: 3523.594 | CT6: 3580.129 | CU6: 3775.739 | CV6: 3759.857 | CW6: 3237.048 | CX6: 3515.651 | CY6: 3442.489 | CZ6: 3705.708 | DA6: 3395.006 | DB6: 3762.424 | DC6: 3481.279 | DD6: 3730.746 | DE6: 3523.594 | DF6: 3580.129 | DG6: 3775.739 | DH6: 3759.857 | DI6: 3237.048 | DJ6: 3515.651 | DK6: 3442.489 | DL6: 3705.708 | DM6: 3395.006 | DN6: 3762.424 | DO6: 3481.279 | DP6: 3730.746 | DQ6: 3523.594 | DR6: 3580.129 | DS6: 3775.739 | DT6: 3759.857 | DU6: 3237.048 | DV6: 3515.651 | DW6: 3442.489 | DX6: 3705.708 | DY6: 3395.006 | DZ6: 3762.424 | EA6: 3481.279 | EB6: 3730.746 | EC6: 3523.594 | ED6: 3580.129 | EE6: 3775.739 | EF6: 3759.857 | EG6: 3352.658 | EH6: 3515.651 | EI6: 3442.489 | EJ6: 3705.708 | EK6: 3395.006 | EL6: 3762.424 | EM6: 3481.279 | EN6: 3730.746 | EO6: 3523.594 | EP6: 3580.129 | EQ6: 3775.739 | ER6: 3759.857 | ES6: 3237.048 | ET6: 3515.651 | EU6: 3442.489 | EV6: 3705.708 | EW6: 3395.006 | EX6: 3762.424 | EY6: 3481.279 | EZ6: 3730.746
F7: Increase DSI Loads (500aMW) | G7: =IF(Scenario!$A$25=1,1,0) -> 0 | H7: =Scenario!$F$25 -> 500 | K7: Increase DSI Loads (500aMW) | L7: =($G$7*$H$7*(VLOOKUP($E$11,Init!$N:$P,3,FALSE)))/24 -> 0 | M7: =($G$7*$H$7*(VLOOKUP($E$11,Init!$N:$P,3,FALSE)))/24 -> 0 | N7: =($G$7*$H$7*(VLOOKUP($E$11,Init!$N:$P,3,FALSE)))/24 -> 0 | O7: =($G$7*$H$7*(VLOOKUP($E$11,Init!$N:$P,3,FALSE)))/24 -> 0 | P7: =($G$7*$H$7*(VLOOKUP($E$11,Init!$N:$P,3,FALSE)))/24 -> 0 | Q7: =($G$7*$H$7*(VLOOKUP($E$11,Init!$N:$P,3,FALSE)))/24 -> 0 | R7: =($G$7*$H$7*(VLOOKUP($E$11,Init!$N:$P,3,FALSE)))/24 -> 0 | S7: =($G$7*$H$7*(VLOOKUP($E$11,Init!$N:$P,3,FALSE)))/24 -> 0 | T7: =($G$7*$H$7*(VLOOKUP($E$11,Init!$N:$P,3,FALSE)))/24 -> 0 | U7: =($G$7*$H$7*(VLOOKUP($E$11,Init!$N:$P,3,FALSE)))/24 -> 0 | V7: =($G$7*$H$7*(VLOOKUP($E$11,Init!$N:$P,3,FALSE)))/24 -> 0 | W7: =($G$7*$H$7*(VLOOKUP($E$11,Init!$N:$P,3,FALSE)))/24 -> 0 | X7: =($G$7*$H$7*(VLOOKUP($F$11,Init!$N:$P,3,FALSE)))/24 -> 0 | Y7: =($G$7*$H$7*(VLOOKUP($F$11,Init!$N:$P,3,FALSE)))/24 -> 0 | Z7: =($G$7*$H$7*(VLOOKUP($F$11,Init!$N:$P,3,FALSE)))/24 -> 0 | AA7: =($G$7*$H$7*(VLOOKUP($F$11,Init!$N:$P,3,FALSE)))/24 -> 0 | AB7: =($G$7*$H$7*(VLOOKUP($F$11,Init!$N:$P,3,FALSE)))/24 -> 0 | AC7: =($G$7*$H$7*(VLOOKUP($F$11,Init!$N:$P,3,FALSE)))/24 -> 0 | AD7: =($G$7*$H$7*(VLOOKUP($F$11,Init!$N:$P,3,FALSE)))/24 -> 0 | AE7: =($G$7*$H$7*(VLOOKUP($F$11,Init!$N:$P,3,FALSE)))/24 -> 0 | AF7: =($G$7*$H$7*(VLOOKUP($F$11,Init!$N:$P,3,FALSE)))/24 -> 0 | AG7: =($G$7*$H$7*(VLOOKUP($F$11,Init!$N:$P,3,FALSE)))/24 -> 0 | AH7: =($G$7*$H$7*(VLOOKUP($F$11,Init!$N:$P,3,FALSE)))/24 -> 0 | AI7: =($G$7*$H$7*(VLOOKUP($F$11,Init!$N:$P,3,FALSE)))/24 -> 0 | AJ7: =($G$7*$H$7*(VLOOKUP($G$11,Init!$N:$P,3,FALSE)))/24 -> 0 | AK7: =($G$7*$H$7*(VLOOKUP($G$11,Init!$N:$P,3,FALSE)))/24 -> 0 | AL7: =($G$7*$H$7*(VLOOKUP($G$11,Init!$N:$P,3,FALSE)))/24 -> 0 | AM7: =($G$7*$H$7*(VLOOKUP($G$11,Init!$N:$P,3,FALSE)))/24 -> 0 | AN7: =($G$7*$H$7*(VLOOKUP($G$11,Init!$N:$P,3,FALSE)))/24 -> 0 | AO7: =($G$7*$H$7*(VLOOKUP($G$11,Init!$N:$P,3,FALSE)))/24 -> 0 | AP7: =($G$7*$H$7*(VLOOKUP($G$11,Init!$N:$P,3,FALSE)))/24 -> 0 | AQ7: =($G$7*$H$7*(VLOOKUP($G$11,Init!$N:$P,3,FALSE)))/24 -> 0 | AR7: =($G$7*$H$7*(VLOOKUP($G$11,Init!$N:$P,3,FALSE)))/24 -> 0 | AS7: =($G$7*$H$7*(VLOOKUP($G$11,Init!$N:$P,3,FALSE)))/24 -> 0 | AT7: =($G$7*$H$7*(VLOOKUP($G$11,Init!$N:$P,3,FALSE)))/24 -> 0 | AU7: =($G$7*$H$7*(VLOOKUP($G$11,Init!$N:$P,3,FALSE)))/24 -> 0 | AV7: =($G$7*$H$7*(VLOOKUP($H$11,Init!$N:$P,3,FALSE)))/24 -> 0 | AW7: =($G$7*$H$7*(VLOOKUP($H$11,Init!$N:$P,3,FALSE)))/24 -> 0 | AX7: =($G$7*$H$7*(VLOOKUP($H$11,Init!$N:$P,3,FALSE)))/24 -> 0 | AY7: =($G$7*$H$7*(VLOOKUP($H$11,Init!$N:$P,3,FALSE)))/24 -> 0 | AZ7: =($G$7*$H$7*(VLOOKUP($H$11,Init!$N:$P,3,FALSE)))/24 -> 0 | BA7: =($G$7*$H$7*(VLOOKUP($H$11,Init!$N:$P,3,FALSE)))/24 -> 0 | BB7: =($G$7*$H$7*(VLOOKUP($H$11,Init!$N:$P,3,FALSE)))/24 -> 0 | BC7: =($G$7*$H$7*(VLOOKUP($H$11,Init!$N:$P,3,FALSE)))/24 -> 0 | BD7: =($G$7*$H$7*(VLOOKUP($H$11,Init!$N:$P,3,FALSE)))/24 -> 0 | BE7: =($G$7*$H$7*(VLOOKUP($H$11,Init!$N:$P,3,FALSE)))/24 -> 0 | BF7: =($G$7*$H$7*(VLOOKUP($H$11,Init!$N:$P,3,FALSE)))/24 -> 0 | BG7: =($G$7*$H$7*(VLOOKUP($H$11,Init!$N:$P,3,FALSE)))/24 -> 0 | BH7: =($G$7*$H$7*(VLOOKUP($I$11,Init!$N:$P,3,FALSE)))/24 -> 0 | BI7: =($G$7*$H$7*(VLOOKUP($I$11,Init!$N:$P,3,FALSE)))/24 -> 0 | BJ7: =($G$7*$H$7*(VLOOKUP($I$11,Init!$N:$P,3,FALSE)))/24 -> 0 | BK7: =($G$7*$H$7*(VLOOKUP($I$11,Init!$N:$P,3,FALSE)))/24 -> 0 | BL7: =($G$7*$H$7*(VLOOKUP($I$11,Init!$N:$P,3,FALSE)))/24 -> 0 | BM7: =($G$7*$H$7*(VLOOKUP($I$11,Init!$N:$P,3,FALSE)))/24 -> 0 | BN7: =($G$7*$H$7*(VLOOKUP($I$11,Init!$N:$P,3,FALSE)))/24 -> 0 | BO7: =($G$7*$H$7*(VLOOKUP($I$11,Init!$N:$P,3,FALSE)))/24 -> 0 | BP7: =($G$7*$H$7*(VLOOKUP($I$11,Init!$N:$P,3,FALSE)))/24 -> 0 | BQ7: =($G$7*$H$7*(VLOOKUP($I$11,Init!$N:$P,3,FALSE)))/24 -> 0 | BR7: =($G$7*$H$7*(VLOOKUP($I$11,Init!$N:$P,3,FALSE)))/24 -> 0 | BS7: =($G$7*$H$7*(VLOOKUP($I$11,Init!$N:$P,3,FALSE)))/24 -> 0 | BT7: =($G$7*$H$7*(VLOOKUP($J$11,Init!$N:$P,3,FALSE)))/24 -> 0 | BU7: =($G$7*$H$7*(VLOOKUP($J$11,Init!$N:$P,3,FALSE)))/24 -> 0 | BV7: =($G$7*$H$7*(VLOOKUP($J$11,Init!$N:$P,3,FALSE)))/24 -> 0 | BW7: =($G$7*$H$7*(VLOOKUP($J$11,Init!$N:$P,3,FALSE)))/24 -> 0 | BX7: =($G$7*$H$7*(VLOOKUP($J$11,Init!$N:$P,3,FALSE)))/24 -> 0 | BY7: =($G$7*$H$7*(VLOOKUP($J$11,Init!$N:$P,3,FALSE)))/24 -> 0 | BZ7: =($G$7*$H$7*(VLOOKUP($J$11,Init!$N:$P,3,FALSE)))/24 -> 0 | CA7: =($G$7*$H$7*(VLOOKUP($J$11,Init!$N:$P,3,FALSE)))/24 -> 0 | CB7: =($G$7*$H$7*(VLOOKUP($J$11,Init!$N:$P,3,FALSE)))/24 -> 0 | CC7: =($G$7*$H$7*(VLOOKUP($J$11,Init!$N:$P,3,FALSE)))/24 -> 0 | CD7: =($G$7*$H$7*(VLOOKUP($J$11,Init!$N:$P,3,FALSE)))/24 -> 0 | CE7: =($G$7*$H$7*(VLOOKUP($J$11,Init!$N:$P,3,FALSE)))/24 -> 0 | CG7: =($G$7*$H$7*(VLOOKUP($E$11,Init!$N:$P,3,FALSE)))/24 -> 0 | CH7: =($G$7*$H$7*(VLOOKUP($E$11,Init!$N:$P,3,FALSE)))/24 -> 0 | CI7: =($G$7*$H$7*(VLOOKUP($E$11,Init!$N:$P,3,FALSE)))/24 -> 0 | CJ7: =($G$7*$H$7*(VLOOKUP($E$11,Init!$N:$P,3,FALSE)))/24 -> 0 | CK7: =($G$7*$H$7*(VLOOKUP($E$11,Init!$N:$P,3,FALSE)))/24 -> 0 | CL7: =($G$7*$H$7*(VLOOKUP($E$11,Init!$N:$P,3,FALSE)))/24 -> 0 | CM7: =($G$7*$H$7*(VLOOKUP($E$11,Init!$N:$P,3,FALSE)))/24 -> 0 | CN7: =($G$7*$H$7*(VLOOKUP($E$11,Init!$N:$P,3,FALSE)))/24 -> 0 | CO7: =($G$7*$H$7*(VLOOKUP($E$11,Init!$N:$P,3,FALSE)))/24 -> 0 | CP7: =($G$7*$H$7*(VLOOKUP($E$11,Init!$N:$P,3,FALSE)))/24 -> 0 | CQ7: =($G$7*$H$7*(VLOOKUP($E$11,Init!$N:$P,3,FALSE)))/24 -> 0 | CR7: =($G$7*$H$7*(VLOOKUP($E$11,Init!$N:$P,3,FALSE)))/24 -> 0 | CS7: =($G$7*$H$7*(VLOOKUP($F$11,Init!$N:$P,3,FALSE)))/24 -> 0 | CT7: =($G$7*$H$7*(VLOOKUP($F$11,Init!$N:$P,3,FALSE)))/24 -> 0 | CU7: =($G$7*$H$7*(VLOOKUP($F$11,Init!$N:$P,3,FALSE)))/24 -> 0 | CV7: =($G$7*$H$7*(VLOOKUP($F$11,Init!$N:$P,3,FALSE)))/24 -> 0 | CW7: =($G$7*$H$7*(VLOOKUP($F$11,Init!$N:$P,3,FALSE)))/24 -> 0 | CX7: =($G$7*$H$7*(VLOOKUP($F$11,Init!$N:$P,3,FALSE)))/24 -> 0 | CY7: =($G$7*$H$7*(VLOOKUP($F$11,Init!$N:$P,3,FALSE)))/24 -> 0 | CZ7: =($G$7*$H$7*(VLOOKUP($F$11,Init!$N:$P,3,FALSE)))/24 -> 0 | DA7: =($G$7*$H$7*(VLOOKUP($F$11,Init!$N:$P,3,FALSE)))/24 -> 0 | DB7: =($G$7*$H$7*(VLOOKUP($F$11,Init!$N:$P,3,FALSE)))/24 -> 0 | DC7: =($G$7*$H$7*(VLOOKUP($F$11,Init!$N:$P,3,FALSE)))/24 -> 0 | DD7: =($G$7*$H$7*(VLOOKUP($F$11,Init!$N:$P,3,FALSE)))/24 -> 0 | DE7: =($G$7*$H$7*(VLOOKUP($G$11,Init!$N:$P,3,FALSE)))/24 -> 0 | DF7: =($G$7*$H$7*(VLOOKUP($G$11,Init!$N:$P,3,FALSE)))/24 -> 0 | DG7: =($G$7*$H$7*(VLOOKUP($G$11,Init!$N:$P,3,FALSE)))/24 -> 0 | DH7: =($G$7*$H$7*(VLOOKUP($G$11,Init!$N:$P,3,FALSE)))/24 -> 0 | DI7: =($G$7*$H$7*(VLOOKUP($G$11,Init!$N:$P,3,FALSE)))/24 -> 0 | DJ7: =($G$7*$H$7*(VLOOKUP($G$11,Init!$N:$P,3,FALSE)))/24 -> 0 | DK7: =($G$7*$H$7*(VLOOKUP($G$11,Init!$N:$P,3,FALSE)))/24 -> 0 | DL7: =($G$7*$H$7*(VLOOKUP($G$11,Init!$N:$P,3,FALSE)))/24 -> 0 | DM7: =($G$7*$H$7*(VLOOKUP($G$11,Init!$N:$P,3,FALSE)))/24 -> 0 | DN7: =($G$7*$H$7*(VLOOKUP($G$11,Init!$N:$P,3,FALSE)))/24 -> 0 | DO7: =($G$7*$H$7*(VLOOKUP($G$11,Init!$N:$P,3,FALSE)))/24 -> 0 | DP7: =($G$7*$H$7*(VLOOKUP($G$11,Init!$N:$P,3,FALSE)))/24 -> 0 | DQ7: =($G$7*$H$7*(VLOOKUP($H$11,Init!$N:$P,3,FALSE)))/24 -> 0 | DR7: =($G$7*$H$7*(VLOOKUP($H$11,Init!$N:$P,3,FALSE)))/24 -> 0 | DS7: =($G$7*$H$7*(VLOOKUP($H$11,Init!$N:$P,3,FALSE)))/24 -> 0 | DT7: =($G$7*$H$7*(VLOOKUP($H$11,Init!$N:$P,3,FALSE)))/24 -> 0 | DU7: =($G$7*$H$7*(VLOOKUP($H$11,Init!$N:$P,3,FALSE)))/24 -> 0 | DV7: =($G$7*$H$7*(VLOOKUP($H$11,Init!$N:$P,3,FALSE)))/24 -> 0 | DW7: =($G$7*$H$7*(VLOOKUP($H$11,Init!$N:$P,3,FALSE)))/24 -> 0 | DX7: =($G$7*$H$7*(VLOOKUP($H$11,Init!$N:$P,3,FALSE)))/24 -> 0 | DY7: =($G$7*$H$7*(VLOOKUP($H$11,Init!$N:$P,3,FALSE)))/24 -> 0 | DZ7: =($G$7*$H$7*(VLOOKUP($H$11,Init!$N:$P,3,FALSE)))/24 -> 0 | EA7: =($G$7*$H$7*(VLOOKUP($H$11,Init!$N:$P,3,FALSE)))/24 -> 0 | EB7: =($G$7*$H$7*(VLOOKUP($H$11,Init!$N:$P,3,FALSE)))/24 -> 0 | EC7: =($G$7*$H$7*(VLOOKUP($I$11,Init!$N:$P,3,FALSE)))/24 -> 0 | ED7: =($G$7*$H$7*(VLOOKUP($I$11,Init!$N:$P,3,FALSE)))/24 -> 0 | EE7: =($G$7*$H$7*(VLOOKUP($I$11,Init!$N:$P,3,FALSE)))/24 -> 0 | EF7: =($G$7*$H$7*(VLOOKUP($I$11,Init!$N:$P,3,FALSE)))/24 -> 0 | EG7: =($G$7*$H$7*(VLOOKUP($I$11,Init!$N:$P,3,FALSE)))/24 -> 0 | EH7: =($G$7*$H$7*(VLOOKUP($I$11,Init!$N:$P,3,FALSE)))/24 -> 0 | EI7: =($G$7*$H$7*(VLOOKUP($I$11,Init!$N:$P,3,FALSE)))/24 -> 0 | EJ7: =($G$7*$H$7*(VLOOKUP($I$11,Init!$N:$P,3,FALSE)))/24 -> 0 | EK7: =($G$7*$H$7*(VLOOKUP($I$11,Init!$N:$P,3,FALSE)))/24 -> 0 | EL7: =($G$7*$H$7*(VLOOKUP($I$11,Init!$N:$P,3,FALSE)))/24 -> 0 | EM7: =($G$7*$H$7*(VLOOKUP($I$11,Init!$N:$P,3,FALSE)))/24 -> 0 | EN7: =($G$7*$H$7*(VLOOKUP($I$11,Init!$N:$P,3,FALSE)))/24 -> 0 | EO7: =($G$7*$H$7*(VLOOKUP($J$11,Init!$N:$P,3,FALSE)))/24 -> 0 | EP7: =($G$7*$H$7*(VLOOKUP($J$11,Init!$N:$P,3,FALSE)))/24 -> 0 | EQ7: =($G$7*$H$7*(VLOOKUP($J$11,Init!$N:$P,3,FALSE)))/24 -> 0 | ER7: =($G$7*$H$7*(VLOOKUP($J$11,Init!$N:$P,3,FALSE)))/24 -> 0 | ES7: =($G$7*$H$7*(VLOOKUP($J$11,Init!$N:$P,3,FALSE)))/24 -> 0 | ET7: =($G$7*$H$7*(VLOOKUP($J$11,Init!$N:$P,3,FALSE)))/24 -> 0 | EU7: =($G$7*$H$7*(VLOOKUP($J$11,Init!$N:$P,3,FALSE)))/24 -> 0 | EV7: =($G$7*$H$7*(VLOOKUP($J$11,Init!$N:$P,3,FALSE)))/24 -> 0 | EW7: =($G$7*$H$7*(VLOOKUP($J$11,Init!$N:$P,3,FALSE)))/24 -> 0 | EX7: =($G$7*$H$7*(VLOOKUP($J$11,Init!$N:$P,3,FALSE)))/24 -> 0 | EY7: =($G$7*$H$7*(VLOOKUP($J$11,Init!$N:$P,3,FALSE)))/24 -> 0 | EZ7: =($G$7*$H$7*(VLOOKUP($J$11,Init!$N:$P,3,FALSE)))/24 -> 0
F8: Increase NR Loads (500aMW) | G8: =IF(Scenario!$H$7=1,1,0) -> 0 | H8: =Scenario!$J$7 -> 1000 | K8: NR Base Case | L8: 0.432 | M8: 0.4 | N8: 0.4 | O8: 0.416 | P8: 0.4 | Q8: 0.416 | R8: 0.416 | S8: 0.4 | T8: 0.416 | U8: 0.416 | V8: 0.416 | W8: 0.4 | X8: 0.432 | Y8: 0.384 | Z8: 0.416 | AA8: 0.4 | AB8: 0.384 | AC8: 0.432 | AD8: 0.416 | AE8: 0.4 | AF8: 0.416 | AG8: 0.416 | AH8: 0.416 | AI8: 0.4 | AJ8: 0.432 | AK8: 0.4 | AL8: 0.4 | AM8: 0.416 | AN8: 0.4 | AO8: 0.416 | AP8: 0.416 | AQ8: 0.4 | AR8: 0.416 | AS8: 0.416 | AT8: 0.416 | AU8: 0.4 | AV8: 0.432 | AW8: 0.4 | AX8: 0.4 | AY8: 0.416 | AZ8: 0.4 | BA8: 0.416 | BB8: 0.416 | BC8: 0.4 | BD8: 0.416 | BE8: 0.416 | BF8: 0.416 | BG8: 0.4 | BH8: 0.432 | BI8: 0.4 | BJ8: 0.4 | BK8: 0.416 | BL8: 0.4 | BM8: 0.416 | BN8: 0.416 | BO8: 0.4 | BP8: 0.416 | BQ8: 0.416 | BR8: 0.416 | BS8: 0.4 | BT8: 0.432 | BU8: 0.4 | BV8: 0.4 | BW8: 0.416 | BX8: 0.4 | BY8: 0.416 | BZ8: 0.416 | CA8: 0.4 | CB8: 0.416 | CC8: 0.416 | CD8: 0.416 | CE8: 0.4 | CG8: 0.432 | CH8: 0.4 | CI8: 0.4 | CJ8: 0.416 | CK8: 0.4 | CL8: 0.416 | CM8: 0.416 | CN8: 0.4 | CO8: 0.416 | CP8: 0.416 | CQ8: 0.416 | CR8: 0.4 | CS8: 0.432 | CT8: 0.384 | CU8: 0.416 | CV8: 0.4 | CW8: 0.384 | CX8: 0.432 | CY8: 0.416 | CZ8: 0.4 | DA8: 0.416 | DB8: 0.416 | DC8: 0.416 | DD8: 0.4 | DE8: 0.432 | DF8: 0.4 | DG8: 0.4 | DH8: 0.416 | DI8: 0.4 | DJ8: 0.416 | DK8: 0.416 | DL8: 0.4 | DM8: 0.416 | DN8: 0.416 | DO8: 0.416 | DP8: 0.4 | DQ8: 0.432 | DR8: 0.4 | DS8: 0.4 | DT8: 0.416 | DU8: 0.4 | DV8: 0.416 | DW8: 0.416 | DX8: 0.4 | DY8: 0.416 | DZ8: 0.416 | EA8: 0.416 | EB8: 0.4 | EC8: 0.432 | ED8: 0.4 | EE8: 0.4 | EF8: 0.416 | EG8: 0.4 | EH8: 0.416 | EI8: 0.416 | EJ8: 0.4 | EK8: 0.416 | EL8: 0.416 | EM8: 0.416 | EN8: 0.4 | EO8: 0.432 | EP8: 0.4 | EQ8: 0.4 | ER8: 0.416 | ES8: 0.4 | ET8: 0.416 | EU8: 0.416 | EV8: 0.4 | EW8: 0.416 | EX8: 0.416 | EY8: 0.416 | EZ8: 0.4
K9: Increase NR Loads | L9: =($G$8*$H$8*(VLOOKUP($E$11,Init!$N:$P,3,FALSE)))/24 -> 0 | M9: =($G$8*$H$8*(VLOOKUP($E$11,Init!$N:$P,3,FALSE)))/24 -> 0 | N9: =($G$8*$H$8*(VLOOKUP($E$11,Init!$N:$P,3,FALSE)))/24 -> 0 | O9: =($G$8*$H$8*(VLOOKUP($E$11,Init!$N:$P,3,FALSE)))/24 -> 0 | P9: =($G$8*$H$8*(VLOOKUP($E$11,Init!$N:$P,3,FALSE)))/24 -> 0 | Q9: =($G$8*$H$8*(VLOOKUP($E$11,Init!$N:$P,3,FALSE)))/24 -> 0 | R9: =($G$8*$H$8*(VLOOKUP($E$11,Init!$N:$P,3,FALSE)))/24 -> 0 | S9: =($G$8*$H$8*(VLOOKUP($E$11,Init!$N:$P,3,FALSE)))/24 -> 0 | T9: =($G$8*$H$8*(VLOOKUP($E$11,Init!$N:$P,3,FALSE)))/24 -> 0 | U9: =($G$8*$H$8*(VLOOKUP($E$11,Init!$N:$P,3,FALSE)))/24 -> 0 | V9: =($G$8*$H$8*(VLOOKUP($E$11,Init!$N:$P,3,FALSE)))/24 -> 0 | W9: =($G$8*$H$8*(VLOOKUP($E$11,Init!$N:$P,3,FALSE)))/24 -> 0 | X9: =($G$8*$H$8*(VLOOKUP($F$11,Init!$N:$P,3,FALSE)))/24 -> 0 | Y9: =($G$8*$H$8*(VLOOKUP($F$11,Init!$N:$P,3,FALSE)))/24 -> 0 | Z9: =($G$8*$H$8*(VLOOKUP($F$11,Init!$N:$P,3,FALSE)))/24 -> 0 | AA9: =($G$8*$H$8*(VLOOKUP($F$11,Init!$N:$P,3,FALSE)))/24 -> 0 | AB9: =($G$8*$H$8*(VLOOKUP($F$11,Init!$N:$P,3,FALSE)))/24 -> 0 | AC9: =($G$8*$H$8*(VLOOKUP($F$11,Init!$N:$P,3,FALSE)))/24 -> 0 | AD9: =($G$8*$H$8*(VLOOKUP($F$11,Init!$N:$P,3,FALSE)))/24 -> 0 | AE9: =($G$8*$H$8*(VLOOKUP($F$11,Init!$N:$P,3,FALSE)))/24 -> 0 | AF9: =($G$8*$H$8*(VLOOKUP($F$11,Init!$N:$P,3,FALSE)))/24 -> 0 | AG9: =($G$8*$H$8*(VLOOKUP($F$11,Init!$N:$P,3,FALSE)))/24 -> 0 | AH9: =($G$8*$H$8*(VLOOKUP($F$11,Init!$N:$P,3,FALSE)))/24 -> 0 | AI9: =($G$8*$H$8*(VLOOKUP($F$11,Init!$N:$P,3,FALSE)))/24 -> 0 | AJ9: =($G$8*$H$8*(VLOOKUP($G$11,Init!$N:$P,3,FALSE)))/24 -> 0 | AK9: =($G$8*$H$8*(VLOOKUP($G$11,Init!$N:$P,3,FALSE)))/24 -> 0 | AL9: =($G$8*$H$8*(VLOOKUP($G$11,Init!$N:$P,3,FALSE)))/24 -> 0 | AM9: =($G$8*$H$8*(VLOOKUP($G$11,Init!$N:$P,3,FALSE)))/24 -> 0 | AN9: =($G$8*$H$8*(VLOOKUP($G$11,Init!$N:$P,3,FALSE)))/24 -> 0 | AO9: =($G$8*$H$8*(VLOOKUP($G$11,Init!$N:$P,3,FALSE)))/24 -> 0 | AP9: =($G$8*$H$8*(VLOOKUP($G$11,Init!$N:$P,3,FALSE)))/24 -> 0 | AQ9: =($G$8*$H$8*(VLOOKUP($G$11,Init!$N:$P,3,FALSE)))/24 -> 0 | AR9: =($G$8*$H$8*(VLOOKUP($G$11,Init!$N:$P,3,FALSE)))/24 -> 0 | AS9: =($G$8*$H$8*(VLOOKUP($G$11,Init!$N:$P,3,FALSE)))/24 -> 0 | AT9: =($G$8*$H$8*(VLOOKUP($G$11,Init!$N:$P,3,FALSE)))/24 -> 0 | AU9: =($G$8*$H$8*(VLOOKUP($G$11,Init!$N:$P,3,FALSE)))/24 -> 0 | AV9: =($G$8*$H$8*(VLOOKUP($H$11,Init!$N:$P,3,FALSE)))/24 -> 0 | AW9: =($G$8*$H$8*(VLOOKUP($H$11,Init!$N:$P,3,FALSE)))/24 -> 0 | AX9: =($G$8*$H$8*(VLOOKUP($H$11,Init!$N:$P,3,FALSE)))/24 -> 0 | AY9: =($G$8*$H$8*(VLOOKUP($H$11,Init!$N:$P,3,FALSE)))/24 -> 0 | AZ9: =($G$8*$H$8*(VLOOKUP($H$11,Init!$N:$P,3,FALSE)))/24 -> 0 | BA9: =($G$8*$H$8*(VLOOKUP($H$11,Init!$N:$P,3,FALSE)))/24 -> 0 | BB9: =($G$8*$H$8*(VLOOKUP($H$11,Init!$N:$P,3,FALSE)))/24 -> 0 | BC9: =($G$8*$H$8*(VLOOKUP($H$11,Init!$N:$P,3,FALSE)))/24 -> 0 | BD9: =($G$8*$H$8*(VLOOKUP($H$11,Init!$N:$P,3,FALSE)))/24 -> 0 | BE9: =($G$8*$H$8*(VLOOKUP($H$11,Init!$N:$P,3,FALSE)))/24 -> 0 | BF9: =($G$8*$H$8*(VLOOKUP($H$11,Init!$N:$P,3,FALSE)))/24 -> 0 | BG9: =($G$8*$H$8*(VLOOKUP($H$11,Init!$N:$P,3,FALSE)))/24 -> 0 | BH9: =($G$8*$H$8*(VLOOKUP($I$11,Init!$N:$P,3,FALSE)))/24 -> 0 | BI9: =($G$8*$H$8*(VLOOKUP($I$11,Init!$N:$P,3,FALSE)))/24 -> 0 | BJ9: =($G$8*$H$8*(VLOOKUP($I$11,Init!$N:$P,3,FALSE)))/24 -> 0 | BK9: =($G$8*$H$8*(VLOOKUP($I$11,Init!$N:$P,3,FALSE)))/24 -> 0 | BL9: =($G$8*$H$8*(VLOOKUP($I$11,Init!$N:$P,3,FALSE)))/24 -> 0 | BM9: =($G$8*$H$8*(VLOOKUP($I$11,Init!$N:$P,3,FALSE)))/24 -> 0 | BN9: =($G$8*$H$8*(VLOOKUP($I$11,Init!$N:$P,3,FALSE)))/24 -> 0 | BO9: =($G$8*$H$8*(VLOOKUP($I$11,Init!$N:$P,3,FALSE)))/24 -> 0 | BP9: =($G$8*$H$8*(VLOOKUP($I$11,Init!$N:$P,3,FALSE)))/24 -> 0 | BQ9: =($G$8*$H$8*(VLOOKUP($I$11,Init!$N:$P,3,FALSE)))/24 -> 0 | BR9: =($G$8*$H$8*(VLOOKUP($I$11,Init!$N:$P,3,FALSE)))/24 -> 0 | BS9: =($G$8*$H$8*(VLOOKUP($I$11,Init!$N:$P,3,FALSE)))/24 -> 0 | BT9: =($G$8*$H$8*(VLOOKUP($J$11,Init!$N:$P,3,FALSE)))/24 -> 0 | BU9: =($G$8*$H$8*(VLOOKUP($J$11,Init!$N:$P,3,FALSE)))/24 -> 0 | BV9: =($G$8*$H$8*(VLOOKUP($J$11,Init!$N:$P,3,FALSE)))/24 -> 0 | BW9: =($G$8*$H$8*(VLOOKUP($J$11,Init!$N:$P,3,FALSE)))/24 -> 0 | BX9: =($G$8*$H$8*(VLOOKUP($J$11,Init!$N:$P,3,FALSE)))/24 -> 0 | BY9: =($G$8*$H$8*(VLOOKUP($J$11,Init!$N:$P,3,FALSE)))/24 -> 0 | BZ9: =($G$8*$H$8*(VLOOKUP($J$11,Init!$N:$P,3,FALSE)))/24 -> 0 | CA9: =($G$8*$H$8*(VLOOKUP($J$11,Init!$N:$P,3,FALSE)))/24 -> 0 | CB9: =($G$8*$H$8*(VLOOKUP($J$11,Init!$N:$P,3,FALSE)))/24 -> 0 | CC9: =($G$8*$H$8*(VLOOKUP($J$11,Init!$N:$P,3,FALSE)))/24 -> 0 | CD9: =($G$8*$H$8*(VLOOKUP($J$11,Init!$N:$P,3,FALSE)))/24 -> 0 | CE9: =($G$8*$H$8*(VLOOKUP($J$11,Init!$N:$P,3,FALSE)))/24 -> 0 | CG9: =($G$8*$H$8*(VLOOKUP($E$11,Init!$N:$P,3,FALSE)))/24 -> 0 | CH9: =($G$8*$H$8*(VLOOKUP($E$11,Init!$N:$P,3,FALSE)))/24 -> 0 | CI9: =($G$8*$H$8*(VLOOKUP($E$11,Init!$N:$P,3,FALSE)))/24 -> 0 | CJ9: =($G$8*$H$8*(VLOOKUP($E$11,Init!$N:$P,3,FALSE)))/24 -> 0 | CK9: =($G$8*$H$8*(VLOOKUP($E$11,Init!$N:$P,3,FALSE)))/24 -> 0 | CL9: =($G$8*$H$8*(VLOOKUP($E$11,Init!$N:$P,3,FALSE)))/24 -> 0 | CM9: =($G$8*$H$8*(VLOOKUP($E$11,Init!$N:$P,3,FALSE)))/24 -> 0 | CN9: =($G$8*$H$8*(VLOOKUP($E$11,Init!$N:$P,3,FALSE)))/24 -> 0 | CO9: =($G$8*$H$8*(VLOOKUP($E$11,Init!$N:$P,3,FALSE)))/24 -> 0 | CP9: =($G$8*$H$8*(VLOOKUP($E$11,Init!$N:$P,3,FALSE)))/24 -> 0 | CQ9: =($G$8*$H$8*(VLOOKUP($E$11,Init!$N:$P,3,FALSE)))/24 -> 0 | CR9: =($G$8*$H$8*(VLOOKUP($E$11,Init!$N:$P,3,FALSE)))/24 -> 0 | CS9: =($G$8*$H$8*(VLOOKUP($F$11,Init!$N:$P,3,FALSE)))/24 -> 0 | CT9: =($G$8*$H$8*(VLOOKUP($F$11,Init!$N:$P,3,FALSE)))/24 -> 0 | CU9: =($G$8*$H$8*(VLOOKUP($F$11,Init!$N:$P,3,FALSE)))/24 -> 0 | CV9: =($G$8*$H$8*(VLOOKUP($F$11,Init!$N:$P,3,FALSE)))/24 -> 0 | CW9: =($G$8*$H$8*(VLOOKUP($F$11,Init!$N:$P,3,FALSE)))/24 -> 0 | CX9: =($G$8*$H$8*(VLOOKUP($F$11,Init!$N:$P,3,FALSE)))/24 -> 0 | CY9: =($G$8*$H$8*(VLOOKUP($F$11,Init!$N:$P,3,FALSE)))/24 -> 0 | CZ9: =($G$8*$H$8*(VLOOKUP($F$11,Init!$N:$P,3,FALSE)))/24 -> 0 | DA9: =($G$8*$H$8*(VLOOKUP($F$11,Init!$N:$P,3,FALSE)))/24 -> 0 | DB9: =($G$8*$H$8*(VLOOKUP($F$11,Init!$N:$P,3,FALSE)))/24 -> 0 | DC9: =($G$8*$H$8*(VLOOKUP($F$11,Init!$N:$P,3,FALSE)))/24 -> 0 | DD9: =($G$8*$H$8*(VLOOKUP($F$11,Init!$N:$P,3,FALSE)))/24 -> 0 | DE9: =($G$8*$H$8*(VLOOKUP($G$11,Init!$N:$P,3,FALSE)))/24 -> 0 | DF9: =($G$8*$H$8*(VLOOKUP($G$11,Init!$N:$P,3,FALSE)))/24 -> 0 | DG9: =($G$8*$H$8*(VLOOKUP($G$11,Init!$N:$P,3,FALSE)))/24 -> 0 | DH9: =($G$8*$H$8*(VLOOKUP($G$11,Init!$N:$P,3,FALSE)))/24 -> 0 | DI9: =($G$8*$H$8*(VLOOKUP($G$11,Init!$N:$P,3,FALSE)))/24 -> 0 | DJ9: =($G$8*$H$8*(VLOOKUP($G$11,Init!$N:$P,3,FALSE)))/24 -> 0 | DK9: =($G$8*$H$8*(VLOOKUP($G$11,Init!$N:$P,3,FALSE)))/24 -> 0 | DL9: =($G$8*$H$8*(VLOOKUP($G$11,Init!$N:$P,3,FALSE)))/24 -> 0 | DM9: =($G$8*$H$8*(VLOOKUP($G$11,Init!$N:$P,3,FALSE)))/24 -> 0 | DN9: =($G$8*$H$8*(VLOOKUP($G$11,Init!$N:$P,3,FALSE)))/24 -> 0 | DO9: =($G$8*$H$8*(VLOOKUP($G$11,Init!$N:$P,3,FALSE)))/24 -> 0 | DP9: =($G$8*$H$8*(VLOOKUP($G$11,Init!$N:$P,3,FALSE)))/24 -> 0 | DQ9: =($G$8*$H$8*(VLOOKUP($H$11,Init!$N:$P,3,FALSE)))/24 -> 0 | DR9: =($G$8*$H$8*(VLOOKUP($H$11,Init!$N:$P,3,FALSE)))/24 -> 0 | DS9: =($G$8*$H$8*(VLOOKUP($H$11,Init!$N:$P,3,FALSE)))/24 -> 0 | DT9: =($G$8*$H$8*(VLOOKUP($H$11,Init!$N:$P,3,FALSE)))/24 -> 0 | DU9: =($G$8*$H$8*(VLOOKUP($H$11,Init!$N:$P,3,FALSE)))/24 -> 0 | DV9: =($G$8*$H$8*(VLOOKUP($H$11,Init!$N:$P,3,FALSE)))/24 -> 0 | DW9: =($G$8*$H$8*(VLOOKUP($H$11,Init!$N:$P,3,FALSE)))/24 -> 0 | DX9: =($G$8*$H$8*(VLOOKUP($H$11,Init!$N:$P,3,FALSE)))/24 -> 0 | DY9: =($G$8*$H$8*(VLOOKUP($H$11,Init!$N:$P,3,FALSE)))/24 -> 0 | DZ9: =($G$8*$H$8*(VLOOKUP($H$11,Init!$N:$P,3,FALSE)))/24 -> 0 | EA9: =($G$8*$H$8*(VLOOKUP($H$11,Init!$N:$P,3,FALSE)))/24 -> 0 | EB9: =($G$8*$H$8*(VLOOKUP($H$11,Init!$N:$P,3,FALSE)))/24 -> 0 | EC9: =($G$8*$H$8*(VLOOKUP($I$11,Init!$N:$P,3,FALSE)))/24 -> 0 | ED9: =($G$8*$H$8*(VLOOKUP($I$11,Init!$N:$P,3,FALSE)))/24 -> 0 | EE9: =($G$8*$H$8*(VLOOKUP($I$11,Init!$N:$P,3,FALSE)))/24 -> 0 | EF9: =($G$8*$H$8*(VLOOKUP($I$11,Init!$N:$P,3,FALSE)))/24 -> 0 | EG9: =($G$8*$H$8*(VLOOKUP($I$11,Init!$N:$P,3,FALSE)))/24 -> 0 | EH9: =($G$8*$H$8*(VLOOKUP($I$11,Init!$N:$P,3,FALSE)))/24 -> 0 | EI9: =($G$8*$H$8*(VLOOKUP($I$11,Init!$N:$P,3,FALSE)))/24 -> 0 | EJ9: =($G$8*$H$8*(VLOOKUP($I$11,Init!$N:$P,3,FALSE)))/24 -> 0 | EK9: =($G$8*$H$8*(VLOOKUP($I$11,Init!$N:$P,3,FALSE)))/24 -> 0 | EL9: =($G$8*$H$8*(VLOOKUP($I$11,Init!$N:$P,3,FALSE)))/24 -> 0 | EM9: =($G$8*$H$8*(VLOOKUP($I$11,Init!$N:$P,3,FALSE)))/24 -> 0 | EN9: =($G$8*$H$8*(VLOOKUP($I$11,Init!$N:$P,3,FALSE)))/24 -> 0 | EO9: =($G$8*$H$8*(VLOOKUP($J$11,Init!$N:$P,3,FALSE)))/24 -> 0 | EP9: =($G$8*$H$8*(VLOOKUP($J$11,Init!$N:$P,3,FALSE)))/24 -> 0 | EQ9: =($G$8*$H$8*(VLOOKUP($J$11,Init!$N:$P,3,FALSE)))/24 -> 0 | ER9: =($G$8*$H$8*(VLOOKUP($J$11,Init!$N:$P,3,FALSE)))/24 -> 0 | ES9: =($G$8*$H$8*(VLOOKUP($J$11,Init!$N:$P,3,FALSE)))/24 -> 0 | ET9: =($G$8*$H$8*(VLOOKUP($J$11,Init!$N:$P,3,FALSE)))/24 -> 0 | EU9: =($G$8*$H$8*(VLOOKUP($J$11,Init!$N:$P,3,FALSE)))/24 -> 0 | EV9: =($G$8*$H$8*(VLOOKUP($J$11,Init!$N:$P,3,FALSE)))/24 -> 0 | EW9: =($G$8*$H$8*(VLOOKUP($J$11,Init!$N:$P,3,FALSE)))/24 -> 0 | EX9: =($G$8*$H$8*(VLOOKUP($J$11,Init!$N:$P,3,FALSE)))/24 -> 0 | EY9: =($G$8*$H$8*(VLOOKUP($J$11,Init!$N:$P,3,FALSE)))/24 -> 0 | EZ9: =($G$8*$H$8*(VLOOKUP($J$11,Init!$N:$P,3,FALSE)))/24 -> 0
E10: Annual | L10: HLH | CG10: LLH
E11: =Init!$C$9 -> 2024 | F11: =E11+1 -> 2025 | G11: =F11+1 -> 2026 | H11: 2027 | I11: 2028 | J11: 2029 | L11: =DATE($E$11-1,10,1) -> 2023-10-01 | M11: =EOMONTH(L11,0)+1 -> 2023-11-01 | N11: =EOMONTH(M11,0)+1 -> 2023-12-01 | O11: 2024-01-01 | P11: 2024-02-01 | Q11: 2024-03-01 | R11: 2024-04-01 | S11: 2024-05-01 | T11: 2024-06-01 | U11: 2024-07-01 | V11: 2024-08-01 | W11: 2024-09-01 | X11: 2024-10-01 | Y11: 2024-11-01 | Z11: 2024-12-01 | AA11: 2025-01-01 | AB11: 2025-02-01 | AC11: 2025-03-01 | AD11: 2025-04-01 | AE11: 2025-05-01 | AF11: 2025-06-01 | AG11: 2025-07-01 | AH11: 2025-08-01 | AI11: 2025-09-01 | AJ11: 2025-10-01 | AK11: 2025-11-01 | AL11: 2025-12-01 | AM11: 2026-01-01 | AN11: 2026-02-01 | AO11: 2026-03-01 | AP11: 2026-04-01 | AQ11: 2026-05-01 | AR11: 2026-06-01 | AS11: 2026-07-01 | AT11: 2026-08-01 | AU11: 2026-09-01 | AV11: 2026-10-01 | AW11: 2026-11-01 | AX11: 2026-12-01 | AY11: 2027-01-01 | AZ11: 2027-02-01 | BA11: 2027-03-01 | BB11: 2027-04-01 | BC11: 2027-05-01 | BD11: 2027-06-01 | BE11: 2027-07-01 | BF11: 2027-08-01 | BG11: 2027-09-01 | BH11: 2027-10-01 | BI11: 2027-11-01 | BJ11: 2027-12-01 | BK11: 2028-01-01 | BL11: 2028-02-01 | BM11: 2028-03-01 | BN11: 2028-04-01 | BO11: 2028-05-01 | BP11: 2028-06-01 | BQ11: 2028-07-01 | BR11: 2028-08-01 | BS11: 2028-09-01 | BT11: 2028-10-01 | BU11: 2028-11-01 | BV11: 2028-12-01 | BW11: 2029-01-01 | BX11: 2029-02-01 | BY11: 2029-03-01 | BZ11: =EOMONTH(BY11,0)+1 -> 2029-04-01 | CA11: 2029-05-01 | CB11: 2029-06-01 | CC11: 2029-07-01 | CD11: 2029-08-01 | CE11: 2029-09-01 | CG11: =DATE($E$11-1,10,1) -> 2023-10-01 | CH11: =EOMONTH(CG11,0)+1 -> 2023-11-01 | CI11: =EOMONTH(CH11,0)+1 -> 2023-12-01 | CJ11: 2024-01-01 | CK11: 2024-02-01 | CL11: 2024-03-01 | CM11: 2024-04-01 | CN11: 2024-05-01 | CO11: 2024-06-01 | CP11: 2024-07-01 | CQ11: 2024-08-01 | CR11: 2024-09-01 | CS11: 2024-10-01 | CT11: 2024-11-01 | CU11: 2024-12-01 | CV11: 2025-01-01 | CW11: 2025-02-01 | CX11: 2025-03-01 | CY11: 2025-04-01 | CZ11: 2025-05-01 | DA11: 2025-06-01 | DB11: 2025-07-01 | DC11: 2025-08-01 | DD11: 2025-09-01 | DE11: 2025-10-01 | DF11: 2025-11-01 | DG11: 2025-12-01 | DH11: 2026-01-01 | DI11: 2026-02-01 | DJ11: 2026-03-01 | DK11: 2026-04-01 | DL11: 2026-05-01 | DM11: 2026-06-01 | DN11: 2026-07-01 | DO11: 2026-08-01 | DP11: 2026-09-01 | DQ11: 2026-10-01 | DR11: 2026-11-01 | DS11: 2026-12-01 | DT11: 2027-01-01 | DU11: 2027-02-01 | DV11: 2027-03-01 | DW11: 2027-04-01 | DX11: 2027-05-01 | DY11: 2027-06-01 | DZ11: 2027-07-01 | EA11: 2027-08-01 | EB11: 2027-09-01 | EC11: 2027-10-01 | ED11: 2027-11-01 | EE11: 2027-12-01 | EF11: 2028-01-01 | EG11: 2028-02-01 | EH11: 2028-03-01 | EI11: 2028-04-01 | EJ11: 2028-05-01 | EK11: 2028-06-01 | EL11: 2028-07-01 | EM11: 2028-08-01 | EN11: 2028-09-01 | EO11: 2028-10-01 | EP11: 2028-11-01 | EQ11: 2028-12-01 | ER11: 2029-01-01 | ES11: 2029-02-01 | ET11: 2029-03-01 | EU11: =EOMONTH(ET11,0)+1 -> 2029-04-01 | EV11: 2029-05-01 | EW11: 2029-06-01 | EX11: 2029-07-01 | EY11: 2029-08-01 | EZ11: 2029-09-01
A12: Preference | D12: PRE | E12: =+SUM(E13:E17) -> 61127527.83 | F12: 62837585.88 | G12: 62266646.75 | H12: 62413639.82 | I12: 62648278.65 | J12: 64477853.53 | L12: =SUM(L13:L17) -> 2706689.908 | M12: =SUM(M13:M17) -> 3132135.216 | N12: 3606257.779 | O12: 3760610.659 | P12: 3268509.484 | Q12: 3251220.806 | R12: 2718652.605 | S12: 2776626.791 | T12: 2735513.36 | U12: 2917864.202 | V12: 3012790.82 | W12: 2613531.336 | X12: 2850530.104 | Y12: 3216267.192 | Z12: 3689927.94 | AA12: 3851458.583 | AB12: 3282893.866 | AC12: 3346700.522 | AD12: 2827256.732 | AE12: 2745897.103 | AF12: 2858597.507 | AG12: 3033612.386 | AH12: 3052514.643 | AI12: 2747221.706 | AJ12: 2838804.64 | AK12: 3160453.929 | AL12: 3738433.293 | AM12: 3804188.149 | AN12: 3253781.503 | AO12: 3281124.049 | AP12: 2770573.074 | AQ12: 2787095.118 | AR12: 2867579.177 | AS12: 3034200.015 | AT12: 3046903.103 | AU12: 2694243.833 | AV12: 2855512.701 | AW12: 3187626.156 | AX12: 3746233.331 | AY12: 3764151.903 | AZ12: 3274281.43 | BA12: 3347928.292 | BB12: 2793414.202 | BC12: 2693266.985 | BD12: 2935122.608 | BE12: 3016453.282 | BF12: 3067967.664 | BG12: 2703010.031 | BH12: 2846238.248 | BI12: 3213912.094 | BJ12: 3739406.069 | BK12: 3802634.03 | BL12: 3348624.597 | BM12: 3331408.266 | BN12: 2764654.227 | BO12: 2831767.668 | BP12: 2886774.342 | BQ12: 3029133.387 | BR12: 3099327.82 | BS12: 2708383.143 | BT12: 2947642.435 | BU12: 3329645.454 | BV12: 3831049.177 | BW12: 3928890.998 | BX12: 3388776.789 | BY12: =SUM(BY13:BY17) -> 3462336.63 | BZ12: 2873343.393 | CA12: 2794717.264 | CB12: 3018948.15 | CC12: 3094027.507 | CD12: 3193659.408 | CE12: 2799157.975 | CG12: 1811819.205 | CH12: =SUM(CH13:CH17) -> 2184724 | CI12: =SUM(CI13:CI17) -> 2625701.135 | CJ12: =SUM(CJ13:CJ17) -> 2589514.268 | CK12: =SUM(CK13:CK17) -> 2134510.279 | CL12: =SUM(CL13:CL17) -> 2208969.739 | CM12: =SUM(CM13:CM17) -> 1799104.006 | CN12: =SUM(CN13:CN17) -> 1878891.2 | CO12: =SUM(CO13:CO17) -> 1756621.42 | CP12: =SUM(CP13:CP17) -> 1961942.541 | CQ12: =SUM(CQ13:CQ17) -> 1808354.831 | CR12: =SUM(CR13:CR17) -> 1866972.238 | CS12: =SUM(CS13:CS17) -> 1823081.254 | CT12: =SUM(CT13:CT17) -> 2254008.722 | CU12: =SUM(CU13:CU17) -> 2702120.73 | CV12: =SUM(CV13:CV17) -> 2665847.051 | CW12: =SUM(CW13:CW17) -> 2168825.395 | CX12: =SUM(CX13:CX17) -> 2276267.825 | CY12: =SUM(CY13:CY17) -> 1869487.838 | CZ12: =SUM(CZ13:CZ17) -> 1886661.727 | DA12: =SUM(DA13:DA17) -> 1822607.592 | DB12: =SUM(DB13:DB17) -> 2048994.651 | DC12: =SUM(DC13:DC17) -> 1925159.804 | DD12: =SUM(DD13:DD17) -> 1891645.013 | DE12: =SUM(DE13:DE17) -> 1808880.686 | DF12: =SUM(DF13:DF17) -> 2280083.377 | DG12: =SUM(DG13:DG17) -> 2615870.717 | DH12: =SUM(DH13:DH17) -> 2619886.214 | DI12: =SUM(DI13:DI17) -> 2146947.918 | DJ12: =SUM(DJ13:DJ17) -> 2206445.177 | DK12: =SUM(DK13:DK17) -> 1834369.78 | DL12: =SUM(DL13:DL17) -> 1953170.525 | DM12: =SUM(DM13:DM17) -> 1745731.315 | DN12: =SUM(DN13:DN17) -> 2047023.054 | DO12: =SUM(DO13:DO17) -> 1874774.241 | DP12: =SUM(DP13:DP17) -> 1856083.86 | DQ12: =SUM(DQ13:DQ17) -> 1817361.606 | DR12: =SUM(DR13:DR17) -> 2279962.961 | DS12: =SUM(DS13:DS17) -> 2636502.396 | DT12: =SUM(DT13:DT17) -> 2687097.952 | DU12: =SUM(DU13:DU17) -> 2160205.177 | DV12: =SUM(DV13:DV17) -> 2175581.251 | DW12: =SUM(DW13:DW17) -> 1855124.204 | DX12: =SUM(DX13:DX17) -> 1883891.648 | DY12: =SUM(DY13:DY17) -> 1756884.794 | DZ12: =SUM(DZ13:DZ17) -> 2043450.137 | EA12: =SUM(EA13:EA17) -> 1869224.658 | EB12: =SUM(EB13:EB17) -> 1863384.456 | EC12: =SUM(EC13:EC17) -> 1821877.57 | ED12: =SUM(ED13:ED17) -> 2250011.788 | EE12: =SUM(EE13:EE17) -> 2638136.736 | EF12: =SUM(EF13:EF17) -> 2648123.044 | EG12: =SUM(EG13:EG17) -> 2194616.333 | EH12: =SUM(EH13:EH17) -> 2194548.646 | EI12: =SUM(EI13:EI17) -> 1859885.306 | EJ12: =SUM(EJ13:EJ17) -> 1925884.989 | EK12: =SUM(EK13:EK17) -> 1741977.553 | EL12: =SUM(EL13:EL17) -> 2066064.551 | EM12: =SUM(EM13:EM17) -> 1842375.899 | EN12: =SUM(EN13:EN17) -> 1862512.346 | EO12: =SUM(EO13:EO17) -> 1885833.644 | EP12: =SUM(EP13:EP17) -> 2329458.187 | EQ12: =SUM(EQ13:EQ17) -> 2758900.826 | ER12: =SUM(ER13:ER17) -> 2733998.313 | ES12: =SUM(ES13:ES17) -> 2233149.099 | ET12: =SUM(ET13:ET17) -> 2261037.28 | EU12: =SUM(EU13:EU17) -> 1934843.461 | EV12: =SUM(EV13:EV17) -> 1919486.319 | EW12: =SUM(EW13:EW17) -> 1802059.323 | EX12: =SUM(EX13:EX17) -> 2119530.277 | EY12: =SUM(EY13:EY17) -> 1902333.821 | EZ12: =SUM(EZ13:EZ17) -> 1935027.805
B13: Block | D13: PRE_BLK | E13: =+SUM(L13:W13,CG13:CR13) -> 4680018.576 | F13: =+SUM(X13:AI13,CS13:DD13) -> 4649142.24 | G13: =+SUM(AJ13:AU13,DE13:DP13) -> 4676964 | H13: =+SUM(AV13:BG13,DQ13:EB13) -> 4686319.68 | I13: =+SUM(BH13:BS13,EC13:EN13) -> 4716814.752 | J13: =+SUM(BT13:CE13,EO13:EZ13) -> 5202739.2 | L13: =L3+($G$5*L4+$G$6*L5) -> 217353.1256 | M13: =M3+($G$5*M4+$G$6*M5) -> 348159.5973 | N13: 358722.8599 | O13: 395977.1904 | P13: 337184.8795 | Q13: 352250.3216 | R13: 166731.6123 | S13: 61912.89086 | T13: 9194.834707 | U13: 140817.9657 | V13: 158409.0183 | W13: 251639.5943 | X13: 216056.028 | Y13: 345829.9292 | Z13: 356342.6232 | AA13: 393375.7759 | AB13: 334847.482 | AC13: 349920.3304 | AD13: 165613.9894 | AE13: 61526.65716 | AF13: 9169.712208 | AG13: 139912.2425 | AH13: 157168.222 | AI13: 250333.9424 | AJ13: 217399.4553 | AK13: 347213.734 | AL13: 359154.5586 | AM13: 395709.5673 | AN13: 336830.6549 | AO13: 352025.3386 | AP13: 166637.4154 | AQ13: 61854.1848 | AR13: 9159.52608 | AS13: 140706.8501 | AT13: 158121.8024 | AU13: 251896.5331 | AV13: 217848.528 | AW13: 347926.6368 | AX13: 359878.6883 | AY13: 395574.1185 | AZ13: 337498.6504 | BA13: 353504.67 | BB13: 166979.8332 | BC13: 61966.45296 | BD13: 9159.52608 | BE13: 140976.2936 | BF13: 158441.7667 | BG13: 252418.5801 | BH13: 219139.9705 | BI13: 350987.1967 | BJ13: 362236.0708 | BK13: 398137.6584 | BL13: 339803.4771 | BM13: 355809.257 | BN13: 168041.1591 | BO13: 62338.3439 | BP13: 9168.999206 | BQ13: 141676.3282 | BR13: 159672.1373 | BS13: 254110.8404 | BT13: 242484.1996 | BU13: 388037.6836 | BV13: 399200.89 | BW13: 439869.8029 | BX13: 374366.032 | BY13: =BY3+($G$5*BY4+$G$6*BY5) -> 392547.2817 | BZ13: 185838.5466 | CA13: 68153.7636 | CB13: 9143.947296 | CC13: 155655.0178 | CD13: 176295.2423 | CE13: 280860.0855 | CG13: =CG3+($G$5*CG4+$G$6*CG5) -> 145426.1886 | CH13: 234647.9984 | CI13: 242324.8436 | CJ13: 266913.615 | CK13: 226392.6164 | CL13: 237239.3682 | CM13: 111238.2434 | CN13: 41275.26058 | CO13: 6129.889805 | CP13: 94464.40811 | CQ13: 105890.7813 | CR13: 169721.472 | CS13: 144284.9339 | CT13: 233087.9422 | CU13: 240729.3408 | CV13: 265171.3364 | CW13: 225037.5462 | CX13: 235679.4675 | CY13: 110492.9324 | CZ13: 41017.77144 | DA13: 6113.141472 | DB13: 93858.99216 | DC13: 105378.3512 | DD13: 168193.5499 | DE13: 145180.2735 | DF13: 235250.2292 | DG13: 241509.3558 | DH13: 266723.9103 | DI13: 226357.6291 | DJ13: 237080.1062 | DK13: 111175.1222 | DL13: 41236.1232 | DM13: 6106.35072 | DN13: 94388.07314 | DO13: 106013.3968 | DP13: 169233.8093 | DQ13: 145479.6552 | DR13: 235725.4977 | DS13: 241992.1089 | DT13: 268169.1543 | DU13: 226802.9595 | DV13: 236779.5904 | DW13: 111403.4008 | DX13: 41310.96864 | DY13: 6106.35072 | DZ13: 94567.70219 | EA13: 106226.7063 | EB13: 169581.8406 | EC13: 146615.9338 | ED13: 236525.8648 | EE13: 243565.8233 | EF13: 269882.7482 | EG13: 228133.8079 | EH13: 238317.12 | EI13: 112194.6347 | EJ13: 41558.89594 | EK13: 6112.666138 | EL13: 95342.41402 | EM13: 106732.0539 | EN13: 170711.3503 | EO13: 162177.3253 | EP13: 261219.2648 | EQ13: 269292.5453 | ER13: 296159.0802 | ES13: =ES3+($G$5*ES4+$G$6*ES5) -> 251378.1303 | ET13: 262806.1011 | EU13: 124059.1029 | EV13: 45435.8424 | EW13: 6095.964864 | EX13: 104659.1045 | EY13: 117813.3481 | EZ13: 189190.8973
B14: Slice Block | D14: PRE_BLK | E14: =+SUM(L14:W14,CG14:CR14) -> 10827952.78 | F14: =+SUM(X14:AI14,CS14:DD14) -> 11067431.05 | G14: 10923940.72 | H14: 11050818.2 | I14: 10881313.17 | J14: 11760515.73 | L14: 472702.8866 | M14: 528760.8941 | N14: 604143.6006 | O14: 621507.2835 | P14: 532411.8436 | Q14: 530664.718 | R14: 489862.26 | S14: 471451.5674 | T14: 433446.5093 | U14: 465954.8034 | V14: 480804.3353 | W14: 419945.369 | X14: 502263.6446 | Y14: 540141.4347 | Z14: 616513.6259 | AA14: 634362.8169 | AB14: 540645.3591 | AC14: 542095.8046 | AD14: 501003.378 | AE14: 481999.9857 | AF14: 443385.2593 | AG14: 476737.8609 | AH14: 473811.385 | AI14: 447749.998 | AJ14: 495927.6009 | AK14: 511680.1735 | AL14: 632690.4258 | AM14: 626126.8107 | AN14: 533652.5672 | AO14: 534908.8701 | AP14: 494436.8154 | AQ14: 457359.6901 | AR14: 455188.5076 | AS14: 470696.0147 | AT14: 467882.5402 | AU14: 442006.1628 | AV14: 501814.2734 | AW14: 517548.2331 | AX14: 639950.5349 | AY14: 609028.1078 | AZ14: 539879.3291 | BA14: 561836.845 | BB14: 500155.2939 | BC14: 462606.3026 | BD14: 460468.1887 | BE14: 476226.5326 | BF14: 473435.0856 | BG14: 447176.5787 | BH14: 475985.0803 | BI14: 530825.7563 | BJ14: 630060.1121 | BK14: 599760.3645 | BL14: 534610.3671 | BM14: 552878.4078 | BN14: 473335.0964 | BO14: 473848.3805 | BP14: 453419.8743 | BQ14: 451005.2207 | BR14: 484301.0067 | BS14: 440296.033 | BT14: 513008.2335 | BU14: 573611.0013 | BV14: 656091.4861 | BW14: 674733.3964 | BX14: 575971.0341 | BY14: 601249.3346 | BZ14: 513221.5457 | CA14: 510266.9704 | CB14: 488571.7448 | CC14: 485931.7798 | CD14: 521240.4708 | CE14: 456777.2865 | CG14: 372708.0452 | CH14: 424330.6175 | CI14: 519563.4965 | CJ14: 490034.5889 | CK14: 393984.7643 | CL14: 417133.0836 | CM14: 357976.2669 | CN14: 371721.4281 | CO14: 346757.2074 | CP14: 367387.4411 | CQ14: 347247.5755 | CR14: 367452.1979 | CS14: 362745.9655 | CT14: 433463.5013 | CU14: 530201.7183 | CV14: 500170.6826 | CW14: 405484.0193 | CX14: 426118.5772 | CY14: 366117.8532 | CZ14: 380038.4502 | DA14: 354708.2075 | DB14: 375889.4672 | DC14: 373582.0536 | DD14: 358199.9984 | DE14: 358169.934 | DF14: 449052.6523 | DG14: 498852.0665 | DH14: 493676.9084 | DI14: 400239.4254 | DJ14: 420469.232 | DK14: 361319.2112 | DL14: 393329.3335 | DM14: 332637.7555 | DN14: 371125.7039 | DO14: 368907.3875 | DP14: 353604.9302 | DQ14: 362421.4197 | DR14: 454202.4858 | DS14: 504576.3833 | DT14: 523764.1727 | DU14: 404909.4968 | DV14: 404470.5064 | DW14: 365498.0994 | DX14: 397841.4202 | DY14: 336495.9841 | DZ14: 375486.3046 | EA14: 373285.3559 | EB14: 357741.263 | EC14: 375295.9287 | ED14: 425987.6694 | EE14: 496778.1653 | EF14: 515793.9135 | EG14: 395611.6717 | EH14: 398021.2611 | EI14: 378668.0771 | EJ14: 373611.2231 | EK14: 331345.2927 | EL14: 387864.4898 | EM14: 349772.9493 | EN14: 352236.8264 | EO14: 404487.2611 | EP14: 460322.8285 | EQ14: 564238.678 | ER14: 532001.3318 | ES14: 431978.2756 | ET14: 432843.8497 | EU14: 410577.2365 | EV14: 402325.8805 | EW14: 357033.1981 | EX14: 417901.3306 | EY14: 376451.4512 | EZ14: 399680.1257
B15: Slice | D15: PRE_SNB | E15: =+SUM(L15:W15,CG15:CR15) -> 12307662.64 | F15: =+SUM(X15:AI15,CS15:DD15) -> 12154961.03 | G15: 12275701.64 | H15: 12126100.72 | I15: 12276762.94 | J15: 12117273.27 | L15: 495638.8313 | M15: 645334.828 | N15: 696004.1832 | O15: 738734.1542 | P15: 653976.2128 | Q15: 679636.4768 | R15: 530048.3541 | S15: 727566.5898 | T15: 687809.0158 | U15: 595510.7326 | V15: 609764.9327 | W15: 506835.2986 | X15: 512102.3189 | Y15: 643531.1248 | Z15: 693933.5774 | AA15: 736169.9817 | AB15: 626599.2857 | AC15: 682440.5779 | AD15: 544796.8946 | AE15: 603674.5816 | AF15: 717732.6655 | AG15: 615396.9597 | AH15: 581898.8867 | AI15: 525579.464 | AJ15: 516676.1743 | AK15: 629275.4177 | AL15: 726369.7406 | AM15: 714992.1005 | AN15: 632254.1315 | AO15: 650751.6441 | AP15: 527161.1747 | AQ15: 686266.124 | AR15: 709688.9173 | AS15: 650718.3132 | AT15: 595016.9607 | AU15: 520460.8002 | AV15: 518065.3166 | AW15: 632017.0319 | AX15: 723899.8529 | AY15: 685950.7832 | AZ15: 629821.327 | BA15: 670761.6894 | BB15: 540517.913 | BC15: 568663.5255 | BD15: 762493.4599 | BE15: 624077.5611 | BF15: 591022.5974 | BG15: 517721.641 | BH15: 510561.8352 | BI15: 633271.609 | BJ15: 725305.9038 | BK15: 709098.026 | BL15: 654324.0728 | BM15: 654340.1787 | BN15: 519016.4433 | BO15: 691163.0506 | BP15: 707414.1467 | BQ15: 643094.5566 | BR15: 598179.422 | BS15: 518792.5251 | BT15: 511800.2298 | BU15: 636014.3759 | BV15: 717220.3707 | BW15: 691137.2632 | BX15: 629821.327 | BY15: 670761.6894 | BZ15: 535477.1169 | CA15: 572908.8206 | CB15: 762493.4599 | CC15: 617848.7396 | CD15: 597035.8013 | CE15: 512097.8698 | CG15: 337601.1821 | CH15: 416648.9613 | CI15: 450082.4356 | CJ15: 451544.2211 | CK15: 372673.1898 | CL15: 439303.6877 | CM15: 344172.893 | CN15: 461028.0986 | CO15: 417735.7559 | CP15: 359501.195 | CQ15: 333674.5642 | CR15: 356836.8458 | CS15: 320301.2998 | CT15: 418729.9677 | CU15: 452460.3367 | CV15: 455793.3063 | CW15: 362332.073 | CX15: 435771.1034 | CY15: 346836.2348 | CZ15: 398509.7195 | DA15: 415035.9874 | DB15: 372769.6354 | DC15: 353198.734 | DD15: 339366.3163 | DE15: 319642.5379 | DF15: 442549.7335 | DG15: 428304.2704 | DH15: 444725.7543 | DI15: 374852.4947 | DJ15: 413844.7621 | DK15: 329017.5182 | DL15: 479714.869 | DM15: 392153.2205 | DN15: 392878.2323 | DO15: 353425.0918 | DP15: 344961.6572 | DQ15: 319320.1756 | DR15: 441075.8348 | DS15: 431648.7233 | DT15: 472504.9534 | DU15: 375859.6469 | DV15: 392761.9341 | DW15: 337621.3925 | DX15: 411693.9151 | DY15: 400195.4178 | DZ15: 379389.3285 | EA15: 353587.4462 | EB15: 345429.2555 | EC15: 322865.0394 | ED15: 436033.2503 | EE15: 427066.8461 | EF15: 448589.057 | EG15: 386768.3181 | EH15: 408409.3414 | EI15: 332324.9439 | EJ15: 471364.4886 | EK15: 390458.0599 | EL15: 397774.6739 | EM15: 346711.6543 | EN15: 343835.5017 | EO15: 322537.0062 | EP15: 434654.3796 | EQ15: 435118.4078 | ER15: 467993.7001 | ES15: 375859.6469 | ET15: 392761.9341 | EU15: 341933.9517 | EV15: 408146.06 | EW15: 400195.4178 | EX15: 384921.0551 | EY15: 348302.0382 | EZ15: 350232.607
B16: Load Following | D16: PRE_LDF | E16: 31516145.57 | F16: 31552568.64 | G16: 31306196.27 | H16: 31229853.14 | I16: 31204676.97 | J16: 31196966.65 | L16: 1435956.413 | M16: 1528194.946 | N16: 1865552.366 | O16: 1919314.134 | P16: 1663026.136 | Q16: 1603729.384 | R16: 1447121.726 | S16: 1430635.588 | T16: 1523364.502 | U16: 1630424.938 | V16: 1675489.3 | W16: 1356443.057 | X16: 1451791.193 | Y16: 1530973.928 | Z16: 1867240.226 | AA16: 1925420.02 | AB16: 1631071.596 | AC16: 1610212.477 | AD16: 1453847.782 | AE16: 1436578.574 | AF16: 1532492.202 | AG16: 1639379.665 | AH16: 1677523.778 | AI16: 1367562.348 | AJ16: 1456432.767 | AK16: 1537077.751 | AL16: 1873061.677 | AM16: 1920754.125 | AN16: 1615399.278 | AO16: 1597316.69 | AP16: 1436787.481 | AQ16: 1441107.804 | AR16: 1547596.724 | AS16: 1625566.429 | AT16: 1679732.992 | AU16: 1338454.532 | AV16: 1453757.066 | AW16: 1544545.014 | AX16: 1864134.767 | AY16: 1921901.08 | AZ16: 1621085.759 | BA16: 1598290.509 | BB16: 1428931.245 | BC16: 1448713.277 | BD16: 1545793.653 | BE16: 1617439.868 | BF16: 1687676.104 | BG16: 1333492.648 | BH16: 1471366.555 | BI16: 1536212.601 | BJ16: 1852150.187 | BK16: 1933061.04 | BL16: 1656886.747 | BM16: 1593064.72 | BN16: 1442657.565 | BO16: 1435636.066 | BP16: 1548224.49 | BQ16: 1630907.337 | BR16: 1681881.551 | BS16: 1332134.813 | BT16: 1480880.684 | BU16: 1540185.193 | BV16: 1866739.231 | BW16: 1923681.447 | BX16: 1624493.084 | BY16: 1590637.348 | BZ16: 1447008.984 | CA16: 1443918.622 | CB16: 1559269.91 | CC16: 1642794.77 | CD16: 1691946.918 | CE16: 1365297.421 | CG16: 889054.8359 | CH16: 1043541.366 | CI16: 1343385.159 | CJ16: 1313937.275 | CK16: 1080849.087 | CL16: 1048554.903 | CM16: 923676.4852 | CN16: 937819.2989 | CO16: 920687.4709 | CP16: 1073485.216 | CQ16: 957751.9754 | CR16: 904150.0072 | CS16: 874200.7781 | CT16: 1043703.396 | CU16: 1344680.691 | CV16: 1316875.128 | CW16: 1063675.103 | CX16: 1051353.535 | CY16: 927655.936 | CZ16: 939285.9661 | DA16: 922130.5687 | DB16: 1078625.864 | DC16: 965180.9805 | DD16: 901106.9073 | DE16: 875852.5823 | DF16: 1034432.211 | DG16: 1331288.013 | DH16: 1299165.952 | DI16: 1043764.894 | DJ16: 1020204.311 | DK16: 926491.6033 | DL16: 917896.318 | DM16: 908380.8019 | DN16: 1073127.785 | DO16: 931037.9735 | DP16: 875265.5711 | DQ16: 871680.6264 | DR16: 1021050.873 | DS16: 1333521.386 | DT16: 1292059.636 | DU16: 1043135.761 | DV16: 1024002.813 | DW16: 925992.8979 | DX16: 902750.7463 | DY16: 899392.2033 | DZ16: 1069647.141 | EA16: 911868.7587 | EB16: 868989.3117 | EC16: 843583.6887 | ED16: 1020966.404 | EE16: 1337056.925 | EF16: 1273901.458 | EG16: 1063497.306 | EH16: 1023747.856 | EI16: 907211.0845 | EJ16: 906272.3835 | EK16: 891070.8459 | EL16: 1045226.105 | EM16: 912559.1223 | EN16: 865400.1206 | EO16: 839358.347 | EP16: 1019344.462 | EQ16: 1325305.602 | ER16: 1280570.497 | ES16: 1035839.062 | ET16: 1023503.072 | EU16: 904835.4096 | EV16: 906304.8322 | EW16: 892968.8705 | EX16: 1047103.194 | EY16: 910165.167 | EZ16: 834814.5271
B17: Tier 2 | D17: PRE_T2 | E17: 1795748.256 | F17: 3413482.92 | G17: =+SUM(AJ17:AU17,DE17:DP17) -> 3083844.12 | H17: 3320548.08 | I17: 3568710.816 | J17: 4200358.68 | L17: 85038.65148 | M17: 81684.95084 | N17: 81834.76906 | O17: 85077.89661 | P17: 81910.41148 | Q17: 84939.90615 | R17: 84888.65255 | S17: 85060.15498 | T17: 81698.49755 | U17: 85155.76266 | V17: 88323.23347 | W17: 78668.01723 | X17: 168316.9198 | Y17: 155790.775 | Z17: 155897.8875 | AA17: 162129.9881 | AB17: 149730.1434 | AC17: 162031.3318 | AD17: 161994.688 | AE17: 162117.3037 | AF17: 155817.668 | AG17: 162185.6584 | AH17: 162112.3709 | AI17: 155995.954 | AJ17: 152368.6425 | AK17: 135206.852 | AL17: 147156.8905 | AM17: 146605.5457 | AN17: 135644.8713 | AO17: 146121.5063 | AP17: 145550.1881 | AQ17: 140507.3147 | AR17: 145945.5017 | AS17: 146512.4083 | AT17: 146148.8074 | AU17: 141425.8052 | AV17: 164027.517 | AW17: 145589.2401 | AX17: 158369.488 | AY17: 151697.814 | AZ17: 145996.3644 | BA17: 163534.5787 | BB17: 156829.9165 | BC17: 151317.4272 | BD17: 157207.7807 | BE17: 157733.0268 | BF17: 157392.1102 | BG17: 152200.5826 | BH17: 169184.8064 | BI17: 162614.9307 | BJ17: 169653.7959 | BK17: 162576.9416 | BL17: 162999.9322 | BM17: 175315.703 | BN17: 161603.9633 | BO17: 168781.826 | BP17: 168546.8313 | BQ17: 162449.9445 | BR17: 175293.7035 | BS17: 163048.9311 | BT17: 199469.088 | BU17: 191797.2 | BV17: 191797.2 | BW17: 199469.088 | BX17: 184125.312 | BY17: 207140.976 | BZ17: 191797.2 | CA17: 199469.088 | CB17: 199469.088 | CC17: 191797.2 | CD17: 207140.976 | CE17: 184125.312 | CG17: 67028.95357 | CH17: 65555.05643 | CI17: 70345.19966 | CJ17: 67084.56792 | CK17: 60610.62154 | CL17: 66738.69605 | CM17: 62040.11765 | CN17: 67047.11337 | CO17: 65311.09563 | CP17: 67104.28085 | CQ17: 63789.93443 | CR17: 68811.71485 | CS17: 121548.2764 | CT17: 125023.9147 | CU17: 134048.6431 | CV17: 127836.5974 | CW17: 112296.6528 | CX17: 127345.1417 | CY17: 118384.8822 | CZ17: 127809.8193 | DA17: 124619.6866 | DB17: 127850.6912 | DC17: 127819.6849 | DD17: 124778.2413 | DE17: 110035.358 | DF17: 118798.5515 | DG17: 115917.0118 | DH17: 115593.6891 | DI17: 101733.4748 | DJ17: 114846.7653 | DK17: 106366.3252 | DL17: 120993.8813 | DM17: 106453.1866 | DN17: 115503.2589 | DO17: 115390.3912 | DP17: 113017.8925 | DQ17: 118459.7287 | DR17: 127908.2694 | DS17: 124763.7941 | DT17: 130600.0353 | DU17: 109497.3127 | DV17: 117566.4069 | DW17: 114608.4131 | DX17: 130294.5979 | DY17: 114694.8383 | DZ17: 124359.6612 | EA17: 124256.3907 | EB17: 121642.7855 | EC17: 133516.9793 | ED17: 130498.5994 | EE17: 133668.9759 | EF17: 139955.8668 | EG17: 120605.2302 | EH17: 126053.0675 | EI17: 129486.5662 | EJ17: 133077.9975 | EK17: 122990.6883 | EL17: 139856.869 | EM17: 126600.1191 | EN17: 130328.5475 | EO17: 157273.704 | EP17: 153917.253 | EQ17: 164945.592 | ER17: 157273.704 | ES17: 138093.984 | ET17: 149122.323 | EU17: 153437.76 | EV17: 157273.704 | EW17: 145765.872 | EX17: 164945.592 | EY17: 149601.816 | EZ17: 161109.648
A18: Industrial | D18: IND | E18: =+SUM(E19:E20) -> 96624 | F18: =+SUM(F19:F20) -> 96360 | G18: 96360 | H18: 96360 | I18: 96624 | J18: 96360 | L18: =SUM(L19:L20) -> 4660.406 | M18: =SUM(M19:M20) -> 4350.871 | N18: 4408.261 | O18: 4424.143 | P18: 4303.342 | Q18: 4657.349 | R18: 4477.511 | S18: 4478.292 | T18: 4524.994 | U18: 4421.576 | V18: 4702.721 | W18: 4189.254 | X18: 4660.406 | Y18: 4350.871 | Z18: 4408.261 | AA18: 4424.143 | AB18: 4154.952 | AC18: 4657.349 | AD18: 4477.511 | AE18: 4478.292 | AF18: 4524.994 | AG18: 4421.576 | AH18: 4702.721 | AI18: 4189.254 | AJ18: 4660.406 | AK18: 4350.871 | AL18: 4408.261 | AM18: 4424.143 | AN18: 4154.952 | AO18: 4657.349 | AP18: 4477.511 | AQ18: 4478.292 | AR18: 4524.994 | AS18: 4421.576 | AT18: 4702.721 | AU18: 4189.254 | AV18: 4660.406 | AW18: 4350.871 | AX18: 4408.261 | AY18: 4424.143 | AZ18: 4154.952 | BA18: 4657.349 | BB18: 4477.511 | BC18: 4478.292 | BD18: 4524.994 | BE18: 4421.576 | BF18: 4702.721 | BG18: 4189.254 | BH18: 4660.406 | BI18: 4350.871 | BJ18: 4408.261 | BK18: 4424.143 | BL18: 4303.342 | BM18: 4657.349 | BN18: 4477.511 | BO18: 4478.292 | BP18: 4524.994 | BQ18: 4421.576 | BR18: 4702.721 | BS18: 4189.254 | BT18: 4660.406 | BU18: 4350.871 | BV18: 4408.261 | BW18: 4424.143 | BX18: 4154.952 | BY18: =SUM(BY19:BY20) -> 4657.349 | BZ18: 4477.511 | CA18: 4478.292 | CB18: 4524.994 | CC18: 4421.576 | CD18: 4702.721 | CE18: 4189.254 | CG18: 3523.594 | CH18: =SUM(CH19:CH20) -> 3580.129 | CI18: =SUM(CI19:CI20) -> 3775.739 | CJ18: =SUM(CJ19:CJ20) -> 3759.857 | CK18: =SUM(CK19:CK20) -> 3352.658 | CL18: =SUM(CL19:CL20) -> 3515.651 | CM18: =SUM(CM19:CM20) -> 3442.489 | CN18: =SUM(CN19:CN20) -> 3705.708 | CO18: =SUM(CO19:CO20) -> 3395.006 | CP18: =SUM(CP19:CP20) -> 3762.424 | CQ18: =SUM(CQ19:CQ20) -> 3481.279 | CR18: =SUM(CR19:CR20) -> 3730.746 | CS18: =SUM(CS19:CS20) -> 3523.594 | CT18: =SUM(CT19:CT20) -> 3580.129 | CU18: =SUM(CU19:CU20) -> 3775.739 | CV18: =SUM(CV19:CV20) -> 3759.857 | CW18: =SUM(CW19:CW20) -> 3237.048 | CX18: =SUM(CX19:CX20) -> 3515.651 | CY18: =SUM(CY19:CY20) -> 3442.489 | CZ18: =SUM(CZ19:CZ20) -> 3705.708 | DA18: =SUM(DA19:DA20) -> 3395.006 | DB18: =SUM(DB19:DB20) -> 3762.424 | DC18: =SUM(DC19:DC20) -> 3481.279 | DD18: =SUM(DD19:DD20) -> 3730.746 | DE18: =SUM(DE19:DE20) -> 3523.594 | DF18: =SUM(DF19:DF20) -> 3580.129 | DG18: =SUM(DG19:DG20) -> 3775.739 | DH18: =SUM(DH19:DH20) -> 3759.857 | DI18: =SUM(DI19:DI20) -> 3237.048 | DJ18: =SUM(DJ19:DJ20) -> 3515.651 | DK18: =SUM(DK19:DK20) -> 3442.489 | DL18: =SUM(DL19:DL20) -> 3705.708 | DM18: =SUM(DM19:DM20) -> 3395.006 | DN18: =SUM(DN19:DN20) -> 3762.424 | DO18: =SUM(DO19:DO20) -> 3481.279 | DP18: =SUM(DP19:DP20) -> 3730.746 | DQ18: =SUM(DQ19:DQ20) -> 3523.594 | DR18: =SUM(DR19:DR20) -> 3580.129 | DS18: =SUM(DS19:DS20) -> 3775.739 | DT18: =SUM(DT19:DT20) -> 3759.857 | DU18: =SUM(DU19:DU20) -> 3237.048 | DV18: =SUM(DV19:DV20) -> 3515.651 | DW18: =SUM(DW19:DW20) -> 3442.489 | DX18: =SUM(DX19:DX20) -> 3705.708 | DY18: =SUM(DY19:DY20) -> 3395.006 | DZ18: =SUM(DZ19:DZ20) -> 3762.424 | EA18: =SUM(EA19:EA20) -> 3481.279 | EB18: =SUM(EB19:EB20) -> 3730.746 | EC18: =SUM(EC19:EC20) -> 3523.594 | ED18: =SUM(ED19:ED20) -> 3580.129 | EE18: =SUM(EE19:EE20) -> 3775.739 | EF18: =SUM(EF19:EF20) -> 3759.857 | EG18: =SUM(EG19:EG20) -> 3352.658 | EH18: =SUM(EH19:EH20) -> 3515.651 | EI18: =SUM(EI19:EI20) -> 3442.489 | EJ18: =SUM(EJ19:EJ20) -> 3705.708 | EK18: =SUM(EK19:EK20) -> 3395.006 | EL18: =SUM(EL19:EL20) -> 3762.424 | EM18: =SUM(EM19:EM20) -> 3481.279 | EN18: =SUM(EN19:EN20) -> 3730.746 | EO18: =SUM(EO19:EO20) -> 3523.594 | EP18: =SUM(EP19:EP20) -> 3580.129 | EQ18: =SUM(EQ19:EQ20) -> 3775.739 | ER18: =SUM(ER19:ER20) -> 3759.857 | ES18: =SUM(ES19:ES20) -> 3237.048 | ET18: =SUM(ET19:ET20) -> 3515.651 | EU18: =SUM(EU19:EU20) -> 3442.489 | EV18: =SUM(EV19:EV20) -> 3705.708 | EW18: =SUM(EW19:EW20) -> 3395.006 | EX18: =SUM(EX19:EX20) -> 3762.424 | EY18: =SUM(EY19:EY20) -> 3481.279 | EZ18: =SUM(EZ19:EZ20) -> 3730.746
B19: Smelter | D19: IND_SMT | E19: 0 | F19: 0 | G19: =+SUM(AJ19:AU19,DE19:DP19) -> 0 | H19: 0 | I19: 0 | J19: 0 | L19: 0 | M19: 0 | N19: 0 | O19: 0 | P19: 0 | Q19: 0 | R19: 0 | S19: 0 | T19: 0 | U19: 0 | V19: 0 | W19: 0 | X19: 0 | Y19: 0 | Z19: 0 | AA19: 0 | AB19: 0 | AC19: 0 | AD19: 0 | AE19: 0 | AF19: 0 | AG19: 0 | AH19: 0 | AI19: 0 | AJ19: 0 | AK19: 0 | AL19: 0 | AM19: 0 | AN19: 0 | AO19: 0 | AP19: 0 | AQ19: 0 | AR19: 0 | AS19: 0 | AT19: 0 | AU19: 0 | AV19: 0 | AW19: 0 | AX19: 0 | AY19: 0 | AZ19: 0 | BA19: 0 | BB19: 0 | BC19: 0 | BD19: 0 | BE19: 0 | BF19: 0 | BG19: 0 | BH19: 0 | BI19: 0 | BJ19: 0 | BK19: 0 | BL19: 0 | BM19: 0 | BN19: 0 | BO19: 0 | BP19: 0 | BQ19: 0 | BR19: 0 | BS19: 0 | BT19: 0 | BU19: 0 | BV19: 0 | BW19: 0 | BX19: 0 | BY19: 0 | BZ19: 0 | CA19: 0 | CB19: 0 | CC19: 0 | CD19: 0 | CE19: 0 | CG19: 0 | CH19: 0 | CI19: 0 | CJ19: 0 | CK19: 0 | CL19: 0 | CM19: 0 | CN19: 0 | CO19: 0 | CP19: 0 | CQ19: 0 | CR19: 0 | CS19: 0 | CT19: 0 | CU19: 0 | CV19: 0 | CW19: 0 | CX19: 0 | CY19: 0 | CZ19: 0 | DA19: 0 | DB19: 0 | DC19: 0 | DD19: 0 | DE19: 0 | DF19: 0 | DG19: 0 | DH19: 0 | DI19: 0 | DJ19: 0 | DK19: 0 | DL19: 0 | DM19: 0 | DN19: 0 | DO19: 0 | DP19: 0 | DQ19: 0 | DR19: 0 | DS19: 0 | DT19: 0 | DU19: 0 | DV19: 0 | DW19: 0 | DX19: 0 | DY19: 0 | DZ19: 0 | EA19: 0 | EB19: 0 | EC19: 0 | ED19: 0 | EE19: 0 | EF19: 0 | EG19: 0 | EH19: 0 | EI19: 0 | EJ19: 0 | EK19: 0 | EL19: 0 | EM19: 0 | EN19: 0 | EO19: 0 | EP19: 0 | EQ19: 0 | ER19: 0 | ES19: 0 | ET19: 0 | EU19: 0 | EV19: 0 | EW19: 0 | EX19: 0 | EY19: 0 | EZ19: 0
B20: Other Industrial | D20: IND_OTH | E20: 96624 | F20: 96360 | G20: 96360 | H20: 96360 | I20: 96624 | J20: 96360 | L20: =L6+$G$7*L7 -> 4660.406 | M20: =M6+$G$7*M7 -> 4350.871 | N20: 4408.261 | O20: 4424.143 | P20: 4303.342 | Q20: 4657.349 | R20: 4477.511 | S20: 4478.292 | T20: 4524.994 | U20: 4421.576 | V20: 4702.721 | W20: 4189.254 | X20: 4660.406 | Y20: 4350.871 | Z20: 4408.261 | AA20: 4424.143 | AB20: 4154.952 | AC20: 4657.349 | AD20: 4477.511 | AE20: 4478.292 | AF20: 4524.994 | AG20: 4421.576 | AH20: 4702.721 | AI20: 4189.254 | AJ20: 4660.406 | AK20: 4350.871 | AL20: 4408.261 | AM20: 4424.143 | AN20: 4154.952 | AO20: 4657.349 | AP20: 4477.511 | AQ20: 4478.292 | AR20: 4524.994 | AS20: 4421.576 | AT20: 4702.721 | AU20: 4189.254 | AV20: 4660.406 | AW20: 4350.871 | AX20: 4408.261 | AY20: 4424.143 | AZ20: 4154.952 | BA20: 4657.349 | BB20: 4477.511 | BC20: 4478.292 | BD20: 4524.994 | BE20: 4421.576 | BF20: 4702.721 | BG20: 4189.254 | BH20: 4660.406 | BI20: 4350.871 | BJ20: 4408.261 | BK20: 4424.143 | BL20: 4303.342 | BM20: 4657.349 | BN20: 4477.511 | BO20: 4478.292 | BP20: 4524.994 | BQ20: 4421.576 | BR20: 4702.721 | BS20: 4189.254 | BT20: 4660.406 | BU20: 4350.871 | BV20: 4408.261 | BW20: 4424.143 | BX20: 4154.952 | BY20: =BY6+$G$7*BY7 -> 4657.349 | BZ20: 4477.511 | CA20: 4478.292 | CB20: 4524.994 | CC20: 4421.576 | CD20: 4702.721 | CE20: 4189.254 | CG20: 3523.594 | CH20: 3580.129 | CI20: 3775.739 | CJ20: 3759.857 | CK20: 3352.658 | CL20: 3515.651 | CM20: 3442.489 | CN20: 3705.708 | CO20: 3395.006 | CP20: 3762.424 | CQ20: 3481.279 | CR20: 3730.746 | CS20: 3523.594 | CT20: 3580.129 | CU20: 3775.739 | CV20: 3759.857 | CW20: 3237.048 | CX20: 3515.651 | CY20: 3442.489 | CZ20: 3705.708 | DA20: 3395.006 | DB20: 3762.424 | DC20: 3481.279 | DD20: 3730.746 | DE20: 3523.594 | DF20: 3580.129 | DG20: 3775.739 | DH20: 3759.857 | DI20: 3237.048 | DJ20: 3515.651 | DK20: 3442.489 | DL20: 3705.708 | DM20: 3395.006 | DN20: 3762.424 | DO20: 3481.279 | DP20: 3730.746 | DQ20: 3523.594 | DR20: 3580.129 | DS20: 3775.739 | DT20: 3759.857 | DU20: 3237.048 | DV20: 3515.651 | DW20: 3442.489 | DX20: 3705.708 | DY20: 3395.006 | DZ20: 3762.424 | EA20: 3481.279 | EB20: 3730.746 | EC20: 3523.594 | ED20: 3580.129 | EE20: 3775.739 | EF20: 3759.857 | EG20: 3352.658 | EH20: 3515.651 | EI20: 3442.489 | EJ20: 3705.708 | EK20: =EK6+$G$7*EK7 -> 3395.006 | EL20: 3762.424 | EM20: 3481.279 | EN20: 3730.746 | EO20: 3523.594 | EP20: 3580.129 | EQ20: 3775.739 | ER20: 3759.857 | ES20: 3237.048 | ET20: 3515.651 | EU20: 3442.489 | EV20: 3705.708 | EW20: 3395.006 | EX20: 3762.424 | EY20: 3481.279 | EZ20: 3730.746
A21: New Resource | D21: NR | E21: 9.856 | F21: 9.824 | G21: 9.856 | H21: 9.856 | I21: 9.856 | J21: 9.856 | L21: =L8+$G$8*L9 -> 0.432 | M21: =M8+$G$8*M9 -> 0.4 | N21: 0.4 | O21: 0.416 | P21: 0.4 | Q21: 0.416 | R21: 0.416 | S21: 0.4 | T21: 0.416 | U21: 0.416 | V21: 0.416 | W21: 0.4 | X21: 0.432 | Y21: 0.384 | Z21: 0.416 | AA21: 0.4 | AB21: 0.384 | AC21: 0.432 | AD21: 0.416 | AE21: 0.4 | AF21: 0.416 | AG21: 0.416 | AH21: 0.416 | AI21: 0.4 | AJ21: 0.432 | AK21: 0.4 | AL21: 0.4 | AM21: 0.416 | AN21: 0.4 | AO21: 0.416 | AP21: 0.416 | AQ21: 0.4 | AR21: 0.416 | AS21: 0.416 | AT21: 0.416 | AU21: 0.4 | AV21: 0.432 | AW21: 0.4 | AX21: 0.4 | AY21: 0.416 | AZ21: 0.4 | BA21: 0.416 | BB21: 0.416 | BC21: 0.4 | BD21: 0.416 | BE21: 0.416 | BF21: 0.416 | BG21: 0.4 | BH21: 0.432 | BI21: 0.4 | BJ21: 0.4 | BK21: 0.416 | BL21: 0.4 | BM21: 0.416 | BN21: 0.416 | BO21: 0.4 | BP21: 0.416 | BQ21: 0.416 | BR21: 0.416 | BS21: 0.4 | BT21: 0.432 | BU21: 0.4 | BV21: 0.4 | BW21: 0.416 | BX21: 0.4 | BY21: =BY8+$G$8*BY9 -> 0.416 | BZ21: 0.416 | CA21: 0.4 | CB21: 0.416 | CC21: 0.416 | CD21: 0.416 | CE21: 0.4 | CG21: =CG8+$G$8*CG9 -> 0.432 | CH21: =CH8+$G$8*CH9 -> 0.4 | CI21: 0.4 | CJ21: 0.416 | CK21: 0.4 | CL21: 0.416 | CM21: 0.416 | CN21: 0.4 | CO21: 0.416 | CP21: 0.416 | CQ21: 0.416 | CR21: 0.4 | CS21: 0.432 | CT21: 0.384 | CU21: 0.416 | CV21: 0.4 | CW21: 0.384 | CX21: 0.432 | CY21: 0.416 | CZ21: 0.4 | DA21: 0.416 | DB21: 0.416 | DC21: 0.416 | DD21: 0.4 | DE21: 0.432 | DF21: 0.4 | DG21: 0.4 | DH21: 0.416 | DI21: 0.4 | DJ21: 0.416 | DK21: 0.416 | DL21: 0.4 | DM21: 0.416 | DN21: 0.416 | DO21: 0.416 | DP21: 0.4 | DQ21: 0.432 | DR21: 0.4 | DS21: 0.4 | DT21: 0.416 | DU21: 0.4 | DV21: 0.416 | DW21: 0.416 | DX21: 0.4 | DY21: 0.416 | DZ21: 0.416 | EA21: 0.416 | EB21: 0.4 | EC21: 0.432 | ED21: 0.4 | EE21: 0.4 | EF21: 0.416 | EG21: 0.4 | EH21: 0.416 | EI21: 0.416 | EJ21: 0.4 | EK21: 0.416 | EL21: 0.416 | EM21: 0.416 | EN21: 0.4 | EO21: 0.432 | EP21: 0.4 | EQ21: 0.4 | ER21: 0.416 | ES21: 0.4 | ET21: =ET8+$G$8*ET9 -> 0.416 | EU21: 0.416 | EV21: 0.4 | EW21: 0.416 | EX21: 0.416 | EY21: 0.416 | EZ21: 0.4
A22: Firm Power and Services | D22: FPS | E22: =+SUM(E23,E34,E45) -> 5883097.998 | F22: =+SUM(F23,F34,F45) -> 5873660.56 | G22: 5871851.85 | H22: 5870195.321 | I22: 5882004.202 | J22: 5870307.618 | L22: 379069.7273 | M22: 337849.6356 | N22: 350081.5409 | O22: 348871.3641 | P22: 328335.5169 | Q22: 359570.2523 | R22: 415646.0303 | S22: 468333.2158 | T22: 464105.0816 | U22: 498539.2769 | V22: 507109.9756 | W22: 416034.2257 | X22: 379331.4186 | Y22: 337849.6356 | Z22: 350081.5409 | AA22: 348871.3641 | AB22: 316997.5039 | AC22: 359570.2523 | AD22: 415646.0303 | AE22: 468333.2158 | AF22: 464093.9276 | AG22: 493005.0337 | AH22: 510170.5006 | AI22: 416386.2037 | AJ22: 379168.258 | AK22: 337503.4248 | AL22: 350134.4799 | AM22: 348922.9646 | AN22: 316829.9503 | AO22: 359557.6172 | AP22: 415799.3646 | AQ22: 468760.9219 | AR22: 465309.7216 | AS22: 498302.5933 | AT22: 503440.4047 | AU22: 415908.8726 | AV22: 379168.258 | AW22: 337503.4248 | AX22: 350134.4799 | AY22: 348639.7133 | AZ22: 316829.9503 | BA22: 359732.8028 | BB22: 415799.3646 | BC22: 468760.9219 | BD22: 465309.7216 | BE22: 492717.3773 | BF22: 509698.6733 | BG22: 415908.8726 | BH22: 378911.7009 | BI22: 337789.9231 | BJ22: 350134.4799 | BK22: 348639.7133 | BL22: 328184.6804 | BM22: 359732.8028 | BN22: 415561.3236 | BO22: 469150.0597 | BP22: 465309.7216 | BQ22: 491959.0047 | BR22: 511911.7876 | BS22: 415908.8726 | BT22: 378911.7009 | BU22: 337789.9231 | BV22: 349851.583 | BW22: 348922.9646 | BX22: 316829.9503 | BY22: 359732.8028 | BZ22: 415562.0612 | CA22: 469150.0597 | CB22: 465309.7216 | CC22: 491959.0047 | CD22: 511911.7876 | CE22: 415539.9729 | CG22: 59002.81531 | CH22: 7301.756739 | CI22: 7204.633883 | CJ22: 6121.162909 | CK22: 10693.42596 | CL22: 31153.77265 | CM22: 87437.2904 | CN22: 134250.3944 | CO22: 154873.1201 | CP22: 188088.2819 | CQ22: 197754.5354 | CR22: 125670.9654 | CS22: 58740.91505 | CT22: 7301.756739 | CU22: 7204.633883 | CV22: 6121.162909 | CW22: 10357.39496 | CX22: 31153.77265 | CY22: 87437.2904 | CZ22: 134250.3944 | DA22: 154884.274 | DB22: 183652.9251 | DC22: 206900.6174 | DD22: 125318.7954 | DE22: 58634.97569 | DF22: 7330.695132 | DG22: 6765.27896 | DH22: 6137.377366 | DI22: 10244.4954 | DJ22: 31123.53608 | DK22: 87570.9231 | DL22: 135380.3059 | DM22: 155078.2634 | DN22: 187848.2468 | DO22: 201194.2269 | DP22: 124904.9517 | DQ22: 58634.97569 | DR22: 7330.695132 | DS22: 6765.27896 | DT22: 6308.251652 | DU22: 10244.4954 | DV22: 30948.38242 | DW22: 87570.9231 | DX22: 135380.3059 | DY22: 155078.2634 | DZ22: 183444.5188 | EA22: 203380.7183 | EB22: 124904.9517 | EC22: 58891.74188 | ED22: 7156.10391 | EE22: 6765.27896 | EF22: 6308.251652 | EG22: 10586.54246 | EH22: 30948.38242 | EI22: 87809.15703 | EJ22: 134991.5381 | EK22: 155078.2634 | EL22: 184202.5234 | EM22: 201167.3971 | EN22: 124904.9517 | EO22: 58891.74188 | EP22: 7156.10391 | EQ22: 6935.79986 | ER22: 6137.377366 | ES22: 10244.4954 | ET22: 30948.38242 | EU22: 87808.41948 | EV22: 134991.5381 | EW22: 155078.2634 | EX22: 184202.5234 | EY22: 201167.3971 | EZ22: 125274.0434
B23: Intraregional Transfer | D23: FPS_IRT | E23: =+SUM(E24:E33) -> 98652.53189 | F23: =+SUM(F24:F33) -> 98426.04389 | G23: 98426.04384 | H23: 98426.04384 | I23: 98675.2651 | J23: 98426.04389 | L23: 4899.021324 | M23: 4358.384568 | N23: 4590.002877 | O23: 4449.664055 | P23: 4373.40389 | Q23: 4488.095297 | R23: 4356.842292 | S23: 4485.132812 | T23: 4359.184554 | U23: 5261.819863 | V23: 5459.088586 | W23: 4684.723728 | X23: 5081.524575 | Y23: 4358.384568 | Z23: 4590.002877 | AA23: 4449.664055 | AB23: 4222.41189 | AC23: 4488.095297 | AD23: 4356.842292 | AE23: 4485.132812 | AF23: 4348.030629 | AG23: 5301.976663 | AH23: 5308.096586 | AI23: 4835.715728 | AJ23: 4918.364029 | AK23: 4134.151832 | AL23: 4524.395889 | AM23: 4501.264582 | AN23: 4054.858291 | AO23: 4475.460159 | AP23: 4510.176553 | AQ23: 5110.827863 | AR23: 5308.096586 | AS23: 5019.728285 | AT23: 4902.656708 | AU23: 4358.384568 | AV23: 4918.364029 | AW23: 4134.151832 | AX23: 4524.395889 | AY23: 4337.103297 | AZ23: 4054.858291 | BA23: 4636.124813 | BB23: 4510.176553 | BC23: 5110.827863 | BD23: 5308.096586 | BE23: 5019.728285 | BF23: 4899.021324 | BG23: 4358.384568 | BH23: 4740.994876 | BI23: 4298.672055 | BJ23: 4524.395889 | BK23: 4337.103297 | BL23: 4222.56745 | BM23: 4636.124813 | BN23: 4348.030629 | BO23: 5301.976663 | BP23: 5308.096586 | BQ23: 4835.715728 | BR23: 5081.524575 | BS23: 4358.384568 | BT23: 4740.994876 | BU23: 4298.672055 | BV23: 4360.04499 | BW23: 4501.264582 | BX23: 4054.858291 | BY23: 4636.124813 | BZ23: 4348.768171 | CA23: 5301.976663 | CB23: 5308.096586 | CC23: 4835.715728 | CD23: 5081.524575 | CE23: 4190.470908 | CG23: 3806.981305 | CH23: 3462.590739 | CI23: 3846.899883 | CJ23: 3382.996909 | CK23: 3111.730961 | CL23: 3402.943651 | CM23: 3074.327398 | CN23: 3372.471422 | CO23: 3358.952103 | CP23: 4153.771887 | CQ23: 3895.512414 | CR23: 4017.989368 | CS23: 3624.478055 | CT23: 3462.590739 | CU23: 3846.899883 | CV23: 3382.996909 | CW23: 3036.234961 | CX23: 3402.943651 | CY23: 3074.327398 | CZ23: 3372.471422 | DA23: 3370.106027 | DB23: 4113.615087 | DC23: 4046.504414 | DD23: 3866.997368 | DE23: 3518.538686 | DF23: 3481.458132 | DG23: 3413.71496 | DH23: 3399.211366 | DI23: 2923.335398 | DJ23: 3372.707076 | DK23: 3207.960103 | DL23: 4304.763887 | DM23: 3820.016414 | DN23: 3909.472811 | DO23: 3803.345922 | DP23: 3453.153739 | DQ23: 3518.538686 | DR23: 3481.458132 | DS23: 3413.71496 | DT23: 3563.372651 | DU23: 2923.335398 | DV23: 3212.042423 | DW23: 3207.960103 | DX23: 4304.763887 | DY23: 3820.016414 | DZ23: 3909.472811 | EA23: 3806.981305 | EB23: 3453.153739 | EC23: 3695.907883 | ED23: 3316.937909 | EE23: 3413.71496 | EF23: 3563.372651 | EG23: 3004.847457 | EH23: 3212.042423 | EI23: 3370.106027 | EJ23: 4113.615087 | EK23: 3820.016414 | EL23: 4093.485368 | EM23: 3624.478055 | EN23: 3453.153739 | EO23: 3695.907883 | EP23: 3316.937909 | EQ23: 3578.06586 | ER23: 3399.211366 | ES23: 2923.335398 | ET23: 3212.042423 | EU23: 3369.368485 | EV23: 4113.615087 | EW23: 3820.016414 | EX23: 4093.485368 | EY23: 3624.478055 | EZ23: 3621.067397
C24: WNP#3 Settlement | D24: FPS_IRT_WNP | E24: 0 | F24: 0 | G24: 0 | H24: 0 | I24: 0 | J24: 0 | L24: 0 | M24: 0 | N24: 0 | O24: 0 | P24: 0 | Q24: 0 | R24: 0 | S24: 0 | T24: 0 | U24: 0 | V24: 0 | W24: 0 | X24: 0 | Y24: 0 | Z24: 0 | AA24: 0 | AB24: 0 | AC24: 0 | AD24: 0 | AE24: 0 | AF24: 0 | AG24: 0 | AH24: 0 | AI24: 0 | AJ24: 0 | AK24: 0 | AL24: 0 | AM24: 0 | AN24: 0 | AO24: 0 | AP24: 0 | AQ24: 0 | AR24: 0 | AS24: 0 | AT24: 0 | AU24: 0 | AV24: 0 | AW24: 0 | AX24: 0 | AY24: 0 | AZ24: 0 | BA24: 0 | BB24: 0 | BC24: 0 | BD24: 0 | BE24: 0 | BF24: 0 | BG24: 0 | BH24: 0 | BI24: 0 | BJ24: 0 | BK24: 0 | BL24: 0 | BM24: 0 | BN24: 0 | BO24: 0 | BP24: 0 | BQ24: 0 | BR24: 0 | BS24: 0 | BT24: 0 | BU24: 0 | BV24: 0 | BW24: 0 | BX24: 0 | BY24: 0 | BZ24: 0 | CA24: 0 | CB24: 0 | CC24: 0 | CD24: 0 | CE24: 0 | CG24: 0 | CH24: 0 | CI24: 0 | CJ24: 0 | CK24: 0 | CL24: 0 | CM24: 0 | CN24: 0 | CO24: 0 | CP24: 0 | CQ24: 0 | CR24: 0 | CS24: 0 | CT24: 0 | CU24: 0 | CV24: 0 | CW24: 0 | CX24: 0 | CY24: 0 | CZ24: 0 | DA24: 0 | DB24: 0 | DC24: 0 | DD24: 0 | DE24: 0 | DF24: 0 | DG24: 0 | DH24: 0 | DI24: 0 | DJ24: 0 | DK24: 0 | DL24: 0 | DM24: 0 | DN24: 0 | DO24: 0 | DP24: 0 | DQ24: 0 | DR24: 0 | DS24: 0 | DT24: 0 | DU24: 0 | DV24: 0 | DW24: 0 | DX24: 0 | DY24: 0 | DZ24: 0 | EA24: 0 | EB24: 0 | EC24: 0 | ED24: 0 | EE24: 0 | EF24: 0 | EG24: 0 | EH24: 0 | EI24: 0 | EJ24: 0 | EK24: 0 | EL24: 0 | EM24: 0 | EN24: 0 | EO24: 0 | EP24: 0 | EQ24: 0 | ER24: 0 | ES24: 0 | ET24: 0 | EU24: 0 | EV24: 0 | EW24: 0 | EX24: 0 | EY24: 0 | EZ24: 0
C25: Dittmer Station Service | D25: FPS_IRT_DIT | E25: 82894.608 | F25: 82668.12 | G25: 82668.12 | H25: 82668.12 | I25: 82894.608 | J25: 82668.12 | L25: 3925.792 | M25: 3774.8 | N25: 3774.8 | O25: 3925.792 | P25: 3774.8 | Q25: 3925.792 | R25: 3925.792 | S25: 3925.792 | T25: 3774.8 | U25: 3925.792 | V25: 4076.784 | W25: 3623.808 | X25: 4076.784 | Y25: 3774.8 | Z25: 3774.8 | AA25: 3925.792 | AB25: 3623.808 | AC25: 3925.792 | AD25: 3925.792 | AE25: 3925.792 | AF25: 3774.8 | AG25: 3925.792 | AH25: 3925.792 | AI25: 3774.8 | AJ25: 4076.784 | AK25: 3623.808 | AL25: 3925.792 | AM25: 3925.792 | AN25: 3623.808 | AO25: 3925.792 | AP25: 3925.792 | AQ25: 3774.8 | AR25: 3925.792 | AS25: 3925.792 | AT25: 3925.792 | AU25: 3774.8 | AV25: 4076.784 | AW25: 3623.808 | AX25: 3925.792 | AY25: 3774.8 | AZ25: 3623.808 | BA25: 4076.784 | BB25: 3925.792 | BC25: 3774.8 | BD25: 3925.792 | BE25: 3925.792 | BF25: 3925.792 | BG25: 3774.8 | BH25: 3925.792 | BI25: 3774.8 | BJ25: 3925.792 | BK25: 3774.8 | BL25: 3774.8 | BM25: 4076.784 | BN25: 3774.8 | BO25: 3925.792 | BP25: 3925.792 | BQ25: 3774.8 | BR25: 4076.784 | BS25: 3774.8 | BT25: 3925.792 | BU25: 3774.8 | BV25: 3774.8 | BW25: 3925.792 | BX25: 3623.808 | BY25: 4076.784 | BZ25: 3774.8 | CA25: 3925.792 | CB25: 3925.792 | CC25: 3774.8 | CD25: 4076.784 | CE25: 3623.808 | CG25: 3095.336 | CH25: 3029.277 | CI25: 3246.328 | CJ25: 3095.336 | CK25: 2793.352 | CL25: 3085.899 | CM25: 2868.848 | CN25: 3095.336 | CO25: 3019.84 | CP25: 3095.336 | CQ25: 2944.344 | CR25: 3170.832 | CS25: 2944.344 | CT25: 3029.277 | CU25: 3246.328 | CV25: 3095.336 | CW25: 2717.856 | CX25: 3085.899 | CY25: 2868.848 | CZ25: 3095.336 | DA25: 3019.84 | DB25: 3095.336 | DC25: 3095.336 | DD25: 3019.84 | DE25: 2944.344 | DF25: 3180.269 | DG25: 3095.336 | DH25: 3095.336 | DI25: 2717.856 | DJ25: 3085.899 | DK25: 2868.848 | DL25: 3246.328 | DM25: 2868.848 | DN25: 3095.336 | DO25: 3095.336 | DP25: 3019.84 | DQ25: 2944.344 | DR25: 3180.269 | DS25: 3095.336 | DT25: 3246.328 | DU25: 2717.856 | DV25: 2934.907 | DW25: 2868.848 | DX25: 3246.328 | DY25: 2868.848 | DZ25: 3095.336 | EA25: 3095.336 | EB25: 3019.84 | EC25: 3095.336 | ED25: 3029.277 | EE25: 3095.336 | EF25: 3246.328 | EG25: 2793.352 | EH25: 2934.907 | EI25: 3019.84 | EJ25: 3095.336 | EK25: 2868.848 | EL25: 3246.328 | EM25: 2944.344 | EN25: 3019.84 | EO25: 3095.336 | EP25: 3029.277 | EQ25: 3246.328 | ER25: 3095.336 | ES25: 2717.856 | ET25: 2934.907 | EU25: 3019.84 | EV25: 3095.336 | EW25: 2868.848 | EX25: 3246.328 | EY25: 2944.344 | EZ25: 3170.832
C26: Transfer Gen Losses | D26: FPS_IRT_TGL | E26: 15757.92389 | F26: 15757.92389 | G26: 15757.92384 | H26: 15757.92384 | I26: 15780.6571 | J26: 15757.92389 | L26: 973.2293245 | M26: 583.5845675 | N26: 815.2028765 | O26: 523.872055 | P26: 598.6038895 | Q26: 562.303297 | R26: 431.0502915 | S26: 559.3408125 | T26: 584.3845535 | U26: 1336.027863 | V26: 1382.304586 | W26: 1060.915728 | X26: 1004.740575 | Y26: 583.5845675 | Z26: 815.2028765 | AA26: 523.872055 | AB26: 598.6038895 | AC26: 562.303297 | AD26: 431.0502915 | AE26: 559.3408125 | AF26: 573.2306285 | AG26: 1376.184663 | AH26: 1382.304586 | AI26: 1060.915728 | AJ26: 841.580029 | AK26: 510.3438325 | AL26: 598.6038895 | AM26: 575.4725825 | AN26: 431.0502915 | AO26: 549.668159 | AP26: 584.3845535 | AQ26: 1336.027863 | AR26: 1382.304586 | AS26: 1093.936285 | AT26: 976.8647075 | AU26: 583.5845675 | AV26: 841.580029 | AW26: 510.3438325 | AX26: 598.6038895 | AY26: 562.303297 | AZ26: 431.0502915 | BA26: 559.3408125 | BB26: 584.3845535 | BC26: 1336.027863 | BD26: 1382.304586 | BE26: 1093.936285 | BF26: 973.2293245 | BG26: 583.5845675 | BH26: 815.2028765 | BI26: 523.872055 | BJ26: 598.6038895 | BK26: 562.303297 | BL26: 447.76745 | BM26: 559.3408125 | BN26: 573.2306285 | BO26: 1376.184663 | BP26: 1382.304586 | BQ26: 1060.915728 | BR26: 1004.740575 | BS26: 583.5845675 | BT26: 815.2028765 | BU26: 523.872055 | BV26: 585.2449895 | BW26: 575.4725825 | BX26: 431.0502915 | BY26: 559.3408125 | BZ26: 573.9681715 | CA26: 1376.184663 | CB26: 1382.304586 | CC26: 1060.915728 | CD26: 1004.740575 | CE26: 566.6629085 | CG26: 711.6453055 | CH26: 433.3137385 | CI26: 600.571883 | CJ26: 287.6609095 | CK26: 318.3789605 | CL26: 317.0446515 | CM26: 205.479398 | CN26: 277.1354225 | CO26: 339.1121025 | CP26: 1058.435887 | CQ26: 951.168414 | CR26: 847.1573685 | CS26: 680.1340545 | CT26: 433.3137385 | CU26: 600.571883 | CV26: 287.6609095 | CW26: 318.3789605 | CX26: 317.0446515 | CY26: 205.479398 | CZ26: 277.1354225 | DA26: 350.2660275 | DB26: 1018.279087 | DC26: 951.168414 | DD26: 847.1573685 | DE26: 574.194686 | DF26: 301.189132 | DG26: 318.3789605 | DH26: 303.875366 | DI26: 205.479398 | DJ26: 286.808076 | DK26: 339.1121025 | DL26: 1058.435887 | DM26: 951.168414 | DN26: 814.136811 | DO26: 708.0099225 | DP26: 433.3137385 | DQ26: 574.194686 | DR26: 301.189132 | DS26: 318.3789605 | DT26: 317.0446515 | DU26: 205.479398 | DV26: 277.1354225 | DW26: 339.1121025 | DX26: 1058.435887 | DY26: 951.168414 | DZ26: 814.136811 | EA26: 711.6453055 | EB26: 433.3137385 | EC26: 600.571883 | ED26: 287.6609095 | EE26: 318.3789605 | EF26: 317.0446515 | EG26: 211.495457 | EH26: 277.1354225 | EI26: 350.2660275 | EJ26: 1018.279087 | EK26: 951.168414 | EL26: 847.1573685 | EM26: 680.1340545 | EN26: 433.3137385 | EO26: 600.571883 | EP26: 287.6609095 | EQ26: 331.7378605 | ER26: 303.875366 | ES26: 205.479398 | ET26: 277.1354225 | EU26: 349.5284845 | EV26: 1018.279087 | EW26: 951.168414 | EX26: 847.1573685 | EY26: 680.1340545 | EZ26: 450.2353975
E27: 0 | F27: 0 | G27: 0 | H27: 0 | I27: 0 | J27: 0 | L27: 0 | M27: 0 | N27: 0 | O27: 0 | P27: 0 | Q27: 0 | R27: 0 | S27: 0 | T27: 0 | U27: 0 | V27: 0 | W27: 0 | X27: 0 | Y27: 0 | Z27: 0 | AA27: 0 | AB27: 0 | AC27: 0 | AD27: 0 | AE27: 0 | AF27: 0 | AG27: 0 | AH27: 0 | AI27: 0 | AJ27: 0 | AK27: 0 | AL27: 0 | AM27: 0 | AN27: 0 | AO27: 0 | AP27: 0 | AQ27: 0 | AR27: 0 | AS27: 0 | AT27: 0 | AU27: 0 | AV27: 0 | AW27: 0 | AX27: 0 | AY27: 0 | AZ27: 0 | BA27: 0 | BB27: 0 | BC27: 0 | BD27: 0 | BE27: 0 | BF27: 0 | BG27: 0 | BH27: 0 | BI27: 0 | BJ27: 0 | BK27: 0 | BL27: 0 | BM27: 0 | BN27: 0 | BO27: 0 | BP27: 0 | BQ27: 0 | BR27: 0 | BS27: 0 | BT27: 0 | BU27: 0 | BV27: 0 | BW27: 0 | BX27: 0 | BY27: 0 | BZ27: 0 | CA27: 0 | CB27: 0 | CC27: 0 | CD27: 0 | CE27: 0 | CG27: 0 | CH27: 0 | CI27: 0 | CJ27: 0 | CK27: 0 | CL27: 0 | CM27: 0 | CN27: 0 | CO27: 0 | CP27: 0 | CQ27: 0 | CR27: 0 | CS27: 0 | CT27: 0 | CU27: 0 | CV27: 0 | CW27: 0 | CX27: 0 | CY27: 0 | CZ27: 0 | DA27: 0 | DB27: 0 | DC27: 0 | DD27: 0 | DE27: 0 | DF27: 0 | DG27: 0 | DH27: 0 | DI27: 0 | DJ27: 0 | DK27: 0 | DL27: 0 | DM27: 0 | DN27: 0 | DO27: 0 | DP27: 0 | DQ27: 0 | DR27: 0 | DS27: 0 | DT27: 0 | DU27: 0 | DV27: 0 | DW27: 0 | DX27: 0 | DY27: 0 | DZ27: 0 | EA27: 0 | EB27: 0 | EC27: 0 | ED27: 0 | EE27: 0 | EF27: 0 | EG27: 0 | EH27: 0 | EI27: 0 | EJ27: 0 | EK27: 0 | EL27: 0 | EM27: 0 | EN27: 0 | EO27: 0 | EP27: 0 | EQ27: 0 | ER27: 0 | ES27: 0 | ET27: 0 | EU27: 0 | EV27: 0 | EW27: 0 | EX27: 0 | EY27: 0 | EZ27: 0
E28: 0 | F28: 0 | G28: 0 | H28: 0 | I28: 0 | J28: 0 | L28: 0 | M28: 0 | N28: 0 | O28: 0 | P28: 0 | Q28: 0 | R28: 0 | S28: 0 | T28: 0 | U28: 0 | V28: 0 | W28: 0 | X28: 0 | Y28: 0 | Z28: 0 | AA28: 0 | AB28: 0 | AC28: 0 | AD28: 0 | AE28: 0 | AF28: 0 | AG28: 0 | AH28: 0 | AI28: 0 | AJ28: 0 | AK28: 0 | AL28: 0 | AM28: 0 | AN28: 0 | AO28: 0 | AP28: 0 | AQ28: 0 | AR28: 0 | AS28: 0 | AT28: 0 | AU28: 0 | AV28: 0 | AW28: 0 | AX28: 0 | AY28: 0 | AZ28: 0 | BA28: 0 | BB28: 0 | BC28: 0 | BD28: 0 | BE28: 0 | BF28: 0 | BG28: 0 | BH28: 0 | BI28: 0 | BJ28: 0 | BK28: 0 | BL28: 0 | BM28: 0 | BN28: 0 | BO28: 0 | BP28: 0 | BQ28: 0 | BR28: 0 | BS28: 0 | BT28: 0 | BU28: 0 | BV28: 0 | BW28: 0 | BX28: 0 | BY28: 0 | BZ28: 0 | CA28: 0 | CB28: 0 | CC28: 0 | CD28: 0 | CE28: 0 | CG28: 0 | CH28: 0 | CI28: 0 | CJ28: 0 | CK28: 0 | CL28: 0 | CM28: 0 | CN28: 0 | CO28: 0 | CP28: 0 | CQ28: 0 | CR28: 0 | CS28: 0 | CT28: 0 | CU28: 0 | CV28: 0 | CW28: 0 | CX28: 0 | CY28: 0 | CZ28: 0 | DA28: 0 | DB28: 0 | DC28: 0 | DD28: 0 | DE28: 0 | DF28: 0 | DG28: 0 | DH28: 0 | DI28: 0 | DJ28: 0 | DK28: 0 | DL28: 0 | DM28: 0 | DN28: 0 | DO28: 0 | DP28: 0 | DQ28: 0 | DR28: 0 | DS28: 0 | DT28: 0 | DU28: 0 | DV28: 0 | DW28: 0 | DX28: 0 | DY28: 0 | DZ28: 0 | EA28: 0 | EB28: 0 | EC28: 0 | ED28: 0 | EE28: 0 | EF28: 0 | EG28: 0 | EH28: 0 | EI28: 0 | EJ28: 0 | EK28: 0 | EL28: 0 | EM28: 0 | EN28: 0 | EO28: 0 | EP28: 0 | EQ28: 0 | ER28: 0 | ES28: 0 | ET28: 0 | EU28: 0 | EV28: 0 | EW28: 0 | EX28: 0 | EY28: 0 | EZ28: 0
E29: 0 | F29: 0 | G29: 0 | H29: 0 | I29: 0 | J29: 0 | L29: 0 | M29: 0 | N29: 0 | O29: 0 | P29: 0 | Q29: 0 | R29: 0 | S29: 0 | T29: 0 | U29: 0 | V29: 0 | W29: 0 | X29: 0 | Y29: 0 | Z29: 0 | AA29: 0 | AB29: 0 | AC29: 0 | AD29: 0 | AE29: 0 | AF29: 0 | AG29: 0 | AH29: 0 | AI29: 0 | AJ29: 0 | AK29: 0 | AL29: 0 | AM29: 0 | AN29: 0 | AO29: 0 | AP29: 0 | AQ29: 0 | AR29: 0 | AS29: 0 | AT29: 0 | AU29: 0 | AV29: 0 | AW29: 0 | AX29: 0 | AY29: 0 | AZ29: 0 | BA29: 0 | BB29: 0 | BC29: 0 | BD29: 0 | BE29: 0 | BF29: 0 | BG29: 0 | BH29: 0 | BI29: 0 | BJ29: 0 | BK29: 0 | BL29: 0 | BM29: 0 | BN29: 0 | BO29: 0 | BP29: 0 | BQ29: 0 | BR29: 0 | BS29: 0 | BT29: 0 | BU29: 0 | BV29: 0 | BW29: 0 | BX29: 0 | BY29: 0 | BZ29: 0 | CA29: 0 | CB29: 0 | CC29: 0 | CD29: 0 | CE29: 0 | CG29: 0 | CH29: 0 | CI29: 0 | CJ29: 0 | CK29: 0 | CL29: 0 | CM29: 0 | CN29: 0 | CO29: 0 | CP29: 0 | CQ29: 0 | CR29: 0 | CS29: 0 | CT29: 0 | CU29: 0 | CV29: 0 | CW29: 0 | CX29: 0 | CY29: 0 | CZ29: 0 | DA29: 0 | DB29: 0 | DC29: 0 | DD29: 0 | DE29: 0 | DF29: 0 | DG29: 0 | DH29: 0 | DI29: 0 | DJ29: 0 | DK29: 0 | DL29: 0 | DM29: 0 | DN29: 0 | DO29: 0 | DP29: 0 | DQ29: 0 | DR29: 0 | DS29: 0 | DT29: 0 | DU29: 0 | DV29: 0 | DW29: 0 | DX29: 0 | DY29: 0 | DZ29: 0 | EA29: 0 | EB29: 0 | EC29: 0 | ED29: 0 | EE29: 0 | EF29: 0 | EG29: 0 | EH29: 0 | EI29: 0 | EJ29: 0 | EK29: 0 | EL29: 0 | EM29: 0 | EN29: 0 | EO29: 0 | EP29: 0 | EQ29: 0 | ER29: 0 | ES29: 0 | ET29: 0 | EU29: 0 | EV29: 0 | EW29: 0 | EX29: 0 | EY29: 0 | EZ29: 0
E30: 0 | F30: 0 | G30: 0 | H30: 0 | I30: 0 | J30: 0 | L30: 0 | M30: 0 | N30: 0 | O30: 0 | P30: 0 | Q30: 0 | R30: 0 | S30: 0 | T30: 0 | U30: 0 | V30: 0 | W30: 0 | X30: 0 | Y30: 0 | Z30: 0 | AA30: 0 | AB30: 0 | AC30: 0 | AD30: 0 | AE30: 0 | AF30: 0 | AG30: 0 | AH30: 0 | AI30: 0 | AJ30: 0 | AK30: 0 | AL30: 0 | AM30: 0 | AN30: 0 | AO30: 0 | AP30: 0 | AQ30: 0 | AR30: 0 | AS30: 0 | AT30: 0 | AU30: 0 | AV30: 0 | AW30: 0 | AX30: 0 | AY30: 0 | AZ30: 0 | BA30: 0 | BB30: 0 | BC30: 0 | BD30: 0 | BE30: 0 | BF30: 0 | BG30: 0 | BH30: 0 | BI30: 0 | BJ30: 0 | BK30: 0 | BL30: 0 | BM30: 0 | BN30: 0 | BO30: 0 | BP30: 0 | BQ30: 0 | BR30: 0 | BS30: 0 | BT30: 0 | BU30: 0 | BV30: 0 | BW30: 0 | BX30: 0 | BY30: 0 | BZ30: 0 | CA30: 0 | CB30: 0 | CC30: 0 | CD30: 0 | CE30: 0 | CG30: 0 | CH30: 0 | CI30: 0 | CJ30: 0 | CK30: 0 | CL30: 0 | CM30: 0 | CN30: 0 | CO30: 0 | CP30: 0 | CQ30: 0 | CR30: 0 | CS30: 0 | CT30: 0 | CU30: 0 | CV30: 0 | CW30: 0 | CX30: 0 | CY30: 0 | CZ30: 0 | DA30: 0 | DB30: 0 | DC30: 0 | DD30: 0 | DE30: 0 | DF30: 0 | DG30: 0 | DH30: 0 | DI30: 0 | DJ30: 0 | DK30: 0 | DL30: 0 | DM30: 0 | DN30: 0 | DO30: 0 | DP30: 0 | DQ30: 0 | DR30: 0 | DS30: 0 | DT30: 0 | DU30: 0 | DV30: 0 | DW30: 0 | DX30: 0 | DY30: 0 | DZ30: 0 | EA30: 0 | EB30: 0 | EC30: 0 | ED30: 0 | EE30: 0 | EF30: 0 | EG30: 0 | EH30: 0 | EI30: 0 | EJ30: 0 | EK30: 0 | EL30: 0 | EM30: 0 | EN30: 0 | EO30: 0 | EP30: 0 | EQ30: 0 | ER30: 0 | ES30: 0 | ET30: 0 | EU30: 0 | EV30: 0 | EW30: 0 | EX30: 0 | EY30: 0 | EZ30: 0
E31: 0 | F31: 0 | G31: 0 | H31: 0 | I31: 0 | J31: 0 | L31: 0 | M31: 0 | N31: 0 | O31: 0 | P31: 0 | Q31: 0 | R31: 0 | S31: 0 | T31: 0 | U31: 0 | V31: 0 | W31: 0 | X31: 0 | Y31: 0 | Z31: 0 | AA31: 0 | AB31: 0 | AC31: 0 | AD31: 0 | AE31: 0 | AF31: 0 | AG31: 0 | AH31: 0 | AI31: 0 | AJ31: 0 | AK31: 0 | AL31: 0 | AM31: 0 | AN31: 0 | AO31: 0 | AP31: 0 | AQ31: 0 | AR31: 0 | AS31: 0 | AT31: 0 | AU31: 0 | AV31: 0 | AW31: 0 | AX31: 0 | AY31: 0 | AZ31: 0 | BA31: 0 | BB31: 0 | BC31: 0 | BD31: 0 | BE31: 0 | BF31: 0 | BG31: 0 | BH31: 0 | BI31: 0 | BJ31: 0 | BK31: 0 | BL31: 0 | BM31: 0 | BN31: 0 | BO31: 0 | BP31: 0 | BQ31: 0 | BR31: 0 | BS31: 0 | BT31: 0 | BU31: 0 | BV31: 0 | BW31: 0 | BX31: 0 | BY31: 0 | BZ31: 0 | CA31: 0 | CB31: 0 | CC31: 0 | CD31: 0 | CE31: 0 | CG31: 0 | CH31: 0 | CI31: 0 | CJ31: 0 | CK31: 0 | CL31: 0 | CM31: 0 | CN31: 0 | CO31: 0 | CP31: 0 | CQ31: 0 | CR31: 0 | CS31: 0 | CT31: 0 | CU31: 0 | CV31: 0 | CW31: 0 | CX31: 0 | CY31: 0 | CZ31: 0 | DA31: 0 | DB31: 0 | DC31: 0 | DD31: 0 | DE31: 0 | DF31: 0 | DG31: 0 | DH31: 0 | DI31: 0 | DJ31: 0 | DK31: 0 | DL31: 0 | DM31: 0 | DN31: 0 | DO31: 0 | DP31: 0 | DQ31: 0 | DR31: 0 | DS31: 0 | DT31: 0 | DU31: 0 | DV31: 0 | DW31: 0 | DX31: 0 | DY31: 0 | DZ31: 0 | EA31: 0 | EB31: 0 | EC31: 0 | ED31: 0 | EE31: 0 | EF31: 0 | EG31: 0 | EH31: 0 | EI31: 0 | EJ31: 0 | EK31: 0 | EL31: 0 | EM31: 0 | EN31: 0 | EO31: 0 | EP31: 0 | EQ31: 0 | ER31: 0 | ES31: 0 | ET31: 0 | EU31: 0 | EV31: 0 | EW31: 0 | EX31: 0 | EY31: 0 | EZ31: 0
E32: 0 | F32: 0 | G32: 0 | H32: 0 | I32: 0 | J32: 0 | L32: 0 | M32: 0 | N32: 0 | O32: 0 | P32: 0 | Q32: 0 | R32: 0 | S32: 0 | T32: 0 | U32: 0 | V32: 0 | W32: 0 | X32: 0 | Y32: 0 | Z32: 0 | AA32: 0 | AB32: 0 | AC32: 0 | AD32: 0 | AE32: 0 | AF32: 0 | AG32: 0 | AH32: 0 | AI32: 0 | AJ32: 0 | AK32: 0 | AL32: 0 | AM32: 0 | AN32: 0 | AO32: 0 | AP32: 0 | AQ32: 0 | AR32: 0 | AS32: 0 | AT32: 0 | AU32: 0 | AV32: 0 | AW32: 0 | AX32: 0 | AY32: 0 | AZ32: 0 | BA32: 0 | BB32: 0 | BC32: 0 | BD32: 0 | BE32: 0 | BF32: 0 | BG32: 0 | BH32: 0 | BI32: 0 | BJ32: 0 | BK32: 0 | BL32: 0 | BM32: 0 | BN32: 0 | BO32: 0 | BP32: 0 | BQ32: 0 | BR32: 0 | BS32: 0 | BT32: 0 | BU32: 0 | BV32: 0 | BW32: 0 | BX32: 0 | BY32: 0 | BZ32: 0 | CA32: 0 | CB32: 0 | CC32: 0 | CD32: 0 | CE32: 0 | CG32: 0 | CH32: 0 | CI32: 0 | CJ32: 0 | CK32: 0 | CL32: 0 | CM32: 0 | CN32: 0 | CO32: 0 | CP32: 0 | CQ32: 0 | CR32: 0 | CS32: 0 | CT32: 0 | CU32: 0 | CV32: 0 | CW32: 0 | CX32: 0 | CY32: 0 | CZ32: 0 | DA32: 0 | DB32: 0 | DC32: 0 | DD32: 0 | DE32: 0 | DF32: 0 | DG32: 0 | DH32: 0 | DI32: 0 | DJ32: 0 | DK32: 0 | DL32: 0 | DM32: 0 | DN32: 0 | DO32: 0 | DP32: 0 | DQ32: 0 | DR32: 0 | DS32: 0 | DT32: 0 | DU32: 0 | DV32: 0 | DW32: 0 | DX32: 0 | DY32: 0 | DZ32: 0 | EA32: 0 | EB32: 0 | EC32: 0 | ED32: 0 | EE32: 0 | EF32: 0 | EG32: 0 | EH32: 0 | EI32: 0 | EJ32: 0 | EK32: 0 | EL32: 0 | EM32: 0 | EN32: 0 | EO32: 0 | EP32: 0 | EQ32: 0 | ER32: 0 | ES32: 0 | ET32: 0 | EU32: 0 | EV32: 0 | EW32: 0 | EX32: 0 | EY32: 0 | EZ32: 0
E33: 0 | F33: 0 | G33: 0 | H33: 0 | I33: 0 | J33: 0 | L33: 0 | M33: 0 | N33: 0 | O33: 0 | P33: 0 | Q33: 0 | R33: 0 | S33: 0 | T33: 0 | U33: 0 | V33: 0 | W33: 0 | X33: 0 | Y33: 0 | Z33: 0 | AA33: 0 | AB33: 0 | AC33: 0 | AD33: 0 | AE33: 0 | AF33: 0 | AG33: 0 | AH33: 0 | AI33: 0 | AJ33: 0 | AK33: 0 | AL33: 0 | AM33: 0 | AN33: 0 | AO33: 0 | AP33: 0 | AQ33: 0 | AR33: 0 | AS33: 0 | AT33: 0 | AU33: 0 | AV33: 0 | AW33: 0 | AX33: 0 | AY33: 0 | AZ33: 0 | BA33: 0 | BB33: 0 | BC33: 0 | BD33: 0 | BE33: 0 | BF33: 0 | BG33: 0 | BH33: 0 | BI33: 0 | BJ33: 0 | BK33: 0 | BL33: 0 | BM33: 0 | BN33: 0 | BO33: 0 | BP33: 0 | BQ33: 0 | BR33: 0 | BS33: 0 | BT33: 0 | BU33: 0 | BV33: 0 | BW33: 0 | BX33: 0 | BY33: 0 | BZ33: 0 | CA33: 0 | CB33: 0 | CC33: 0 | CD33: 0 | CE33: 0 | CG33: 0 | CH33: 0 | CI33: 0 | CJ33: 0 | CK33: 0 | CL33: 0 | CM33: 0 | CN33: 0 | CO33: 0 | CP33: 0 | CQ33: 0 | CR33: 0 | CS33: 0 | CT33: 0 | CU33: 0 | CV33: 0 | CW33: 0 | CX33: 0 | CY33: 0 | CZ33: 0 | DA33: 0 | DB33: 0 | DC33: 0 | DD33: 0 | DE33: 0 | DF33: 0 | DG33: 0 | DH33: 0 | DI33: 0 | DJ33: 0 | DK33: 0 | DL33: 0 | DM33: 0 | DN33: 0 | DO33: 0 | DP33: 0 | DQ33: 0 | DR33: 0 | DS33: 0 | DT33: 0 | DU33: 0 | DV33: 0 | DW33: 0 | DX33: 0 | DY33: 0 | DZ33: 0 | EA33: 0 | EB33: 0 | EC33: 0 | ED33: 0 | EE33: 0 | EF33: 0 | EG33: 0 | EH33: 0 | EI33: 0 | EJ33: 0 | EK33: 0 | EL33: 0 | EM33: 0 | EN33: 0 | EO33: 0 | EP33: 0 | EQ33: 0 | ER33: 0 | ES33: 0 | ET33: 0 | EU33: 0 | EV33: 0 | EW33: 0 | EX33: 0 | EY33: 0 | EZ33: 0
B34: FBS Obligation | D34: FPS_FBS | E34: =+SUM(E35:E44) -> 5784445.466 | F34: =+SUM(F35:F44) -> 5775234.516 | G34: 5773425.806 | H34: 5771769.277 | I34: 5783328.937 | J34: 5771881.574 | L34: 374170.706 | M34: 333491.251 | N34: 345491.538 | O34: 344421.7 | P34: 323962.113 | Q34: 355082.157 | R34: 411289.188 | S34: 463848.083 | T34: 459745.897 | U34: 493277.457 | V34: 501650.887 | W34: 411349.502 | X34: 374249.894 | Y34: 333491.251 | Z34: 345491.538 | AA34: 344421.7 | AB34: 312775.092 | AC34: 355082.157 | AD34: 411289.188 | AE34: 463848.083 | AF34: 459745.897 | AG34: 487703.057 | AH34: 504862.404 | AI34: 411550.488 | AJ34: 374249.894 | AK34: 333369.273 | AL34: 345610.084 | AM34: 344421.7 | AN34: 312775.092 | AO34: 355082.157 | AP34: 411289.188 | AQ34: 463650.094 | AR34: 460001.625 | AS34: 493282.865 | AT34: 498537.748 | AU34: 411550.488 | AV34: 374249.894 | AW34: 333369.273 | AX34: 345610.084 | AY34: 344302.61 | AZ34: 312775.092 | BA34: 355096.678 | BB34: 411289.188 | BC34: 463650.094 | BD34: 460001.625 | BE34: 487697.649 | BF34: 504799.652 | BG34: 411550.488 | BH34: 374170.706 | BI34: 333491.251 | BJ34: 345610.084 | BK34: 344302.61 | BL34: 323962.113 | BM34: 355096.678 | BN34: 411213.293 | BO34: 463848.083 | BP34: 460001.625 | BQ34: 487123.289 | BR34: 506830.263 | BS34: 411550.488 | BT34: 374170.706 | BU34: 333491.251 | BV34: 345491.538 | BW34: 344421.7 | BX34: 312775.092 | BY34: 355096.678 | BZ34: 411213.293 | CA34: 463848.083 | CB34: 460001.625 | CC34: 487123.289 | CD34: 506830.263 | CE34: 411349.502 | CG34: 55195.834 | CH34: 3839.166 | CI34: 3357.734 | CJ34: 2738.166 | CK34: 7581.695 | CL34: 27750.829 | CM34: 84362.963 | CN34: 130877.923 | CO34: 151514.168 | CP34: 183934.51 | CQ34: 193859.023 | CR34: 121652.976 | CS34: 55116.437 | CT34: 3839.166 | CU34: 3357.734 | CV34: 2738.166 | CW34: 7321.16 | CX34: 27750.829 | CY34: 84362.963 | CZ34: 130877.923 | DA34: 151514.168 | DB34: 179539.31 | DC34: 202854.113 | DD34: 121451.798 | DE34: 55116.437 | DF34: 3849.237 | DG34: 3351.564 | DH34: 2738.166 | DI34: 7321.16 | DJ34: 27750.829 | DK34: 84362.963 | DL34: 131075.542 | DM34: 151258.247 | DN34: 183938.774 | DO34: 197390.881 | DP34: 121451.798 | DQ34: 55116.437 | DR34: 3849.237 | DS34: 3351.564 | DT34: 2744.879 | DU34: 7321.16 | DV34: 27736.34 | DW34: 84362.963 | DX34: 131075.542 | DY34: 151258.247 | DZ34: 179535.046 | EA34: 199573.737 | EB34: 121451.798 | EC34: 55195.834 | ED34: 3839.166 | EE34: 3351.564 | EF34: 2744.879 | EG34: 7581.695 | EH34: 27736.34 | EI34: 84439.051 | EJ34: 130877.923 | EK34: 151258.247 | EL34: 180109.038 | EM34: 197542.919 | EN34: 121451.798 | EO34: 55195.834 | EP34: 3839.166 | EQ34: 3357.734 | ER34: 2738.166 | ES34: 7321.16 | ET34: 27736.34 | EU34: 84439.051 | EV34: 130877.923 | EW34: 151258.247 | EX34: 180109.038 | EY34: 197542.919 | EZ34: 121652.976
C35: Canadian Entitlement | D35: FPS_FBS_CDN | E35: 3990570.128 | F35: 3979667.12 | G35: 3979667.008 | H35: 3979666.672 | I35: 3990569.6 | J35: 3979666.976 | L35: 337999.168 | M35: 327550 | N35: 337998.8 | O35: 337999.168 | P35: 316192.8 | Q35: 337544.896 | R35: 327095.808 | S35: 337999.168 | T35: 327096 | U35: 337999.168 | V35: 337998.96 | W35: 327096.192 | X35: 337998.96 | Y35: 327550 | Z35: 337998.8 | AA35: 337999.168 | AB35: 305289.984 | AC35: 337544.896 | AD35: 327095.808 | AE35: 337999.168 | AF35: 327096 | AG35: 337999.168 | AH35: 337999.168 | AI35: 327096 | AJ35: 337998.96 | AK35: 327550.08 | AL35: 337999.168 | AM35: 337999.168 | AN35: 305289.984 | AO35: 337544.896 | AP35: 327095.808 | AQ35: 337998.8 | AR35: 327095.808 | AS35: 337999.168 | AT35: 337999.168 | AU35: 327096 | AV35: 337998.96 | AW35: 327550.08 | AX35: 337999.168 | AY35: 337998.8 | AZ35: 305289.984 | BA35: 337544.928 | BB35: 327095.808 | BC35: 337998.8 | BD35: 327095.808 | BE35: 337999.168 | BF35: 337999.168 | BG35: 327096 | BH35: 337999.168 | BI35: 327550 | BJ35: 337999.168 | BK35: 337998.8 | BL35: 316192.8 | BM35: 337544.928 | BN35: 327096 | BO35: 337999.168 | BP35: 327095.808 | BQ35: 337998.8 | BR35: 337998.96 | BS35: 327096 | BT35: 337999.168 | BU35: 327550 | BV35: 337998.8 | BW35: 337999.168 | BX35: 305289.984 | BY35: 337544.928 | BZ35: 327096 | CA35: 337999.168 | CB35: 327095.808 | CC35: 337998.8 | CD35: 337998.96 | CE35: 327096.192 | CG35: 0 | CH35: 0 | CI35: 0 | CJ35: 0 | CK35: 0 | CL35: 0 | CM35: 0 | CN35: 0 | CO35: 0 | CP35: 0 | CQ35: 0 | CR35: 0 | CS35: 0 | CT35: 0 | CU35: 0 | CV35: 0 | CW35: 0 | CX35: 0 | CY35: 0 | CZ35: 0 | DA35: 0 | DB35: 0 | DC35: 0 | DD35: 0 | DE35: 0 | DF35: 0 | DG35: 0 | DH35: 0 | DI35: 0 | DJ35: 0 | DK35: 0 | DL35: 0 | DM35: 0 | DN35: 0 | DO35: 0 | DP35: 0 | DQ35: 0 | DR35: 0 | DS35: 0 | DT35: 0 | DU35: 0 | DV35: 0 | DW35: 0 | DX35: 0 | DY35: 0 | DZ35: 0 | EA35: 0 | EB35: 0 | EC35: 0 | ED35: 0 | EE35: 0 | EF35: 0 | EG35: 0 | EH35: 0 | EI35: 0 | EJ35: 0 | EK35: 0 | EL35: 0 | EM35: 0 | EN35: 0 | EO35: 0 | EP35: 0 | EQ35: 0 | ER35: 0 | ES35: 0 | ET35: 0 | EU35: 0 | EV35: 0 | EW35: 0 | EX35: 0 | EY35: 0 | EZ35: 0
C36: USBR Pump Load | D36: FPS_FBS_UBR | E36: 1648915.404 | F36: 1648482.854 | G36: 1648482.849 | H36: 1648482.848 | I36: 1648915.403 | J36: 1648482.856 | L36: 36171.538 | M36: 3141.251 | N36: 4692.738 | O36: 3510.532 | P36: 4969.313 | Q36: 17537.261 | R36: 84193.38 | S36: 125848.915 | T36: 132649.897 | U36: 143339.089 | V36: 98384.727 | W36: 84253.31 | X36: 36250.934 | Y36: 3141.251 | Z36: 4692.738 | AA36: 3510.532 | AB36: 4797.108 | AC36: 17537.261 | AD36: 84193.38 | AE36: 125848.915 | AF36: 132649.897 | AG36: 143339.089 | AH36: 98056.836 | AI36: 84454.488 | AJ36: 36250.934 | AK36: 3131.193 | AL36: 4698.916 | AM36: 3510.532 | AN36: 4797.108 | AO36: 17537.261 | AP36: 84193.38 | AQ36: 125651.294 | AR36: 132905.817 | AS36: 143339.089 | AT36: 98056.836 | AU36: 84454.488 | AV36: 36250.934 | AW36: 3131.193 | AX36: 4698.916 | AY36: 3503.81 | AZ36: 4797.108 | BA36: 17551.75 | BB36: 84193.38 | BC36: 125651.294 | BD36: 132905.817 | BE36: 143339.089 | BF36: 98056.836 | BG36: 84454.488 | BH36: 36171.538 | BI36: 3141.251 | BJ36: 4698.916 | BK36: 3503.81 | BL36: 4969.313 | BM36: 17551.75 | BN36: 84117.293 | BO36: 125848.915 | BP36: 132905.817 | BQ36: 143009.689 | BR36: 98384.727 | BS36: 84454.488 | BT36: 36171.538 | BU36: 3141.251 | BV36: 4692.738 | BW36: 3510.532 | BX36: 4797.108 | BY36: 17551.75 | BZ36: 84117.293 | CA36: 125848.915 | CB36: 132905.817 | CC36: 143009.689 | CD36: 98384.727 | CE36: 84253.31 | CG36: 55195.834 | CH36: 3832.104 | CI36: 3350.854 | CJ36: 2731.278 | CK36: 7574.591 | CL36: 27750.829 | CM36: 84362.963 | CN36: 130877.923 | CO36: 151514.168 | CP36: 174520.91 | CQ36: 146859.023 | CR36: 121652.976 | CS36: 55116.437 | CT36: 3832.104 | CU36: 3350.854 | CV36: 2731.278 | CW36: 7314.248 | CX36: 27750.829 | CY36: 84362.963 | CZ36: 130877.923 | DA36: 151514.168 | DB36: 174520.91 | DC36: 147186.913 | DD36: 121451.798 | DE36: 55116.437 | DF36: 3842.16 | DG36: 3344.676 | DH36: 2731.278 | DI36: 7314.248 | DJ36: 27750.829 | DK36: 84362.963 | DL36: 131075.542 | DM36: 151258.247 | DN36: 174520.91 | DO36: 147186.913 | DP36: 121451.798 | DQ36: 55116.437 | DR36: 3842.16 | DS36: 3344.676 | DT36: 2737.999 | DU36: 7314.248 | DV36: 27736.34 | DW36: 84362.963 | DX36: 131075.542 | DY36: 151258.247 | DZ36: 174520.91 | EA36: 147186.913 | EB36: 121451.798 | EC36: 55195.834 | ED36: 3832.104 | EE36: 3344.676 | EF36: 2737.999 | EG36: 7574.591 | EH36: 27736.34 | EI36: 84439.051 | EJ36: 130877.923 | EK36: 151258.247 | EL36: 174850.31 | EM36: 146859.023 | EN36: 121451.798 | EO36: 55195.834 | EP36: 3832.104 | EQ36: 3350.854 | ER36: 2731.278 | ES36: 7314.248 | ET36: 27736.34 | EU36: 84439.051 | EV36: 130877.923 | EW36: 151258.247 | EX36: 174850.31 | EY36: 146859.023 | EZ36: 121652.976
C37: Hungry Horse | D37: FPS_FBS_HH | E37: 0 | F37: 0 | G37: 0 | H37: 0 | I37: 0 | J37: 0 | L37: 0 | M37: 0 | N37: 0 | O37: 0 | P37: 0 | Q37: 0 | R37: 0 | S37: 0 | T37: 0 | U37: 0 | V37: 0 | W37: 0 | X37: 0 | Y37: 0 | Z37: 0 | AA37: 0 | AB37: 0 | AC37: 0 | AD37: 0 | AE37: 0 | AF37: 0 | AG37: 0 | AH37: 0 | AI37: 0 | AJ37: 0 | AK37: 0 | AL37: 0 | AM37: 0 | AN37: 0 | AO37: 0 | AP37: 0 | AQ37: 0 | AR37: 0 | AS37: 0 | AT37: 0 | AU37: 0 | AV37: 0 | AW37: 0 | AX37: 0 | AY37: 0 | AZ37: 0 | BA37: 0 | BB37: 0 | BC37: 0 | BD37: 0 | BE37: 0 | BF37: 0 | BG37: 0 | BH37: 0 | BI37: 0 | BJ37: 0 | BK37: 0 | BL37: 0 | BM37: 0 | BN37: 0 | BO37: 0 | BP37: 0 | BQ37: 0 | BR37: 0 | BS37: 0 | BT37: 0 | BU37: 0 | BV37: 0 | BW37: 0 | BX37: 0 | BY37: 0 | BZ37: 0 | CA37: 0 | CB37: 0 | CC37: 0 | CD37: 0 | CE37: 0 | CG37: 0 | CH37: 0 | CI37: 0 | CJ37: 0 | CK37: 0 | CL37: 0 | CM37: 0 | CN37: 0 | CO37: 0 | CP37: 0 | CQ37: 0 | CR37: 0 | CS37: 0 | CT37: 0 | CU37: 0 | CV37: 0 | CW37: 0 | CX37: 0 | CY37: 0 | CZ37: 0 | DA37: 0 | DB37: 0 | DC37: 0 | DD37: 0 | DE37: 0 | DF37: 0 | DG37: 0 | DH37: 0 | DI37: 0 | DJ37: 0 | DK37: 0 | DL37: 0 | DM37: 0 | DN37: 0 | DO37: 0 | DP37: 0 | DQ37: 0 | DR37: 0 | DS37: 0 | DT37: 0 | DU37: 0 | DV37: 0 | DW37: 0 | DX37: 0 | DY37: 0 | DZ37: 0 | EA37: 0 | EB37: 0 | EC37: 0 | ED37: 0 | EE37: 0 | EF37: 0 | EG37: 0 | EH37: 0 | EI37: 0 | EJ37: 0 | EK37: 0 | EL37: 0 | EM37: 0 | EN37: 0 | EO37: 0 | EP37: 0 | EQ37: 0 | ER37: 0 | ES37: 0 | ET37: 0 | EU37: 0 | EV37: 0 | EW37: 0 | EX37: 0 | EY37: 0 | EZ37: 0
C38: Upper Baker | D38: FPS_FBS_UPB | E38: 11339.934 | F38: 11227.742 | G38: 11227.765 | H38: 11115.757 | I38: 11339.934 | J38: 11227.742 | L38: 0 | M38: 2800 | N38: 2800 | O38: 2912 | P38: 2800 | Q38: 0 | R38: 0 | S38: 0 | T38: 0 | U38: 0 | V38: 0 | W38: 0 | X38: 0 | Y38: 2800 | Z38: 2800 | AA38: 2912 | AB38: 2688 | AC38: 0 | AD38: 0 | AE38: 0 | AF38: 0 | AG38: 0 | AH38: 0 | AI38: 0 | AJ38: 0 | AK38: 2688 | AL38: 2912 | AM38: 2912 | AN38: 2688 | AO38: 0 | AP38: 0 | AQ38: 0 | AR38: 0 | AS38: 0 | AT38: 0 | AU38: 0 | AV38: 0 | AW38: 2688 | AX38: 2912 | AY38: 2800 | AZ38: 2688 | BA38: 0 | BB38: 0 | BC38: 0 | BD38: 0 | BE38: 0 | BF38: 0 | BG38: 0 | BH38: 0 | BI38: 2800 | BJ38: 2912 | BK38: 2800 | BL38: 2800 | BM38: 0 | BN38: 0 | BO38: 0 | BP38: 0 | BQ38: 0 | BR38: 0 | BS38: 0 | BT38: 0 | BU38: 2800 | BV38: 2800 | BW38: 2912 | BX38: 2688 | BY38: 0 | BZ38: 0 | CA38: 0 | CB38: 0 | CC38: 0 | CD38: 0 | CE38: 0 | CG38: 0 | CH38: 7.062 | CI38: 6.88 | CJ38: 6.888 | CK38: 7.104 | CL38: 0 | CM38: 0 | CN38: 0 | CO38: 0 | CP38: 0 | CQ38: 0 | CR38: 0 | CS38: 0 | CT38: 7.062 | CU38: 6.88 | CV38: 6.888 | CW38: 6.912 | CX38: 0 | CY38: 0 | CZ38: 0 | DA38: 0 | DB38: 0 | DC38: 0 | DD38: 0 | DE38: 0 | DF38: 7.077 | DG38: 6.888 | DH38: 6.888 | DI38: 6.912 | DJ38: 0 | DK38: 0 | DL38: 0 | DM38: 0 | DN38: 0 | DO38: 0 | DP38: 0 | DQ38: 0 | DR38: 7.077 | DS38: 6.888 | DT38: 6.88 | DU38: 6.912 | DV38: 0 | DW38: 0 | DX38: 0 | DY38: 0 | DZ38: 0 | EA38: 0 | EB38: 0 | EC38: 0 | ED38: 7.062 | EE38: 6.888 | EF38: 6.88 | EG38: 7.104 | EH38: 0 | EI38: 0 | EJ38: 0 | EK38: 0 | EL38: 0 | EM38: 0 | EN38: 0 | EO38: 0 | EP38: 7.062 | EQ38: 6.88 | ER38: 6.888 | ES38: 6.912 | ET38: 0 | EU38: 0 | EV38: 0 | EW38: 0 | EX38: 0 | EY38: 0 | EZ38: 0
C39: Non-Treaty Storage | D39: FPS_FBS_NTS | E39: 133620 | F39: 135856.8 | G39: 134048.184 | H39: 132504 | I39: 132504 | J39: 132504 | L39: 0 | M39: 0 | N39: 0 | O39: 0 | P39: 0 | Q39: 0 | R39: 0 | S39: 0 | T39: 0 | U39: 11939.2 | V39: 65267.2 | W39: 0 | X39: 0 | Y39: 0 | Z39: 0 | AA39: 0 | AB39: 0 | AC39: 0 | AD39: 0 | AE39: 0 | AF39: 0 | AG39: 6364.8 | AH39: 68806.4 | AI39: 0 | AJ39: 0 | AK39: 0 | AL39: 0 | AM39: 0 | AN39: 0 | AO39: 0 | AP39: 0 | AQ39: 0 | AR39: 0 | AS39: 11944.608 | AT39: 62481.744 | AU39: 0 | AV39: 0 | AW39: 0 | AX39: 0 | AY39: 0 | AZ39: 0 | BA39: 0 | BB39: 0 | BC39: 0 | BD39: 0 | BE39: 6359.392 | BF39: 68743.648 | BG39: 0 | BH39: 0 | BI39: 0 | BJ39: 0 | BK39: 0 | BL39: 0 | BM39: 0 | BN39: 0 | BO39: 0 | BP39: 0 | BQ39: 6114.8 | BR39: 70446.576 | BS39: 0 | BT39: 0 | BU39: 0 | BV39: 0 | BW39: 0 | BX39: 0 | BY39: 0 | BZ39: 0 | CA39: 0 | CB39: 0 | CC39: 6114.8 | CD39: 70446.576 | CE39: 0 | CG39: 0 | CH39: 0 | CI39: 0 | CJ39: 0 | CK39: 0 | CL39: 0 | CM39: 0 | CN39: 0 | CO39: 0 | CP39: 9413.6 | CQ39: 47000 | CR39: 0 | CS39: 0 | CT39: 0 | CU39: 0 | CV39: 0 | CW39: 0 | CX39: 0 | CY39: 0 | CZ39: 0 | DA39: 0 | DB39: 5018.4 | DC39: 55667.2 | DD39: 0 | DE39: 0 | DF39: 0 | DG39: 0 | DH39: 0 | DI39: 0 | DJ39: 0 | DK39: 0 | DL39: 0 | DM39: 0 | DN39: 9417.864 | DO39: 50203.968 | DP39: 0 | DQ39: 0 | DR39: 0 | DS39: 0 | DT39: 0 | DU39: 0 | DV39: 0 | DW39: 0 | DX39: 0 | DY39: 0 | DZ39: 5014.136 | EA39: 52386.824 | EB39: 0 | EC39: 0 | ED39: 0 | EE39: 0 | EF39: 0 | EG39: 0 | EH39: 0 | EI39: 0 | EJ39: 0 | EK39: 0 | EL39: 5258.728 | EM39: 50683.896 | EN39: 0 | EO39: 0 | EP39: 0 | EQ39: 0 | ER39: 0 | ES39: 0 | ET39: 0 | EU39: 0 | EV39: 0 | EW39: 0 | EX39: 5258.728 | EY39: 50683.896 | EZ39: 0
C40: Libby Coordination | D40: FPS_FBS_LCA | E40: 0 | F40: 0 | G40: 0 | H40: 0 | I40: 0 | J40: 0 | L40: 0 | M40: 0 | N40: 0 | O40: 0 | P40: 0 | Q40: 0 | R40: 0 | S40: 0 | T40: 0 | U40: 0 | V40: 0 | W40: 0 | X40: 0 | Y40: 0 | Z40: 0 | AA40: 0 | AB40: 0 | AC40: 0 | AD40: 0 | AE40: 0 | AF40: 0 | AG40: 0 | AH40: 0 | AI40: 0 | AJ40: 0 | AK40: 0 | AL40: 0 | AM40: 0 | AN40: 0 | AO40: 0 | AP40: 0 | AQ40: 0 | AR40: 0 | AS40: 0 | AT40: 0 | AU40: 0 | AV40: 0 | AW40: 0 | AX40: 0 | AY40: 0 | AZ40: 0 | BA40: 0 | BB40: 0 | BC40: 0 | BD40: 0 | BE40: 0 | BF40: 0 | BG40: 0 | BH40: 0 | BI40: 0 | BJ40: 0 | BK40: 0 | BL40: 0 | BM40: 0 | BN40: 0 | BO40: 0 | BP40: 0 | BQ40: 0 | BR40: 0 | BS40: 0 | BT40: 0 | BU40: 0 | BV40: 0 | BW40: 0 | BX40: 0 | BY40: 0 | BZ40: 0 | CA40: 0 | CB40: 0 | CC40: 0 | CD40: 0 | CE40: 0 | CG40: 0 | CH40: 0 | CI40: 0 | CJ40: 0 | CK40: 0 | CL40: 0 | CM40: 0 | CN40: 0 | CO40: 0 | CP40: 0 | CQ40: 0 | CR40: 0 | CS40: 0 | CT40: 0 | CU40: 0 | CV40: 0 | CW40: 0 | CX40: 0 | CY40: 0 | CZ40: 0 | DA40: 0 | DB40: 0 | DC40: 0 | DD40: 0 | DE40: 0 | DF40: 0 | DG40: 0 | DH40: 0 | DI40: 0 | DJ40: 0 | DK40: 0 | DL40: 0 | DM40: 0 | DN40: 0 | DO40: 0 | DP40: 0 | DQ40: 0 | DR40: 0 | DS40: 0 | DT40: 0 | DU40: 0 | DV40: 0 | DW40: 0 | DX40: 0 | DY40: 0 | DZ40: 0 | EA40: 0 | EB40: 0 | EC40: 0 | ED40: 0 | EE40: 0 | EF40: 0 | EG40: 0 | EH40: 0 | EI40: 0 | EJ40: 0 | EK40: 0 | EL40: 0 | EM40: 0 | EN40: 0 | EO40: 0 | EP40: 0 | EQ40: 0 | ER40: 0 | ES40: 0 | ET40: 0 | EU40: 0 | EV40: 0 | EW40: 0 | EX40: 0 | EY40: 0 | EZ40: 0
E41: 0 | F41: 0 | G41: 0 | H41: 0 | I41: 0 | J41: 0 | L41: 0 | M41: 0 | N41: 0 | O41: 0 | P41: 0 | Q41: 0 | R41: 0 | S41: 0 | T41: 0 | U41: 0 | V41: 0 | W41: 0 | X41: 0 | Y41: 0 | Z41: 0 | AA41: 0 | AB41: 0 | AC41: 0 | AD41: 0 | AE41: 0 | AF41: 0 | AG41: 0 | AH41: 0 | AI41: 0 | AJ41: 0 | AK41: 0 | AL41: 0 | AM41: 0 | AN41: 0 | AO41: 0 | AP41: 0 | AQ41: 0 | AR41: 0 | AS41: 0 | AT41: 0 | AU41: 0 | AV41: 0 | AW41: 0 | AX41: 0 | AY41: 0 | AZ41: 0 | BA41: 0 | BB41: 0 | BC41: 0 | BD41: 0 | BE41: 0 | BF41: 0 | BG41: 0 | BH41: 0 | BI41: 0 | BJ41: 0 | BK41: 0 | BL41: 0 | BM41: 0 | BN41: 0 | BO41: 0 | BP41: 0 | BQ41: 0 | BR41: 0 | BS41: 0 | BT41: 0 | BU41: 0 | BV41: 0 | BW41: 0 | BX41: 0 | BY41: 0 | BZ41: 0 | CA41: 0 | CB41: 0 | CC41: 0 | CD41: 0 | CE41: 0 | CG41: 0 | CH41: 0 | CI41: 0 | CJ41: 0 | CK41: 0 | CL41: 0 | CM41: 0 | CN41: 0 | CO41: 0 | CP41: 0 | CQ41: 0 | CR41: 0 | CS41: 0 | CT41: 0 | CU41: 0 | CV41: 0 | CW41: 0 | CX41: 0 | CY41: 0 | CZ41: 0 | DA41: 0 | DB41: 0 | DC41: 0 | DD41: 0 | DE41: 0 | DF41: 0 | DG41: 0 | DH41: 0 | DI41: 0 | DJ41: 0 | DK41: 0 | DL41: 0 | DM41: 0 | DN41: 0 | DO41: 0 | DP41: 0 | DQ41: 0 | DR41: 0 | DS41: 0 | DT41: 0 | DU41: 0 | DV41: 0 | DW41: 0 | DX41: 0 | DY41: 0 | DZ41: 0 | EA41: 0 | EB41: 0 | EC41: 0 | ED41: 0 | EE41: 0 | EF41: 0 | EG41: 0 | EH41: 0 | EI41: 0 | EJ41: 0 | EK41: 0 | EL41: 0 | EM41: 0 | EN41: 0 | EO41: 0 | EP41: 0 | EQ41: 0 | ER41: 0 | ES41: 0 | ET41: 0 | EU41: 0 | EV41: 0 | EW41: 0 | EX41: 0 | EY41: 0 | EZ41: 0
E42: 0 | F42: 0 | G42: 0 | H42: 0 | I42: 0 | J42: 0 | L42: 0 | M42: 0 | N42: 0 | O42: 0 | P42: 0 | Q42: 0 | R42: 0 | S42: 0 | T42: 0 | U42: 0 | V42: 0 | W42: 0 | X42: 0 | Y42: 0 | Z42: 0 | AA42: 0 | AB42: 0 | AC42: 0 | AD42: 0 | AE42: 0 | AF42: 0 | AG42: 0 | AH42: 0 | AI42: 0 | AJ42: 0 | AK42: 0 | AL42: 0 | AM42: 0 | AN42: 0 | AO42: 0 | AP42: 0 | AQ42: 0 | AR42: 0 | AS42: 0 | AT42: 0 | AU42: 0 | AV42: 0 | AW42: 0 | AX42: 0 | AY42: 0 | AZ42: 0 | BA42: 0 | BB42: 0 | BC42: 0 | BD42: 0 | BE42: 0 | BF42: 0 | BG42: 0 | BH42: 0 | BI42: 0 | BJ42: 0 | BK42: 0 | BL42: 0 | BM42: 0 | BN42: 0 | BO42: 0 | BP42: 0 | BQ42: 0 | BR42: 0 | BS42: 0 | BT42: 0 | BU42: 0 | BV42: 0 | BW42: 0 | BX42: 0 | BY42: 0 | BZ42: 0 | CA42: 0 | CB42: 0 | CC42: 0 | CD42: 0 | CE42: 0 | CG42: 0 | CH42: 0 | CI42: 0 | CJ42: 0 | CK42: 0 | CL42: 0 | CM42: 0 | CN42: 0 | CO42: 0 | CP42: 0 | CQ42: 0 | CR42: 0 | CS42: 0 | CT42: 0 | CU42: 0 | CV42: 0 | CW42: 0 | CX42: 0 | CY42: 0 | CZ42: 0 | DA42: 0 | DB42: 0 | DC42: 0 | DD42: 0 | DE42: 0 | DF42: 0 | DG42: 0 | DH42: 0 | DI42: 0 | DJ42: 0 | DK42: 0 | DL42: 0 | DM42: 0 | DN42: 0 | DO42: 0 | DP42: 0 | DQ42: 0 | DR42: 0 | DS42: 0 | DT42: 0 | DU42: 0 | DV42: 0 | DW42: 0 | DX42: 0 | DY42: 0 | DZ42: 0 | EA42: 0 | EB42: 0 | EC42: 0 | ED42: 0 | EE42: 0 | EF42: 0 | EG42: 0 | EH42: 0 | EI42: 0 | EJ42: 0 | EK42: 0 | EL42: 0 | EM42: 0 | EN42: 0 | EO42: 0 | EP42: 0 | EQ42: 0 | ER42: 0 | ES42: 0 | ET42: 0 | EU42: 0 | EV42: 0 | EW42: 0 | EX42: 0 | EY42: 0 | EZ42: 0
E43: 0 | F43: 0 | G43: 0 | H43: 0 | I43: 0 | J43: 0 | L43: 0 | M43: 0 | N43: 0 | O43: 0 | P43: 0 | Q43: 0 | R43: 0 | S43: 0 | T43: 0 | U43: 0 | V43: 0 | W43: 0 | X43: 0 | Y43: 0 | Z43: 0 | AA43: 0 | AB43: 0 | AC43: 0 | AD43: 0 | AE43: 0 | AF43: 0 | AG43: 0 | AH43: 0 | AI43: 0 | AJ43: 0 | AK43: 0 | AL43: 0 | AM43: 0 | AN43: 0 | AO43: 0 | AP43: 0 | AQ43: 0 | AR43: 0 | AS43: 0 | AT43: 0 | AU43: 0 | AV43: 0 | AW43: 0 | AX43: 0 | AY43: 0 | AZ43: 0 | BA43: 0 | BB43: 0 | BC43: 0 | BD43: 0 | BE43: 0 | BF43: 0 | BG43: 0 | BH43: 0 | BI43: 0 | BJ43: 0 | BK43: 0 | BL43: 0 | BM43: 0 | BN43: 0 | BO43: 0 | BP43: 0 | BQ43: 0 | BR43: 0 | BS43: 0 | BT43: 0 | BU43: 0 | BV43: 0 | BW43: 0 | BX43: 0 | BY43: 0 | BZ43: 0 | CA43: 0 | CB43: 0 | CC43: 0 | CD43: 0 | CE43: 0 | CG43: 0 | CH43: 0 | CI43: 0 | CJ43: 0 | CK43: 0 | CL43: 0 | CM43: 0 | CN43: 0 | CO43: 0 | CP43: 0 | CQ43: 0 | CR43: 0 | CS43: 0 | CT43: 0 | CU43: 0 | CV43: 0 | CW43: 0 | CX43: 0 | CY43: 0 | CZ43: 0 | DA43: 0 | DB43: 0 | DC43: 0 | DD43: 0 | DE43: 0 | DF43: 0 | DG43: 0 | DH43: 0 | DI43: 0 | DJ43: 0 | DK43: 0 | DL43: 0 | DM43: 0 | DN43: 0 | DO43: 0 | DP43: 0 | DQ43: 0 | DR43: 0 | DS43: 0 | DT43: 0 | DU43: 0 | DV43: 0 | DW43: 0 | DX43: 0 | DY43: 0 | DZ43: 0 | EA43: 0 | EB43: 0 | EC43: 0 | ED43: 0 | EE43: 0 | EF43: 0 | EG43: 0 | EH43: 0 | EI43: 0 | EJ43: 0 | EK43: 0 | EL43: 0 | EM43: 0 | EN43: 0 | EO43: 0 | EP43: 0 | EQ43: 0 | ER43: 0 | ES43: 0 | ET43: 0 | EU43: 0 | EV43: 0 | EW43: 0 | EX43: 0 | EY43: 0 | EZ43: 0
E44: 0 | F44: 0 | G44: 0 | H44: 0 | I44: 0 | J44: 0 | L44: 0 | M44: 0 | N44: 0 | O44: 0 | P44: 0 | Q44: 0 | R44: 0 | S44: 0 | T44: 0 | U44: 0 | V44: 0 | W44: 0 | X44: 0 | Y44: 0 | Z44: 0 | AA44: 0 | AB44: 0 | AC44: 0 | AD44: 0 | AE44: 0 | AF44: 0 | AG44: 0 | AH44: 0 | AI44: 0 | AJ44: 0 | AK44: 0 | AL44: 0 | AM44: 0 | AN44: 0 | AO44: 0 | AP44: 0 | AQ44: 0 | AR44: 0 | AS44: 0 | AT44: 0 | AU44: 0 | AV44: 0 | AW44: 0 | AX44: 0 | AY44: 0 | AZ44: 0 | BA44: 0 | BB44: 0 | BC44: 0 | BD44: 0 | BE44: 0 | BF44: 0 | BG44: 0 | BH44: 0 | BI44: 0 | BJ44: 0 | BK44: 0 | BL44: 0 | BM44: 0 | BN44: 0 | BO44: 0 | BP44: 0 | BQ44: 0 | BR44: 0 | BS44: 0 | BT44: 0 | BU44: 0 | BV44: 0 | BW44: 0 | BX44: 0 | BY44: 0 | BZ44: 0 | CA44: 0 | CB44: 0 | CC44: 0 | CD44: 0 | CE44: 0 | CG44: 0 | CH44: 0 | CI44: 0 | CJ44: 0 | CK44: 0 | CL44: 0 | CM44: 0 | CN44: 0 | CO44: 0 | CP44: 0 | CQ44: 0 | CR44: 0 | CS44: 0 | CT44: 0 | CU44: 0 | CV44: 0 | CW44: 0 | CX44: 0 | CY44: 0 | CZ44: 0 | DA44: 0 | DB44: 0 | DC44: 0 | DD44: 0 | DE44: 0 | DF44: 0 | DG44: 0 | DH44: 0 | DI44: 0 | DJ44: 0 | DK44: 0 | DL44: 0 | DM44: 0 | DN44: 0 | DO44: 0 | DP44: 0 | DQ44: 0 | DR44: 0 | DS44: 0 | DT44: 0 | DU44: 0 | DV44: 0 | DW44: 0 | DX44: 0 | DY44: 0 | DZ44: 0 | EA44: 0 | EB44: 0 | EC44: 0 | ED44: 0 | EE44: 0 | EF44: 0 | EG44: 0 | EH44: 0 | EI44: 0 | EJ44: 0 | EK44: 0 | EL44: 0 | EM44: 0 | EN44: 0 | EO44: 0 | EP44: 0 | EQ44: 0 | ER44: 0 | ES44: 0 | ET44: 0 | EU44: 0 | EV44: 0 | EW44: 0 | EX44: 0 | EY44: 0 | EZ44: 0
B45: Seasonal or Capacity Exchange | D45: FPS_EXS | E45: =+SUM(E46:E55) -> 0 | F45: =+SUM(F46:F55) -> 0 | G45: 0 | H45: 0 | I45: 0 | J45: 0 | L45: 0 | M45: 0 | N45: 0 | O45: 0 | P45: 0 | Q45: 0 | R45: 0 | S45: 0 | T45: 0 | U45: 0 | V45: 0 | W45: 0 | X45: 0 | Y45: 0 | Z45: 0 | AA45: 0 | AB45: 0 | AC45: 0 | AD45: 0 | AE45: 0 | AF45: 0 | AG45: 0 | AH45: 0 | AI45: 0 | AJ45: 0 | AK45: 0 | AL45: 0 | AM45: 0 | AN45: 0 | AO45: 0 | AP45: 0 | AQ45: 0 | AR45: 0 | AS45: 0 | AT45: 0 | AU45: 0 | AV45: 0 | AW45: 0 | AX45: 0 | AY45: 0 | AZ45: 0 | BA45: 0 | BB45: 0 | BC45: 0 | BD45: 0 | BE45: 0 | BF45: 0 | BG45: 0 | BH45: 0 | BI45: 0 | BJ45: 0 | BK45: 0 | BL45: 0 | BM45: 0 | BN45: 0 | BO45: 0 | BP45: 0 | BQ45: 0 | BR45: 0 | BS45: 0 | BT45: 0 | BU45: 0 | BV45: 0 | BW45: 0 | BX45: 0 | BY45: 0 | BZ45: 0 | CA45: 0 | CB45: 0 | CC45: 0 | CD45: 0 | CE45: 0 | CG45: 0 | CH45: 0 | CI45: 0 | CJ45: 0 | CK45: 0 | CL45: 0 | CM45: 0 | CN45: 0 | CO45: 0 | CP45: 0 | CQ45: 0 | CR45: 0 | CS45: 0 | CT45: 0 | CU45: 0 | CV45: 0 | CW45: 0 | CX45: 0 | CY45: 0 | CZ45: 0 | DA45: 0 | DB45: 0 | DC45: 0 | DD45: 0 | DE45: 0 | DF45: 0 | DG45: 0 | DH45: 0 | DI45: 0 | DJ45: 0 | DK45: 0 | DL45: 0 | DM45: 0 | DN45: 0 | DO45: 0 | DP45: 0 | DQ45: 0 | DR45: 0 | DS45: 0 | DT45: 0 | DU45: 0 | DV45: 0 | DW45: 0 | DX45: 0 | DY45: 0 | DZ45: 0 | EA45: 0 | EB45: 0 | EC45: 0 | ED45: 0 | EE45: 0 | EF45: 0 | EG45: 0 | EH45: 0 | EI45: 0 | EJ45: 0 | EK45: 0 | EL45: 0 | EM45: 0 | EN45: 0 | EO45: 0 | EP45: 0 | EQ45: 0 | ER45: 0 | ES45: 0 | ET45: 0 | EU45: 0 | EV45: 0 | EW45: 0 | EX45: 0 | EY45: 0 | EZ45: 0
C46: Riverside Capacity | D46: FPS_EXS_RVC | E46: 0 | F46: 0 | G46: 0 | H46: 0 | I46: 0 | J46: 0 | L46: 0 | M46: 0 | N46: 0 | O46: 0 | P46: 0 | Q46: 0 | R46: 0 | S46: 0 | T46: 0 | U46: 0 | V46: 0 | W46: 0 | X46: 0 | Y46: 0 | Z46: 0 | AA46: 0 | AB46: 0 | AC46: 0 | AD46: 0 | AE46: 0 | AF46: 0 | AG46: 0 | AH46: 0 | AI46: 0 | AJ46: 0 | AK46: 0 | AL46: 0 | AM46: 0 | AN46: 0 | AO46: 0 | AP46: 0 | AQ46: 0 | AR46: 0 | AS46: 0 | AT46: 0 | AU46: 0 | AV46: 0 | AW46: 0 | AX46: 0 | AY46: 0 | AZ46: 0 | BA46: 0 | BB46: 0 | BC46: 0 | BD46: 0 | BE46: 0 | BF46: 0 | BG46: 0 | BH46: 0 | BI46: 0 | BJ46: 0 | BK46: 0 | BL46: 0 | BM46: 0 | BN46: 0 | BO46: 0 | BP46: 0 | BQ46: 0 | BR46: 0 | BS46: 0 | BT46: 0 | BU46: 0 | BV46: 0 | BW46: 0 | BX46: 0 | BY46: 0 | BZ46: 0 | CA46: 0 | CB46: 0 | CC46: 0 | CD46: 0 | CE46: 0 | CG46: 0 | CH46: 0 | CI46: 0 | CJ46: 0 | CK46: 0 | CL46: 0 | CM46: 0 | CN46: 0 | CO46: 0 | CP46: 0 | CQ46: 0 | CR46: 0 | CS46: 0 | CT46: 0 | CU46: 0 | CV46: 0 | CW46: 0 | CX46: 0 | CY46: 0 | CZ46: 0 | DA46: 0 | DB46: 0 | DC46: 0 | DD46: 0 | DE46: 0 | DF46: 0 | DG46: 0 | DH46: 0 | DI46: 0 | DJ46: 0 | DK46: 0 | DL46: 0 | DM46: 0 | DN46: 0 | DO46: 0 | DP46: 0 | DQ46: 0 | DR46: 0 | DS46: 0 | DT46: 0 | DU46: 0 | DV46: 0 | DW46: 0 | DX46: 0 | DY46: 0 | DZ46: 0 | EA46: 0 | EB46: 0 | EC46: 0 | ED46: 0 | EE46: 0 | EF46: 0 | EG46: 0 | EH46: 0 | EI46: 0 | EJ46: 0 | EK46: 0 | EL46: 0 | EM46: 0 | EN46: 0 | EO46: 0 | EP46: 0 | EQ46: 0 | ER46: 0 | ES46: 0 | ET46: 0 | EU46: 0 | EV46: 0 | EW46: 0 | EX46: 0 | EY46: 0 | EZ46: 0
C47: Riverside Seasonal | D47: FPS_EXS_RVS | E47: 0 | F47: 0 | G47: 0 | H47: 0 | I47: 0 | J47: 0 | L47: 0 | M47: 0 | N47: 0 | O47: 0 | P47: 0 | Q47: 0 | R47: 0 | S47: 0 | T47: 0 | U47: 0 | V47: 0 | W47: 0 | X47: 0 | Y47: 0 | Z47: 0 | AA47: 0 | AB47: 0 | AC47: 0 | AD47: 0 | AE47: 0 | AF47: 0 | AG47: 0 | AH47: 0 | AI47: 0 | AJ47: 0 | AK47: 0 | AL47: 0 | AM47: 0 | AN47: 0 | AO47: 0 | AP47: 0 | AQ47: 0 | AR47: 0 | AS47: 0 | AT47: 0 | AU47: 0 | AV47: 0 | AW47: 0 | AX47: 0 | AY47: 0 | AZ47: 0 | BA47: 0 | BB47: 0 | BC47: 0 | BD47: 0 | BE47: 0 | BF47: 0 | BG47: 0 | BH47: 0 | BI47: 0 | BJ47: 0 | BK47: 0 | BL47: 0 | BM47: 0 | BN47: 0 | BO47: 0 | BP47: 0 | BQ47: 0 | BR47: 0 | BS47: 0 | BT47: 0 | BU47: 0 | BV47: 0 | BW47: 0 | BX47: 0 | BY47: 0 | BZ47: 0 | CA47: 0 | CB47: 0 | CC47: 0 | CD47: 0 | CE47: 0 | CG47: 0 | CH47: 0 | CI47: 0 | CJ47: 0 | CK47: 0 | CL47: 0 | CM47: 0 | CN47: 0 | CO47: 0 | CP47: 0 | CQ47: 0 | CR47: 0 | CS47: 0 | CT47: 0 | CU47: 0 | CV47: 0 | CW47: 0 | CX47: 0 | CY47: 0 | CZ47: 0 | DA47: 0 | DB47: 0 | DC47: 0 | DD47: 0 | DE47: 0 | DF47: 0 | DG47: 0 | DH47: 0 | DI47: 0 | DJ47: 0 | DK47: 0 | DL47: 0 | DM47: 0 | DN47: 0 | DO47: 0 | DP47: 0 | DQ47: 0 | DR47: 0 | DS47: 0 | DT47: 0 | DU47: 0 | DV47: 0 | DW47: 0 | DX47: 0 | DY47: 0 | DZ47: 0 | EA47: 0 | EB47: 0 | EC47: 0 | ED47: 0 | EE47: 0 | EF47: 0 | EG47: 0 | EH47: 0 | EI47: 0 | EJ47: 0 | EK47: 0 | EL47: 0 | EM47: 0 | EN47: 0 | EO47: 0 | EP47: 0 | EQ47: 0 | ER47: 0 | ES47: 0 | ET47: 0 | EU47: 0 | EV47: 0 | EW47: 0 | EX47: 0 | EY47: 0 | EZ47: 0
C48: Pasadena Capacity | D48: FPS_EXS_PAC | E48: 0 | F48: 0 | G48: 0 | H48: 0 | I48: 0 | J48: 0 | L48: 0 | M48: 0 | N48: 0 | O48: 0 | P48: 0 | Q48: 0 | R48: 0 | S48: 0 | T48: 0 | U48: 0 | V48: 0 | W48: 0 | X48: 0 | Y48: 0 | Z48: 0 | AA48: 0 | AB48: 0 | AC48: 0 | AD48: 0 | AE48: 0 | AF48: 0 | AG48: 0 | AH48: 0 | AI48: 0 | AJ48: 0 | AK48: 0 | AL48: 0 | AM48: 0 | AN48: 0 | AO48: 0 | AP48: 0 | AQ48: 0 | AR48: 0 | AS48: 0 | AT48: 0 | AU48: 0 | AV48: 0 | AW48: 0 | AX48: 0 | AY48: 0 | AZ48: 0 | BA48: 0 | BB48: 0 | BC48: 0 | BD48: 0 | BE48: 0 | BF48: 0 | BG48: 0 | BH48: 0 | BI48: 0 | BJ48: 0 | BK48: 0 | BL48: 0 | BM48: 0 | BN48: 0 | BO48: 0 | BP48: 0 | BQ48: 0 | BR48: 0 | BS48: 0 | BT48: 0 | BU48: 0 | BV48: 0 | BW48: 0 | BX48: 0 | BY48: 0 | BZ48: 0 | CA48: 0 | CB48: 0 | CC48: 0 | CD48: 0 | CE48: 0 | CG48: 0 | CH48: 0 | CI48: 0 | CJ48: 0 | CK48: 0 | CL48: 0 | CM48: 0 | CN48: 0 | CO48: 0 | CP48: 0 | CQ48: 0 | CR48: 0 | CS48: 0 | CT48: 0 | CU48: 0 | CV48: 0 | CW48: 0 | CX48: 0 | CY48: 0 | CZ48: 0 | DA48: 0 | DB48: 0 | DC48: 0 | DD48: 0 | DE48: 0 | DF48: 0 | DG48: 0 | DH48: 0 | DI48: 0 | DJ48: 0 | DK48: 0 | DL48: 0 | DM48: 0 | DN48: 0 | DO48: 0 | DP48: 0 | DQ48: 0 | DR48: 0 | DS48: 0 | DT48: 0 | DU48: 0 | DV48: 0 | DW48: 0 | DX48: 0 | DY48: 0 | DZ48: 0 | EA48: 0 | EB48: 0 | EC48: 0 | ED48: 0 | EE48: 0 | EF48: 0 | EG48: 0 | EH48: 0 | EI48: 0 | EJ48: 0 | EK48: 0 | EL48: 0 | EM48: 0 | EN48: 0 | EO48: 0 | EP48: 0 | EQ48: 0 | ER48: 0 | ES48: 0 | ET48: 0 | EU48: 0 | EV48: 0 | EW48: 0 | EX48: 0 | EY48: 0 | EZ48: 0
C49: Pasadena Seasonal | D49: FPS_EXS_PAS | E49: 0 | F49: 0 | G49: 0 | H49: 0 | I49: 0 | J49: 0 | L49: 0 | M49: 0 | N49: 0 | O49: 0 | P49: 0 | Q49: 0 | R49: 0 | S49: 0 | T49: 0 | U49: 0 | V49: 0 | W49: 0 | X49: 0 | Y49: 0 | Z49: 0 | AA49: 0 | AB49: 0 | AC49: 0 | AD49: 0 | AE49: 0 | AF49: 0 | AG49: 0 | AH49: 0 | AI49: 0 | AJ49: 0 | AK49: 0 | AL49: 0 | AM49: 0 | AN49: 0 | AO49: 0 | AP49: 0 | AQ49: 0 | AR49: 0 | AS49: 0 | AT49: 0 | AU49: 0 | AV49: 0 | AW49: 0 | AX49: 0 | AY49: 0 | AZ49: 0 | BA49: 0 | BB49: 0 | BC49: 0 | BD49: 0 | BE49: 0 | BF49: 0 | BG49: 0 | BH49: 0 | BI49: 0 | BJ49: 0 | BK49: 0 | BL49: 0 | BM49: 0 | BN49: 0 | BO49: 0 | BP49: 0 | BQ49: 0 | BR49: 0 | BS49: 0 | BT49: 0 | BU49: 0 | BV49: 0 | BW49: 0 | BX49: 0 | BY49: 0 | BZ49: 0 | CA49: 0 | CB49: 0 | CC49: 0 | CD49: 0 | CE49: 0 | CG49: 0 | CH49: 0 | CI49: 0 | CJ49: 0 | CK49: 0 | CL49: 0 | CM49: 0 | CN49: 0 | CO49: 0 | CP49: 0 | CQ49: 0 | CR49: 0 | CS49: 0 | CT49: 0 | CU49: 0 | CV49: 0 | CW49: 0 | CX49: 0 | CY49: 0 | CZ49: 0 | DA49: 0 | DB49: 0 | DC49: 0 | DD49: 0 | DE49: 0 | DF49: 0 | DG49: 0 | DH49: 0 | DI49: 0 | DJ49: 0 | DK49: 0 | DL49: 0 | DM49: 0 | DN49: 0 | DO49: 0 | DP49: 0 | DQ49: 0 | DR49: 0 | DS49: 0 | DT49: 0 | DU49: 0 | DV49: 0 | DW49: 0 | DX49: 0 | DY49: 0 | DZ49: 0 | EA49: 0 | EB49: 0 | EC49: 0 | ED49: 0 | EE49: 0 | EF49: 0 | EG49: 0 | EH49: 0 | EI49: 0 | EJ49: 0 | EK49: 0 | EL49: 0 | EM49: 0 | EN49: 0 | EO49: 0 | EP49: 0 | EQ49: 0 | ER49: 0 | ES49: 0 | ET49: 0 | EU49: 0 | EV49: 0 | EW49: 0 | EX49: 0 | EY49: 0 | EZ49: 0
C50: PG&E | D50: FPS_EXS_PGE | E50: 0 | F50: 0 | G50: 0 | H50: 0 | I50: 0 | J50: 0 | L50: 0 | M50: 0 | N50: 0 | O50: 0 | P50: 0 | Q50: 0 | R50: 0 | S50: 0 | T50: 0 | U50: 0 | V50: 0 | W50: 0 | X50: 0 | Y50: 0 | Z50: 0 | AA50: 0 | AB50: 0 | AC50: 0 | AD50: 0 | AE50: 0 | AF50: 0 | AG50: 0 | AH50: 0 | AI50: 0 | AJ50: 0 | AK50: 0 | AL50: 0 | AM50: 0 | AN50: 0 | AO50: 0 | AP50: 0 | AQ50: 0 | AR50: 0 | AS50: 0 | AT50: 0 | AU50: 0 | AV50: 0 | AW50: 0 | AX50: 0 | AY50: 0 | AZ50: 0 | BA50: 0 | BB50: 0 | BC50: 0 | BD50: 0 | BE50: 0 | BF50: 0 | BG50: 0 | BH50: 0 | BI50: 0 | BJ50: 0 | BK50: 0 | BL50: 0 | BM50: 0 | BN50: 0 | BO50: 0 | BP50: 0 | BQ50: 0 | BR50: 0 | BS50: 0 | BT50: 0 | BU50: 0 | BV50: 0 | BW50: 0 | BX50: 0 | BY50: 0 | BZ50: 0 | CA50: 0 | CB50: 0 | CC50: 0 | CD50: 0 | CE50: 0 | CG50: 0 | CH50: 0 | CI50: 0 | CJ50: 0 | CK50: 0 | CL50: 0 | CM50: 0 | CN50: 0 | CO50: 0 | CP50: 0 | CQ50: 0 | CR50: 0 | CS50: 0 | CT50: 0 | CU50: 0 | CV50: 0 | CW50: 0 | CX50: 0 | CY50: 0 | CZ50: 0 | DA50: 0 | DB50: 0 | DC50: 0 | DD50: 0 | DE50: 0 | DF50: 0 | DG50: 0 | DH50: 0 | DI50: 0 | DJ50: 0 | DK50: 0 | DL50: 0 | DM50: 0 | DN50: 0 | DO50: 0 | DP50: 0 | DQ50: 0 | DR50: 0 | DS50: 0 | DT50: 0 | DU50: 0 | DV50: 0 | DW50: 0 | DX50: 0 | DY50: 0 | DZ50: 0 | EA50: 0 | EB50: 0 | EC50: 0 | ED50: 0 | EE50: 0 | EF50: 0 | EG50: 0 | EH50: 0 | EI50: 0 | EJ50: 0 | EK50: 0 | EL50: 0 | EM50: 0 | EN50: 0 | EO50: 0 | EP50: 0 | EQ50: 0 | ER50: 0 | ES50: 0 | ET50: 0 | EU50: 0 | EV50: 0 | EW50: 0 | EX50: 0 | EY50: 0 | EZ50: 0
C51: Intertie Losses | D51: FPS_EXS_LSS | E51: 0 | F51: 0 | G51: 0 | H51: 0 | I51: 0 | J51: 0 | L51: 0 | M51: 0 | N51: 0 | O51: 0 | P51: 0 | Q51: 0 | R51: 0 | S51: 0 | T51: 0 | U51: 0 | V51: 0 | W51: 0 | X51: 0 | Y51: 0 | Z51: 0 | AA51: 0 | AB51: 0 | AC51: 0 | AD51: 0 | AE51: 0 | AF51: 0 | AG51: 0 | AH51: 0 | AI51: 0 | AJ51: 0 | AK51: 0 | AL51: 0 | AM51: 0 | AN51: 0 | AO51: 0 | AP51: 0 | AQ51: 0 | AR51: 0 | AS51: 0 | AT51: 0 | AU51: 0 | AV51: 0 | AW51: 0 | AX51: 0 | AY51: 0 | AZ51: 0 | BA51: 0 | BB51: 0 | BC51: 0 | BD51: 0 | BE51: 0 | BF51: 0 | BG51: 0 | BH51: 0 | BI51: 0 | BJ51: 0 | BK51: 0 | BL51: 0 | BM51: 0 | BN51: 0 | BO51: 0 | BP51: 0 | BQ51: 0 | BR51: 0 | BS51: 0 | BT51: 0 | BU51: 0 | BV51: 0 | BW51: 0 | BX51: 0 | BY51: 0 | BZ51: 0 | CA51: 0 | CB51: 0 | CC51: 0 | CD51: 0 | CE51: 0 | CG51: 0 | CH51: 0 | CI51: 0 | CJ51: 0 | CK51: 0 | CL51: 0 | CM51: 0 | CN51: 0 | CO51: 0 | CP51: 0 | CQ51: 0 | CR51: 0 | CS51: 0 | CT51: 0 | CU51: 0 | CV51: 0 | CW51: 0 | CX51: 0 | CY51: 0 | CZ51: 0 | DA51: 0 | DB51: 0 | DC51: 0 | DD51: 0 | DE51: 0 | DF51: 0 | DG51: 0 | DH51: 0 | DI51: 0 | DJ51: 0 | DK51: 0 | DL51: 0 | DM51: 0 | DN51: 0 | DO51: 0 | DP51: 0 | DQ51: 0 | DR51: 0 | DS51: 0 | DT51: 0 | DU51: 0 | DV51: 0 | DW51: 0 | DX51: 0 | DY51: 0 | DZ51: 0 | EA51: 0 | EB51: 0 | EC51: 0 | ED51: 0 | EE51: 0 | EF51: 0 | EG51: 0 | EH51: 0 | EI51: 0 | EJ51: 0 | EK51: 0 | EL51: 0 | EM51: 0 | EN51: 0 | EO51: 0 | EP51: 0 | EQ51: 0 | ER51: 0 | ES51: 0 | ET51: 0 | EU51: 0 | EV51: 0 | EW51: 0 | EX51: 0 | EY51: 0 | EZ51: 0
C52: PacifiCorp | D52: FPS_EXS_PPL | E52: 0 | F52: 0 | G52: 0 | H52: 0 | I52: 0 | J52: 0 | L52: 0 | M52: 0 | N52: 0 | O52: 0 | P52: 0 | Q52: 0 | R52: 0 | S52: 0 | T52: 0 | U52: 0 | V52: 0 | W52: 0 | X52: 0 | Y52: 0 | Z52: 0 | AA52: 0 | AB52: 0 | AC52: 0 | AD52: 0 | AE52: 0 | AF52: 0 | AG52: 0 | AH52: 0 | AI52: 0 | AJ52: 0 | AK52: 0 | AL52: 0 | AM52: 0 | AN52: 0 | AO52: 0 | AP52: 0 | AQ52: 0 | AR52: 0 | AS52: 0 | AT52: 0 | AU52: 0 | AV52: 0 | AW52: 0 | AX52: 0 | AY52: 0 | AZ52: 0 | BA52: 0 | BB52: 0 | BC52: 0 | BD52: 0 | BE52: 0 | BF52: 0 | BG52: 0 | BH52: 0 | BI52: 0 | BJ52: 0 | BK52: 0 | BL52: 0 | BM52: 0 | BN52: 0 | BO52: 0 | BP52: 0 | BQ52: 0 | BR52: 0 | BS52: 0 | BT52: 0 | BU52: 0 | BV52: 0 | BW52: 0 | BX52: 0 | BY52: 0 | BZ52: 0 | CA52: 0 | CB52: 0 | CC52: 0 | CD52: 0 | CE52: 0 | CG52: 0 | CH52: 0 | CI52: 0 | CJ52: 0 | CK52: 0 | CL52: 0 | CM52: 0 | CN52: 0 | CO52: 0 | CP52: 0 | CQ52: 0 | CR52: 0 | CS52: 0 | CT52: 0 | CU52: 0 | CV52: 0 | CW52: 0 | CX52: 0 | CY52: 0 | CZ52: 0 | DA52: 0 | DB52: 0 | DC52: 0 | DD52: 0 | DE52: 0 | DF52: 0 | DG52: 0 | DH52: 0 | DI52: 0 | DJ52: 0 | DK52: 0 | DL52: 0 | DM52: 0 | DN52: 0 | DO52: 0 | DP52: 0 | DQ52: 0 | DR52: 0 | DS52: 0 | DT52: 0 | DU52: 0 | DV52: 0 | DW52: 0 | DX52: 0 | DY52: 0 | DZ52: 0 | EA52: 0 | EB52: 0 | EC52: 0 | ED52: 0 | EE52: 0 | EF52: 0 | EG52: 0 | EH52: 0 | EI52: 0 | EJ52: 0 | EK52: 0 | EL52: 0 | EM52: 0 | EN52: 0 | EO52: 0 | EP52: 0 | EQ52: 0 | ER52: 0 | ES52: 0 | ET52: 0 | EU52: 0 | EV52: 0 | EW52: 0 | EX52: 0 | EY52: 0 | EZ52: 0
E53: 0 | F53: 0 | G53: 0 | H53: 0 | I53: 0 | J53: 0 | L53: 0 | M53: 0 | N53: 0 | O53: 0 | P53: 0 | Q53: 0 | R53: 0 | S53: 0 | T53: 0 | U53: 0 | V53: 0 | W53: 0 | X53: 0 | Y53: 0 | Z53: 0 | AA53: 0 | AB53: 0 | AC53: 0 | AD53: 0 | AE53: 0 | AF53: 0 | AG53: 0 | AH53: 0 | AI53: 0 | AJ53: 0 | AK53: 0 | AL53: 0 | AM53: 0 | AN53: 0 | AO53: 0 | AP53: 0 | AQ53: 0 | AR53: 0 | AS53: 0 | AT53: 0 | AU53: 0 | AV53: 0 | AW53: 0 | AX53: 0 | AY53: 0 | AZ53: 0 | BA53: 0 | BB53: 0 | BC53: 0 | BD53: 0 | BE53: 0 | BF53: 0 | BG53: 0 | BH53: 0 | BI53: 0 | BJ53: 0 | BK53: 0 | BL53: 0 | BM53: 0 | BN53: 0 | BO53: 0 | BP53: 0 | BQ53: 0 | BR53: 0 | BS53: 0 | BT53: 0 | BU53: 0 | BV53: 0 | BW53: 0 | BX53: 0 | BY53: 0 | BZ53: 0 | CA53: 0 | CB53: 0 | CC53: 0 | CD53: 0 | CE53: 0 | CG53: 0 | CH53: 0 | CI53: 0 | CJ53: 0 | CK53: 0 | CL53: 0 | CM53: 0 | CN53: 0 | CO53: 0 | CP53: 0 | CQ53: 0 | CR53: 0 | CS53: 0 | CT53: 0 | CU53: 0 | CV53: 0 | CW53: 0 | CX53: 0 | CY53: 0 | CZ53: 0 | DA53: 0 | DB53: 0 | DC53: 0 | DD53: 0 | DE53: 0 | DF53: 0 | DG53: 0 | DH53: 0 | DI53: 0 | DJ53: 0 | DK53: 0 | DL53: 0 | DM53: 0 | DN53: 0 | DO53: 0 | DP53: 0 | DQ53: 0 | DR53: 0 | DS53: 0 | DT53: 0 | DU53: 0 | DV53: 0 | DW53: 0 | DX53: 0 | DY53: 0 | DZ53: 0 | EA53: 0 | EB53: 0 | EC53: 0 | ED53: 0 | EE53: 0 | EF53: 0 | EG53: 0 | EH53: 0 | EI53: 0 | EJ53: 0 | EK53: 0 | EL53: 0 | EM53: 0 | EN53: 0 | EO53: 0 | EP53: 0 | EQ53: 0 | ER53: 0 | ES53: 0 | ET53: 0 | EU53: 0 | EV53: 0 | EW53: 0 | EX53: 0 | EY53: 0 | EZ53: 0
E54: 0 | F54: 0 | G54: 0 | H54: 0 | I54: 0 | J54: 0 | L54: 0 | M54: 0 | N54: 0 | O54: 0 | P54: 0 | Q54: 0 | R54: 0 | S54: 0 | T54: 0 | U54: 0 | V54: 0 | W54: 0 | X54: 0 | Y54: 0 | Z54: 0 | AA54: 0 | AB54: 0 | AC54: 0 | AD54: 0 | AE54: 0 | AF54: 0 | AG54: 0 | AH54: 0 | AI54: 0 | AJ54: 0 | AK54: 0 | AL54: 0 | AM54: 0 | AN54: 0 | AO54: 0 | AP54: 0 | AQ54: 0 | AR54: 0 | AS54: 0 | AT54: 0 | AU54: 0 | AV54: 0 | AW54: 0 | AX54: 0 | AY54: 0 | AZ54: 0 | BA54: 0 | BB54: 0 | BC54: 0 | BD54: 0 | BE54: 0 | BF54: 0 | BG54: 0 | BH54: 0 | BI54: 0 | BJ54: 0 | BK54: 0 | BL54: 0 | BM54: 0 | BN54: 0 | BO54: 0 | BP54: 0 | BQ54: 0 | BR54: 0 | BS54: 0 | BT54: 0 | BU54: 0 | BV54: 0 | BW54: 0 | BX54: 0 | BY54: 0 | BZ54: 0 | CA54: 0 | CB54: 0 | CC54: 0 | CD54: 0 | CE54: 0 | CG54: 0 | CH54: 0 | CI54: 0 | CJ54: 0 | CK54: 0 | CL54: 0 | CM54: 0 | CN54: 0 | CO54: 0 | CP54: 0 | CQ54: 0 | CR54: 0 | CS54: 0 | CT54: 0 | CU54: 0 | CV54: 0 | CW54: 0 | CX54: 0 | CY54: 0 | CZ54: 0 | DA54: 0 | DB54: 0 | DC54: 0 | DD54: 0 | DE54: 0 | DF54: 0 | DG54: 0 | DH54: 0 | DI54: 0 | DJ54: 0 | DK54: 0 | DL54: 0 | DM54: 0 | DN54: 0 | DO54: 0 | DP54: 0 | DQ54: 0 | DR54: 0 | DS54: 0 | DT54: 0 | DU54: 0 | DV54: 0 | DW54: 0 | DX54: 0 | DY54: 0 | DZ54: 0 | EA54: 0 | EB54: 0 | EC54: 0 | ED54: 0 | EE54: 0 | EF54: 0 | EG54: 0 | EH54: 0 | EI54: 0 | EJ54: 0 | EK54: 0 | EL54: 0 | EM54: 0 | EN54: 0 | EO54: 0 | EP54: 0 | EQ54: 0 | ER54: 0 | ES54: 0 | ET54: 0 | EU54: 0 | EV54: 0 | EW54: 0 | EX54: 0 | EY54: 0 | EZ54: 0
E55: 0 | F55: 0 | G55: 0 | H55: 0 | I55: 0 | J55: 0 | L55: 0 | M55: 0 | N55: 0 | O55: 0 | P55: 0 | Q55: 0 | R55: 0 | S55: 0 | T55: 0 | U55: 0 | V55: 0 | W55: 0 | X55: 0 | Y55: 0 | Z55: 0 | AA55: 0 | AB55: 0 | AC55: 0 | AD55: 0 | AE55: 0 | AF55: 0 | AG55: 0 | AH55: 0 | AI55: 0 | AJ55: 0 | AK55: 0 | AL55: 0 | AM55: 0 | AN55: 0 | AO55: 0 | AP55: 0 | AQ55: 0 | AR55: 0 | AS55: 0 | AT55: 0 | AU55: 0 | AV55: 0 | AW55: 0 | AX55: 0 | AY55: 0 | AZ55: 0 | BA55: 0 | BB55: 0 | BC55: 0 | BD55: 0 | BE55: 0 | BF55: 0 | BG55: 0 | BH55: 0 | BI55: 0 | BJ55: 0 | BK55: 0 | BL55: 0 | BM55: 0 | BN55: 0 | BO55: 0 | BP55: 0 | BQ55: 0 | BR55: 0 | BS55: 0 | BT55: 0 | BU55: 0 | BV55: 0 | BW55: 0 | BX55: 0 | BY55: 0 | BZ55: 0 | CA55: 0 | CB55: 0 | CC55: 0 | CD55: 0 | CE55: 0 | CG55: 0 | CH55: 0 | CI55: 0 | CJ55: 0 | CK55: 0 | CL55: 0 | CM55: 0 | CN55: 0 | CO55: 0 | CP55: 0 | CQ55: 0 | CR55: 0 | CS55: 0 | CT55: 0 | CU55: 0 | CV55: 0 | CW55: 0 | CX55: 0 | CY55: 0 | CZ55: 0 | DA55: 0 | DB55: 0 | DC55: 0 | DD55: 0 | DE55: 0 | DF55: 0 | DG55: 0 | DH55: 0 | DI55: 0 | DJ55: 0 | DK55: 0 | DL55: 0 | DM55: 0 | DN55: 0 | DO55: 0 | DP55: 0 | DQ55: 0 | DR55: 0 | DS55: 0 | DT55: 0 | DU55: 0 | DV55: 0 | DW55: 0 | DX55: 0 | DY55: 0 | DZ55: 0 | EA55: 0 | EB55: 0 | EC55: 0 | ED55: 0 | EE55: 0 | EF55: 0 | EG55: 0 | EH55: 0 | EI55: 0 | EJ55: 0 | EK55: 0 | EL55: 0 | EM55: 0 | EN55: 0 | EO55: 0 | EP55: 0 | EQ55: 0 | ER55: 0 | ES55: 0 | ET55: 0 | EU55: 0 | EV55: 0 | EW55: 0 | EX55: 0 | EY55: 0 | EZ55: 0
A56: Firm Surplus Sale | D56: FSS | E56: =+SUM(L56:W56,CG56:CR56) -> 0 | F56: 0 | G56: 0 | H56: 0 | I56: 0 | J56: 0 | L56: 0 | M56: 0 | N56: 0 | O56: 0 | P56: 0 | Q56: 0 | R56: 0 | S56: 0 | T56: 0 | U56: 0 | V56: 0 | W56: 0 | X56: 0 | Y56: 0 | Z56: 0 | AA56: 0 | AB56: 0 | AC56: 0 | AD56: 0 | AE56: 0 | AF56: 0 | AG56: 0 | AH56: 0 | AI56: 0 | AJ56: 0 | AK56: 0 | AL56: 0 | AM56: 0 | AN56: 0 | AO56: 0 | AP56: 0 | AQ56: 0 | AR56: 0 | AS56: 0 | AT56: 0 | AU56: 0 | AV56: 0 | AW56: 0 | AX56: 0 | AY56: 0 | AZ56: 0 | BA56: 0 | BB56: 0 | BC56: 0 | BD56: 0 | BE56: 0 | BF56: 0 | BG56: 0 | BH56: 0 | BI56: 0 | BJ56: 0 | BK56: 0 | BL56: 0 | BM56: 0 | BN56: 0 | BO56: 0 | BP56: 0 | BQ56: 0 | BR56: 0 | BS56: 0 | BT56: 0 | BU56: 0 | BV56: 0 | BW56: 0 | BX56: 0 | BY56: 0 | BZ56: 0 | CA56: 0 | CB56: 0 | CC56: 0 | CD56: 0 | CE56: 0 | CG56: 0 | CH56: 0 | CI56: 0 | CJ56: 0 | CK56: 0 | CL56: 0 | CM56: 0 | CN56: 0 | CO56: 0 | CP56: 0 | CQ56: 0 | CR56: 0 | CS56: 0 | CT56: 0 | CU56: 0 | CV56: 0 | CW56: 0 | CX56: 0 | CY56: 0 | CZ56: 0 | DA56: 0 | DB56: 0 | DC56: 0 | DD56: 0 | DE56: 0 | DF56: 0 | DG56: 0 | DH56: 0 | DI56: 0 | DJ56: 0 | DK56: 0 | DL56: 0 | DM56: 0 | DN56: 0 | DO56: 0 | DP56: 0 | DQ56: 0 | DR56: 0 | DS56: 0 | DT56: 0 | DU56: 0 | DV56: 0 | DW56: 0 | DX56: 0 | DY56: 0 | DZ56: 0 | EA56: 0 | EB56: 0 | EC56: 0 | ED56: 0 | EE56: 0 | EF56: 0 | EG56: 0 | EH56: 0 | EI56: 0 | EJ56: 0 | EK56: 0 | EL56: 0 | EM56: 0 | EN56: 0 | EO56: 0 | EP56: 0 | EQ56: 0 | ER56: 0 | ES56: 0 | ET56: 0 | EU56: 0 | EV56: 0 | EW56: 0 | EX56: 0 | EY56: 0 | EZ56: 0
A57: Presale of Secondary | D57: PRS | E57: 0 | F57: 0 | G57: 0 | H57: 0 | I57: 0 | J57: 0 | L57: 0 | M57: 0 | N57: 0 | O57: 0 | P57: 0 | Q57: 0 | R57: 0 | S57: 0 | T57: 0 | U57: 0 | V57: 0 | W57: 0 | X57: 0 | Y57: 0 | Z57: 0 | AA57: 0 | AB57: 0 | AC57: 0 | AD57: 0 | AE57: 0 | AF57: 0 | AG57: 0 | AH57: 0 | AI57: 0 | AJ57: 0 | AK57: 0 | AL57: 0 | AM57: 0 | AN57: 0 | AO57: 0 | AP57: 0 | AQ57: 0 | AR57: 0 | AS57: 0 | AT57: 0 | AU57: 0 | AV57: 0 | AW57: 0 | AX57: 0 | AY57: 0 | AZ57: 0 | BA57: 0 | BB57: 0 | BC57: 0 | BD57: 0 | BE57: 0 | BF57: 0 | BG57: 0 | BH57: 0 | BI57: 0 | BJ57: 0 | BK57: 0 | BL57: 0 | BM57: 0 | BN57: 0 | BO57: 0 | BP57: 0 | BQ57: 0 | BR57: 0 | BS57: 0 | BT57: 0 | BU57: 0 | BV57: 0 | BW57: 0 | BX57: 0 | BY57: 0 | BZ57: 0 | CA57: 0 | CB57: 0 | CC57: 0 | CD57: 0 | CE57: 0 | CG57: 0 | CH57: 0 | CI57: 0 | CJ57: 0 | CK57: 0 | CL57: 0 | CM57: 0 | CN57: 0 | CO57: 0 | CP57: 0 | CQ57: 0 | CR57: 0 | CS57: 0 | CT57: 0 | CU57: 0 | CV57: 0 | CW57: 0 | CX57: 0 | CY57: 0 | CZ57: 0 | DA57: 0 | DB57: 0 | DC57: 0 | DD57: 0 | DE57: 0 | DF57: 0 | DG57: 0 | DH57: 0 | DI57: 0 | DJ57: 0 | DK57: 0 | DL57: 0 | DM57: 0 | DN57: 0 | DO57: 0 | DP57: 0 | DQ57: 0 | DR57: 0 | DS57: 0 | DT57: 0 | DU57: 0 | DV57: 0 | DW57: 0 | DX57: 0 | DY57: 0 | DZ57: 0 | EA57: 0 | EB57: 0 | EC57: 0 | ED57: 0 | EE57: 0 | EF57: 0 | EG57: 0 | EH57: 0 | EI57: 0 | EJ57: 0 | EK57: 0 | EL57: 0 | EM57: 0 | EN57: 0 | EO57: 0 | EP57: 0 | EQ57: 0 | ER57: 0 | ES57: 0 | ET57: 0 | EU57: 0 | EV57: 0 | EW57: 0 | EX57: 0 | EY57: 0 | EZ57: 0
A58: Conservation | D58: CON | E58: 0 | F58: 0 | G58: 0 | H58: 0 | I58: 0 | J58: 0 | L58: 0 | M58: 0 | N58: 0 | O58: 0 | P58: 0 | Q58: 0 | R58: 0 | S58: 0 | T58: 0 | U58: 0 | V58: 0 | W58: 0 | X58: 0 | Y58: 0 | Z58: 0 | AA58: 0 | AB58: 0 | AC58: 0 | AD58: 0 | AE58: 0 | AF58: 0 | AG58: 0 | AH58: 0 | AI58: 0 | AJ58: 0 | AK58: 0 | AL58: 0 | AM58: 0 | AN58: 0 | AO58: 0 | AP58: 0 | AQ58: 0 | AR58: 0 | AS58: 0 | AT58: 0 | AU58: 0 | AV58: 0 | AW58: 0 | AX58: 0 | AY58: 0 | AZ58: 0 | BA58: 0 | BB58: 0 | BC58: 0 | BD58: 0 | BE58: 0 | BF58: 0 | BG58: 0 | BH58: 0 | BI58: 0 | BJ58: 0 | BK58: 0 | BL58: 0 | BM58: 0 | BN58: 0 | BO58: 0 | BP58: 0 | BQ58: 0 | BR58: 0 | BS58: 0 | BT58: 0 | BU58: 0 | BV58: 0 | BW58: 0 | BX58: 0 | BY58: 0 | BZ58: 0 | CA58: 0 | CB58: 0 | CC58: 0 | CD58: 0 | CE58: 0 | CG58: 0 | CH58: 0 | CI58: 0 | CJ58: 0 | CK58: 0 | CL58: 0 | CM58: 0 | CN58: 0 | CO58: 0 | CP58: 0 | CQ58: 0 | CR58: 0 | CS58: 0 | CT58: 0 | CU58: 0 | CV58: 0 | CW58: 0 | CX58: 0 | CY58: 0 | CZ58: 0 | DA58: 0 | DB58: 0 | DC58: 0 | DD58: 0 | DE58: 0 | DF58: 0 | DG58: 0 | DH58: 0 | DI58: 0 | DJ58: 0 | DK58: 0 | DL58: 0 | DM58: 0 | DN58: 0 | DO58: 0 | DP58: 0 | DQ58: 0 | DR58: 0 | DS58: 0 | DT58: 0 | DU58: 0 | DV58: 0 | DW58: 0 | DX58: 0 | DY58: 0 | DZ58: 0 | EA58: 0 | EB58: 0 | EC58: 0 | ED58: 0 | EE58: 0 | EF58: 0 | EG58: 0 | EH58: 0 | EI58: 0 | EJ58: 0 | EK58: 0 | EL58: 0 | EM58: 0 | EN58: 0 | EO58: 0 | EP58: 0 | EQ58: 0 | ER58: 0 | ES58: 0 | ET58: 0 | EU58: 0 | EV58: 0 | EW58: 0 | EX58: 0 | EY58: 0 | EZ58: 0
A61: Loss Percentage | E61: =Loads_MthLoss!E54 -> 0.03222711859 | F61: =Loads_MthLoss!F54 -> 0.03222819863 | G61: =Loads_MthLoss!G54 -> 0.03222829901 | H61: =Loads_MthLoss!H54 -> 0.03222857863 | I61: =Loads_MthLoss!I54 -> 0.03222792803 | J61: =Loads_MthLoss!J54 -> 0.03207657227 | L61: 0.03199174407 | M61: 0.03199174407 | N61: 0.03199174407 | O61: 0.03199174407 | P61: 0.03199174407 | Q61: 0.03199174407 | R61: 0.03199174407 | S61: 0.03199174407 | T61: 0.03199174407 | U61: 0.03199174407 | V61: 0.03199174407 | W61: 0.03199174407 | X61: 0.03199174407 | Y61: 0.03199174407 | Z61: 0.03199174407 | AA61: 0.03199174407 | AB61: 0.03199174407 | AC61: 0.03199174407 | AD61: 0.03199174407 | AE61: 0.03199174407 | AF61: 0.03199174407 | AG61: 0.03199174407 | AH61: 0.03199174407 | AI61: 0.03199174407

Sheet Loads
B1: Loads (MWh)
A2: TOC | B2: =Cover!$C$14 -> FY2024-25 Reference Case Phase 2
A3: é | E3: Annual | L3: HLH | CG3: LLH
E4: =Init!$C$9 -> 2024 | F4: =E4+1 -> 2025 | G4: =F4+1 -> 2026 | H4: 2027 | I4: 2028 | J4: 2029 | L4: =DATE($E$4-1,10,1) -> 2023-10-01 | M4: =EOMONTH(L4,0)+1 -> 2023-11-01 | N4: =EOMONTH(M4,0)+1 -> 2023-12-01 | O4: 2024-01-01 | P4: 2024-02-01 | Q4: 2024-03-01 | R4: 2024-04-01 | S4: 2024-05-01 | T4: 2024-06-01 | U4: 2024-07-01 | V4: 2024-08-01 | W4: 2024-09-01 | X4: 2024-10-01 | Y4: 2024-11-01 | Z4: 2024-12-01 | AA4: 2025-01-01 | AB4: 2025-02-01 | AC4: 2025-03-01 | AD4: 2025-04-01 | AE4: 2025-05-01 | AF4: 2025-06-01 | AG4: 2025-07-01 | AH4: 2025-08-01 | AI4: 2025-09-01 | AJ4: 2025-10-01 | AK4: 2025-11-01 | AL4: 2025-12-01 | AM4: 2026-01-01 | AN4: 2026-02-01 | AO4: 2026-03-01 | AP4: 2026-04-01 | AQ4: 2026-05-01 | AR4: 2026-06-01 | AS4: 2026-07-01 | AT4: 2026-08-01 | AU4: 2026-09-01 | AV4: 2026-10-01 | AW4: 2026-11-01 | AX4: 2026-12-01 | AY4: 2027-01-01 | AZ4: 2027-02-01 | BA4: 2027-03-01 | BB4: 2027-04-01 | BC4: 2027-05-01 | BD4: 2027-06-01 | BE4: 2027-07-01 | BF4: 2027-08-01 | BG4: 2027-09-01 | BH4: 2027-10-01 | BI4: 2027-11-01 | BJ4: 2027-12-01 | BK4: 2028-01-01 | BL4: 2028-02-01 | BM4: 2028-03-01 | BN4: 2028-04-01 | BO4: 2028-05-01 | BP4: 2028-06-01 | BQ4: 2028-07-01 | BR4: 2028-08-01 | BS4: 2028-09-01 | BT4: 2028-10-01 | BU4: 2028-11-01 | BV4: 2028-12-01 | BW4: 2029-01-01 | BX4: 2029-02-01 | BY4: 2029-03-01 | BZ4: =EOMONTH(BY4,0)+1 -> 2029-04-01 | CA4: 2029-05-01 | CB4: 2029-06-01 | CC4: 2029-07-01 | CD4: 2029-08-01 | CE4: 2029-09-01 | CG4: =DATE($E$4-1,10,1) -> 2023-10-01 | CH4: =EOMONTH(CG4,0)+1 -> 2023-11-01 | CI4: =EOMONTH(CH4,0)+1 -> 2023-12-01 | CJ4: 2024-01-01 | CK4: 2024-02-01 | CL4: 2024-03-01 | CM4: 2024-04-01 | CN4: 2024-05-01 | CO4: 2024-06-01 | CP4: 2024-07-01 | CQ4: 2024-08-01 | CR4: 2024-09-01 | CS4: 2024-10-01 | CT4: 2024-11-01 | CU4: 2024-12-01 | CV4: 2025-01-01 | CW4: 2025-02-01 | CX4: 2025-03-01 | CY4: 2025-04-01 | CZ4: 2025-05-01 | DA4: 2025-06-01 | DB4: 2025-07-01 | DC4: 2025-08-01 | DD4: 2025-09-01 | DE4: 2025-10-01 | DF4: 2025-11-01 | DG4: 2025-12-01 | DH4: 2026-01-01 | DI4: 2026-02-01 | DJ4: 2026-03-01 | DK4: 2026-04-01 | DL4: 2026-05-01 | DM4: 2026-06-01 | DN4: 2026-07-01 | DO4: 2026-08-01 | DP4: 2026-09-01 | DQ4: 2026-10-01 | DR4: 2026-11-01 | DS4: 2026-12-01 | DT4: 2027-01-01 | DU4: 2027-02-01 | DV4: 2027-03-01 | DW4: 2027-04-01 | DX4: 2027-05-01 | DY4: 2027-06-01 | DZ4: 2027-07-01 | EA4: 2027-08-01 | EB4: 2027-09-01 | EC4: 2027-10-01 | ED4: 2027-11-01 | EE4: 2027-12-01 | EF4: 2028-01-01 | EG4: 2028-02-01 | EH4: 2028-03-01 | EI4: 2028-04-01 | EJ4: 2028-05-01 | EK4: 2028-06-01 | EL4: 2028-07-01 | EM4: 2028-08-01 | EN4: 2028-09-01 | EO4: 2028-10-01 | EP4: 2028-11-01 | EQ4: 2028-12-01 | ER4: 2029-01-01 | ES4: 2029-02-01 | ET4: 2029-03-01 | EU4: =EOMONTH(ET4,0)+1 -> 2029-04-01 | EV4: 2029-05-01 | EW4: 2029-06-01 | EX4: 2029-07-01 | EY4: 2029-08-01 | EZ4: 2029-09-01
A5: Preference | D5: PRE | E5: =+SUM(E6:E10) -> 61127527.83 | F5: 62837585.88 | G5: 62266646.75 | H5: 62413639.82 | I5: 62648278.65 | J5: 64477853.53 | L5: =LoadScenarioInput!L12 -> 2706689.908 | M5: =LoadScenarioInput!M12 -> 3132135.216 | N5: =LoadScenarioInput!N12 -> 3606257.779 | O5: =LoadScenarioInput!O12 -> 3760610.659 | P5: =LoadScenarioInput!P12 -> 3268509.484 | Q5: =LoadScenarioInput!Q12 -> 3251220.806 | R5: =LoadScenarioInput!R12 -> 2718652.605 | S5: =LoadScenarioInput!S12 -> 2776626.791 | T5: =LoadScenarioInput!T12 -> 2735513.36 | U5: =LoadScenarioInput!U12 -> 2917864.202 | V5: =LoadScenarioInput!V12 -> 3012790.82 | W5: =LoadScenarioInput!W12 -> 2613531.336 | X5: =LoadScenarioInput!X12 -> 2850530.104 | Y5: =LoadScenarioInput!Y12 -> 3216267.192 | Z5: =LoadScenarioInput!Z12 -> 3689927.94 | AA5: =LoadScenarioInput!AA12 -> 3851458.583 | AB5: =LoadScenarioInput!AB12 -> 3282893.866 | AC5: =LoadScenarioInput!AC12 -> 3346700.522 | AD5: =LoadScenarioInput!AD12 -> 2827256.732 | AE5: =LoadScenarioInput!AE12 -> 2745897.103 | AF5: =LoadScenarioInput!AF12 -> 2858597.507 | AG5: =LoadScenarioInput!AG12 -> 3033612.386 | AH5: =LoadScenarioInput!AH12 -> 3052514.643 | AI5: =LoadScenarioInput!AI12 -> 2747221.706 | AJ5: =LoadScenarioInput!AJ12 -> 2838804.64 | AK5: =LoadScenarioInput!AK12 -> 3160453.929 | AL5: =LoadScenarioInput!AL12 -> 3738433.293 | AM5: =LoadScenarioInput!AM12 -> 3804188.149 | AN5: =LoadScenarioInput!AN12 -> 3253781.503 | AO5: =LoadScenarioInput!AO12 -> 3281124.049 | AP5: =LoadScenarioInput!AP12 -> 2770573.074 | AQ5: =LoadScenarioInput!AQ12 -> 2787095.118 | AR5: =LoadScenarioInput!AR12 -> 2867579.177 | AS5: =LoadScenarioInput!AS12 -> 3034200.015 | AT5: =LoadScenarioInput!AT12 -> 3046903.103 | AU5: =LoadScenarioInput!AU12 -> 2694243.833 | AV5: =LoadScenarioInput!AV12 -> 2855512.701 | AW5: =LoadScenarioInput!AW12 -> 3187626.156 | AX5: =LoadScenarioInput!AX12 -> 3746233.331 | AY5: =LoadScenarioInput!AY12 -> 3764151.903 | AZ5: =LoadScenarioInput!AZ12 -> 3274281.43 | BA5: =LoadScenarioInput!BA12 -> 3347928.292 | BB5: =LoadScenarioInput!BB12 -> 2793414.202 | BC5: =LoadScenarioInput!BC12 -> 2693266.985 | BD5: =LoadScenarioInput!BD12 -> 2935122.608 | BE5: =LoadScenarioInput!BE12 -> 3016453.282 | BF5: =LoadScenarioInput!BF12 -> 3067967.664 | BG5: =LoadScenarioInput!BG12 -> 2703010.031 | BH5: =LoadScenarioInput!BH12 -> 2846238.248 | BI5: =LoadScenarioInput!BI12 -> 3213912.094 | BJ5: =LoadScenarioInput!BJ12 -> 3739406.069 | BK5: =LoadScenarioInput!BK12 -> 3802634.03 | BL5: =LoadScenarioInput!BL12 -> 3348624.597 | BM5: =LoadScenarioInput!BM12 -> 3331408.266 | BN5: =LoadScenarioInput!BN12 -> 2764654.227 | BO5: =LoadScenarioInput!BO12 -> 2831767.668 | BP5: =LoadScenarioInput!BP12 -> 2886774.342 | BQ5: =LoadScenarioInput!BQ12 -> 3029133.387 | BR5: =LoadScenarioInput!BR12 -> 3099327.82 | BS5: =LoadScenarioInput!BS12 -> 2708383.143 | BT5: =LoadScenarioInput!BT12 -> 2947642.435 | BU5: =LoadScenarioInput!BU12 -> 3329645.454 | BV5: =LoadScenarioInput!BV12 -> 3831049.177 | BW5: =LoadScenarioInput!BW12 -> 3928890.998 | BX5: =LoadScenarioInput!BX12 -> 3388776.789 | BY5: =LoadScenarioInput!BY12 -> 3462336.63 | BZ5: =LoadScenarioInput!BZ12 -> 2873343.393 | CA5: =LoadScenarioInput!CA12 -> 2794717.264 | CB5: =LoadScenarioInput!CB12 -> 3018948.15 | CC5: =LoadScenarioInput!CC12 -> 3094027.507 | CD5: =LoadScenarioInput!CD12 -> 3193659.408 | CE5: =LoadScenarioInput!CE12 -> 2799157.975 | CG5: =LoadScenarioInput!CG12 -> 1811819.205 | CH5: =LoadScenarioInput!CH12 -> 2184724 | CI5: =LoadScenarioInput!CI12 -> 2625701.135 | CJ5: =LoadScenarioInput!CJ12 -> 2589514.268 | CK5: =LoadScenarioInput!CK12 -> 2134510.279 | CL5: =LoadScenarioInput!CL12 -> 2208969.739 | CM5: =LoadScenarioInput!CM12 -> 1799104.006 | CN5: =LoadScenarioInput!CN12 -> 1878891.2 | CO5: =LoadScenarioInput!CO12 -> 1756621.42 | CP5: =LoadScenarioInput!CP12 -> 1961942.541 | CQ5: =LoadScenarioInput!CQ12 -> 1808354.831 | CR5: =LoadScenarioInput!CR12 -> 1866972.238 | CS5: =LoadScenarioInput!CS12 -> 1823081.254 | CT5: =LoadScenarioInput!CT12 -> 2254008.722 | CU5: =LoadScenarioInput!CU12 -> 2702120.73 | CV5: =LoadScenarioInput!CV12 -> 2665847.051 | CW5: =LoadScenarioInput!CW12 -> 2168825.395 | CX5: =LoadScenarioInput!CX12 -> 2276267.825 | CY5: =LoadScenarioInput!CY12 -> 1869487.838 | CZ5: =LoadScenarioInput!CZ12 -> 1886661.727 | DA5: =LoadScenarioInput!DA12 -> 1822607.592 | DB5: =LoadScenarioInput!DB12 -> 2048994.651 | DC5: =LoadScenarioInput!DC12 -> 1925159.804 | DD5: =LoadScenarioInput!DD12 -> 1891645.013 | DE5: =LoadScenarioInput!DE12 -> 1808880.686 | DF5: =LoadScenarioInput!DF12 -> 2280083.377 | DG5: =LoadScenarioInput!DG12 -> 2615870.717 | DH5: =LoadScenarioInput!DH12 -> 2619886.214 | DI5: =LoadScenarioInput!DI12 -> 2146947.918 | DJ5: =LoadScenarioInput!DJ12 -> 2206445.177 | DK5: =LoadScenarioInput!DK12 -> 1834369.78 | DL5: =LoadScenarioInput!DL12 -> 1953170.525 | DM5: =LoadScenarioInput!DM12 -> 1745731.315 | DN5: =LoadScenarioInput!DN12 -> 2047023.054 | DO5: =LoadScenarioInput!DO12 -> 1874774.241 | DP5: =LoadScenarioInput!DP12 -> 1856083.86 | DQ5: =LoadScenarioInput!DQ12 -> 1817361.606 | DR5: =LoadScenarioInput!DR12 -> 2279962.961 | DS5: =LoadScenarioInput!DS12 -> 2636502.396 | DT5: =LoadScenarioInput!DT12 -> 2687097.952 | DU5: =LoadScenarioInput!DU12 -> 2160205.177 | DV5: =LoadScenarioInput!DV12 -> 2175581.251 | DW5: =LoadScenarioInput!DW12 -> 1855124.204 | DX5: =LoadScenarioInput!DX12 -> 1883891.648 | DY5: =LoadScenarioInput!DY12 -> 1756884.794 | DZ5: =LoadScenarioInput!DZ12 -> 2043450.137 | EA5: =LoadScenarioInput!EA12 -> 1869224.658 | EB5: =LoadScenarioInput!EB12 -> 1863384.456 | EC5: =LoadScenarioInput!EC12 -> 1821877.57 | ED5: =LoadScenarioInput!ED12 -> 2250011.788 | EE5: =LoadScenarioInput!EE12 -> 2638136.736 | EF5: =LoadScenarioInput!EF12 -> 2648123.044 | EG5: =LoadScenarioInput!EG12 -> 2194616.333 | EH5: =LoadScenarioInput!EH12 -> 2194548.646 | EI5: =LoadScenarioInput!EI12 -> 1859885.306 | EJ5: =LoadScenarioInput!EJ12 -> 1925884.989 | EK5: =LoadScenarioInput!EK12 -> 1741977.553 | EL5: =LoadScenarioInput!EL12 -> 2066064.551 | EM5: =LoadScenarioInput!EM12 -> 1842375.899 | EN5: =LoadScenarioInput!EN12 -> 1862512.346 | EO5: =LoadScenarioInput!EO12 -> 1885833.644 | EP5: =LoadScenarioInput!EP12 -> 2329458.187 | EQ5: =LoadScenarioInput!EQ12 -> 2758900.826 | ER5: =LoadScenarioInput!ER12 -> 2733998.313 | ES5: =LoadScenarioInput!ES12 -> 2233149.099 | ET5: =LoadScenarioInput!ET12 -> 2261037.28 | EU5: =LoadScenarioInput!EU12 -> 1934843.461 | EV5: =LoadScenarioInput!EV12 -> 1919486.319 | EW5: =LoadScenarioInput!EW12 -> 1802059.323 | EX5: =LoadScenarioInput!EX12 -> 2119530.277 | EY5: =LoadScenarioInput!EY12 -> 1902333.821 | EZ5: =LoadScenarioInput!EZ12 -> 1935027.805
B6: Block | D6: PRE_BLK | E6: =+SUM(L6:W6,CG6:CR6) -> 4680018.576 | F6: =+SUM(X6:AI6,CS6:DD6) -> 4649142.24 | G6: =+SUM(AJ6:AU6,DE6:DP6) -> 4676964 | H6: =+SUM(AV6:BG6,DQ6:EB6) -> 4686319.68 | I6: =+SUM(BH6:BS6,EC6:EN6) -> 4716814.752 | J6: =+SUM(BT6:CE6,EO6:EZ6) -> 5202739.2 | L6: =LoadScenarioInput!L13 -> 217353.1256 | M6: =LoadScenarioInput!M13 -> 348159.5973 | N6: =LoadScenarioInput!N13 -> 358722.8599 | O6: =LoadScenarioInput!O13 -> 395977.1904 | P6: =LoadScenarioInput!P13 -> 337184.8795 | Q6: =LoadScenarioInput!Q13 -> 352250.3216 | R6: =LoadScenarioInput!R13 -> 166731.6123 | S6: =LoadScenarioInput!S13 -> 61912.89086 | T6: =LoadScenarioInput!T13 -> 9194.834707 | U6: =LoadScenarioInput!U13 -> 140817.9657 | V6: =LoadScenarioInput!V13 -> 158409.0183 | W6: =LoadScenarioInput!W13 -> 251639.5943 | X6: =LoadScenarioInput!X13 -> 216056.028 | Y6: =LoadScenarioInput!Y13 -> 345829.9292 | Z6: =LoadScenarioInput!Z13 -> 356342.6232 | AA6: =LoadScenarioInput!AA13 -> 393375.7759 | AB6: =LoadScenarioInput!AB13 -> 334847.482 | AC6: =LoadScenarioInput!AC13 -> 349920.3304 | AD6: =LoadScenarioInput!AD13 -> 165613.9894 | AE6: =LoadScenarioInput!AE13 -> 61526.65716 | AF6: =LoadScenarioInput!AF13 -> 9169.712208 | AG6: =LoadScenarioInput!AG13 -> 139912.2425 | AH6: =LoadScenarioInput!AH13 -> 157168.222 | AI6: =LoadScenarioInput!AI13 -> 250333.9424 | AJ6: =LoadScenarioInput!AJ13 -> 217399.4553 | AK6: =LoadScenarioInput!AK13 -> 347213.734 | AL6: =LoadScenarioInput!AL13 -> 359154.5586 | AM6: =LoadScenarioInput!AM13 -> 395709.5673 | AN6: =LoadScenarioInput!AN13 -> 336830.6549 | AO6: =LoadScenarioInput!AO13 -> 352025.3386 | AP6: =LoadScenarioInput!AP13 -> 166637.4154 | AQ6: =LoadScenarioInput!AQ13 -> 61854.1848 | AR6: =LoadScenarioInput!AR13 -> 9159.52608 | AS6: =LoadScenarioInput!AS13 -> 140706.8501 | AT6: =LoadScenarioInput!AT13 -> 158121.8024 | AU6: =LoadScenarioInput!AU13 -> 251896.5331 | AV6: =LoadScenarioInput!AV13 -> 217848.528 | AW6: =LoadScenarioInput!AW13 -> 347926.6368 | AX6: =LoadScenarioInput!AX13 -> 359878.6883 | AY6: =LoadScenarioInput!AY13 -> 395574.1185 | AZ6: =LoadScenarioInput!AZ13 -> 337498.6504 | BA6: =LoadScenarioInput!BA13 -> 353504.67 | BB6: =LoadScenarioInput!BB13 -> 166979.8332 | BC6: =LoadScenarioInput!BC13 -> 61966.45296 | BD6: =LoadScenarioInput!BD13 -> 9159.52608 | BE6: =LoadScenarioInput!BE13 -> 140976.2936 | BF6: =LoadScenarioInput!BF13 -> 158441.7667 | BG6: =LoadScenarioInput!BG13 -> 252418.5801 | BH6: =LoadScenarioInput!BH13 -> 219139.9705 | BI6: =LoadScenarioInput!BI13 -> 350987.1967 | BJ6: =LoadScenarioInput!BJ13 -> 362236.0708 | BK6: =LoadScenarioInput!BK13 -> 398137.6584 | BL6: =LoadScenarioInput!BL13 -> 339803.4771 | BM6: =LoadScenarioInput!BM13 -> 355809.257 | BN6: =LoadScenarioInput!BN13 -> 168041.1591 | BO6: =LoadScenarioInput!BO13 -> 62338.3439 | BP6: =LoadScenarioInput!BP13 -> 9168.999206 | BQ6: =LoadScenarioInput!BQ13 -> 141676.3282 | BR6: =LoadScenarioInput!BR13 -> 159672.1373 | BS6: =LoadScenarioInput!BS13 -> 254110.8404 | BT6: =LoadScenarioInput!BT13 -> 242484.1996 | BU6: =LoadScenarioInput!BU13 -> 388037.6836 | BV6: =LoadScenarioInput!BV13 -> 399200.89 | BW6: =LoadScenarioInput!BW13 -> 439869.8029 | BX6: =LoadScenarioInput!BX13 -> 374366.032 | BY6: =LoadScenarioInput!BY13 -> 392547.2817 | BZ6: =LoadScenarioInput!BZ13 -> 185838.5466 | CA6: =LoadScenarioInput!CA13 -> 68153.7636 | CB6: =LoadScenarioInput!CB13 -> 9143.947296 | CC6: =LoadScenarioInput!CC13 -> 155655.0178 | CD6: =LoadScenarioInput!CD13 -> 176295.2423 | CE6: =LoadScenarioInput!CE13 -> 280860.0855 | CG6: =LoadScenarioInput!CG13 -> 145426.1886 | CH6: =LoadScenarioInput!CH13 -> 234647.9984 | CI6: =LoadScenarioInput!CI13 -> 242324.8436 | CJ6: =LoadScenarioInput!CJ13 -> 266913.615 | CK6: =LoadScenarioInput!CK13 -> 226392.6164 | CL6: =LoadScenarioInput!CL13 -> 237239.3682 | CM6: =LoadScenarioInput!CM13 -> 111238.2434 | CN6: =LoadScenarioInput!CN13 -> 41275.26058 | CO6: =LoadScenarioInput!CO13 -> 6129.889805 | CP6: =LoadScenarioInput!CP13 -> 94464.40811 | CQ6: =LoadScenarioInput!CQ13 -> 105890.7813 | CR6: =LoadScenarioInput!CR13 -> 169721.472 | CS6: =LoadScenarioInput!CS13 -> 144284.9339 | CT6: =LoadScenarioInput!CT13 -> 233087.9422 | CU6: =LoadScenarioInput!CU13 -> 240729.3408 | CV6: =LoadScenarioInput!CV13 -> 265171.3364 | CW6: =LoadScenarioInput!CW13 -> 225037.5462 | CX6: =LoadScenarioInput!CX13 -> 235679.4675 | CY6: =LoadScenarioInput!CY13 -> 110492.9324 | CZ6: =LoadScenarioInput!CZ13 -> 41017.77144 | DA6: =LoadScenarioInput!DA13 -> 6113.141472 | DB6: =LoadScenarioInput!DB13 -> 93858.99216 | DC6: =LoadScenarioInput!DC13 -> 105378.3512 | DD6: =LoadScenarioInput!DD13 -> 168193.5499 | DE6: =LoadScenarioInput!DE13 -> 145180.2735 | DF6: =LoadScenarioInput!DF13 -> 235250.2292 | DG6: =LoadScenarioInput!DG13 -> 241509.3558 | DH6: =LoadScenarioInput!DH13 -> 266723.9103 | DI6: =LoadScenarioInput!DI13 -> 226357.6291 | DJ6: =LoadScenarioInput!DJ13 -> 237080.1062 | DK6: =LoadScenarioInput!DK13 -> 111175.1222 | DL6: =LoadScenarioInput!DL13 -> 41236.1232 | DM6: =LoadScenarioInput!DM13 -> 6106.35072 | DN6: =LoadScenarioInput!DN13 -> 94388.07314 | DO6: =LoadScenarioInput!DO13 -> 106013.3968 | DP6: =LoadScenarioInput!DP13 -> 169233.8093 | DQ6: =LoadScenarioInput!DQ13 -> 145479.6552 | DR6: =LoadScenarioInput!DR13 -> 235725.4977 | DS6: =LoadScenarioInput!DS13 -> 241992.1089 | DT6: =LoadScenarioInput!DT13 -> 268169.1543 | DU6: =LoadScenarioInput!DU13 -> 226802.9595 | DV6: =LoadScenarioInput!DV13 -> 236779.5904 | DW6: =LoadScenarioInput!DW13 -> 111403.4008 | DX6: =LoadScenarioInput!DX13 -> 41310.96864 | DY6: =LoadScenarioInput!DY13 -> 6106.35072 | DZ6: =LoadScenarioInput!DZ13 -> 94567.70219 | EA6: =LoadScenarioInput!EA13 -> 106226.7063 | EB6: =LoadScenarioInput!EB13 -> 169581.8406 | EC6: =LoadScenarioInput!EC13 -> 146615.9338 | ED6: =LoadScenarioInput!ED13 -> 236525.8648 | EE6: =LoadScenarioInput!EE13 -> 243565.8233 | EF6: =LoadScenarioInput!EF13 -> 269882.7482 | EG6: =LoadScenarioInput!EG13 -> 228133.8079 | EH6: =LoadScenarioInput!EH13 -> 238317.12 | EI6: =LoadScenarioInput!EI13 -> 112194.6347 | EJ6: =LoadScenarioInput!EJ13 -> 41558.89594 | EK6: =LoadScenarioInput!EK13 -> 6112.666138 | EL6: =LoadScenarioInput!EL13 -> 95342.41402 | EM6: =LoadScenarioInput!EM13 -> 106732.0539 | EN6: =LoadScenarioInput!EN13 -> 170711.3503 | EO6: =LoadScenarioInput!EO13 -> 162177.3253 | EP6: =LoadScenarioInput!EP13 -> 261219.2648 | EQ6: =LoadScenarioInput!EQ13 -> 269292.5453 | ER6: =LoadScenarioInput!ER13 -> 296159.0802 | ES6: =LoadScenarioInput!ES13 -> 251378.1303 | ET6: =LoadScenarioInput!ET13 -> 262806.1011 | EU6: =LoadScenarioInput!EU13 -> 124059.1029 | EV6: =LoadScenarioInput!EV13 -> 45435.8424 | EW6: =LoadScenarioInput!EW13 -> 6095.964864 | EX6: =LoadScenarioInput!EX13 -> 104659.1045 | EY6: =LoadScenarioInput!EY13 -> 117813.3481 | EZ6: =LoadScenarioInput!EZ13 -> 189190.8973
B7: Slice Block | D7: PRE_BLK | E7: =+SUM(L7:W7,CG7:CR7) -> 10827952.78 | F7: =+SUM(X7:AI7,CS7:DD7) -> 11067431.05 | G7: =+SUM(AJ7:AU7,DE7:DP7) -> 10923940.72 | H7: =+SUM(AV7:BG7,DQ7:EB7) -> 11050818.2 | I7: =+SUM(BH7:BS7,EC7:EN7) -> 10881313.17 | J7: =+SUM(BT7:CE7,EO7:EZ7) -> 11760515.73 | L7: =LoadScenarioInput!L14 -> 472702.8866 | M7: =LoadScenarioInput!M14 -> 528760.8941 | N7: =LoadScenarioInput!N14 -> 604143.6006 | O7: =LoadScenarioInput!O14 -> 621507.2835 | P7: =LoadScenarioInput!P14 -> 532411.8436 | Q7: =LoadScenarioInput!Q14 -> 530664.718 | R7: =LoadScenarioInput!R14 -> 489862.26 | S7: =LoadScenarioInput!S14 -> 471451.5674 | T7: =LoadScenarioInput!T14 -> 433446.5093 | U7: =LoadScenarioInput!U14 -> 465954.8034 | V7: =LoadScenarioInput!V14 -> 480804.3353 | W7: =LoadScenarioInput!W14 -> 419945.369 | X7: =LoadScenarioInput!X14 -> 502263.6446 | Y7: =LoadScenarioInput!Y14 -> 540141.4347 | Z7: =LoadScenarioInput!Z14 -> 616513.6259 | AA7: =LoadScenarioInput!AA14 -> 634362.8169 | AB7: =LoadScenarioInput!AB14 -> 540645.3591 | AC7: =LoadScenarioInput!AC14 -> 542095.8046 | AD7: =LoadScenarioInput!AD14 -> 501003.378 | AE7: =LoadScenarioInput!AE14 -> 481999.9857 | AF7: =LoadScenarioInput!AF14 -> 443385.2593 | AG7: =LoadScenarioInput!AG14 -> 476737.8609 | AH7: =LoadScenarioInput!AH14 -> 473811.385 | AI7: =LoadScenarioInput!AI14 -> 447749.998 | AJ7: =LoadScenarioInput!AJ14 -> 495927.6009 | AK7: =LoadScenarioInput!AK14 -> 511680.1735 | AL7: =LoadScenarioInput!AL14 -> 632690.4258 | AM7: =LoadScenarioInput!AM14 -> 626126.8107 | AN7: =LoadScenarioInput!AN14 -> 533652.5672 | AO7: =LoadScenarioInput!AO14 -> 534908.8701 | AP7: =LoadScenarioInput!AP14 -> 494436.8154 | AQ7: =LoadScenarioInput!AQ14 -> 457359.6901 | AR7: =LoadScenarioInput!AR14 -> 455188.5076 | AS7: =LoadScenarioInput!AS14 -> 470696.0147 | AT7: =LoadScenarioInput!AT14 -> 467882.5402 | AU7: =LoadScenarioInput!AU14 -> 442006.1628 | AV7: =LoadScenarioInput!AV14 -> 501814.2734 | AW7: =LoadScenarioInput!AW14 -> 517548.2331 | AX7: =LoadScenarioInput!AX14 -> 639950.5349 | AY7: =LoadScenarioInput!AY14 -> 609028.1078 | AZ7: =LoadScenarioInput!AZ14 -> 539879.3291 | BA7: =LoadScenarioInput!BA14 -> 561836.845 | BB7: =LoadScenarioInput!BB14 -> 500155.2939 | BC7: =LoadScenarioInput!BC14 -> 462606.3026 | BD7: =LoadScenarioInput!BD14 -> 460468.1887 | BE7: =LoadScenarioInput!BE14 -> 476226.5326 | BF7: =LoadScenarioInput!BF14 -> 473435.0856 | BG7: =LoadScenarioInput!BG14 -> 447176.5787 | BH7: =LoadScenarioInput!BH14 -> 475985.0803 | BI7: =LoadScenarioInput!BI14 -> 530825.7563 | BJ7: =LoadScenarioInput!BJ14 -> 630060.1121 | BK7: =LoadScenarioInput!BK14 -> 599760.3645 | BL7: =LoadScenarioInput!BL14 -> 534610.3671 | BM7: =LoadScenarioInput!BM14 -> 552878.4078 | BN7: =LoadScenarioInput!BN14 -> 473335.0964 | BO7: =LoadScenarioInput!BO14 -> 473848.3805 | BP7: =LoadScenarioInput!BP14 -> 453419.8743 | BQ7: =LoadScenarioInput!BQ14 -> 451005.2207 | BR7: =LoadScenarioInput!BR14 -> 484301.0067 | BS7: =LoadScenarioInput!BS14 -> 440296.033 | BT7: =LoadScenarioInput!BT14 -> 513008.2335 | BU7: =LoadScenarioInput!BU14 -> 573611.0013 | BV7: =LoadScenarioInput!BV14 -> 656091.4861 | BW7: =LoadScenarioInput!BW14 -> 674733.3964 | BX7: =LoadScenarioInput!BX14 -> 575971.0341 | BY7: =LoadScenarioInput!BY14 -> 601249.3346 | BZ7: =LoadScenarioInput!BZ14 -> 513221.5457 | CA7: =LoadScenarioInput!CA14 -> 510266.9704 | CB7: =LoadScenarioInput!CB14 -> 488571.7448 | CC7: =LoadScenarioInput!CC14 -> 485931.7798 | CD7: =LoadScenarioInput!CD14 -> 521240.4708 | CE7: =LoadScenarioInput!CE14 -> 456777.2865 | CG7: =LoadScenarioInput!CG14 -> 372708.0452 | CH7: =LoadScenarioInput!CH14 -> 424330.6175 | CI7: =LoadScenarioInput!CI14 -> 519563.4965 | CJ7: =LoadScenarioInput!CJ14 -> 490034.5889 | CK7: =LoadScenarioInput!CK14 -> 393984.7643 | CL7: =LoadScenarioInput!CL14 -> 417133.0836 | CM7: =LoadScenarioInput!CM14 -> 357976.2669 | CN7: =LoadScenarioInput!CN14 -> 371721.4281 | CO7: =LoadScenarioInput!CO14 -> 346757.2074 | CP7: =LoadScenarioInput!CP14 -> 367387.4411 | CQ7: =LoadScenarioInput!CQ14 -> 347247.5755 | CR7: =LoadScenarioInput!CR14 -> 367452.1979 | CS7: =LoadScenarioInput!CS14 -> 362745.9655 | CT7: =LoadScenarioInput!CT14 -> 433463.5013 | CU7: =LoadScenarioInput!CU14 -> 530201.7183 | CV7: =LoadScenarioInput!CV14 -> 500170.6826 | CW7: =LoadScenarioInput!CW14 -> 405484.0193 | CX7: =LoadScenarioInput!CX14 -> 426118.5772 | CY7: =LoadScenarioInput!CY14 -> 366117.8532 | CZ7: =LoadScenarioInput!CZ14 -> 380038.4502 | DA7: =LoadScenarioInput!DA14 -> 354708.2075 | DB7: =LoadScenarioInput!DB14 -> 375889.4672 | DC7: =LoadScenarioInput!DC14 -> 373582.0536 | DD7: =LoadScenarioInput!DD14 -> 358199.9984 | DE7: =LoadScenarioInput!DE14 -> 358169.934 | DF7: =LoadScenarioInput!DF14 -> 449052.6523 | DG7: =LoadScenarioInput!DG14 -> 498852.0665 | DH7: =LoadScenarioInput!DH14 -> 493676.9084 | DI7: =LoadScenarioInput!DI14 -> 400239.4254 | DJ7: =LoadScenarioInput!DJ14 -> 420469.232 | DK7: =LoadScenarioInput!DK14 -> 361319.2112 | DL7: =LoadScenarioInput!DL14 -> 393329.3335 | DM7: =LoadScenarioInput!DM14 -> 332637.7555 | DN7: =LoadScenarioInput!DN14 -> 371125.7039 | DO7: =LoadScenarioInput!DO14 -> 368907.3875 | DP7: =LoadScenarioInput!DP14 -> 353604.9302 | DQ7: =LoadScenarioInput!DQ14 -> 362421.4197 | DR7: =LoadScenarioInput!DR14 -> 454202.4858 | DS7: =LoadScenarioInput!DS14 -> 504576.3833 | DT7: =LoadScenarioInput!DT14 -> 523764.1727 | DU7: =LoadScenarioInput!DU14 -> 404909.4968 | DV7: =LoadScenarioInput!DV14 -> 404470.5064 | DW7: =LoadScenarioInput!DW14 -> 365498.0994 | DX7: =LoadScenarioInput!DX14 -> 397841.4202 | DY7: =LoadScenarioInput!DY14 -> 336495.9841 | DZ7: =LoadScenarioInput!DZ14 -> 375486.3046 | EA7: =LoadScenarioInput!EA14 -> 373285.3559 | EB7: =LoadScenarioInput!EB14 -> 357741.263 | EC7: =LoadScenarioInput!EC14 -> 375295.9287 | ED7: =LoadScenarioInput!ED14 -> 425987.6694 | EE7: =LoadScenarioInput!EE14 -> 496778.1653 | EF7: =LoadScenarioInput!EF14 -> 515793.9135 | EG7: =LoadScenarioInput!EG14 -> 395611.6717 | EH7: =LoadScenarioInput!EH14 -> 398021.2611 | EI7: =LoadScenarioInput!EI14 -> 378668.0771 | EJ7: =LoadScenarioInput!EJ14 -> 373611.2231 | EK7: =LoadScenarioInput!EK14 -> 331345.2927 | EL7: =LoadScenarioInput!EL14 -> 387864.4898 | EM7: =LoadScenarioInput!EM14 -> 349772.9493 | EN7: =LoadScenarioInput!EN14 -> 352236.8264 | EO7: =LoadScenarioInput!EO14 -> 404487.2611 | EP7: =LoadScenarioInput!EP14 -> 460322.8285 | EQ7: =LoadScenarioInput!EQ14 -> 564238.678 | ER7: =LoadScenarioInput!ER14 -> 532001.3318 | ES7: =LoadScenarioInput!ES14 -> 431978.2756 | ET7: =LoadScenarioInput!ET14 -> 432843.8497 | EU7: =LoadScenarioInput!EU14 -> 410577.2365 | EV7: =LoadScenarioInput!EV14 -> 402325.8805 | EW7: =LoadScenarioInput!EW14 -> 357033.1981 | EX7: =LoadScenarioInput!EX14 -> 417901.3306 | EY7: =LoadScenarioInput!EY14 -> 376451.4512 | EZ7: =LoadScenarioInput!EZ14 -> 399680.1257
B8: Slice | D8: PRE_SNB | E8: =+SUM(L8:W8,CG8:CR8) -> 12307662.64 | F8: =+SUM(X8:AI8,CS8:DD8) -> 12154961.03 | G8: 12275701.64 | H8: 12126100.72 | I8: 12276762.94 | J8: 12117273.27 | L8: =LoadScenarioInput!L15 -> 495638.8313 | M8: =LoadScenarioInput!M15 -> 645334.828 | N8: =LoadScenarioInput!N15 -> 696004.1832 | O8: =LoadScenarioInput!O15 -> 738734.1542 | P8: =LoadScenarioInput!P15 -> 653976.2128 | Q8: =LoadScenarioInput!Q15 -> 679636.4768 | R8: =LoadScenarioInput!R15 -> 530048.3541 | S8: =LoadScenarioInput!S15 -> 727566.5898 | T8: =LoadScenarioInput!T15 -> 687809.0158 | U8: =LoadScenarioInput!U15 -> 595510.7326 | V8: =LoadScenarioInput!V15 -> 609764.9327 | W8: =LoadScenarioInput!W15 -> 506835.2986 | X8: =LoadScenarioInput!X15 -> 512102.3189 | Y8: =LoadScenarioInput!Y15 -> 643531.1248 | Z8: =LoadScenarioInput!Z15 -> 693933.5774 | AA8: =LoadScenarioInput!AA15 -> 736169.9817 | AB8: =LoadScenarioInput!AB15 -> 626599.2857 | AC8: =LoadScenarioInput!AC15 -> 682440.5779 | AD8: =LoadScenarioInput!AD15 -> 544796.8946 | AE8: =LoadScenarioInput!AE15 -> 603674.5816 | AF8: =LoadScenarioInput!AF15 -> 717732.6655 | AG8: =LoadScenarioInput!AG15 -> 615396.9597 | AH8: =LoadScenarioInput!AH15 -> 581898.8867 | AI8: =LoadScenarioInput!AI15 -> 525579.464 | AJ8: =LoadScenarioInput!AJ15 -> 516676.1743 | AK8: =LoadScenarioInput!AK15 -> 629275.4177 | AL8: =LoadScenarioInput!AL15 -> 726369.7406 | AM8: =LoadScenarioInput!AM15 -> 714992.1005 | AN8: =LoadScenarioInput!AN15 -> 632254.1315 | AO8: =LoadScenarioInput!AO15 -> 650751.6441 | AP8: =LoadScenarioInput!AP15 -> 527161.1747 | AQ8: =LoadScenarioInput!AQ15 -> 686266.124 | AR8: =LoadScenarioInput!AR15 -> 709688.9173 | AS8: =LoadScenarioInput!AS15 -> 650718.3132 | AT8: =LoadScenarioInput!AT15 -> 595016.9607 | AU8: =LoadScenarioInput!AU15 -> 520460.8002 | AV8: =LoadScenarioInput!AV15 -> 518065.3166 | AW8: =LoadScenarioInput!AW15 -> 632017.0319 | AX8: =LoadScenarioInput!AX15 -> 723899.8529 | AY8: =LoadScenarioInput!AY15 -> 685950.7832 | AZ8: =LoadScenarioInput!AZ15 -> 629821.327 | BA8: =LoadScenarioInput!BA15 -> 670761.6894 | BB8: =LoadScenarioInput!BB15 -> 540517.913 | BC8: =LoadScenarioInput!BC15 -> 568663.5255 | BD8: =LoadScenarioInput!BD15 -> 762493.4599 | BE8: =LoadScenarioInput!BE15 -> 624077.5611 | BF8: =LoadScenarioInput!BF15 -> 591022.5974 | BG8: =LoadScenarioInput!BG15 -> 517721.641 | BH8: =LoadScenarioInput!BH15 -> 510561.8352 | BI8: =LoadScenarioInput!BI15 -> 633271.609 | BJ8: =LoadScenarioInput!BJ15 -> 725305.9038 | BK8: =LoadScenarioInput!BK15 -> 709098.026 | BL8: =LoadScenarioInput!BL15 -> 654324.0728 | BM8: =LoadScenarioInput!BM15 -> 654340.1787 | BN8: =LoadScenarioInput!BN15 -> 519016.4433 | BO8: =LoadScenarioInput!BO15 -> 691163.0506 | BP8: =LoadScenarioInput!BP15 -> 707414.1467 | BQ8: =LoadScenarioInput!BQ15 -> 643094.5566 | BR8: =LoadScenarioInput!BR15 -> 598179.422 | BS8: =LoadScenarioInput!BS15 -> 518792.5251 | BT8: =LoadScenarioInput!BT15 -> 511800.2298 | BU8: =LoadScenarioInput!BU15 -> 636014.3759 | BV8: =LoadScenarioInput!BV15 -> 717220.3707 | BW8: =LoadScenarioInput!BW15 -> 691137.2632 | BX8: =LoadScenarioInput!BX15 -> 629821.327 | BY8: =LoadScenarioInput!BY15 -> 670761.6894 | BZ8: =LoadScenarioInput!BZ15 -> 535477.1169 | CA8: =LoadScenarioInput!CA15 -> 572908.8206 | CB8: =LoadScenarioInput!CB15 -> 762493.4599 | CC8: =LoadScenarioInput!CC15 -> 617848.7396 | CD8: =LoadScenarioInput!CD15 -> 597035.8013 | CE8: =LoadScenarioInput!CE15 -> 512097.8698 | CG8: =LoadScenarioInput!CG15 -> 337601.1821 | CH8: =LoadScenarioInput!CH15 -> 416648.9613 | CI8: =LoadScenarioInput!CI15 -> 450082.4356 | CJ8: =LoadScenarioInput!CJ15 -> 451544.2211 | CK8: =LoadScenarioInput!CK15 -> 372673.1898 | CL8: =LoadScenarioInput!CL15 -> 439303.6877 | CM8: =LoadScenarioInput!CM15 -> 344172.893 | CN8: =LoadScenarioInput!CN15 -> 461028.0986 | CO8: =LoadScenarioInput!CO15 -> 417735.7559 | CP8: =LoadScenarioInput!CP15 -> 359501.195 | CQ8: =LoadScenarioInput!CQ15 -> 333674.5642 | CR8: =LoadScenarioInput!CR15 -> 356836.8458 | CS8: =LoadScenarioInput!CS15 -> 320301.2998 | CT8: =LoadScenarioInput!CT15 -> 418729.9677 | CU8: =LoadScenarioInput!CU15 -> 452460.3367 | CV8: =LoadScenarioInput!CV15 -> 455793.3063 | CW8: =LoadScenarioInput!CW15 -> 362332.073 | CX8: =LoadScenarioInput!CX15 -> 435771.1034 | CY8: =LoadScenarioInput!CY15 -> 346836.2348 | CZ8: =LoadScenarioInput!CZ15 -> 398509.7195 | DA8: =LoadScenarioInput!DA15 -> 415035.9874 | DB8: =LoadScenarioInput!DB15 -> 372769.6354 | DC8: =LoadScenarioInput!DC15 -> 353198.734 | DD8: =LoadScenarioInput!DD15 -> 339366.3163 | DE8: =LoadScenarioInput!DE15 -> 319642.5379 | DF8: =LoadScenarioInput!DF15 -> 442549.7335 | DG8: =LoadScenarioInput!DG15 -> 428304.2704 | DH8: =LoadScenarioInput!DH15 -> 444725.7543 | DI8: =LoadScenarioInput!DI15 -> 374852.4947 | DJ8: =LoadScenarioInput!DJ15 -> 413844.7621 | DK8: =LoadScenarioInput!DK15 -> 329017.5182 | DL8: =LoadScenarioInput!DL15 -> 479714.869 | DM8: =LoadScenarioInput!DM15 -> 392153.2205 | DN8: =LoadScenarioInput!DN15 -> 392878.2323 | DO8: =LoadScenarioInput!DO15 -> 353425.0918 | DP8: =LoadScenarioInput!DP15 -> 344961.6572 | DQ8: =LoadScenarioInput!DQ15 -> 319320.1756 | DR8: =LoadScenarioInput!DR15 -> 441075.8348 | DS8: =LoadScenarioInput!DS15 -> 431648.7233 | DT8: =LoadScenarioInput!DT15 -> 472504.9534 | DU8: =LoadScenarioInput!DU15 -> 375859.6469 | DV8: =LoadScenarioInput!DV15 -> 392761.9341 | DW8: =LoadScenarioInput!DW15 -> 337621.3925 | DX8: =LoadScenarioInput!DX15 -> 411693.9151 | DY8: =LoadScenarioInput!DY15 -> 400195.4178 | DZ8: =LoadScenarioInput!DZ15 -> 379389.3285 | EA8: =LoadScenarioInput!EA15 -> 353587.4462 | EB8: =LoadScenarioInput!EB15 -> 345429.2555 | EC8: =LoadScenarioInput!EC15 -> 322865.0394 | ED8: =LoadScenarioInput!ED15 -> 436033.2503 | EE8: =LoadScenarioInput!EE15 -> 427066.8461 | EF8: =LoadScenarioInput!EF15 -> 448589.057 | EG8: =LoadScenarioInput!EG15 -> 386768.3181 | EH8: =LoadScenarioInput!EH15 -> 408409.3414 | EI8: =LoadScenarioInput!EI15 -> 332324.9439 | EJ8: =LoadScenarioInput!EJ15 -> 471364.4886 | EK8: =LoadScenarioInput!EK15 -> 390458.0599 | EL8: =LoadScenarioInput!EL15 -> 397774.6739 | EM8: =LoadScenarioInput!EM15 -> 346711.6543 | EN8: =LoadScenarioInput!EN15 -> 343835.5017 | EO8: =LoadScenarioInput!EO15 -> 322537.0062 | EP8: =LoadScenarioInput!EP15 -> 434654.3796 | EQ8: =LoadScenarioInput!EQ15 -> 435118.4078 | ER8: =LoadScenarioInput!ER15 -> 467993.7001 | ES8: =LoadScenarioInput!ES15 -> 375859.6469 | ET8: =LoadScenarioInput!ET15 -> 392761.9341 | EU8: =LoadScenarioInput!EU15 -> 341933.9517 | EV8: =LoadScenarioInput!EV15 -> 408146.06 | EW8: =LoadScenarioInput!EW15 -> 400195.4178 | EX8: =LoadScenarioInput!EX15 -> 384921.0551 | EY8: =LoadScenarioInput!EY15 -> 348302.0382 | EZ8: =LoadScenarioInput!EZ15 -> 350232.607
B9: Load Following | D9: PRE_LDF | E9: 31516145.57 | F9: 31552568.64 | G9: 31306196.27 | H9: 31229853.14 | I9: 31204676.97 | J9: 31196966.65 | L9: =LoadScenarioInput!L16 -> 1435956.413 | M9: =LoadScenarioInput!M16 -> 1528194.946 | N9: =LoadScenarioInput!N16 -> 1865552.366 | O9: =LoadScenarioInput!O16 -> 1919314.134 | P9: =LoadScenarioInput!P16 -> 1663026.136 | Q9: =LoadScenarioInput!Q16 -> 1603729.384 | R9: =LoadScenarioInput!R16 -> 1447121.726 | S9: =LoadScenarioInput!S16 -> 1430635.588 | T9: =LoadScenarioInput!T16 -> 1523364.502 | U9: =LoadScenarioInput!U16 -> 1630424.938 | V9: =LoadScenarioInput!V16 -> 1675489.3 | W9: =LoadScenarioInput!W16 -> 1356443.057 | X9: =LoadScenarioInput!X16 -> 1451791.193 | Y9: =LoadScenarioInput!Y16 -> 1530973.928 | Z9: =LoadScenarioInput!Z16 -> 1867240.226 | AA9: =LoadScenarioInput!AA16 -> 1925420.02 | AB9: =LoadScenarioInput!AB16 -> 1631071.596 | AC9: =LoadScenarioInput!AC16 -> 1610212.477 | AD9: =LoadScenarioInput!AD16 -> 1453847.782 | AE9: =LoadScenarioInput!AE16 -> 1436578.574 | AF9: =LoadScenarioInput!AF16 -> 1532492.202 | AG9: =LoadScenarioInput!AG16 -> 1639379.665 | AH9: =LoadScenarioInput!AH16 -> 1677523.778 | AI9: =LoadScenarioInput!AI16 -> 1367562.348 | AJ9: =LoadScenarioInput!AJ16 -> 1456432.767 | AK9: =LoadScenarioInput!AK16 -> 1537077.751 | AL9: =LoadScenarioInput!AL16 -> 1873061.677 | AM9: =LoadScenarioInput!AM16 -> 1920754.125 | AN9: =LoadScenarioInput!AN16 -> 1615399.278 | AO9: =LoadScenarioInput!AO16 -> 1597316.69 | AP9: =LoadScenarioInput!AP16 -> 1436787.481 | AQ9: =LoadScenarioInput!AQ16 -> 1441107.804 | AR9: =LoadScenarioInput!AR16 -> 1547596.724 | AS9: =LoadScenarioInput!AS16 -> 1625566.429 | AT9: =LoadScenarioInput!AT16 -> 1679732.992 | AU9: =LoadScenarioInput!AU16 -> 1338454.532 | AV9: =LoadScenarioInput!AV16 -> 1453757.066 | AW9: =LoadScenarioInput!AW16 -> 1544545.014 | AX9: =LoadScenarioInput!AX16 -> 1864134.767 | AY9: =LoadScenarioInput!AY16 -> 1921901.08 | AZ9: =LoadScenarioInput!AZ16 -> 1621085.759 | BA9: =LoadScenarioInput!BA16 -> 1598290.509 | BB9: =LoadScenarioInput!BB16 -> 1428931.245 | BC9: =LoadScenarioInput!BC16 -> 1448713.277 | BD9: =LoadScenarioInput!BD16 -> 1545793.653 | BE9: =LoadScenarioInput!BE16 -> 1617439.868 | BF9: =LoadScenarioInput!BF16 -> 1687676.104 | BG9: =LoadScenarioInput!BG16 -> 1333492.648 | BH9: =LoadScenarioInput!BH16 -> 1471366.555 | BI9: =LoadScenarioInput!BI16 -> 1536212.601 | BJ9: =LoadScenarioInput!BJ16 -> 1852150.187 | BK9: =LoadScenarioInput!BK16 -> 1933061.04 | BL9: =LoadScenarioInput!BL16 -> 1656886.747 | BM9: =LoadScenarioInput!BM16 -> 1593064.72 | BN9: =LoadScenarioInput!BN16 -> 1442657.565 | BO9: =LoadScenarioInput!BO16 -> 1435636.066 | BP9: =LoadScenarioInput!BP16 -> 1548224.49 | BQ9: =LoadScenarioInput!BQ16 -> 1630907.337 | BR9: =LoadScenarioInput!BR16 -> 1681881.551 | BS9: =LoadScenarioInput!BS16 -> 1332134.813 | BT9: =LoadScenarioInput!BT16 -> 1480880.684 | BU9: =LoadScenarioInput!BU16 -> 1540185.193 | BV9: =LoadScenarioInput!BV16 -> 1866739.231 | BW9: =LoadScenarioInput!BW16 -> 1923681.447 | BX9: =LoadScenarioInput!BX16 -> 1624493.084 | BY9: =LoadScenarioInput!BY16 -> 1590637.348 | BZ9: =LoadScenarioInput!BZ16 -> 1447008.984 | CA9: =LoadScenarioInput!CA16 -> 1443918.622 | CB9: =LoadScenarioInput!CB16 -> 1559269.91 | CC9: =LoadScenarioInput!CC16 -> 1642794.77 | CD9: =LoadScenarioInput!CD16 -> 1691946.918 | CE9: =LoadScenarioInput!CE16 -> 1365297.421 | CG9: =LoadScenarioInput!CG16 -> 889054.8359 | CH9: =LoadScenarioInput!CH16 -> 1043541.366 | CI9: =LoadScenarioInput!CI16 -> 1343385.159 | CJ9: =LoadScenarioInput!CJ16 -> 1313937.275 | CK9: =LoadScenarioInput!CK16 -> 1080849.087 | CL9: =LoadScenarioInput!CL16 -> 1048554.903 | CM9: =LoadScenarioInput!CM16 -> 923676.4852 | CN9: =LoadScenarioInput!CN16 -> 937819.2989 | CO9: =LoadScenarioInput!CO16 -> 920687.4709 | CP9: =LoadScenarioInput!CP16 -> 1073485.216 | CQ9: =LoadScenarioInput!CQ16 -> 957751.9754 | CR9: =LoadScenarioInput!CR16 -> 904150.0072 | CS9: =LoadScenarioInput!CS16 -> 874200.7781 | CT9: =LoadScenarioInput!CT16 -> 1043703.396 | CU9: =LoadScenarioInput!CU16 -> 1344680.691 | CV9: =LoadScenarioInput!CV16 -> 1316875.128 | CW9: =LoadScenarioInput!CW16 -> 1063675.103 | CX9: =LoadScenarioInput!CX16 -> 1051353.535 | CY9: =LoadScenarioInput!CY16 -> 927655.936 | CZ9: =LoadScenarioInput!CZ16 -> 939285.9661 | DA9: =LoadScenarioInput!DA16 -> 922130.5687 | DB9: =LoadScenarioInput!DB16 -> 1078625.864 | DC9: =LoadScenarioInput!DC16 -> 965180.9805 | DD9: =LoadScenarioInput!DD16 -> 901106.9073 | DE9: =LoadScenarioInput!DE16 -> 875852.5823 | DF9: =LoadScenarioInput!DF16 -> 1034432.211 | DG9: =LoadScenarioInput!DG16 -> 1331288.013 | DH9: =LoadScenarioInput!DH16 -> 1299165.952 | DI9: =LoadScenarioInput!DI16 -> 1043764.894 | DJ9: =LoadScenarioInput!DJ16 -> 1020204.311 | DK9: =LoadScenarioInput!DK16 -> 926491.6033 | DL9: =LoadScenarioInput!DL16 -> 917896.318 | DM9: =LoadScenarioInput!DM16 -> 908380.8019 | DN9: =LoadScenarioInput!DN16 -> 1073127.785 | DO9: =LoadScenarioInput!DO16 -> 931037.9735 | DP9: =LoadScenarioInput!DP16 -> 875265.5711 | DQ9: =LoadScenarioInput!DQ16 -> 871680.6264 | DR9: =LoadScenarioInput!DR16 -> 1021050.873 | DS9: =LoadScenarioInput!DS16 -> 1333521.386 | DT9: =LoadScenarioInput!DT16 -> 1292059.636 | DU9: =LoadScenarioInput!DU16 -> 1043135.761 | DV9: =LoadScenarioInput!DV16 -> 1024002.813 | DW9: =LoadScenarioInput!DW16 -> 925992.8979 | DX9: =LoadScenarioInput!DX16 -> 902750.7463 | DY9: =LoadScenarioInput!DY16 -> 899392.2033 | DZ9: =LoadScenarioInput!DZ16 -> 1069647.141 | EA9: =LoadScenarioInput!EA16 -> 911868.7587 | EB9: =LoadScenarioInput!EB16 -> 868989.3117 | EC9: =LoadScenarioInput!EC16 -> 843583.6887 | ED9: =LoadScenarioInput!ED16 -> 1020966.404 | EE9: =LoadScenarioInput!EE16 -> 1337056.925 | EF9: =LoadScenarioInput!EF16 -> 1273901.458 | EG9: =LoadScenarioInput!EG16 -> 1063497.306 | EH9: =LoadScenarioInput!EH16 -> 1023747.856 | EI9: =LoadScenarioInput!EI16 -> 907211.0845 | EJ9: =LoadScenarioInput!EJ16 -> 906272.3835 | EK9: =LoadScenarioInput!EK16 -> 891070.8459 | EL9: =LoadScenarioInput!EL16 -> 1045226.105 | EM9: =LoadScenarioInput!EM16 -> 912559.1223 | EN9: =LoadScenarioInput!EN16 -> 865400.1206 | EO9: =LoadScenarioInput!EO16 -> 839358.347 | EP9: =LoadScenarioInput!EP16 -> 1019344.462 | EQ9: =LoadScenarioInput!EQ16 -> 1325305.602 | ER9: =LoadScenarioInput!ER16 -> 1280570.497 | ES9: =LoadScenarioInput!ES16 -> 1035839.062 | ET9: =LoadScenarioInput!ET16 -> 1023503.072 | EU9: =LoadScenarioInput!EU16 -> 904835.4096 | EV9: =LoadScenarioInput!EV16 -> 906304.8322 | EW9: =LoadScenarioInput!EW16 -> 892968.8705 | EX9: =LoadScenarioInput!EX16 -> 1047103.194 | EY9: =LoadScenarioInput!EY16 -> 910165.167 | EZ9: =LoadScenarioInput!EZ16 -> 834814.5271
B10: Tier 2 | D10: PRE_T2 | E10: 1795748.256 | F10: 3413482.92 | G10: =+SUM(AJ10:AU10,DE10:DP10) -> 3083844.12 | H10: 3320548.08 | I10: 3568710.816 | J10: 4200358.68 | L10: =LoadScenarioInput!L17 -> 85038.65148 | M10: =LoadScenarioInput!M17 -> 81684.95084 | N10: =LoadScenarioInput!N17 -> 81834.76906 | O10: =LoadScenarioInput!O17 -> 85077.89661 | P10: =LoadScenarioInput!P17 -> 81910.41148 | Q10: =LoadScenarioInput!Q17 -> 84939.90615 | R10: =LoadScenarioInput!R17 -> 84888.65255 | S10: =LoadScenarioInput!S17 -> 85060.15498 | T10: =LoadScenarioInput!T17 -> 81698.49755 | U10: =LoadScenarioInput!U17 -> 85155.76266 | V10: =LoadScenarioInput!V17 -> 88323.23347 | W10: =LoadScenarioInput!W17 -> 78668.01723 | X10: =LoadScenarioInput!X17 -> 168316.9198 | Y10: =LoadScenarioInput!Y17 -> 155790.775 | Z10: =LoadScenarioInput!Z17 -> 155897.8875 | AA10: =LoadScenarioInput!AA17 -> 162129.9881 | AB10: =LoadScenarioInput!AB17 -> 149730.1434 | AC10: =LoadScenarioInput!AC17 -> 162031.3318 | AD10: =LoadScenarioInput!AD17 -> 161994.688 | AE10: =LoadScenarioInput!AE17 -> 162117.3037 | AF10: =LoadScenarioInput!AF17 -> 155817.668 | AG10: =LoadScenarioInput!AG17 -> 162185.6584 | AH10: =LoadScenarioInput!AH17 -> 162112.3709 | AI10: =LoadScenarioInput!AI17 -> 155995.954 | AJ10: =LoadScenarioInput!AJ17 -> 152368.6425 | AK10: =LoadScenarioInput!AK17 -> 135206.852 | AL10: =LoadScenarioInput!AL17 -> 147156.8905 | AM10: =LoadScenarioInput!AM17 -> 146605.5457 | AN10: =LoadScenarioInput!AN17 -> 135644.8713 | AO10: =LoadScenarioInput!AO17 -> 146121.5063 | AP10: =LoadScenarioInput!AP17 -> 145550.1881 | AQ10: =LoadScenarioInput!AQ17 -> 140507.3147 | AR10: =LoadScenarioInput!AR17 -> 145945.5017 | AS10: =LoadScenarioInput!AS17 -> 146512.4083 | AT10: =LoadScenarioInput!AT17 -> 146148.8074 | AU10: =LoadScenarioInput!AU17 -> 141425.8052 | AV10: =LoadScenarioInput!AV17 -> 164027.517 | AW10: =LoadScenarioInput!AW17 -> 145589.2401 | AX10: =LoadScenarioInput!AX17 -> 158369.488 | AY10: =LoadScenarioInput!AY17 -> 151697.814 | AZ10: =LoadScenarioInput!AZ17 -> 145996.3644 | BA10: =LoadScenarioInput!BA17 -> 163534.5787 | BB10: =LoadScenarioInput!BB17 -> 156829.9165 | BC10: =LoadScenarioInput!BC17 -> 151317.4272 | BD10: =LoadScenarioInput!BD17 -> 157207.7807 | BE10: =LoadScenarioInput!BE17 -> 157733.0268 | BF10: =LoadScenarioInput!BF17 -> 157392.1102 | BG10: =LoadScenarioInput!BG17 -> 152200.5826 | BH10: =LoadScenarioInput!BH17 -> 169184.8064 | BI10: =LoadScenarioInput!BI17 -> 162614.9307 | BJ10: =LoadScenarioInput!BJ17 -> 169653.7959 | BK10: =LoadScenarioInput!BK17 -> 162576.9416 | BL10: =LoadScenarioInput!BL17 -> 162999.9322 | BM10: =LoadScenarioInput!BM17 -> 175315.703 | BN10: =LoadScenarioInput!BN17 -> 161603.9633 | BO10: =LoadScenarioInput!BO17 -> 168781.826 | BP10: =LoadScenarioInput!BP17 -> 168546.8313 | BQ10: =LoadScenarioInput!BQ17 -> 162449.9445 | BR10: =LoadScenarioInput!BR17 -> 175293.7035 | BS10: =LoadScenarioInput!BS17 -> 163048.9311 | BT10: =LoadScenarioInput!BT17 -> 199469.088 | BU10: =LoadScenarioInput!BU17 -> 191797.2 | BV10: =LoadScenarioInput!BV17 -> 191797.2 | BW10: =LoadScenarioInput!BW17 -> 199469.088 | BX10: =LoadScenarioInput!BX17 -> 184125.312 | BY10: =LoadScenarioInput!BY17 -> 207140.976 | BZ10: =LoadScenarioInput!BZ17 -> 191797.2 | CA10: =LoadScenarioInput!CA17 -> 199469.088 | CB10: =LoadScenarioInput!CB17 -> 199469.088 | CC10: =LoadScenarioInput!CC17 -> 191797.2 | CD10: =LoadScenarioInput!CD17 -> 207140.976 | CE10: =LoadScenarioInput!CE17 -> 184125.312 | CG10: =LoadScenarioInput!CG17 -> 67028.95357 | CH10: =LoadScenarioInput!CH17 -> 65555.05643 | CI10: =LoadScenarioInput!CI17 -> 70345.19966 | CJ10: =LoadScenarioInput!CJ17 -> 67084.56792 | CK10: =LoadScenarioInput!CK17 -> 60610.62154 | CL10: =LoadScenarioInput!CL17 -> 66738.69605 | CM10: =LoadScenarioInput!CM17 -> 62040.11765 | CN10: =LoadScenarioInput!CN17 -> 67047.11337 | CO10: =LoadScenarioInput!CO17 -> 65311.09563 | CP10: =LoadScenarioInput!CP17 -> 67104.28085 | CQ10: =LoadScenarioInput!CQ17 -> 63789.93443 | CR10: =LoadScenarioInput!CR17 -> 68811.71485 | CS10: =LoadScenarioInput!CS17 -> 121548.2764 | CT10: =LoadScenarioInput!CT17 -> 125023.9147 | CU10: =LoadScenarioInput!CU17 -> 134048.6431 | CV10: =LoadScenarioInput!CV17 -> 127836.5974 | CW10: =LoadScenarioInput!CW17 -> 112296.6528 | CX10: =LoadScenarioInput!CX17 -> 127345.1417 | CY10: =LoadScenarioInput!CY17 -> 118384.8822 | CZ10: =LoadScenarioInput!CZ17 -> 127809.8193 | DA10: =LoadScenarioInput!DA17 -> 124619.6866 | DB10: =LoadScenarioInput!DB17 -> 127850.6912 | DC10: =LoadScenarioInput!DC17 -> 127819.6849 | DD10: =LoadScenarioInput!DD17 -> 124778.2413 | DE10: =LoadScenarioInput!DE17 -> 110035.358 | DF10: =LoadScenarioInput!DF17 -> 118798.5515 | DG10: =LoadScenarioInput!DG17 -> 115917.0118 | DH10: =LoadScenarioInput!DH17 -> 115593.6891 | DI10: =LoadScenarioInput!DI17 -> 101733.4748 | DJ10: =LoadScenarioInput!DJ17 -> 114846.7653 | DK10: =LoadScenarioInput!DK17 -> 106366.3252 | DL10: =LoadScenarioInput!DL17 -> 120993.8813 | DM10: =LoadScenarioInput!DM17 -> 106453.1866 | DN10: =LoadScenarioInput!DN17 -> 115503.2589 | DO10: =LoadScenarioInput!DO17 -> 115390.3912 | DP10: =LoadScenarioInput!DP17 -> 113017.8925 | DQ10: =LoadScenarioInput!DQ17 -> 118459.7287 | DR10: =LoadScenarioInput!DR17 -> 127908.2694 | DS10: =LoadScenarioInput!DS17 -> 124763.7941 | DT10: =LoadScenarioInput!DT17 -> 130600.0353 | DU10: =LoadScenarioInput!DU17 -> 109497.3127 | DV10: =LoadScenarioInput!DV17 -> 117566.4069 | DW10: =LoadScenarioInput!DW17 -> 114608.4131 | DX10: =LoadScenarioInput!DX17 -> 130294.5979 | DY10: =LoadScenarioInput!DY17 -> 114694.8383 | DZ10: =LoadScenarioInput!DZ17 -> 124359.6612 | EA10: =LoadScenarioInput!EA17 -> 124256.3907 | EB10: =LoadScenarioInput!EB17 -> 121642.7855 | EC10: =LoadScenarioInput!EC17 -> 133516.9793 | ED10: =LoadScenarioInput!ED17 -> 130498.5994 | EE10: =LoadScenarioInput!EE17 -> 133668.9759 | EF10: =LoadScenarioInput!EF17 -> 139955.8668 | EG10: =LoadScenarioInput!EG17 -> 120605.2302 | EH10: =LoadScenarioInput!EH17 -> 126053.0675 | EI10: =LoadScenarioInput!EI17 -> 129486.5662 | EJ10: =LoadScenarioInput!EJ17 -> 133077.9975 | EK10: =LoadScenarioInput!EK17 -> 122990.6883 | EL10: =LoadScenarioInput!EL17 -> 139856.869 | EM10: =LoadScenarioInput!EM17 -> 126600.1191 | EN10: =LoadScenarioInput!EN17 -> 130328.5475 | EO10: =LoadScenarioInput!EO17 -> 157273.704 | EP10: =LoadScenarioInput!EP17 -> 153917.253 | EQ10: =LoadScenarioInput!EQ17 -> 164945.592 | ER10: =LoadScenarioInput!ER17 -> 157273.704 | ES10: =LoadScenarioInput!ES17 -> 138093.984 | ET10: =LoadScenarioInput!ET17 -> 149122.323 | EU10: =LoadScenarioInput!EU17 -> 153437.76 | EV10: =LoadScenarioInput!EV17 -> 157273.704 | EW10: =LoadScenarioInput!EW17 -> 145765.872 | EX10: =LoadScenarioInput!EX17 -> 164945.592 | EY10: =LoadScenarioInput!EY17 -> 149601.816 | EZ10: =LoadScenarioInput!EZ17 -> 161109.648
A11: Industrial | D11: IND | E11: =+SUM(E12:E13) -> 96624 | F11: =+SUM(F12:F13) -> 96360 | G11: 96360 | H11: 96360 | I11: 96624 | J11: 96360 | L11: =LoadScenarioInput!L18 -> 4660.406 | M11: =LoadScenarioInput!M18 -> 4350.871 | N11: =LoadScenarioInput!N18 -> 4408.261 | O11: =LoadScenarioInput!O18 -> 4424.143 | P11: =LoadScenarioInput!P18 -> 4303.342 | Q11: =LoadScenarioInput!Q18 -> 4657.349 | R11: =LoadScenarioInput!R18 -> 4477.511 | S11: =LoadScenarioInput!S18 -> 4478.292 | T11: =LoadScenarioInput!T18 -> 4524.994 | U11: =LoadScenarioInput!U18 -> 4421.576 | V11: =LoadScenarioInput!V18 -> 4702.721 | W11: =LoadScenarioInput!W18 -> 4189.254 | X11: =LoadScenarioInput!X18 -> 4660.406 | Y11: =LoadScenarioInput!Y18 -> 4350.871 | Z11: =LoadScenarioInput!Z18 -> 4408.261 | AA11: =LoadScenarioInput!AA18 -> 4424.143 | AB11: =LoadScenarioInput!AB18 -> 4154.952 | AC11: =LoadScenarioInput!AC18 -> 4657.349 | AD11: =LoadScenarioInput!AD18 -> 4477.511 | AE11: =LoadScenarioInput!AE18 -> 4478.292 | AF11: =LoadScenarioInput!AF18 -> 4524.994 | AG11: =LoadScenarioInput!AG18 -> 4421.576 | AH11: =LoadScenarioInput!AH18 -> 4702.721 | AI11: =LoadScenarioInput!AI18 -> 4189.254 | AJ11: =LoadScenarioInput!AJ18 -> 4660.406 | AK11: =LoadScenarioInput!AK18 -> 4350.871 | AL11: =LoadScenarioInput!AL18 -> 4408.261 | AM11: =LoadScenarioInput!AM18 -> 4424.143 | AN11: =LoadScenarioInput!AN18 -> 4154.952 | AO11: =LoadScenarioInput!AO18 -> 4657.349 | AP11: =LoadScenarioInput!AP18 -> 4477.511 | AQ11: =LoadScenarioInput!AQ18 -> 4478.292 | AR11: =LoadScenarioInput!AR18 -> 4524.994 | AS11: =LoadScenarioInput!AS18 -> 4421.576 | AT11: =LoadScenarioInput!AT18 -> 4702.721 | AU11: =LoadScenarioInput!AU18 -> 4189.254 | AV11: =LoadScenarioInput!AV18 -> 4660.406 | AW11: =LoadScenarioInput!AW18 -> 4350.871 | AX11: =LoadScenarioInput!AX18 -> 4408.261 | AY11: =LoadScenarioInput!AY18 -> 4424.143 | AZ11: =LoadScenarioInput!AZ18 -> 4154.952 | BA11: =LoadScenarioInput!BA18 -> 4657.349 | BB11: =LoadScenarioInput!BB18 -> 4477.511 | BC11: =LoadScenarioInput!BC18 -> 4478.292 | BD11: =LoadScenarioInput!BD18 -> 4524.994 | BE11: =LoadScenarioInput!BE18 -> 4421.576 | BF11: =LoadScenarioInput!BF18 -> 4702.721 | BG11: =LoadScenarioInput!BG18 -> 4189.254 | BH11: =LoadScenarioInput!BH18 -> 4660.406 | BI11: =LoadScenarioInput!BI18 -> 4350.871 | BJ11: =LoadScenarioInput!BJ18 -> 4408.261 | BK11: =LoadScenarioInput!BK18 -> 4424.143 | BL11: =LoadScenarioInput!BL18 -> 4303.342 | BM11: =LoadScenarioInput!BM18 -> 4657.349 | BN11: =LoadScenarioInput!BN18 -> 4477.511 | BO11: =LoadScenarioInput!BO18 -> 4478.292 | BP11: =LoadScenarioInput!BP18 -> 4524.994 | BQ11: =LoadScenarioInput!BQ18 -> 4421.576 | BR11: =LoadScenarioInput!BR18 -> 4702.721 | BS11: =LoadScenarioInput!BS18 -> 4189.254 | BT11: =LoadScenarioInput!BT18 -> 4660.406 | BU11: =LoadScenarioInput!BU18 -> 4350.871 | BV11: =LoadScenarioInput!BV18 -> 4408.261 | BW11: =LoadScenarioInput!BW18 -> 4424.143 | BX11: =LoadScenarioInput!BX18 -> 4154.952 | BY11: =LoadScenarioInput!BY18 -> 4657.349 | BZ11: =LoadScenarioInput!BZ18 -> 4477.511 | CA11: =LoadScenarioInput!CA18 -> 4478.292 | CB11: =LoadScenarioInput!CB18 -> 4524.994 | CC11: =LoadScenarioInput!CC18 -> 4421.576 | CD11: =LoadScenarioInput!CD18 -> 4702.721 | CE11: =LoadScenarioInput!CE18 -> 4189.254 | CG11: =LoadScenarioInput!CG18 -> 3523.594 | CH11: =LoadScenarioInput!CH18 -> 3580.129 | CI11: =LoadScenarioInput!CI18 -> 3775.739 | CJ11: =LoadScenarioInput!CJ18 -> 3759.857 | CK11: =LoadScenarioInput!CK18 -> 3352.658 | CL11: =LoadScenarioInput!CL18 -> 3515.651 | CM11: =LoadScenarioInput!CM18 -> 3442.489 | CN11: =LoadScenarioInput!CN18 -> 3705.708 | CO11: =LoadScenarioInput!CO18 -> 3395.006 | CP11: =LoadScenarioInput!CP18 -> 3762.424 | CQ11: =LoadScenarioInput!CQ18 -> 3481.279 | CR11: =LoadScenarioInput!CR18 -> 3730.746 | CS11: =LoadScenarioInput!CS18 -> 3523.594 | CT11: =LoadScenarioInput!CT18 -> 3580.129 | CU11: =LoadScenarioInput!CU18 -> 3775.739 | CV11: =LoadScenarioInput!CV18 -> 3759.857 | CW11: =LoadScenarioInput!CW18 -> 3237.048 | CX11: =LoadScenarioInput!CX18 -> 3515.651 | CY11: =LoadScenarioInput!CY18 -> 3442.489 | CZ11: =LoadScenarioInput!CZ18 -> 3705.708 | DA11: =LoadScenarioInput!DA18 -> 3395.006 | DB11: =LoadScenarioInput!DB18 -> 3762.424 | DC11: =LoadScenarioInput!DC18 -> 3481.279 | DD11: =LoadScenarioInput!DD18 -> 3730.746 | DE11: =LoadScenarioInput!DE18 -> 3523.594 | DF11: =LoadScenarioInput!DF18 -> 3580.129 | DG11: =LoadScenarioInput!DG18 -> 3775.739 | DH11: =LoadScenarioInput!DH18 -> 3759.857 | DI11: =LoadScenarioInput!DI18 -> 3237.048 | DJ11: =LoadScenarioInput!DJ18 -> 3515.651 | DK11: =LoadScenarioInput!DK18 -> 3442.489 | DL11: =LoadScenarioInput!DL18 -> 3705.708 | DM11: =LoadScenarioInput!DM18 -> 3395.006 | DN11: =LoadScenarioInput!DN18 -> 3762.424 | DO11: =LoadScenarioInput!DO18 -> 3481.279 | DP11: =LoadScenarioInput!DP18 -> 3730.746 | DQ11: =LoadScenarioInput!DQ18 -> 3523.594 | DR11: =LoadScenarioInput!DR18 -> 3580.129 | DS11: =LoadScenarioInput!DS18 -> 3775.739 | DT11: =LoadScenarioInput!DT18 -> 3759.857 | DU11: =LoadScenarioInput!DU18 -> 3237.048 | DV11: =LoadScenarioInput!DV18 -> 3515.651 | DW11: =LoadScenarioInput!DW18 -> 3442.489 | DX11: =LoadScenarioInput!DX18 -> 3705.708 | DY11: =LoadScenarioInput!DY18 -> 3395.006 | DZ11: =LoadScenarioInput!DZ18 -> 3762.424 | EA11: =LoadScenarioInput!EA18 -> 3481.279 | EB11: =LoadScenarioInput!EB18 -> 3730.746 | EC11: =LoadScenarioInput!EC18 -> 3523.594 | ED11: =LoadScenarioInput!ED18 -> 3580.129 | EE11: =LoadScenarioInput!EE18 -> 3775.739 | EF11: =LoadScenarioInput!EF18 -> 3759.857 | EG11: =LoadScenarioInput!EG18 -> 3352.658 | EH11: =LoadScenarioInput!EH18 -> 3515.651 | EI11: =LoadScenarioInput!EI18 -> 3442.489 | EJ11: =LoadScenarioInput!EJ18 -> 3705.708 | EK11: =LoadScenarioInput!EK18 -> 3395.006 | EL11: =LoadScenarioInput!EL18 -> 3762.424 | EM11: =LoadScenarioInput!EM18 -> 3481.279 | EN11: =LoadScenarioInput!EN18 -> 3730.746 | EO11: =LoadScenarioInput!EO18 -> 3523.594 | EP11: =LoadScenarioInput!EP18 -> 3580.129 | EQ11: =LoadScenarioInput!EQ18 -> 3775.739 | ER11: =LoadScenarioInput!ER18 -> 3759.857 | ES11: =LoadScenarioInput!ES18 -> 3237.048 | ET11: =LoadScenarioInput!ET18 -> 3515.651 | EU11: =LoadScenarioInput!EU18 -> 3442.489 | EV11: =LoadScenarioInput!EV18 -> 3705.708 | EW11: =LoadScenarioInput!EW18 -> 3395.006 | EX11: =LoadScenarioInput!EX18 -> 3762.424 | EY11: =LoadScenarioInput!EY18 -> 3481.279 | EZ11: =LoadScenarioInput!EZ18 -> 3730.746
B12: Smelter | D12: IND_SMT | E12: 0 | F12: 0 | G12: =+SUM(AJ12:AU12,DE12:DP12) -> 0 | H12: 0 | I12: 0 | J12: 0 | L12: =LoadScenarioInput!L19 -> 0 | M12: =LoadScenarioInput!M19 -> 0 | N12: =LoadScenarioInput!N19 -> 0 | O12: =LoadScenarioInput!O19 -> 0 | P12: =LoadScenarioInput!P19 -> 0 | Q12: =LoadScenarioInput!Q19 -> 0 | R12: =LoadScenarioInput!R19 -> 0 | S12: =LoadScenarioInput!S19 -> 0 | T12: =LoadScenarioInput!T19 -> 0 | U12: =LoadScenarioInput!U19 -> 0 | V12: =LoadScenarioInput!V19 -> 0 | W12: =LoadScenarioInput!W19 -> 0 | X12: =LoadScenarioInput!X19 -> 0 | Y12: =LoadScenarioInput!Y19 -> 0 | Z12: =LoadScenarioInput!Z19 -> 0 | AA12: =LoadScenarioInput!AA19 -> 0 | AB12: =LoadScenarioInput!AB19 -> 0 | AC12: =LoadScenarioInput!AC19 -> 0 | AD12: =LoadScenarioInput!AD19 -> 0 | AE12: =LoadScenarioInput!AE19 -> 0 | AF12: =LoadScenarioInput!AF19 -> 0 | AG12: =LoadScenarioInput!AG19 -> 0 | AH12: =LoadScenarioInput!AH19 -> 0 | AI12: =LoadScenarioInput!AI19 -> 0 | AJ12: =LoadScenarioInput!AJ19 -> 0 | AK12: =LoadScenarioInput!AK19 -> 0 | AL12: =LoadScenarioInput!AL19 -> 0 | AM12: =LoadScenarioInput!AM19 -> 0 | AN12: =LoadScenarioInput!AN19 -> 0 | AO12: =LoadScenarioInput!AO19 -> 0 | AP12: =LoadScenarioInput!AP19 -> 0 | AQ12: =LoadScenarioInput!AQ19 -> 0 | AR12: =LoadScenarioInput!AR19 -> 0 | AS12: =LoadScenarioInput!AS19 -> 0 | AT12: =LoadScenarioInput!AT19 -> 0 | AU12: =LoadScenarioInput!AU19 -> 0 | AV12: =LoadScenarioInput!AV19 -> 0 | AW12: =LoadScenarioInput!AW19 -> 0 | AX12: =LoadScenarioInput!AX19 -> 0 | AY12: =LoadScenarioInput!AY19 -> 0 | AZ12: =LoadScenarioInput!AZ19 -> 0 | BA12: =LoadScenarioInput!BA19 -> 0 | BB12: =LoadScenarioInput!BB19 -> 0 | BC12: =LoadScenarioInput!BC19 -> 0 | BD12: =LoadScenarioInput!BD19 -> 0 | BE12: =LoadScenarioInput!BE19 -> 0 | BF12: =LoadScenarioInput!BF19 -> 0 | BG12: =LoadScenarioInput!BG19 -> 0 | BH12: =LoadScenarioInput!BH19 -> 0 | BI12: =LoadScenarioInput!BI19 -> 0 | BJ12: =LoadScenarioInput!BJ19 -> 0 | BK12: =LoadScenarioInput!BK19 -> 0 | BL12: =LoadScenarioInput!BL19 -> 0 | BM12: =LoadScenarioInput!BM19 -> 0 | BN12: =LoadScenarioInput!BN19 -> 0 | BO12: =LoadScenarioInput!BO19 -> 0 | BP12: =LoadScenarioInput!BP19 -> 0 | BQ12: =LoadScenarioInput!BQ19 -> 0 | BR12: =LoadScenarioInput!BR19 -> 0 | BS12: =LoadScenarioInput!BS19 -> 0 | BT12: =LoadScenarioInput!BT19 -> 0 | BU12: =LoadScenarioInput!BU19 -> 0 | BV12: =LoadScenarioInput!BV19 -> 0 | BW12: =LoadScenarioInput!BW19 -> 0 | BX12: =LoadScenarioInput!BX19 -> 0 | BY12: =LoadScenarioInput!BY19 -> 0 | BZ12: =LoadScenarioInput!BZ19 -> 0 | CA12: =LoadScenarioInput!CA19 -> 0 | CB12: =LoadScenarioInput!CB19 -> 0 | CC12: =LoadScenarioInput!CC19 -> 0 | CD12: =LoadScenarioInput!CD19 -> 0 | CE12: =LoadScenarioInput!CE19 -> 0 | CG12: =LoadScenarioInput!CG19 -> 0 | CH12: =LoadScenarioInput!CH19 -> 0 | CI12: =LoadScenarioInput!CI19 -> 0 | CJ12: =LoadScenarioInput!CJ19 -> 0 | CK12: =LoadScenarioInput!CK19 -> 0 | CL12: =LoadScenarioInput!CL19 -> 0 | CM12: =LoadScenarioInput!CM19 -> 0 | CN12: =LoadScenarioInput!CN19 -> 0 | CO12: =LoadScenarioInput!CO19 -> 0 | CP12: =LoadScenarioInput!CP19 -> 0 | CQ12: =LoadScenarioInput!CQ19 -> 0 | CR12: =LoadScenarioInput!CR19 -> 0 | CS12: =LoadScenarioInput!CS19 -> 0 | CT12: =LoadScenarioInput!CT19 -> 0 | CU12: =LoadScenarioInput!CU19 -> 0 | CV12: =LoadScenarioInput!CV19 -> 0 | CW12: =LoadScenarioInput!CW19 -> 0 | CX12: =LoadScenarioInput!CX19 -> 0 | CY12: =LoadScenarioInput!CY19 -> 0 | CZ12: =LoadScenarioInput!CZ19 -> 0 | DA12: =LoadScenarioInput!DA19 -> 0 | DB12: =LoadScenarioInput!DB19 -> 0 | DC12: =LoadScenarioInput!DC19 -> 0 | DD12: =LoadScenarioInput!DD19 -> 0 | DE12: =LoadScenarioInput!DE19 -> 0 | DF12: =LoadScenarioInput!DF19 -> 0 | DG12: =LoadScenarioInput!DG19 -> 0 | DH12: =LoadScenarioInput!DH19 -> 0 | DI12: =LoadScenarioInput!DI19 -> 0 | DJ12: =LoadScenarioInput!DJ19 -> 0 | DK12: =LoadScenarioInput!DK19 -> 0 | DL12: =LoadScenarioInput!DL19 -> 0 | DM12: =LoadScenarioInput!DM19 -> 0 | DN12: =LoadScenarioInput!DN19 -> 0 | DO12: =LoadScenarioInput!DO19 -> 0 | DP12: =LoadScenarioInput!DP19 -> 0 | DQ12: =LoadScenarioInput!DQ19 -> 0 | DR12: =LoadScenarioInput!DR19 -> 0 | DS12: =LoadScenarioInput!DS19 -> 0 | DT12: =LoadScenarioInput!DT19 -> 0 | DU12: =LoadScenarioInput!DU19 -> 0 | DV12: =LoadScenarioInput!DV19 -> 0 | DW12: =LoadScenarioInput!DW19 -> 0 | DX12: =LoadScenarioInput!DX19 -> 0 | DY12: =LoadScenarioInput!DY19 -> 0 | DZ12: =LoadScenarioInput!DZ19 -> 0 | EA12: =LoadScenarioInput!EA19 -> 0 | EB12: =LoadScenarioInput!EB19 -> 0 | EC12: =LoadScenarioInput!EC19 -> 0 | ED12: =LoadScenarioInput!ED19 -> 0 | EE12: =LoadScenarioInput!EE19 -> 0 | EF12: =LoadScenarioInput!EF19 -> 0 | EG12: =LoadScenarioInput!EG19 -> 0 | EH12: =LoadScenarioInput!EH19 -> 0 | EI12: =LoadScenarioInput!EI19 -> 0 | EJ12: =LoadScenarioInput!EJ19 -> 0 | EK12: =LoadScenarioInput!EK19 -> 0 | EL12: =LoadScenarioInput!EL19 -> 0 | EM12: =LoadScenarioInput!EM19 -> 0 | EN12: =LoadScenarioInput!EN19 -> 0 | EO12: =LoadScenarioInput!EO19 -> 0 | EP12: =LoadScenarioInput!EP19 -> 0 | EQ12: =LoadScenarioInput!EQ19 -> 0 | ER12: =LoadScenarioInput!ER19 -> 0 | ES12: =LoadScenarioInput!ES19 -> 0 | ET12: =LoadScenarioInput!ET19 -> 0 | EU12: =LoadScenarioInput!EU19 -> 0 | EV12: =LoadScenarioInput!EV19 -> 0 | EW12: =LoadScenarioInput!EW19 -> 0 | EX12: =LoadScenarioInput!EX19 -> 0 | EY12: =LoadScenarioInput!EY19 -> 0 | EZ12: =LoadScenarioInput!EZ19 -> 0
B13: Other Industrial | D13: IND_OTH | E13: 96624 | F13: 96360 | G13: 96360 | H13: 96360 | I13: 96624 | J13: 96360 | L13: =LoadScenarioInput!L20 -> 4660.406 | M13: =LoadScenarioInput!M20 -> 4350.871 | N13: =LoadScenarioInput!N20 -> 4408.261 | O13: =LoadScenarioInput!O20 -> 4424.143 | P13: =LoadScenarioInput!P20 -> 4303.342 | Q13: =LoadScenarioInput!Q20 -> 4657.349 | R13: =LoadScenarioInput!R20 -> 4477.511 | S13: =LoadScenarioInput!S20 -> 4478.292 | T13: =LoadScenarioInput!T20 -> 4524.994 | U13: =LoadScenarioInput!U20 -> 4421.576 | V13: =LoadScenarioInput!V20 -> 4702.721 | W13: =LoadScenarioInput!W20 -> 4189.254 | X13: =LoadScenarioInput!X20 -> 4660.406 | Y13: =LoadScenarioInput!Y20 -> 4350.871 | Z13: =LoadScenarioInput!Z20 -> 4408.261 | AA13: =LoadScenarioInput!AA20 -> 4424.143 | AB13: =LoadScenarioInput!AB20 -> 4154.952 | AC13: =LoadScenarioInput!AC20 -> 4657.349 | AD13: =LoadScenarioInput!AD20 -> 4477.511 | AE13: =LoadScenarioInput!AE20 -> 4478.292 | AF13: =LoadScenarioInput!AF20 -> 4524.994 | AG13: =LoadScenarioInput!AG20 -> 4421.576 | AH13: =LoadScenarioInput!AH20 -> 4702.721 | AI13: =LoadScenarioInput!AI20 -> 4189.254 | AJ13: =LoadScenarioInput!AJ20 -> 4660.406 | AK13: =LoadScenarioInput!AK20 -> 4350.871 | AL13: =LoadScenarioInput!AL20 -> 4408.261 | AM13: =LoadScenarioInput!AM20 -> 4424.143 | AN13: =LoadScenarioInput!AN20 -> 4154.952 | AO13: =LoadScenarioInput!AO20 -> 4657.349 | AP13: =LoadScenarioInput!AP20 -> 4477.511 | AQ13: =LoadScenarioInput!AQ20 -> 4478.292 | AR13: =LoadScenarioInput!AR20 -> 4524.994 | AS13: =LoadScenarioInput!AS20 -> 4421.576 | AT13: =LoadScenarioInput!AT20 -> 4702.721 | AU13: =LoadScenarioInput!AU20 -> 4189.254 | AV13: =LoadScenarioInput!AV20 -> 4660.406 | AW13: =LoadScenarioInput!AW20 -> 4350.871 | AX13: =LoadScenarioInput!AX20 -> 4408.261 | AY13: =LoadScenarioInput!AY20 -> 4424.143 | AZ13: =LoadScenarioInput!AZ20 -> 4154.952 | BA13: =LoadScenarioInput!BA20 -> 4657.349 | BB13: =LoadScenarioInput!BB20 -> 4477.511 | BC13: =LoadScenarioInput!BC20 -> 4478.292 | BD13: =LoadScenarioInput!BD20 -> 4524.994 | BE13: =LoadScenarioInput!BE20 -> 4421.576 | BF13: =LoadScenarioInput!BF20 -> 4702.721 | BG13: =LoadScenarioInput!BG20 -> 4189.254 | BH13: =LoadScenarioInput!BH20 -> 4660.406 | BI13: =LoadScenarioInput!BI20 -> 4350.871 | BJ13: =LoadScenarioInput!BJ20 -> 4408.261 | BK13: =LoadScenarioInput!BK20 -> 4424.143 | BL13: =LoadScenarioInput!BL20 -> 4303.342 | BM13: =LoadScenarioInput!BM20 -> 4657.349 | BN13: =LoadScenarioInput!BN20 -> 4477.511 | BO13: =LoadScenarioInput!BO20 -> 4478.292 | BP13: =LoadScenarioInput!BP20 -> 4524.994 | BQ13: =LoadScenarioInput!BQ20 -> 4421.576 | BR13: =LoadScenarioInput!BR20 -> 4702.721 | BS13: =LoadScenarioInput!BS20 -> 4189.254 | BT13: =LoadScenarioInput!BT20 -> 4660.406 | BU13: =LoadScenarioInput!BU20 -> 4350.871 | BV13: =LoadScenarioInput!BV20 -> 4408.261 | BW13: =LoadScenarioInput!BW20 -> 4424.143 | BX13: =LoadScenarioInput!BX20 -> 4154.952 | BY13: =LoadScenarioInput!BY20 -> 4657.349 | BZ13: =LoadScenarioInput!BZ20 -> 4477.511 | CA13: =LoadScenarioInput!CA20 -> 4478.292 | CB13: =LoadScenarioInput!CB20 -> 4524.994 | CC13: =LoadScenarioInput!CC20 -> 4421.576 | CD13: =LoadScenarioInput!CD20 -> 4702.721 | CE13: =LoadScenarioInput!CE20 -> 4189.254 | CG13: =LoadScenarioInput!CG20 -> 3523.594 | CH13: =LoadScenarioInput!CH20 -> 3580.129 | CI13: =LoadScenarioInput!CI20 -> 3775.739 | CJ13: =LoadScenarioInput!CJ20 -> 3759.857 | CK13: =LoadScenarioInput!CK20 -> 3352.658 | CL13: =LoadScenarioInput!CL20 -> 3515.651 | CM13: =LoadScenarioInput!CM20 -> 3442.489 | CN13: =LoadScenarioInput!CN20 -> 3705.708 | CO13: =LoadScenarioInput!CO20 -> 3395.006 | CP13: =LoadScenarioInput!CP20 -> 3762.424 | CQ13: =LoadScenarioInput!CQ20 -> 3481.279 | CR13: =LoadScenarioInput!CR20 -> 3730.746 | CS13: =LoadScenarioInput!CS20 -> 3523.594 | CT13: =LoadScenarioInput!CT20 -> 3580.129 | CU13: =LoadScenarioInput!CU20 -> 3775.739 | CV13: =LoadScenarioInput!CV20 -> 3759.857 | CW13: =LoadScenarioInput!CW20 -> 3237.048 | CX13: =LoadScenarioInput!CX20 -> 3515.651 | CY13: =LoadScenarioInput!CY20 -> 3442.489 | CZ13: =LoadScenarioInput!CZ20 -> 3705.708 | DA13: =LoadScenarioInput!DA20 -> 3395.006 | DB13: =LoadScenarioInput!DB20 -> 3762.424 | DC13: =LoadScenarioInput!DC20 -> 3481.279 | DD13: =LoadScenarioInput!DD20 -> 3730.746 | DE13: =LoadScenarioInput!DE20 -> 3523.594 | DF13: =LoadScenarioInput!DF20 -> 3580.129 | DG13: =LoadScenarioInput!DG20 -> 3775.739 | DH13: =LoadScenarioInput!DH20 -> 3759.857 | DI13: =LoadScenarioInput!DI20 -> 3237.048 | DJ13: =LoadScenarioInput!DJ20 -> 3515.651 | DK13: =LoadScenarioInput!DK20 -> 3442.489 | DL13: =LoadScenarioInput!DL20 -> 3705.708 | DM13: =LoadScenarioInput!DM20 -> 3395.006 | DN13: =LoadScenarioInput!DN20 -> 3762.424 | DO13: =LoadScenarioInput!DO20 -> 3481.279 | DP13: =LoadScenarioInput!DP20 -> 3730.746 | DQ13: =LoadScenarioInput!DQ20 -> 3523.594 | DR13: =LoadScenarioInput!DR20 -> 3580.129 | DS13: =LoadScenarioInput!DS20 -> 3775.739 | DT13: =LoadScenarioInput!DT20 -> 3759.857 | DU13: =LoadScenarioInput!DU20 -> 3237.048 | DV13: =LoadScenarioInput!DV20 -> 3515.651 | DW13: =LoadScenarioInput!DW20 -> 3442.489 | DX13: =LoadScenarioInput!DX20 -> 3705.708 | DY13: =LoadScenarioInput!DY20 -> 3395.006 | DZ13: =LoadScenarioInput!DZ20 -> 3762.424 | EA13: =LoadScenarioInput!EA20 -> 3481.279 | EB13: =LoadScenarioInput!EB20 -> 3730.746 | EC13: =LoadScenarioInput!EC20 -> 3523.594 | ED13: =LoadScenarioInput!ED20 -> 3580.129 | EE13: =LoadScenarioInput!EE20 -> 3775.739 | EF13: =LoadScenarioInput!EF20 -> 3759.857 | EG13: =LoadScenarioInput!EG20 -> 3352.658 | EH13: =LoadScenarioInput!EH20 -> 3515.651 | EI13: =LoadScenarioInput!EI20 -> 3442.489 | EJ13: =LoadScenarioInput!EJ20 -> 3705.708 | EK13: =LoadScenarioInput!EK20 -> 3395.006 | EL13: =LoadScenarioInput!EL20 -> 3762.424 | EM13: =LoadScenarioInput!EM20 -> 3481.279 | EN13: =LoadScenarioInput!EN20 -> 3730.746 | EO13: =LoadScenarioInput!EO20 -> 3523.594 | EP13: =LoadScenarioInput!EP20 -> 3580.129 | EQ13: =LoadScenarioInput!EQ20 -> 3775.739 | ER13: =LoadScenarioInput!ER20 -> 3759.857 | ES13: =LoadScenarioInput!ES20 -> 3237.048 | ET13: =LoadScenarioInput!ET20 -> 3515.651 | EU13: =LoadScenarioInput!EU20 -> 3442.489 | EV13: =LoadScenarioInput!EV20 -> 3705.708 | EW13: =LoadScenarioInput!EW20 -> 3395.006 | EX13: =LoadScenarioInput!EX20 -> 3762.424 | EY13: =LoadScenarioInput!EY20 -> 3481.279 | EZ13: =LoadScenarioInput!EZ20 -> 3730.746
A14: New Resource | D14: NR | E14: 9.856 | F14: 9.824 | G14: 9.856 | H14: 9.856 | I14: 9.856 | J14: 9.856 | L14: =LoadScenarioInput!L21 -> 0.432 | M14: =LoadScenarioInput!M21 -> 0.4 | N14: =LoadScenarioInput!N21 -> 0.4 | O14: =LoadScenarioInput!O21 -> 0.416 | P14: =LoadScenarioInput!P21 -> 0.4 | Q14: =LoadScenarioInput!Q21 -> 0.416 | R14: =LoadScenarioInput!R21 -> 0.416 | S14: =LoadScenarioInput!S21 -> 0.4 | T14: =LoadScenarioInput!T21 -> 0.416 | U14: =LoadScenarioInput!U21 -> 0.416 | V14: =LoadScenarioInput!V21 -> 0.416 | W14: =LoadScenarioInput!W21 -> 0.4 | X14: =LoadScenarioInput!X21 -> 0.432 | Y14: =LoadScenarioInput!Y21 -> 0.384 | Z14: =LoadScenarioInput!Z21 -> 0.416 | AA14: =LoadScenarioInput!AA21 -> 0.4 | AB14: =LoadScenarioInput!AB21 -> 0.384 | AC14: =LoadScenarioInput!AC21 -> 0.432 | AD14: =LoadScenarioInput!AD21 -> 0.416 | AE14: =LoadScenarioInput!AE21 -> 0.4 | AF14: =LoadScenarioInput!AF21 -> 0.416 | AG14: =LoadScenarioInput!AG21 -> 0.416 | AH14: =LoadScenarioInput!AH21 -> 0.416 | AI14: =LoadScenarioInput!AI21 -> 0.4 | AJ14: =LoadScenarioInput!AJ21 -> 0.432 | AK14: =LoadScenarioInput!AK21 -> 0.4 | AL14: =LoadScenarioInput!AL21 -> 0.4 | AM14: =LoadScenarioInput!AM21 -> 0.416 | AN14: =LoadScenarioInput!AN21 -> 0.4 | AO14: =LoadScenarioInput!AO21 -> 0.416 | AP14: =LoadScenarioInput!AP21 -> 0.416 | AQ14: =LoadScenarioInput!AQ21 -> 0.4 | AR14: =LoadScenarioInput!AR21 -> 0.416 | AS14: =LoadScenarioInput!AS21 -> 0.416 | AT14: =LoadScenarioInput!AT21 -> 0.416 | AU14: =LoadScenarioInput!AU21 -> 0.4 | AV14: =LoadScenarioInput!AV21 -> 0.432 | AW14: =LoadScenarioInput!AW21 -> 0.4 | AX14: =LoadScenarioInput!AX21 -> 0.4 | AY14: =LoadScenarioInput!AY21 -> 0.416 | AZ14: =LoadScenarioInput!AZ21 -> 0.4 | BA14: =LoadScenarioInput!BA21 -> 0.416 | BB14: =LoadScenarioInput!BB21 -> 0.416 | BC14: =LoadScenarioInput!BC21 -> 0.4 | BD14: =LoadScenarioInput!BD21 -> 0.416 | BE14: =LoadScenarioInput!BE21 -> 0.416 | BF14: =LoadScenarioInput!BF21 -> 0.416 | BG14: =LoadScenarioInput!BG21 -> 0.4 | BH14: =LoadScenarioInput!BH21 -> 0.432 | BI14: =LoadScenarioInput!BI21 -> 0.4 | BJ14: =LoadScenarioInput!BJ21 -> 0.4 | BK14: =LoadScenarioInput!BK21 -> 0.416 | BL14: =LoadScenarioInput!BL21 -> 0.4 | BM14: =LoadScenarioInput!BM21 -> 0.416 | BN14: =LoadScenarioInput!BN21 -> 0.416 | BO14: =LoadScenarioInput!BO21 -> 0.4 | BP14: =LoadScenarioInput!BP21 -> 0.416 | BQ14: =LoadScenarioInput!BQ21 -> 0.416 | BR14: =LoadScenarioInput!BR21 -> 0.416 | BS14: =LoadScenarioInput!BS21 -> 0.4 | BT14: =LoadScenarioInput!BT21 -> 0.432 | BU14: =LoadScenarioInput!BU21 -> 0.4 | BV14: =LoadScenarioInput!BV21 -> 0.4 | BW14: =LoadScenarioInput!BW21 -> 0.416 | BX14: =LoadScenarioInput!BX21 -> 0.4 | BY14: =LoadScenarioInput!BY21 -> 0.416 | BZ14: =LoadScenarioInput!BZ21 -> 0.416 | CA14: =LoadScenarioInput!CA21 -> 0.4 | CB14: =LoadScenarioInput!CB21 -> 0.416 | CC14: =LoadScenarioInput!CC21 -> 0.416 | CD14: =LoadScenarioInput!CD21 -> 0.416 | CE14: =LoadScenarioInput!CE21 -> 0.4 | CG14: =LoadScenarioInput!CG21 -> 0.432 | CH14: =LoadScenarioInput!CH21 -> 0.4 | CI14: =LoadScenarioInput!CI21 -> 0.4 | CJ14: =LoadScenarioInput!CJ21 -> 0.416 | CK14: =LoadScenarioInput!CK21 -> 0.4 | CL14: =LoadScenarioInput!CL21 -> 0.416 | CM14: =LoadScenarioInput!CM21 -> 0.416 | CN14: =LoadScenarioInput!CN21 -> 0.4 | CO14: =LoadScenarioInput!CO21 -> 0.416 | CP14: =LoadScenarioInput!CP21 -> 0.416 | CQ14: =LoadScenarioInput!CQ21 -> 0.416 | CR14: =LoadScenarioInput!CR21 -> 0.4 | CS14: =LoadScenarioInput!CS21 -> 0.432 | CT14: =LoadScenarioInput!CT21 -> 0.384 | CU14: =LoadScenarioInput!CU21 -> 0.416 | CV14: =LoadScenarioInput!CV21 -> 0.4 | CW14: =LoadScenarioInput!CW21 -> 0.384 | CX14: =LoadScenarioInput!CX21 -> 0.432 | CY14: =LoadScenarioInput!CY21 -> 0.416 | CZ14: =LoadScenarioInput!CZ21 -> 0.4 | DA14: =LoadScenarioInput!DA21 -> 0.416 | DB14: =LoadScenarioInput!DB21 -> 0.416 | DC14: =LoadScenarioInput!DC21 -> 0.416 | DD14: =LoadScenarioInput!DD21 -> 0.4 | DE14: =LoadScenarioInput!DE21 -> 0.432 | DF14: =LoadScenarioInput!DF21 -> 0.4 | DG14: =LoadScenarioInput!DG21 -> 0.4 | DH14: =LoadScenarioInput!DH21 -> 0.416 | DI14: =LoadScenarioInput!DI21 -> 0.4 | DJ14: =LoadScenarioInput!DJ21 -> 0.416 | DK14: =LoadScenarioInput!DK21 -> 0.416 | DL14: =LoadScenarioInput!DL21 -> 0.4 | DM14: =LoadScenarioInput!DM21 -> 0.416 | DN14: =LoadScenarioInput!DN21 -> 0.416 | DO14: =LoadScenarioInput!DO21 -> 0.416 | DP14: =LoadScenarioInput!DP21 -> 0.4 | DQ14: =LoadScenarioInput!DQ21 -> 0.432 | DR14: =LoadScenarioInput!DR21 -> 0.4 | DS14: =LoadScenarioInput!DS21 -> 0.4 | DT14: =LoadScenarioInput!DT21 -> 0.416 | DU14: =LoadScenarioInput!DU21 -> 0.4 | DV14: =LoadScenarioInput!DV21 -> 0.416 | DW14: =LoadScenarioInput!DW21 -> 0.416 | DX14: =LoadScenarioInput!DX21 -> 0.4 | DY14: =LoadScenarioInput!DY21 -> 0.416 | DZ14: =LoadScenarioInput!DZ21 -> 0.416 | EA14: =LoadScenarioInput!EA21 -> 0.416 | EB14: =LoadScenarioInput!EB21 -> 0.4 | EC14: =LoadScenarioInput!EC21 -> 0.432 | ED14: =LoadScenarioInput!ED21 -> 0.4 | EE14: =LoadScenarioInput!EE21 -> 0.4 | EF14: =LoadScenarioInput!EF21 -> 0.416 | EG14: =LoadScenarioInput!EG21 -> 0.4 | EH14: =LoadScenarioInput!EH21 -> 0.416 | EI14: =LoadScenarioInput!EI21 -> 0.416 | EJ14: =LoadScenarioInput!EJ21 -> 0.4 | EK14: =LoadScenarioInput!EK21 -> 0.416 | EL14: =LoadScenarioInput!EL21 -> 0.416 | EM14: =LoadScenarioInput!EM21 -> 0.416 | EN14: =LoadScenarioInput!EN21 -> 0.4 | EO14: =LoadScenarioInput!EO21 -> 0.432 | EP14: =LoadScenarioInput!EP21 -> 0.4 | EQ14: =LoadScenarioInput!EQ21 -> 0.4 | ER14: =LoadScenarioInput!ER21 -> 0.416 | ES14: =LoadScenarioInput!ES21 -> 0.4 | ET14: =LoadScenarioInput!ET21 -> 0.416 | EU14: =LoadScenarioInput!EU21 -> 0.416 | EV14: =LoadScenarioInput!EV21 -> 0.4 | EW14: =LoadScenarioInput!EW21 -> 0.416 | EX14: =LoadScenarioInput!EX21 -> 0.416 | EY14: =LoadScenarioInput!EY21 -> 0.416 | EZ14: =LoadScenarioInput!EZ21 -> 0.4
A15: Firm Power and Services | D15: FPS | E15: =+SUM(E16,E27,E38) -> 5883097.998 | F15: =+SUM(F16,F27,F38) -> 5873660.56 | G15: 5871851.85 | H15: 5870195.321 | I15: 5882004.202 | J15: 5870307.618 | L15: =LoadScenarioInput!L22 -> 379069.7273 | M15: =LoadScenarioInput!M22 -> 337849.6356 | N15: =LoadScenarioInput!N22 -> 350081.5409 | O15: =LoadScenarioInput!O22 -> 348871.3641 | P15: =LoadScenarioInput!P22 -> 328335.5169 | Q15: =LoadScenarioInput!Q22 -> 359570.2523 | R15: =LoadScenarioInput!R22 -> 415646.0303 | S15: =LoadScenarioInput!S22 -> 468333.2158 | T15: =LoadScenarioInput!T22 -> 464105.0816 | U15: =LoadScenarioInput!U22 -> 498539.2769 | V15: =LoadScenarioInput!V22 -> 507109.9756 | W15: =LoadScenarioInput!W22 -> 416034.2257 | X15: =LoadScenarioInput!X22 -> 379331.4186 | Y15: =LoadScenarioInput!Y22 -> 337849.6356 | Z15: =LoadScenarioInput!Z22 -> 350081.5409 | AA15: =LoadScenarioInput!AA22 -> 348871.3641 | AB15: =LoadScenarioInput!AB22 -> 316997.5039 | AC15: =LoadScenarioInput!AC22 -> 359570.2523 | AD15: =LoadScenarioInput!AD22 -> 415646.0303 | AE15: =LoadScenarioInput!AE22 -> 468333.2158 | AF15: =LoadScenarioInput!AF22 -> 464093.9276 | AG15: =LoadScenarioInput!AG22 -> 493005.0337 | AH15: =LoadScenarioInput!AH22 -> 510170.5006 | AI15: =LoadScenarioInput!AI22 -> 416386.2037 | AJ15: =LoadScenarioInput!AJ22 -> 379168.258 | AK15: =LoadScenarioInput!AK22 -> 337503.4248 | AL15: =LoadScenarioInput!AL22 -> 350134.4799 | AM15: =LoadScenarioInput!AM22 -> 348922.9646 | AN15: =LoadScenarioInput!AN22 -> 316829.9503 | AO15: =LoadScenarioInput!AO22 -> 359557.6172 | AP15: =LoadScenarioInput!AP22 -> 415799.3646 | AQ15: =LoadScenarioInput!AQ22 -> 468760.9219 | AR15: =LoadScenarioInput!AR22 -> 465309.7216 | AS15: =LoadScenarioInput!AS22 -> 498302.5933 | AT15: =LoadScenarioInput!AT22 -> 503440.4047 | AU15: =LoadScenarioInput!AU22 -> 415908.8726 | AV15: =LoadScenarioInput!AV22 -> 379168.258 | AW15: =LoadScenarioInput!AW22 -> 337503.4248 | AX15: =LoadScenarioInput!AX22 -> 350134.4799 | AY15: =LoadScenarioInput!AY22 -> 348639.7133 | AZ15: =LoadScenarioInput!AZ22 -> 316829.9503 | BA15: =LoadScenarioInput!BA22 -> 359732.8028 | BB15: =LoadScenarioInput!BB22 -> 415799.3646 | BC15: =LoadScenarioInput!BC22 -> 468760.9219 | BD15: =LoadScenarioInput!BD22 -> 465309.7216 | BE15: =LoadScenarioInput!BE22 -> 492717.3773 | BF15: =LoadScenarioInput!BF22 -> 509698.6733 | BG15: =LoadScenarioInput!BG22 -> 415908.8726 | BH15: =LoadScenarioInput!BH22 -> 378911.7009 | BI15: =LoadScenarioInput!BI22 -> 337789.9231 | BJ15: =LoadScenarioInput!BJ22 -> 350134.4799 | BK15: =LoadScenarioInput!BK22 -> 348639.7133 | BL15: =LoadScenarioInput!BL22 -> 328184.6804 | BM15: =LoadScenarioInput!BM22 -> 359732.8028 | BN15: =LoadScenarioInput!BN22 -> 415561.3236 | BO15: =LoadScenarioInput!BO22 -> 469150.0597 | BP15: =LoadScenarioInput!BP22 -> 465309.7216 | BQ15: =LoadScenarioInput!BQ22 -> 491959.0047 | BR15: =LoadScenarioInput!BR22 -> 511911.7876 | BS15: =LoadScenarioInput!BS22 -> 415908.8726 | BT15: =LoadScenarioInput!BT22 -> 378911.7009 | BU15: =LoadScenarioInput!BU22 -> 337789.9231 | BV15: =LoadScenarioInput!BV22 -> 349851.583 | BW15: =LoadScenarioInput!BW22 -> 348922.9646 | BX15: =LoadScenarioInput!BX22 -> 316829.9503 | BY15: =LoadScenarioInput!BY22 -> 359732.8028 | BZ15: =LoadScenarioInput!BZ22 -> 415562.0612 | CA15: =LoadScenarioInput!CA22 -> 469150.0597 | CB15: =LoadScenarioInput!CB22 -> 465309.7216 | CC15: =LoadScenarioInput!CC22 -> 491959.0047 | CD15: =LoadScenarioInput!CD22 -> 511911.7876 | CE15: =LoadScenarioInput!CE22 -> 415539.9729 | CG15: =LoadScenarioInput!CG22 -> 59002.81531 | CH15: =LoadScenarioInput!CH22 -> 7301.756739 | CI15: =LoadScenarioInput!CI22 -> 7204.633883 | CJ15: =LoadScenarioInput!CJ22 -> 6121.162909 | CK15: =LoadScenarioInput!CK22 -> 10693.42596 | CL15: =LoadScenarioInput!CL22 -> 31153.77265 | CM15: =LoadScenarioInput!CM22 -> 87437.2904 | CN15: =LoadScenarioInput!CN22 -> 134250.3944 | CO15: =LoadScenarioInput!CO22 -> 154873.1201 | CP15: =LoadScenarioInput!CP22 -> 188088.2819 | CQ15: =LoadScenarioInput!CQ22 -> 197754.5354 | CR15: =LoadScenarioInput!CR22 -> 125670.9654 | CS15: =LoadScenarioInput!CS22 -> 58740.91505 | CT15: =LoadScenarioInput!CT22 -> 7301.756739 | CU15: =LoadScenarioInput!CU22 -> 7204.633883 | CV15: =LoadScenarioInput!CV22 -> 6121.162909 | CW15: =LoadScenarioInput!CW22 -> 10357.39496 | CX15: =LoadScenarioInput!CX22 -> 31153.77265 | CY15: =LoadScenarioInput!CY22 -> 87437.2904 | CZ15: =LoadScenarioInput!CZ22 -> 134250.3944 | DA15: =LoadScenarioInput!DA22 -> 154884.274 | DB15: =LoadScenarioInput!DB22 -> 183652.9251 | DC15: =LoadScenarioInput!DC22 -> 206900.6174 | DD15: =LoadScenarioInput!DD22 -> 125318.7954 | DE15: =LoadScenarioInput!DE22 -> 58634.97569 | DF15: =LoadScenarioInput!DF22 -> 7330.695132 | DG15: =LoadScenarioInput!DG22 -> 6765.27896 | DH15: =LoadScenarioInput!DH22 -> 6137.377366 | DI15: =LoadScenarioInput!DI22 -> 10244.4954 | DJ15: =LoadScenarioInput!DJ22 -> 31123.53608 | DK15: =LoadScenarioInput!DK22 -> 87570.9231 | DL15: =LoadScenarioInput!DL22 -> 135380.3059 | DM15: =LoadScenarioInput!DM22 -> 155078.2634 | DN15: =LoadScenarioInput!DN22 -> 187848.2468 | DO15: =LoadScenarioInput!DO22 -> 201194.2269 | DP15: =LoadScenarioInput!DP22 -> 124904.9517 | DQ15: =LoadScenarioInput!DQ22 -> 58634.97569 | DR15: =LoadScenarioInput!DR22 -> 7330.695132 | DS15: =LoadScenarioInput!DS22 -> 6765.27896 | DT15: =LoadScenarioInput!DT22 -> 6308.251652 | DU15: =LoadScenarioInput!DU22 -> 10244.4954 | DV15: =LoadScenarioInput!DV22 -> 30948.38242 | DW15: =LoadScenarioInput!DW22 -> 87570.9231 | DX15: =LoadScenarioInput!DX22 -> 135380.3059 | DY15: =LoadScenarioInput!DY22 -> 155078.2634 | DZ15: =LoadScenarioInput!DZ22 -> 183444.5188 | EA15: =LoadScenarioInput!EA22 -> 203380.7183 | EB15: =LoadScenarioInput!EB22 -> 124904.9517 | EC15: =LoadScenarioInput!EC22 -> 58891.74188 | ED15: =LoadScenarioInput!ED22 -> 7156.10391 | EE15: =LoadScenarioInput!EE22 -> 6765.27896 | EF15: =LoadScenarioInput!EF22 -> 6308.251652 | EG15: =LoadScenarioInput!EG22 -> 10586.54246 | EH15: =LoadScenarioInput!EH22 -> 30948.38242 | EI15: =LoadScenarioInput!EI22 -> 87809.15703 | EJ15: =LoadScenarioInput!EJ22 -> 134991.5381 | EK15: =LoadScenarioInput!EK22 -> 155078.2634 | EL15: =LoadScenarioInput!EL22 -> 184202.5234 | EM15: =LoadScenarioInput!EM22 -> 201167.3971 | EN15: =LoadScenarioInput!EN22 -> 124904.9517 | EO15: =LoadScenarioInput!EO22 -> 58891.74188 | EP15: =LoadScenarioInput!EP22 -> 7156.10391 | EQ15: =LoadScenarioInput!EQ22 -> 6935.79986 | ER15: =LoadScenarioInput!ER22 -> 6137.377366 | ES15: =LoadScenarioInput!ES22 -> 10244.4954 | ET15: =LoadScenarioInput!ET22 -> 30948.38242 | EU15: =LoadScenarioInput!EU22 -> 87808.41948 | EV15: =LoadScenarioInput!EV22 -> 134991.5381 | EW15: =LoadScenarioInput!EW22 -> 155078.2634 | EX15: =LoadScenarioInput!EX22 -> 184202.5234 | EY15: =LoadScenarioInput!EY22 -> 201167.3971 | EZ15: =LoadScenarioInput!EZ22 -> 125274.0434
